Workbook

Sheet Sample Report (hidden)
A2: Date
A3: Hen
A4: Program
A5: Start at 999999
A6: Sequence component 1 | B6: Time 1 | C6: Seqeunce Component 2 | D6: Time 2 | E6: Seqeunce Component 3 | F6: Time 3 | G6: Correct 0 = No 1=Yes | J6: Seqeunce | K6: Time
A7: 12 | B7: 7 | C7: 12 | D7: 42 | E7: 13 | F7: 18 | G7: if 77 new line, if 31 or 41 = yes new line on 77, | J7: =string of Seqeunce compponent 1, 2 & 3 | K7: =time 3
A8: This continues until ther is a 1 on its own to indicate start of summary data
J9: 10-19 =1
A10: Summary Data | J10: 20-29 =2
A11: Correct | B11: Incorrect | C11: Rft | D11: total | E11: Av Correct | F11: Av Incorrect | G11: Percent correct | H11: Time | J11: in this example the seqeunce would be 111
A12: 40 | B12: 33 | C12: 40 | D12: 73 | E12: 23.95 | F12: 15 | G12: 54 | H12: 806

Sheet Summary
A2: Day | B2: Date | C2: Average Response Rate | D2: Target % | E2: RF for non correct sequence | F2: U Value | K2: Block 1 | L2: Block 2 | M2: Block 3 | N2: Block 4 | O2: Block 5 | P2: Block 6
A3: 1 | B3: ='!M729A00.010'!B2:C2 -> <date> | C3: =('!M729A00.010'!H183/60)/'!M729A00.010'!Q3 -> 0 | D3: ='!M729A00.010'!N28/'!M729A00.010'!Q3 -> 0 | E3: =SUM('!M729A00.010'!L28:Q28)/'!M729A00.010'!Q3 -> 6.610169492 | F3: ='!M729A00.010'!Q24 -> 0.2843565391 | J3: Average Response Rate | K3: =AVERAGE(C3:C7) -> 1.888323073 | L3: =AVERAGE(C8:C12) -> 2.669065964 | M3: =AVERAGE(C13:C17) -> 2.570785793 | N3: =AVERAGE(C18:C22) -> 2.455584307 | O3: =AVERAGE(C23:C27) -> 2.418506043 | P3: =AVERAGE(C28:C32) -> 2.30713983
A4: 2 | B4: ='!M730A10.010'!B2:C2 -> <date> | C4: =('!M730A10.010'!H183/60)/'!M730A10.010'!Q3 -> 2.253107345 | D4: ='!M730A10.010'!N28/'!M730A10.010'!Q3 -> 0 | E4: =SUM('!M730A10.010'!L28:Q28)/'!M730A10.010'!Q3 -> 6.610169492 | F4: ='!M730A10.010'!Q24 -> 0.2556530992 | J4: Target % | K4: =AVERAGE(D3:D7) -> 0 | L4: =AVERAGE(D8:D12) -> 0 | M4: =AVERAGE(D13:D17) -> 0 | N4: =AVERAGE(D18:D22) -> 0 | O4: =AVERAGE(D23:D27) -> 0 | P4: =AVERAGE(D28:D32) -> 0
A5: 3 | B5: ='!M731A10.010'!B2:C2 -> <date> | C5: =('!M731A10.010'!H183/60)/'!M731A10.010'!Q3 -> 2.253201507 | D5: ='!M731A10.010'!N28/'!M731A10.010'!Q3 -> 0 | E5: =SUM('!M731A10.010'!L28:Q28)/'!M731A10.010'!Q3 -> 6.610169492 | F5: ='!M731A10.010'!Q24 -> 0.1063685347 | J5: CCRF | K5: =AVERAGE(E3:E7) -> 6.857779856 | L5: =AVERAGE(E8:E12) -> 7.767412053 | M5: =AVERAGE(E13:E17) -> 7.761373255 | N5: =AVERAGE(E18:E22) -> 7.191754125 | O5: =AVERAGE(E23:E27) -> 7.067043928 | P5: =AVERAGE(E28:E32) -> 6.764408727
A6: 4 | B6: ='!M801A40.010'!B2:C2 -> <date> | C6: =('!M801A40.010'!H180/60)/'!M801A40.010'!Q3 -> 2.289750958 | D6: ='!M801A40.010'!N28/'!M801A40.010'!Q3 -> 0 | E6: =SUM('!M801A40.010'!L28:Q28)/'!M801A40.010'!Q3 -> 6.718390805 | F6: ='!M801A40.010'!Q24 -> 0.2450223986 | J6: U Value | K6: =AVERAGE(F3:F7) -> 0.239095178 | L6: =AVERAGE(F8:F12) -> 0.196013926 | M6: =AVERAGE(F13:F17) -> 0.1543149355 | N6: =AVERAGE(F18:F22) -> 0.06981657904 | O6: =AVERAGE(F23:F27) -> 0.001371581463 | P6: =AVERAGE(F28:F32) -> 0.006882394171
A7: 5 | B7: ='!M802820.010'!B2:C2 -> <date> | C7: =('!M802820.010'!H156/60)/'!M802820.010'!Q3 -> 2.645555556 | D7: ='!M802820.010'!N28/'!M802820.010'!Q3 -> 0 | E7: =SUM('!M802820.010'!L28:Q28)/'!M802820.010'!Q3 -> 7.74 | F7: ='!M802820.010'!Q24 -> 0.3040753184
A8: 6 | B8: ='!M803930.010'!B2:C2 -> <date> | C8: =('!M803930.010'!H166/60)/'!M803930.010'!Q3 -> 2.494270833 | D8: ='!M803930.010'!N28/'!M803930.010'!Q3 -> 0 | E8: =SUM('!M803930.010'!L28:Q28)/'!M803930.010'!Q3 -> 7.28125 | F8: ='!M803930.010'!Q24 -> 0.2544884611
A9: 7 | B9: ='!M804A00.010'!B2:C2 -> <date> | C9: =('!M804A00.010'!H154/60)/'!M804A00.010'!Q3 -> 2.693918919 | D9: ='!M804A00.010'!N28/'!M804A00.010'!Q3 -> 0 | E9: =SUM('!M804A00.010'!L28:Q28)/'!M804A00.010'!Q3 -> 7.844594595 | F9: ='!M804A00.010'!Q24 -> 0.2406018239 | G9: =K3 -> 1.888323073 | H9: =L3 -> 2.669065964 | I9: 2.570785793 | J9: 2.455584307 | K9: 2.418506043 | L9: 2.30713983 | M9: =K4 -> 0 | N9: 0 | O9: 0 | P9: 0 | Q9: 0 | R9: 0 | S9: =K6 -> 0.239095178 | T9: 0.196013926 | U9: 0.1543149355 | V9: 0.06981657904 | W9: 0.001371581463 | X9: 0.006882394171
A10: 8 | B10: ='!M805930.010'!B2:C2 -> <date> | C10: =('!M805930.010'!H152/60)/'!M805930.010'!Q3 -> 2.739611872 | D10: ='!M805930.010'!N28/'!M805930.010'!Q3 -> 0 | E10: =SUM('!M805930.010'!L28:Q28)/'!M805930.010'!Q3 -> 7.945205479 | F10: ='!M805930.010'!Q24 -> 0.1296598458
A11: 9 | B11: ='!M806840.010'!B2:C2 -> <date> | C11: =('!M806840.010'!H143/60)/'!M806840.010'!Q3 -> 2.912287105 | D11: ='!M806840.010'!N28/'!M806840.010'!Q3 -> 0 | E11: =SUM('!M806840.010'!L28:Q28)/'!M806840.010'!Q3 -> 8.445255474 | F11: ='!M806840.010'!Q24 -> 0.2576119801
A12: 10 | B12: ='!M807940.010'!B2:C2 -> <date> | C12: =('!M807940.010'!H164/60)/'!M807940.010'!Q3 -> 2.50524109 | D12: ='!M807940.010'!N28/'!M807940.010'!Q3 -> 0 | E12: =SUM('!M807940.010'!L28:Q28)/'!M807940.010'!Q3 -> 7.320754717 | F12: ='!M807940.010'!Q24 -> 0.09770751911
A13: 11 | B13: ='!M808A30.010'!B2:C2 -> <date> | C13: =('!M808A30.010'!H166/60)/'!M808A30.010'!Q3 -> 2.490833333 | D13: ='!M808A30.010'!N28/'!M808A30.010'!Q3 -> 0 | E13: =SUM('!M808A30.010'!L28:Q28)/'!M808A30.010'!Q3 -> 7.275 | F13: ='!M808A30.010'!Q24 -> 0.1176742196
A14: 12 | B14: ='!M809940.010'!B2:C2 -> <date> | C14: =('!M809940.010'!H178/60)/'!M809940.010'!Q3 -> 2.323255814 | D14: ='!M809940.010'!N28/'!M809940.010'!Q3 -> 0 | E14: =SUM('!M809940.010'!L28:Q28)/'!M809940.010'!Q3 -> 6.790697674 | F14: ='!M809940.010'!Q24 -> 0.22589653
A15: 13 | B15: ='!M810A10.010'!B2:C2 -> <date> | C15: =('!M810A10.010'!H162/60)/'!M810A10.010'!Q3 -> 2.553525641 | D15: ='!M810A10.010'!N28/'!M810A10.010'!Q3 -> 0 | E15: =SUM('!M810A10.010'!L28:Q28)/'!M810A10.010'!Q3 -> 8.096153846 | F15: ='!M810A10.010'!Q24 -> 0.1036247924
A16: 14 | B16: ='!M811840.010'!B2:C2 -> <date> | C16: =('!M811840.010'!H136/60)/'!M811840.010'!Q3 -> 3.035496183 | D16: ='!M811840.010'!N28/'!M811840.010'!Q3 -> 0 | E16: =SUM('!M811840.010'!L28:Q28)/'!M811840.010'!Q3 -> 8.816793893 | F16: ='!M811840.010'!Q24 -> 0.2163737269
A17: 15 | B17: ='!M812A00.010'!B2:C2 -> <date> | C17: =('!M812A00.010'!H169/60)/'!M812A00.010'!Q3 -> 2.450817996 | D17: ='!M812A00.010'!N28/'!M812A00.010'!Q3 -> 0 | E17: =SUM('!M812A00.010'!L28:Q28)/'!M812A00.010'!Q3 -> 7.828220859 | F17: ='!M812A00.010'!Q24 -> 0.1080054085
A18: 16 | B18: ='!M813950.010'!B2:C2 -> <date> | C18: =('!M813950.010'!H158/60)/'!M813950.010'!Q3 -> 2.600544662 | D18: ='!M813950.010'!N28/'!M813950.010'!Q3 -> 0 | E18: =SUM('!M813950.010'!L28:Q28)/'!M813950.010'!Q3 -> 7.594771242 | F18: ='!M813950.010'!Q24 -> 0.1263652859
A19: 17 | B19: ='!M814910.010'!B2:C2 -> <date> | C19: =('!M814910.010'!H166/60)/'!M814910.010'!Q3 -> 2.490833333 | D19: ='!M814910.010'!N28/'!M814910.010'!Q3 -> 0 | E19: =SUM('!M814910.010'!L28:Q28)/'!M814910.010'!Q3 -> 7.275 | F19: ='!M814910.010'!Q24 -> 0.1087882517
A20: 18 | B20: ='!M815A30.010'!B2:C2 -> <date> | C20: =('!M815A30.010'!H172/60)/'!M815A30.010'!Q3 -> 2.382734531 | D20: ='!M815A30.010'!N28/'!M815A30.010'!Q3 -> 0 | E20: =SUM('!M815A30.010'!L28:Q28)/'!M815A30.010'!Q3 -> 6.988023952 | F20: ='!M815A30.010'!Q24 -> 0.05247772679
A21: 19 | B21: ='!M816B20.010'!B2:C2 -> <date> | C21: =('!M816B20.010'!H179/60)/'!M816B20.010'!Q3 -> 2.305684008 | D21: ='!M816B20.010'!N28/'!M816B20.010'!Q3 -> 0 | E21: =SUM('!M816B20.010'!L28:Q28)/'!M816B20.010'!Q3 -> 6.757225434 | F21: ='!M816B20.010'!Q24 -> 0.02755583531
A22: 20 | B22: ='!M817A10.010'!B2:C2 -> <date> | C22: =('!M817A10.010'!H166/60)/'!M817A10.010'!Q3 -> 2.498125 | D22: ='!M817A10.010'!N28/'!M817A10.010'!Q3 -> 0 | E22: =SUM('!M817A10.010'!L28:Q28)/'!M817A10.010'!Q3 -> 7.34375 | F22: ='!M817A10.010'!Q24 -> 0.03389579549
A23: 21 | B23: ='!M818A20.010'!B2:C2 -> <date> | C23: =('!M818A20.010'!H168/60)/'!M818A20.010'!Q3 -> 2.460185185 | D23: ='!M818A20.010'!N28/'!M818A20.010'!Q3 -> 0 | E23: =SUM('!M818A20.010'!L28:Q28)/'!M818A20.010'!Q3 -> 7.191358025 | F23: ='!M818A20.010'!Q24 -> 0
A24: 22 | B24: ='!M819900.010'!B2:C2 -> <date> | C24: =('!M819900.010'!H163/60)/'!M819900.010'!Q3 -> 2.53970276 | D24: ='!M819900.010'!N28/'!M819900.010'!Q3 -> 0 | E24: =SUM('!M819900.010'!L28:Q28)/'!M819900.010'!Q3 -> 7.407643312 | F24: ='!M819900.010'!Q24 -> 0
A25: 23 | B25: ='!M820850.010'!B2:C2 -> <date> | C25: =('!M820850.010'!H169/60)/'!M820850.010'!Q3 -> 2.448159509 | D25: ='!M820850.010'!N28/'!M820850.010'!Q3 -> 0 | E25: =SUM('!M820850.010'!L28:Q28)/'!M820850.010'!Q3 -> 7.147239264 | F25: ='!M820850.010'!Q24 -> 0
A26: 24 | B26: ='!M821A40.010'!B2:C2 -> <date> | C26: =('!M821A40.010'!H180/60)/'!M821A40.010'!Q3 -> 2.292816092 | D26: ='!M821A40.010'!N28/'!M821A40.010'!Q3 -> 0 | E26: =SUM('!M821A40.010'!L28:Q28)/'!M821A40.010'!Q3 -> 6.718390805 | F26: ='!M821A40.010'!Q24 -> 0.006857907315
A27: 25 | B27: ='!M822A10.010'!B2:C2 -> <date> | C27: =('!M822A10.010'!H176/60)/'!M822A10.010'!Q3 -> 2.351666667 | D27: ='!M822A10.010'!N28/'!M822A10.010'!Q3 -> 0 | E27: =SUM('!M822A10.010'!L28:Q28)/'!M822A10.010'!Q3 -> 6.870588235 | F27: ='!M822A10.010'!Q24 -> 0
A28: 26 | B28: ='!M823A20.010'!B2:C2 -> <date> | C28: =('!M823A20.010'!H176/60)/'!M823A20.010'!Q3 -> 2.348333333 | D28: ='!M823A20.010'!N28/'!M823A20.010'!Q3 -> 0 | E28: =SUM('!M823A20.010'!L28:Q28)/'!M823A20.010'!Q3 -> 6.870588235 | F28: ='!M823A20.010'!Q24 -> 0.007024340492
A29: 27 | B29: ='!M824A10.010'!B2:C2 -> <date> | C29: =('!M824A10.010'!H183/60)/'!M824A10.010'!Q3 -> 2.253954802 | D29: ='!M824A10.010'!N28/'!M824A10.010'!Q3 -> 0 | E29: =SUM('!M824A10.010'!L28:Q28)/'!M824A10.010'!Q3 -> 6.610169492 | F29: ='!M824A10.010'!Q24 -> 0.006738118741
A30: 28 | B30: ='!M825A20.010'!B2:C2 -> <date> | C30: =('!M825A20.010'!H176/60)/'!M825A20.010'!Q3 -> 2.343823529 | D30: ='!M825A20.010'!N28/'!M825A20.010'!Q3 -> 0 | E30: =SUM('!M825A20.010'!L28:Q28)/'!M825A20.010'!Q3 -> 6.870588235 | F30: ='!M825A20.010'!Q24 -> 0
A31: 29 | B31: ='!M826940.010'!B2:C2 -> <date> | C31: =('!M826940.010'!H178/60)/'!M826940.010'!Q3 -> 2.314825581 | D31: ='!M826940.010'!N28/'!M826940.010'!Q3 -> 0 | E31: =SUM('!M826940.010'!L28:Q28)/'!M826940.010'!Q3 -> 6.790697674 | F31: ='!M826940.010'!Q24 -> 0.006940136263
A32: 30 | B32: ='!M827940.010'!B2:C2 -> <date> | C32: =('!M827940.010'!H180/60)/'!M827940.010'!Q3 -> 2.274761905 | D32: ='!M827940.010'!N28/'!M827940.010'!Q3 -> 0 | E32: =SUM('!M827940.010'!L28:Q28)/'!M827940.010'!Q3 -> 6.68 | F32: ='!M827940.010'!Q24 -> 0.01370937536
B33: ='!M828920.010'!B2:C2 -> <date> | C33: =('!M828920.010'!H183/60)/'!M828920.010'!Q3 -> 2.234831461 | D33: ='!M828920.010'!N28/'!M828920.010'!Q3 -> 0 | E33: =SUM('!M828920.010'!L28:Q28)/'!M828920.010'!Q3 -> 6.573033708 | F33: ='!M828920.010'!Q24 -> 0.006738118741
B34: ='!M829840.010'!B2:C2 -> <date> | C34: =('!M829840.010'!H176/60)/'!M829840.010'!Q3 -> 2.328849903 | D34: ='!M829840.010'!N28/'!M829840.010'!Q3 -> 0 | E34: =SUM('!M829840.010'!L28:Q28)/'!M829840.010'!Q3 -> 6.830409357 | F34: ='!M829840.010'!Q24 -> 0

Sheet Start
F1: Use Folder 51 | H1: Auto Clean Up | J1: Correct sequence
F2: FALSE | H2: TRUE | J2: 2212
A4: Working with Folder | G4: Process All/Or Pick A number: ALL or an integer
A5: E:\Hen Data\Raw Data\103_183\phase 3 any\ | G5: ALL
A6: Filenames:
A7: !M729A00.010 | G7: Paint Cells
A8: !M730A10.010 | G8: FALSE
A9: !M731A10.010
A10: !M801A40.010
A11: !M802820.010
A12: !M803930.010
A13: !M804A00.010
A14: !M805930.010
A15: !M806840.010
A16: !M807940.010
A17: !M808A30.010
A18: !M809940.010
A19: !M810A10.010
A20: !M811840.010
A21: !M812A00.010
A22: !M813950.010
A23: !M814910.010
A24: !M815A30.010
A25: !M816B20.010
A26: !M817A10.010
A27: !M818A20.010
A28: !M819900.010
A29: !M820850.010
A30: !M821A40.010
A31: !M822A10.010
A32: !M823A20.010
A33: !M824A10.010
A34: !M825A20.010
A35: !M826940.010
A36: !M827940.010
A37: !M828920.010
A38: !M829840.010

Sheet !M729A00.010
A1: Report for:!M729A00.010
A2: Date: | B2: <date>
A3: Hen: | B3: <hen> | F3: Correct Sequence | G3: =Start!J2 -> 2212 | P3: Total Sequences in Data | Q3: =4994-COUNTBLANK(L7:L5000) -> 177 | V3: Total Sequences in Block Data | W3: =COUNTA(L7:L36) -> 30 | AA3: Total Sequences in Block Data | AB3: =COUNTA(L37:L65) -> 29 | AF3: Total Sequences in Block Data | AG3: =COUNTA(L66:L95) -> 30 | AK3: Total Sequences in Block Data | AL3: =COUNTA(L96:L124) -> 29 | AP3: Total Sequences in Block Data | AQ3: =COUNTA(L125:L154) -> 30 | AU3: Total Sequences in Block Data | AV3: =COUNTA(L155:L183) -> 29
P4: Total Sequences in Summary | Q4: =SUM(O7:O22) -> 176 | V4: Total Sequences in Block Summary | W4: =SUM(U7:U22) -> 30 | AA4: Total Sequences in Block Summary | AB4: =SUM(Z7:Z22) -> 29 | AF4: Total Sequences in Block Summary | AG4: =SUM(AE7:AE22) -> 30 | AK4: Total Sequences in Block Summary | AL4: =SUM(AJ7:AJ22) -> 29 | AP4: Total Sequences in Block Summary | AQ4: =SUM(AO7:AO22) -> 30 | AU4: Total Sequences in Block Summary | AV4: =SUM(AT7:AT22) -> 28
T5: Block 1 | Y5: Block 2 | AD5: Block 3 | AI5: Block 4 | AN5: Block 5 | AS5: Block 6
A6: Sequence Component 1 | B6: Time 1 | C6: Sequence Component 2 | D6: Time 2 | E6: Sequence Component 3 | F6: Time 3 | G6: Sequence Component 4 | H6: Time 4 | I6: Sequence Component 5 | J6: Time 5 | K6: Correct? 0=No 1=Yes | L6: Sequence | N6: Frequency | P6: Relative Frequency | Q6: Variability | T6: Frequency | V6: Relative Frequency | W6: Variability | Y6: Frequency | AA6: Relative Frequency | AB6: Variability | AD6: Frequency | AF6: Relative Frequency | AG6: Variability | AI6: Frequency | AK6: Relative Frequency | AL6: Variability | AN6: Frequency | AP6: Relative Frequency | AQ6: Variability | AS6: Frequency | AU6: Relative Frequency | AV6: Variability
A7: 21 | B7: 16 | C7: 21 | D7: 25 | E7: 22 | F7: 33 | G7: 14 | H7: 47 | K7: 0 | L7: 2221 | N7: 1111 | O7: =COUNTIF($L$7:$L$500,N7) -> 55 | P7: =O7/$Q$4 -> 0.3125 | Q7: =IF(P7=0,0,(P7*((LOG(P7))/LOG(2)))) -> -0.5243974703 | T7: =N7 -> 1111 | U7: =COUNTIF(L7:L36,T7) -> 6 | V7: =U7/(W4-U20) -> 0.2 | W7: =IF(V7=0,0,(V7*((LOG(V7))/LOG(2)))) -> -0.464385619 | Y7: =N7 -> 1111 | Z7: =COUNTIF(L37:L65,Y7) -> 19 | AA7: =Z7/(AB4-Z20) -> 0.6551724138 | AB7: =IF(AA7=0,0,(AA7*((LOG(AA7))/LOG(2)))) -> -0.3996902121 | AD7: =N7 -> 1111 | AE7: =COUNTIF(L66:L95,AD7) -> 14 | AF7: =AE7/(AG4-AE20) -> 0.4666666667 | AG7: =IF(AF7=0,0,(AF7*((LOG(AF7))/LOG(2)))) -> -0.5131166477 | AI7: =N7 -> 1111 | AJ7: =COUNTIF(L96:L124,AI7) -> 6 | AK7: =AJ7/(AL4-AJ20) -> 0.2068965517 | AL7: =IF(AK7=0,0,(AK7*((LOG(AK7))/LOG(2)))) -> -0.4702796885 | AN7: =N7 -> 1111 | AO7: =COUNTIF(L125:L154,AN7) -> 6 | AP7: =AO7/(AQ4-AO20) -> 0.2 | AQ7: =IF(AP7=0,0,(AP7*((LOG(AP7))/LOG(2)))) -> -0.464385619 | AS7: =N7 -> 1111 | AT7: =COUNTIF(L155:L183,AS7) -> 4 | AU7: =AT7/(AV4-AT20) -> 0.1428571429 | AV7: =IF(AU7=0,0,(AU7*((LOG(AU7))/LOG(2)))) -> -0.4010507032
A8: 12 | B8: 145 | C8: 14 | D8: 151 | E8: 13 | F8: 159 | G8: 23 | H8: 172 | K8: 0 | L8: 1112 | N8: 1112 | O8: 45 | P8: 0.2556818182 | Q8: -0.503074054 | T8: 1112 | U8: =COUNTIF(L7:L36,T8) -> 5 | V8: =U8/(W4-U20) -> 0.1666666667 | W8: -0.4308270835 | Y8: 1112 | Z8: =COUNTIF(L37:L65,Y8) -> 10 | AA8: =Z8/(AB4-Z20) -> 0.3448275862 | AB8: -0.5296734139 | AD8: 1112 | AE8: =COUNTIF(L66:L95,AD8) -> 7 | AF8: =AE8/(AG4-AE20) -> 0.2333333333 | AG8: -0.4898916572 | AI8: 1112 | AJ8: =COUNTIF(L96:L124,AI8) -> 8 | AK8: =AJ8/(AL4-AJ20) -> 0.275862069 | AL8: -0.5125464814 | AN8: 1112 | AO8: =COUNTIF(L125:L154,AN8) -> 8 | AP8: =AO8/(AQ4-AO20) -> 0.2666666667 | AQ8: -0.5085041588 | AS8: 1112 | AT8: =COUNTIF(L155:L183,AS8) -> 7 | AU8: =AT8/(AV4-AT20) -> 0.25 | AV8: -0.5
A9: 21 | B9: 273 | C9: 21 | D9: 280 | E9: 22 | F9: 295 | G9: 23 | H9: 302 | K9: 0 | L9: 2222 | N9: 1121 | O9: 1 | P9: 0.005681818182 | Q9: -0.0423831342 | T9: 1121 | U9: =COUNTIF(L7:L36,T9) -> 1 | V9: =U9/(W4-U20) -> 0.03333333333 | W9: -0.1635630199 | Y9: 1121 | Z9: =COUNTIF(L37:L65,Y9) -> 0 | AA9: =Z9/(AB4-Z20) -> 0 | AB9: 0 | AD9: 1121 | AE9: =COUNTIF(L66:L95,AD9) -> 0 | AF9: =AE9/(AG4-AE20) -> 0 | AG9: 0 | AI9: 1121 | AJ9: =COUNTIF(L96:L124,AI9) -> 0 | AK9: =AJ9/(AL4-AJ20) -> 0 | AL9: 0 | AN9: 1121 | AO9: =COUNTIF(L125:L154,AN9) -> 0 | AP9: =AO9/(AQ4-AO20) -> 0 | AQ9: 0 | AS9: 1121 | AT9: =COUNTIF(L155:L183,AS9) -> 0 | AU9: =AT9/(AV4-AT20) -> 0 | AV9: 0
A10: 12 | B10: 399 | C10: 14 | D10: 404 | E10: 24 | F10: 418 | G10: 23 | H10: 429 | K10: 0 | L10: 1122 | N10: 1122 | O10: 50 | P10: 0.2840909091 | Q10: -0.5157884741 | T10: 1122 | U10: =COUNTIF(L7:L36,T10) -> 11 | V10: =U10/(W4-U20) -> 0.3666666667 | W10: -0.5307349582 | Y10: 1122 | Z10: =COUNTIF(L37:L65,Y10) -> 0 | AA10: =Z10/(AB4-Z20) -> 0 | AB10: 0 | AD10: 1122 | AE10: =COUNTIF(L66:L95,AD10) -> 9 | AF10: =AE10/(AG4-AE20) -> 0.3 | AG10: -0.5210896782 | AI10: 1122 | AJ10: =COUNTIF(L96:L124,AI10) -> 11 | AK10: =AJ10/(AL4-AJ20) -> 0.3793103448 | AL10: -0.5304842463 | AN10: 1122 | AO10: =COUNTIF(L125:L154,AN10) -> 13 | AP10: =AO10/(AQ4-AO20) -> 0.4333333333 | AQ10: -0.5227953802 | AS10: 1122 | AT10: =COUNTIF(L155:L183,AS10) -> 6 | AU10: =AT10/(AV4-AT20) -> 0.2142857143 | AV10: -0.4762269474
A11: 12 | B11: 531 | C11: 23 | D11: 546 | E11: 24 | F11: 553 | G11: 23 | H11: 561 | K11: 0 | L11: 1222 | N11: 1211 | O11: 0 | P11: 0 | Q11: 0 | T11: 1211 | U11: =COUNTIF(L7:L36,T11) -> 0 | V11: =U11/(W4-U20) -> 0 | W11: 0 | Y11: 1211 | Z11: =COUNTIF(L37:L65,Y11) -> 0 | AA11: =Z11/(AB4-Z20) -> 0 | AB11: 0 | AD11: 1211 | AE11: =COUNTIF(L66:L95,AD11) -> 0 | AF11: =AE11/(AG4-AE20) -> 0 | AG11: 0 | AI11: 1211 | AJ11: =COUNTIF(L96:L124,AI11) -> 0 | AK11: =AJ11/(AL4-AJ20) -> 0 | AL11: 0 | AN11: 1211 | AO11: =COUNTIF(L125:L154,AN11) -> 0 | AP11: =AO11/(AQ4-AO20) -> 0 | AQ11: 0 | AS11: 1211 | AT11: =COUNTIF(L155:L183,AS11) -> 0 | AU11: =AT11/(AV4-AT20) -> 0 | AV11: 0
A12: 12 | B12: 686 | C12: 14 | D12: 696 | E12: 24 | F12: 713 | G12: 14 | H12: 772 | K12: 0 | L12: 1121 | N12: 1212 | O12: 0 | P12: 0 | Q12: 0 | T12: 1212 | U12: =COUNTIF(L7:L36,T12) -> 0 | V12: =U12/(W4-U20) -> 0 | W12: 0 | Y12: 1212 | Z12: =COUNTIF(L37:L65,Y12) -> 0 | AA12: =Z12/(AB4-Z20) -> 0 | AB12: 0 | AD12: 1212 | AE12: =COUNTIF(L66:L95,AD12) -> 0 | AF12: =AE12/(AG4-AE20) -> 0 | AG12: 0 | AI12: 1212 | AJ12: =COUNTIF(L96:L124,AI12) -> 0 | AK12: =AJ12/(AL4-AJ20) -> 0 | AL12: 0 | AN12: 1212 | AO12: =COUNTIF(L125:L154,AN12) -> 0 | AP12: =AO12/(AQ4-AO20) -> 0 | AQ12: 0 | AS12: 1212 | AT12: =COUNTIF(L155:L183,AS12) -> 0 | AU12: =AT12/(AV4-AT20) -> 0 | AV12: 0
A13: 12 | B13: 880 | C13: 23 | D13: 896 | E13: 24 | F13: 905 | G13: 23 | H13: 913 | K13: 0 | L13: 1222 | N13: 1221 | O13: 0 | P13: 0 | Q13: 0 | T13: 1221 | U13: =COUNTIF(L7:L36,T13) -> 0 | V13: =U13/(W4-U20) -> 0 | W13: 0 | Y13: 1221 | Z13: =COUNTIF(L37:L65,Y13) -> 0 | AA13: =Z13/(AB4-Z20) -> 0 | AB13: 0 | AD13: 1221 | AE13: =COUNTIF(L66:L95,AD13) -> 0 | AF13: =AE13/(AG4-AE20) -> 0 | AG13: 0 | AI13: 1221 | AJ13: =COUNTIF(L96:L124,AI13) -> 0 | AK13: =AJ13/(AL4-AJ20) -> 0 | AL13: 0 | AN13: 1221 | AO13: =COUNTIF(L125:L154,AN13) -> 0 | AP13: =AO13/(AQ4-AO20) -> 0 | AQ13: 0 | AS13: 1221 | AT13: =COUNTIF(L155:L183,AS13) -> 0 | AU13: =AT13/(AV4-AT20) -> 0 | AV13: 0
A14: 12 | B14: 1011 | C14: 14 | D14: 1015 | E14: 24 | F14: 1029 | G14: 23 | H14: 1037 | K14: 0 | L14: 1122 | N14: 1222 | O14: 21 | P14: 0.1193181818 | Q14: -0.3659624893 | T14: 1222 | U14: =COUNTIF(L7:L36,T14) -> 4 | V14: =U14/(W4-U20) -> 0.1333333333 | W14: -0.3875854127 | Y14: 1222 | Z14: =COUNTIF(L37:L65,Y14) -> 0 | AA14: =Z14/(AB4-Z20) -> 0 | AB14: 0 | AD14: 1222 | AE14: =COUNTIF(L66:L95,AD14) -> 0 | AF14: =AE14/(AG4-AE20) -> 0 | AG14: 0 | AI14: 1222 | AJ14: =COUNTIF(L96:L124,AI14) -> 4 | AK14: =AJ14/(AL4-AJ20) -> 0.1379310345 | AL14: -0.3942042752 | AN14: 1222 | AO14: =COUNTIF(L125:L154,AN14) -> 3 | AP14: =AO14/(AQ4-AO20) -> 0.1 | AQ14: -0.3321928095 | AS14: 1222 | AT14: =COUNTIF(L155:L183,AS14) -> 10 | AU14: =AT14/(AV4-AT20) -> 0.3571428571 | AV14: -0.5305095811
A15: 12 | B15: 1137 | C15: 14 | D15: 1141 | E15: 24 | F15: 1154 | G15: 23 | H15: 1161 | K15: 0 | L15: 1122 | N15: 2111 | O15: 1 | P15: 0.005681818182 | Q15: -0.0423831342 | T15: 2111 | U15: =COUNTIF(L7:L36,T15) -> 0 | V15: =U15/(W4-U20) -> 0 | W15: 0 | Y15: 2111 | Z15: =COUNTIF(L37:L65,Y15) -> 0 | AA15: =Z15/(AB4-Z20) -> 0 | AB15: 0 | AD15: 2111 | AE15: =COUNTIF(L66:L95,AD15) -> 0 | AF15: =AE15/(AG4-AE20) -> 0 | AG15: 0 | AI15: 2111 | AJ15: =COUNTIF(L96:L124,AI15) -> 0 | AK15: =AJ15/(AL4-AJ20) -> 0 | AL15: 0 | AN15: 2111 | AO15: =COUNTIF(L125:L154,AN15) -> 0 | AP15: =AO15/(AQ4-AO20) -> 0 | AQ15: 0 | AS15: 2111 | AT15: =COUNTIF(L155:L183,AS15) -> 1 | AU15: =AT15/(AV4-AT20) -> 0.03571428571 | AV15: -0.1716912472
A16: 12 | B16: 1262 | C16: 14 | D16: 1270 | E16: 24 | F16: 1289 | G16: 23 | H16: 1296 | K16: 0 | L16: 1122 | N16: 2112 | O16: 0 | P16: 0 | Q16: 0 | T16: 2112 | U16: =COUNTIF(L7:L36,T16) -> 0 | V16: =U16/(W4-U20) -> 0 | W16: 0 | Y16: 2112 | Z16: =COUNTIF(L37:L65,Y16) -> 0 | AA16: =Z16/(AB4-Z20) -> 0 | AB16: 0 | AD16: 2112 | AE16: =COUNTIF(L66:L95,AD16) -> 0 | AF16: =AE16/(AG4-AE20) -> 0 | AG16: 0 | AI16: 2112 | AJ16: =COUNTIF(L96:L124,AI16) -> 0 | AK16: =AJ16/(AL4-AJ20) -> 0 | AL16: 0 | AN16: 2112 | AO16: =COUNTIF(L125:L154,AN16) -> 0 | AP16: =AO16/(AQ4-AO20) -> 0 | AQ16: 0 | AS16: 2112 | AT16: =COUNTIF(L155:L183,AS16) -> 0 | AU16: =AT16/(AV4-AT20) -> 0 | AV16: 0
A17: 12 | B17: 1390 | C17: 14 | D17: 1395 | E17: 24 | F17: 1409 | G17: 23 | H17: 1414 | K17: 0 | L17: 1122 | N17: 2121 | O17: 0 | P17: 0 | Q17: 0 | T17: 2121 | U17: =COUNTIF(L7:L36,T17) -> 0 | V17: =U17/(W4-U20) -> 0 | W17: 0 | Y17: 2121 | Z17: =COUNTIF(L37:L65,Y17) -> 0 | AA17: =Z17/(AB4-Z20) -> 0 | AB17: 0 | AD17: 2121 | AE17: =COUNTIF(L66:L95,AD17) -> 0 | AF17: =AE17/(AG4-AE20) -> 0 | AG17: 0 | AI17: 2121 | AJ17: =COUNTIF(L96:L124,AI17) -> 0 | AK17: =AJ17/(AL4-AJ20) -> 0 | AL17: 0 | AN17: 2121 | AO17: =COUNTIF(L125:L154,AN17) -> 0 | AP17: =AO17/(AQ4-AO20) -> 0 | AQ17: 0 | AS17: 2121 | AT17: =COUNTIF(L155:L183,AS17) -> 0 | AU17: =AT17/(AV4-AT20) -> 0 | AV17: 0
A18: 12 | B18: 1546 | C18: 23 | D18: 1559 | E18: 24 | F18: 1566 | G18: 23 | H18: 1574 | K18: 0 | L18: 1222 | N18: 2122 | O18: 0 | P18: 0 | Q18: 0 | T18: 2122 | U18: =COUNTIF(L7:L36,T18) -> 0 | V18: =U18/(W4-U20) -> 0 | W18: 0 | Y18: 2122 | Z18: =COUNTIF(L37:L65,Y18) -> 0 | AA18: =Z18/(AB4-Z20) -> 0 | AB18: 0 | AD18: 2122 | AE18: =COUNTIF(L66:L95,AD18) -> 0 | AF18: =AE18/(AG4-AE20) -> 0 | AG18: 0 | AI18: 2122 | AJ18: =COUNTIF(L96:L124,AI18) -> 0 | AK18: =AJ18/(AL4-AJ20) -> 0 | AL18: 0 | AN18: 2122 | AO18: =COUNTIF(L125:L154,AN18) -> 0 | AP18: =AO18/(AQ4-AO20) -> 0 | AQ18: 0 | AS18: 2122 | AT18: =COUNTIF(L155:L183,AS18) -> 0 | AU18: =AT18/(AV4-AT20) -> 0 | AV18: 0
A19: 12 | B19: 1668 | C19: 14 | D19: 1674 | E19: 13 | F19: 1681 | G19: 23 | H19: 1693 | K19: 0 | L19: 1112 | N19: 2211 | O19: 1 | P19: 0.005681818182 | Q19: -0.0423831342 | T19: 2211 | U19: =COUNTIF(L7:L36,T19) -> 1 | V19: =U19/(W4-U20) -> 0.03333333333 | W19: -0.1635630199 | Y19: 2211 | Z19: =COUNTIF(L37:L65,Y19) -> 0 | AA19: =Z19/(AB4-Z20) -> 0 | AB19: 0 | AD19: 2211 | AE19: =COUNTIF(L66:L95,AD19) -> 0 | AF19: =AE19/(AG4-AE20) -> 0 | AG19: 0 | AI19: 2211 | AJ19: =COUNTIF(L96:L124,AI19) -> 0 | AK19: =AJ19/(AL4-AJ20) -> 0 | AL19: 0 | AN19: 2211 | AO19: =COUNTIF(L125:L154,AN19) -> 0 | AP19: =AO19/(AQ4-AO20) -> 0 | AQ19: 0 | AS19: 2211 | AT19: =COUNTIF(L155:L183,AS19) -> 0 | AU19: =AT19/(AV4-AT20) -> 0 | AV19: 0
A20: 12 | B20: 1794 | C20: 14 | D20: 1798 | E20: 24 | F20: 1817 | G20: 23 | H20: 1823 | K20: 0 | L20: 1122 | N20: 2212 | O20: 0 | P20: 0 | Q20: 0 | T20: 2212 | U20: =COUNTIF(L7:L36,T20) -> 0 | Y20: 2212 | Z20: =COUNTIF(L37:L65,Y20) -> 0 | AD20: 2212 | AE20: =COUNTIF(L66:L95,AD20) -> 0 | AI20: 2212 | AJ20: =COUNTIF(L96:L124,AI20) -> 0 | AN20: 2212 | AO20: =COUNTIF(L125:L154,AN20) -> 0 | AS20: 2212 | AT20: =COUNTIF(L155:L183,AS20) -> 0
A21: 12 | B21: 1926 | C21: 14 | D21: 1931 | E21: 24 | F21: 1943 | G21: 23 | H21: 1952 | K21: 0 | L21: 1122 | N21: 2221 | O21: 1 | P21: 0.005681818182 | Q21: -0.0423831342 | T21: 2221 | U21: =COUNTIF(L7:L36,T21) -> 1 | V21: =U21/(W4-U20) -> 0.03333333333 | W21: =IF(V21=0,0,(V21*((LOG(V21))/LOG(2)))) -> -0.1635630199 | Y21: 2221 | Z21: =COUNTIF(L37:L65,Y21) -> 0 | AA21: =Z21/(AB4-Z20) -> 0 | AB21: =IF(AA21=0,0,(AA21*((LOG(AA21))/LOG(2)))) -> 0 | AD21: 2221 | AE21: =COUNTIF(L66:L95,AD21) -> 0 | AF21: =AE21/(AG4-AE20) -> 0 | AG21: =IF(AF21=0,0,(AF21*((LOG(AF21))/LOG(2)))) -> 0 | AI21: 2221 | AJ21: =COUNTIF(L96:L124,AI21) -> 0 | AK21: =AJ21/(AL4-AJ20) -> 0 | AL21: =IF(AK21=0,0,(AK21*((LOG(AK21))/LOG(2)))) -> 0 | AN21: 2221 | AO21: =COUNTIF(L125:L154,AN21) -> 0 | AP21: =AO21/(AQ4-AO20) -> 0 | AQ21: =IF(AP21=0,0,(AP21*((LOG(AP21))/LOG(2)))) -> 0 | AS21: 2221 | AT21: =COUNTIF(L155:L183,AS21) -> 0 | AU21: =AT21/(AV4-AT20) -> 0 | AV21: =IF(AU21=0,0,(AU21*((LOG(AU21))/LOG(2)))) -> 0
A22: 12 | B22: 2057 | C22: 14 | D22: 2061 | E22: 24 | F22: 2074 | G22: 23 | H22: 2081 | K22: 0 | L22: 1122 | N22: 2222 | O22: 1 | P22: 0.005681818182 | Q22: -0.0423831342 | T22: 2222 | U22: =COUNTIF(L7:L36,T22) -> 1 | V22: =U22/(W4-U20) -> 0.03333333333 | W22: =IF(V22=0,0,(V22*((LOG(V22))/LOG(2)))) -> -0.1635630199 | Y22: 2222 | Z22: =COUNTIF(L37:L65,Y22) -> 0 | AA22: =Z22/(AB4-Z20) -> 0 | AB22: =IF(AA22=0,0,(AA22*((LOG(AA22))/LOG(2)))) -> 0 | AD22: 2222 | AE22: =COUNTIF(L66:L95,AD22) -> 0 | AF22: =AE22/(AG4-AE20) -> 0 | AG22: =IF(AF22=0,0,(AF22*((LOG(AF22))/LOG(2)))) -> 0 | AI22: 2222 | AJ22: =COUNTIF(L96:L124,AI22) -> 0 | AK22: =AJ22/(AL4-AJ20) -> 0 | AL22: =IF(AK22=0,0,(AK22*((LOG(AK22))/LOG(2)))) -> 0 | AN22: 2222 | AO22: =COUNTIF(L125:L154,AN22) -> 0 | AP22: =AO22/(AQ4-AO20) -> 0 | AQ22: =IF(AP22=0,0,(AP22*((LOG(AP22))/LOG(2)))) -> 0 | AS22: 2222 | AT22: =COUNTIF(L155:L183,AS22) -> 0 | AU22: =AT22/(AV4-AT20) -> 0 | AV22: =IF(AU22=0,0,(AU22*((LOG(AU22))/LOG(2)))) -> 0
A23: 12 | B23: 2180 | C23: 14 | D23: 2185 | E23: 24 | F23: 2197 | G23: 23 | H23: 2204 | K23: 0 | L23: 1122 | P23: =SUM(P7:P22) -> 1 | Q23: =-SUM(Q7:Q22) -> 2.121138159 | V23: =SUM(V7:V22) -> 1 | W23: =-SUM(W7:W22) -> 2.467785153 | AA23: =SUM(AA7:AA22) -> 1 | AB23: =-SUM(AB7:AB22) -> 0.929363626 | AF23: =SUM(AF7:AF22) -> 1 | AG23: =-SUM(AG7:AG22) -> 1.524097983 | AK23: =SUM(AK7:AK22) -> 1 | AL23: =-SUM(AL7:AL22) -> 1.907514691 | AP23: =SUM(AP7:AP22) -> 1 | AQ23: =-SUM(AQ7:AQ22) -> 1.827877968 | AU23: =SUM(AU7:AU22) -> 1 | AV23: =-SUM(AV7:AV22) -> 2.079478479
A24: 12 | B24: 2315 | C24: 14 | D24: 2323 | E24: 24 | F24: 2335 | G24: 23 | H24: 2343 | K24: 0 | L24: 1122 | P24: U= | Q24: =Q23/(LOG(Q4)/LOG(2)) -> 0.2843565391 | V24: U1= | W24: =W23/(LOG(W4)/LOG(2)) -> 0.5029223914 | AA24: U2= | AB24: =AB23/(LOG(AB4)/LOG(2)) -> 0.1913065586 | AF24: U3= | AG24: =AG23/(LOG(AG4)/LOG(2)) -> 0.3106036202 | AK24: U4= | AL24: =AL23/(LOG(AL4)/LOG(2)) -> 0.3926558571 | AP24: U5= | AQ24: =AQ23/(LOG(AQ4)/LOG(2)) -> 0.3725124765 | AU24: U6= | AV24: =AV23/(LOG(AV4)/LOG(2)) -> 0.4325618792
A25: 12 | B25: 2441 | C25: 14 | D25: 2445 | E25: 13 | F25: 2450 | G25: 14 | H25: 2465 | K25: 0 | L25: 1111
A26: 12 | B26: 2559 | C26: 14 | D26: 2563 | E26: 13 | F26: 2570 | G26: 14 | H26: 2583 | K26: 0 | L26: 1111
A27: 12 | B27: 2690 | C27: 14 | D27: 2699 | E27: 24 | F27: 2719 | G27: 23 | H27: 2728 | K27: 0 | L27: 1122 | N27: Total Target Seq
A28: 12 | B28: 2829 | C28: 14 | D28: 2834 | E28: 13 | F28: 2841 | G28: 14 | H28: 2849 | K28: 0 | L28: 1111 | N28: =COUNTIF(L7:L183,G3) -> 0 | P28: 30 | Q28: 29 | R28: 30 | S28: 29 | T28: 30 | U28: 29
A29: 12 | B29: 2948 | C29: 14 | D29: 2953 | E29: 13 | F29: 2958 | G29: 23 | H29: 2970 | K29: 0 | L29: 1112 | P29: % of reinforcement given in 6 equal intervals based on number of trials
A30: 12 | B30: 3069 | C30: 14 | D30: 3072 | E30: 13 | F30: 3085 | G30: 14 | H30: 3090 | K30: 0 | L30: 1111 | P30: %_1 | Q30: %_2 | R30: %_3 | S30: %_4 | T30: %_5 | U30: %_6
A31: 12 | B31: 3188 | C31: 14 | D31: 3192 | E31: 13 | F31: 3198 | G31: 23 | H31: 3212 | K31: 0 | L31: 1112 | O31: target sequence | P31: =$G$3 -> 2212 | Q31: 2212 | R31: 2212 | S31: 2212 | T31: 2212 | U31: 2212
A32: 12 | B32: 3309 | C32: 14 | D32: 3313 | E32: 13 | F32: 3325 | G32: 14 | H32: 3330 | K32: 0 | L32: 1111 | O32: total reinforcement | P32: =U20 -> 0 | Q32: =Z20 -> 0 | R32: =AE20 -> 0 | S32: =AJ20 -> 0 | T32: =AO20 -> 0 | U32: =AT20 -> 0
A33: 21 | B33: 3427 | C33: 21 | D33: 3434 | E33: 11 | F33: 3447 | G33: 12 | H33: 3453 | K33: 0 | L33: 2211 | O33: % target
A34: 12 | B34: 3563 | C34: 23 | D34: 3596 | E34: 24 | F34: 3604 | G34: 23 | H34: 3614 | K34: 0 | L34: 1222 | O34: CCRF
A35: 12 | B35: 3718 | C35: 14 | D35: 3722 | E35: 13 | F35: 3736 | G35: 14 | H35: 3745 | K35: 0 | L35: 1111 | O35: % CCRf
A36: 12 | B36: 3846 | C36: 14 | D36: 3851 | E36: 13 | F36: 3860 | G36: 23 | H36: 3874 | K36: 0 | L36: 1112 | O36: average response rate | P36: =H36/P28 -> 129.1333333 | Q36: =(H65-H36)/Q28 -> 128.3103448 | R36: =(H95-H65)/R28 -> 134.3 | S36: =(H124-H95)/S28 -> 139.7931034 | T36: =(H154-H124)/T28 -> 136.8333333 | U36: =(H183-H154)/U28 -> -682.1724138
A37: 12 | B37: 3972 | C37: 14 | D37: 3976 | E37: 13 | F37: 3984 | G37: 14 | H37: 3992 | K37: 0 | L37: 1111
A38: 12 | B38: 4091 | C38: 14 | D38: 4095 | E38: 13 | F38: 4103 | G38: 23 | H38: 4119 | K38: 0 | L38: 1112
A39: 12 | B39: 4216 | C39: 14 | D39: 4220 | E39: 13 | F39: 4227 | G39: 14 | H39: 4242 | K39: 0 | L39: 1111
A40: 12 | B40: 4334 | C40: 14 | D40: 4338 | E40: 13 | F40: 4346 | G40: 14 | H40: 4361 | K40: 0 | L40: 1111
A41: 12 | B41: 4452 | C41: 14 | D41: 4457 | E41: 13 | F41: 4465 | G41: 14 | H41: 4477 | K41: 0 | L41: 1111
A42: 12 | B42: 4574 | C42: 14 | D42: 4578 | E42: 13 | F42: 4586 | G42: 14 | H42: 4595 | K42: 0 | L42: 1111
A43: 12 | B43: 4698 | C43: 14 | D43: 4709 | E43: 13 | F43: 4717 | G43: 14 | H43: 4729 | K43: 0 | L43: 1111
A44: 12 | B44: 4828 | C44: 14 | D44: 4837 | E44: 13 | F44: 4844 | G44: 14 | H44: 4851 | K44: 0 | L44: 1111
A45: 12 | B45: 4961 | C45: 14 | D45: 4977 | E45: 13 | F45: 4983 | G45: 14 | H45: 4997 | K45: 0 | L45: 1111
A46: 12 | B46: 5093 | C46: 14 | D46: 5101 | E46: 13 | F46: 5109 | G46: 14 | H46: 5117 | K46: 0 | L46: 1111
A47: 12 | B47: 5215 | C47: 14 | D47: 5219 | E47: 13 | F47: 5231 | G47: 23 | H47: 5247 | K47: 0 | L47: 1112
A48: 12 | B48: 5347 | C48: 14 | D48: 5351 | E48: 13 | F48: 5362 | G48: 14 | H48: 5370 | K48: 0 | L48: 1111
A49: 12 | B49: 5468 | C49: 14 | D49: 5472 | E49: 13 | F49: 5481 | G49: 14 | H49: 5495 | K49: 0 | L49: 1111
A50: 12 | B50: 5594 | C50: 14 | D50: 5600 | E50: 13 | F50: 5607 | G50: 14 | H50: 5614 | K50: 0 | L50: 1111
A51: 12 | B51: 5718 | C51: 14 | D51: 5723 | E51: 13 | F51: 5730 | G51: 14 | H51: 5743 | K51: 0 | L51: 1111
A52: 12 | B52: 5836 | C52: 14 | D52: 5840 | E52: 13 | F52: 5849 | G52: 14 | H52: 5862 | K52: 0 | L52: 1111
A53: 12 | B53: 5958 | C53: 14 | D53: 5961 | E53: 13 | F53: 6011 | G53: 23 | H53: 6023 | K53: 0 | L53: 1112
A54: 12 | B54: 6121 | C54: 14 | D54: 6125 | E54: 13 | F54: 6133 | G54: 14 | H54: 6145 | K54: 0 | L54: 1111
A55: 12 | B55: 6254 | C55: 14 | D55: 6259 | E55: 13 | F55: 6267 | G55: 23 | H55: 6283 | K55: 0 | L55: 1112
A56: 12 | B56: 6394 | C56: 14 | D56: 6399 | E56: 13 | F56: 6406 | G56: 14 | H56: 6418 | K56: 0 | L56: 1111
A57: 12 | B57: 6523 | C57: 14 | D57: 6528 | E57: 13 | F57: 6541 | G57: 14 | H57: 6549 | K57: 0 | L57: 1111
A58: 12 | B58: 6649 | C58: 14 | D58: 6654 | E58: 13 | F58: 6666 | G58: 14 | H58: 6674 | K58: 0 | L58: 1111
A59: 12 | B59: 6772 | C59: 14 | D59: 6776 | E59: 13 | F59: 6781 | G59: 14 | H59: 6789 | K59: 0 | L59: 1111
A60: 12 | B60: 6885 | C60: 14 | D60: 6904 | E60: 13 | F60: 6929 | G60: 23 | H60: 6945 | K60: 0 | L60: 1112
A61: 12 | B61: 7038 | C61: 14 | D61: 7042 | E61: 13 | F61: 7050 | G61: 23 | H61: 7067 | K61: 0 | L61: 1112
A62: 12 | B62: 7164 | C62: 14 | D62: 7169 | E62: 13 | F62: 7192 | G62: 23 | H62: 7206 | K62: 0 | L62: 1112
A63: 12 | B63: 7303 | C63: 14 | D63: 7307 | E63: 13 | F63: 7323 | G63: 23 | H63: 7334 | K63: 0 | L63: 1112
A64: 12 | B64: 7436 | C64: 14 | D64: 7440 | E64: 13 | F64: 7453 | G64: 23 | H64: 7470 | K64: 0 | L64: 1112
A65: 12 | B65: 7563 | C65: 14 | D65: 7567 | E65: 13 | F65: 7582 | G65: 23 | H65: 7595 | K65: 0 | L65: 1112
A66: 12 | B66: 7699 | C66: 14 | D66: 7709 | E66: 24 | F66: 7723 | G66: 23 | H66: 7730 | K66: 0 | L66: 1122
A67: 12 | B67: 7843 | C67: 14 | D67: 7855 | E67: 24 | F67: 7870 | G67: 23 | H67: 7878 | K67: 0 | L67: 1122
A68: 12 | B68: 7977 | C68: 14 | D68: 7981 | E68: 13 | F68: 8008 | G68: 14 | H68: 8015 | K68: 0 | L68: 1111
A69: 12 | B69: 8121 | C69: 14 | D69: 8132 | E69: 24 | F69: 8144 | G69: 23 | H69: 8151 | K69: 0 | L69: 1122
A70: 12 | B70: 8248 | C70: 14 | D70: 8253 | E70: 13 | F70: 8265 | G70: 14 | H70: 8271 | K70: 0 | L70: 1111
A71: 12 | B71: 8369 | C71: 14 | D71: 8380 | E71: 13 | F71: 8388 | G71: 23 | H71: 8400 | K71: 0 | L71: 1112
A72: 12 | B72: 8499 | C72: 14 | D72: 8509 | E72: 24 | F72: 8520 | G72: 23 | H72: 8526 | K72: 0 | L72: 1122
A73: 12 | B73: 8625 | C73: 14 | D73: 8633 | E73: 13 | F73: 8649 | G73: 14 | H73: 8657 | K73: 0 | L73: 1111
A74: 12 | B74: 8756 | C74: 14 | D74: 8779 | E74: 13 | F74: 8788 | G74: 23 | H74: 8820 | K74: 0 | L74: 1112
A75: 12 | B75: 8921 | C75: 14 | D75: 8929 | E75: 13 | F75: 8937 | G75: 14 | H75: 8951 | K75: 0 | L75: 1111
A76: 12 | B76: 9055 | C76: 14 | D76: 9062 | E76: 13 | F76: 9069 | G76: 23 | H76: 9083 | K76: 0 | L76: 1112
A77: 12 | B77: 9181 | C77: 14 | D77: 9185 | E77: 24 | F77: 9198 | G77: 23 | H77: 9204 | K77: 0 | L77: 1122
A78: 12 | B78: 9303 | C78: 14 | D78: 9310 | E78: 13 | F78: 9322 | G78: 14 | H78: 9329 | K78: 0 | L78: 1111
A79: 12 | B79: 9425 | C79: 14 | D79: 9432 | E79: 13 | F79: 9445 | G79: 23 | H79: 9461 | K79: 0 | L79: 1112
A80: 12 | B80: 9569 | C80: 14 | D80: 9591 | E80: 13 | F80: 9604 | G80: 14 | H80: 9616 | K80: 0 | L80: 1111
A81: 12 | B81: 9715 | C81: 14 | D81: 9719 | E81: 13 | F81: 9726 | G81: 14 | H81: 9737 | K81: 0 | L81: 1111
A82: 12 | B82: 9862 | C82: 14 | D82: 9869 | E82: 13 | F82: 9881 | G82: 14 | H82: 9893 | K82: 0 | L82: 1111
A83: 12 | B83: 9991 | C83: 14 | D83: 9995 | E83: 13 | F83: 10003 | G83: 14 | H83: 10016 | K83: 0 | L83: 1111
A84: 12 | B84: 10126 | C84: 14 | D84: 10134 | E84: 13 | F84: 10142 | G84: 23 | H84: 10168 | K84: 0 | L84: 1112
A85: 12 | B85: 10267 | C85: 14 | D85: 10296 | E85: 13 | F85: 10306 | G85: 23 | H85: 10321 | K85: 0 | L85: 1112
A86: 12 | B86: 10422 | C86: 14 | D86: 10430 | E86: 24 | F86: 10443 | G86: 23 | H86: 10448 | K86: 0 | L86: 1122
A87: 12 | B87: 10551 | C87: 14 | D87: 10567 | E87: 24 | F87: 10582 | G87: 23 | H87: 10588 | K87: 0 | L87: 1122
A88: 12 | B88: 10680 | C88: 14 | D88: 10695 | E88: 13 | F88: 10706 | G88: 14 | H88: 10717 | K88: 0 | L88: 1111
A89: 12 | B89: 10815 | C89: 14 | D89: 10820 | E89: 13 | F89: 10838 | G89: 14 | H89: 10850 | K89: 0 | L89: 1111
A90: 12 | B90: 10949 | C90: 14 | D90: 10957 | E90: 24 | F90: 10972 | G90: 23 | H90: 10979 | K90: 0 | L90: 1122
A91: 12 | B91: 11076 | C91: 14 | D91: 11080 | E91: 13 | F91: 11087 | G91: 14 | H91: 11099 | K91: 0 | L91: 1111
A92: 12 | B92: 11199 | C92: 14 | D92: 11206 | E92: 13 | F92: 11214 | G92: 14 | H92: 11226 | K92: 0 | L92: 1111
A93: 12 | B93: 11327 | C93: 14 | D93: 11331 | E93: 13 | F93: 11343 | G93: 14 | H93: 11349 | K93: 0 | L93: 1111
A94: 12 | B94: 11448 | C94: 14 | D94: 11469 | E94: 13 | F94: 11477 | G94: 23 | H94: 11493 | K94: 0 | L94: 1112
A95: 12 | B95: 11599 | C95: 14 | D95: 11603 | E95: 24 | F95: 11616 | G95: 23 | H95: 11624 | K95: 0 | L95: 1122
A96: 12 | B96: 11728 | C96: 14 | D96: 11735 | E96: 24 | F96: 11749 | G96: 23 | H96: 11753 | K96: 0 | L96: 1122
A97: 12 | B97: 11850 | C97: 14 | D97: 11865 | E97: 13 | F97: 11874 | G97: 23 | H97: 11891 | K97: 0 | L97: 1112
A98: 12 | B98: 12000 | C98: 23 | D98: 12013 | E98: 24 | F98: 12019 | G98: 23 | H98: 12026 | K98: 0 | L98: 1222
A99: 12 | B99: 12132 | C99: 14 | D99: 12139 | E99: 24 | F99: 12155 | G99: 23 | H99: 12162 | K99: 0 | L99: 1122
A100: 12 | B100: 12266 | C100: 23 | D100: 12278 | E100: 24 | F100: 12284 | G100: 23 | H100: 12295 | K100: 0 | L100: 1222
A101: 12 | B101: 12401 | C101: 14 | D101: 12412 | E101: 24 | F101: 12427 | G101: 23 | H101: 12434 | K101: 0 | L101: 1122
A102: 12 | B102: 12534 | C102: 14 | D102: 12544 | E102: 24 | F102: 12556 | G102: 23 | H102: 12563 | K102: 0 | L102: 1122
A103: 12 | B103: 12680 | C103: 14 | D103: 12696 | E103: 24 | F103: 12709 | G103: 23 | H103: 12715 | K103: 0 | L103: 1122
A104: 12 | B104: 12831 | C104: 14 | D104: 12842 | E104: 13 | F104: 12853 | G104: 23 | H104: 12867 | K104: 0 | L104: 1112
A105: 12 | B105: 12969 | C105: 14 | D105: 12979 | E105: 24 | F105: 12997 | G105: 23 | H105: 13011 | K105: 0 | L105: 1122
A106: 12 | B106: 13124 | C106: 14 | D106: 13132 | E106: 13 | F106: 13150 | G106: 23 | H106: 13162 | K106: 0 | L106: 1112
A107: 12 | B107: 13282 | C107: 23 | D107: 13294 | E107: 24 | F107: 13299 | G107: 23 | H107: 13306 | K107: 0 | L107: 1222
A108: 12 | B108: 13420 | C108: 14 | D108: 13432 | E108: 13 | F108: 13438 | G108: 14 | H108: 13446 | K108: 0 | L108: 1111
A109: 12 | B109: 13553 | C109: 14 | D109: 13589 | E109: 13 | F109: 13601 | G109: 23 | H109: 13618 | K109: 0 | L109: 1112
A110: 12 | B110: 13724 | C110: 14 | D110: 13731 | E110: 13 | F110: 13739 | G110: 23 | H110: 13750 | K110: 0 | L110: 1112
A111: 12 | B111: 13852 | C111: 14 | D111: 13863 | E111: 13 | F111: 13871 | G111: 14 | H111: 13879 | K111: 0 | L111: 1111
A112: 12 | B112: 13980 | C112: 14 | D112: 13993 | E112: 24 | F112: 14008 | G112: 23 | H112: 14016 | K112: 0 | L112: 1122
A113: 12 | B113: 14114 | C113: 14 | D113: 14125 | E113: 13 | F113: 14136 | G113: 14 | H113: 14149 | K113: 0 | L113: 1111
A114: 12 | B114: 14246 | C114: 14 | D114: 14259 | E114: 13 | F114: 14266 | G114: 14 | H114: 14274 | K114: 0 | L114: 1111
A115: 12 | B115: 14384 | C115: 14 | D115: 14393 | E115: 13 | F115: 14405 | G115: 23 | H115: 14423 | K115: 0 | L115: 1112
A116: 12 | B116: 14545 | C116: 23 | D116: 14559 | E116: 24 | F116: 14565 | G116: 23 | H116: 14572 | K116: 0 | L116: 1222
A117: 12 | B117: 14688 | C117: 14 | D117: 14697 | E117: 24 | F117: 14712 | G117: 23 | H117: 14718 | K117: 0 | L117: 1122
A118: 12 | B118: 14819 | C118: 14 | D118: 14831 | E118: 24 | F118: 14843 | G118: 23 | H118: 14850 | K118: 0 | L118: 1122
A119: 12 | B119: 14975 | C119: 14 | D119: 14988 | E119: 13 | F119: 15001 | G119: 23 | H119: 15015 | K119: 0 | L119: 1112
A120: 12 | B120: 15112 | C120: 14 | D120: 15117 | E120: 13 | F120: 15138 | G120: 14 | H120: 15151 | K120: 0 | L120: 1111
A121: 12 | B121: 15261 | C121: 14 | D121: 15270 | E121: 24 | F121: 15285 | G121: 23 | H121: 15292 | K121: 0 | L121: 1122
A122: 12 | B122: 15390 | C122: 14 | D122: 15394 | E122: 13 | F122: 15405 | G122: 23 | H122: 15419 | K122: 0 | L122: 1112
A123: 12 | B123: 15516 | C123: 14 | D123: 15521 | E123: 13 | F123: 15535 | G123: 14 | H123: 15542 | K123: 0 | L123: 1111
A124: 12 | B124: 15648 | C124: 14 | D124: 15656 | E124: 24 | F124: 15671 | G124: 23 | H124: 15678 | K124: 0 | L124: 1122
A125: 12 | B125: 15782 | C125: 14 | D125: 15799 | E125: 13 | F125: 15811 | G125: 23 | H125: 15824 | K125: 0 | L125: 1112
A126: 12 | B126: 15938 | C126: 14 | D126: 15946 | E126: 13 | F126: 15957 | G126: 23 | H126: 15973 | K126: 0 | L126: 1112
A127: 12 | B127: 16087 | C127: 14 | D127: 16095 | E127: 24 | F127: 16111 | G127: 23 | H127: 16117 | K127: 0 | L127: 1122
A128: 12 | B128: 16216 | C128: 14 | D128: 16235 | E128: 13 | F128: 16243 | G128: 23 | H128: 16259 | K128: 0 | L128: 1112
A129: 12 | B129: 16380 | C129: 23 | D129: 16391 | E129: 24 | F129: 16396 | G129: 23 | H129: 16403 | K129: 0 | L129: 1222
A130: 12 | B130: 16512 | C130: 14 | D130: 16520 | E130: 24 | F130: 16533 | G130: 23 | H130: 16541 | K130: 0 | L130: 1122
A131: 12 | B131: 16649 | C131: 14 | D131: 16656 | E131: 13 | F131: 16665 | G131: 23 | H131: 16679 | K131: 0 | L131: 1112
A132: 12 | B132: 16800 | C132: 14 | D132: 16812 | E132: 24 | F132: 16826 | G132: 23 | H132: 16833 | K132: 0 | L132: 1122
A133: 12 | B133: 16927 | C133: 14 | D133: 16931 | E133: 13 | F133: 16939 | G133: 23 | H133: 16953 | K133: 0 | L133: 1112
A134: 12 | B134: 17056 | C134: 14 | D134: 17060 | E134: 24 | F134: 17079 | G134: 23 | H134: 17083 | K134: 0 | L134: 1122
A135: 12 | B135: 17190 | C135: 14 | D135: 17208 | E135: 24 | F135: 17222 | G135: 23 | H135: 17229 | K135: 0 | L135: 1122
A136: 12 | B136: 17335 | C136: 14 | D136: 17340 | E136: 13 | F136: 17348 | G136: 14 | H136: 17356 | K136: 0 | L136: 1111
A137: 12 | B137: 17454 | C137: 14 | D137: 17459 | E137: 13 | F137: 17475 | G137: 14 | H137: 17483 | K137: 0 | L137: 1111
A138: 12 | B138: 17581 | C138: 14 | D138: 17585 | E138: 13 | F138: 17592 | G138: 14 | H138: 17593 | K138: 0 | L138: 1111
A139: 12 | B139: 17699 | C139: 14 | D139: 17704 | E139: 13 | F139: 17711 | G139: 14 | H139: 17725 | K139: 0 | L139: 1111
A140: 12 | B140: 17826 | C140: 14 | D140: 17834 | E140: 13 | F140: 17845 | G140: 23 | H140: 17859 | K140: 0 | L140: 1112
A141: 12 | B141: 17955 | C141: 14 | D141: 17963 | E141: 13 | F141: 17971 | G141: 14 | H141: 17978 | K141: 0 | L141: 1111
A142: 12 | B142: 18090 | C142: 14 | D142: 18099 | E142: 24 | F142: 18112 | G142: 23 | H142: 18118 | K142: 0 | L142: 1122
A143: 12 | B143: 18212 | C143: 14 | D143: 18222 | E143: 24 | F143: 18238 | G143: 23 | H143: 18244 | K143: 0 | L143: 1122
A144: 12 | B144: 18356 | C144: 14 | D144: 18363 | E144: 13 | F144: 18371 | G144: 14 | H144: 18383 | K144: 0 | L144: 1111
A145: 12 | B145: 18480 | C145: 14 | D145: 18487 | E145: 24 | F145: 18512 | G145: 23 | H145: 18517 | K145: 0 | L145: 1122
A146: 12 | B146: 18616 | C146: 14 | D146: 18626 | E146: 24 | F146: 18638 | G146: 23 | H146: 18643 | K146: 0 | L146: 1122
A147: 12 | B147: 18773 | C147: 23 | D147: 18790 | E147: 24 | F147: 18799 | G147: 23 | H147: 18809 | K147: 0 | L147: 1222
A148: 12 | B148: 18917 | C148: 14 | D148: 18929 | E148: 13 | F148: 18937 | G148: 23 | H148: 18949 | K148: 0 | L148: 1112
A149: 12 | B149: 19072 | C149: 14 | D149: 19085 | E149: 13 | F149: 19093 | G149: 23 | H149: 19106 | K149: 0 | L149: 1112
A150: 12 | B150: 19212 | C150: 14 | D150: 19221 | E150: 24 | F150: 19235 | G150: 23 | H150: 19242 | K150: 0 | L150: 1122
A151: 12 | B151: 19347 | C151: 23 | D151: 19359 | E151: 24 | F151: 19366 | G151: 23 | H151: 19374 | K151: 0 | L151: 1222
A152: 12 | B152: 19489 | C152: 14 | D152: 19493 | E152: 24 | F152: 19506 | G152: 23 | H152: 19513 | K152: 0 | L152: 1122
A153: 12 | B153: 19616 | C153: 14 | D153: 19632 | E153: 24 | F153: 19646 | G153: 23 | H153: 19652 | K153: 0 | L153: 1122
A154: 12 | B154: 19751 | C154: 14 | D154: 19762 | E154: 24 | F154: 19776 | G154: 23 | H154: 19783 | K154: 0 | L154: 1122
A155: 12 | B155: 19908 | C155: 14 | D155: 19913 | E155: 13 | F155: 19926 | G155: 23 | H155: 19939 | K155: 0 | L155: 1112
A156: 12 | B156: 20030 | C156: 14 | D156: 20035 | E156: 13 | F156: 20044 | G156: 14 | H156: 20049 | K156: 0 | L156: 1111
A157: 12 | B157: 20164 | C157: 23 | D157: 20180 | E157: 24 | F157: 20188 | G157: 23 | H157: 20195 | K157: 0 | L157: 1222
A158: 12 | B158: 20309 | C158: 14 | D158: 20322 | E158: 13 | F158: 20336 | G158: 14 | H158: 20350 | K158: 0 | L158: 1111
A159: 12 | B159: 20473 | C159: 14 | D159: 20481 | E159: 24 | F159: 20494 | G159: 23 | H159: 20501 | K159: 0 | L159: 1122
A160: 12 | B160: 20604 | C160: 14 | D160: 20621 | E160: 13 | F160: 20633 | G160: 23 | H160: 20645 | K160: 0 | L160: 1112
A161: 12 | B161: 20742 | C161: 14 | D161: 20756 | E161: 13 | F161: 20764 | G161: 14 | H161: 20772 | K161: 0 | L161: 1111
A162: 12 | B162: 20870 | C162: 14 | D162: 20881 | E162: 24 | F162: 20894 | G162: 23 | H162: 20901 | K162: 0 | L162: 1122
A163: 12 | B163: 21016 | C163: 23 | D163: 21028 | E163: 24 | F163: 21035 | G163: 23 | H163: 21042 | K163: 0 | L163: 1222
A164: 12 | B164: 21144 | C164: 14 | D164: 21155 | E164: 24 | F164: 21167 | G164: 23 | H164: 21173 | K164: 0 | L164: 1122
A165: 12 | B165: 21287 | C165: 14 | D165: 21300 | E165: 24 | F165: 21315 | G165: 23 | H165: 21322 | K165: 0 | L165: 1122
A166: 12 | B166: 21420 | C166: 14 | D166: 21438 | E166: 13 | F166: 21468 | G166: 23 | H166: 21481 | K166: 0 | L166: 1112
A167: 12 | B167: 21593 | C167: 14 | D167: 21607 | E167: 13 | F167: 21615 | G167: 23 | H167: 21628 | K167: 0 | L167: 1112
A168: 12 | B168: 21744 | C168: 14 | D168: 21753 | E168: 24 | F168: 21766 | G168: 23 | H168: 21773 | K168: 0 | L168: 1122
A169: 12 | B169: 21868 | C169: 14 | D169: 21874 | E169: 24 | F169: 21884 | G169: 23 | H169: 21891 | K169: 0 | L169: 1122
A170: 12 | B170: 21994 | C170: 14 | D170: 22001 | E170: 13 | F170: 22008 | G170: 14 | H170: 22021 | K170: 0 | L170: 1111
A171: 12 | B171: 22147 | C171: 14 | D171: 22167 | E171: 13 | F171: 22176 | G171: 23 | H171: 22189 | K171: 0 | L171: 1112
A172: 12 | B172: 22331 | C172: 23 | D172: 22342 | E172: 24 | F172: 22349 | G172: 23 | H172: 22357 | K172: 0 | L172: 1222
A173: 12 | B173: 22468 | C173: 23 | D173: 22487 | E173: 24 | F173: 22494 | G173: 23 | H173: 22502 | K173: 0 | L173: 1222
A174: 12 | B174: 22649 | C174: 23 | D174: 22660 | E174: 24 | F174: 22666 | G174: 23 | H174: 22673 | K174: 0 | L174: 1222
A175: 12 | B175: 22790 | C175: 23 | D175: 22804 | E175: 24 | F175: 22812 | G175: 23 | H175: 22818 | K175: 0 | L175: 1222
A176: 12 | B176: 22941 | C176: 23 | D176: 22954 | E176: 24 | F176: 22961 | G176: 23 | H176: 22967 | K176: 0 | L176: 1222
A177: 12 | B177: 23107 | C177: 23 | D177: 23120 | E177: 24 | F177: 23128 | G177: 23 | H177: 23136 | K177: 0 | L177: 1222
A178: 12 | B178: 23258 | C178: 23 | D178: 23271 | E178: 24 | F178: 23278 | G178: 23 | H178: 23285 | K178: 0 | L178: 1222
A179: 12 | B179: 23401 | C179: 23 | D179: 23414 | E179: 24 | F179: 23421 | G179: 23 | H179: 23428 | K179: 0 | L179: 1222
A180: 12 | B180: 23544 | C180: 14 | D180: 23555 | E180: 13 | F180: 23563 | G180: 23 | H180: 23575 | K180: 0 | L180: 1112
A181: 21 | B181: 23683 | C181: 12 | D181: 23707 | E181: 13 | F181: 23717 | G181: 14 | H181: 23727 | K181: 0 | L181: 2111
A182: 12 | B182: 23833 | C182: 14 | D182: 23842 | E182: 13 | F182: 23855 | G182: 23 | H182: 23869 | K182: 0 | L182: 1112
A183: 12 | B183: 23978 | C183: 14 | D183: 23985 | E183: 24 | F183: 23998 | L183: 112

Sheet !M730A10.010
A1: Report for:!M730A10.010
A2: Date: | B2: <date>
A3: Hen: | B3: <hen> | F3: Correct Sequence | G3: =Start!J2 -> 2212 | P3: Total Sequences in Data | Q3: =4994-COUNTBLANK(L7:L5000) -> 177 | V3: Total Sequences in Block Data | W3: =COUNTA(L7:L36) -> 30 | AA3: Total Sequences in Block Data | AB3: =COUNTA(L37:L65) -> 29 | AF3: Total Sequences in Block Data | AG3: =COUNTA(L66:L95) -> 30 | AK3: Total Sequences in Block Data | AL3: =COUNTA(L96:L124) -> 29 | AP3: Total Sequences in Block Data | AQ3: =COUNTA(L125:L154) -> 30 | AU3: Total Sequences in Block Data | AV3: =COUNTA(L155:L183) -> 29
P4: Total Sequences in Summary | Q4: =SUM(O7:O22) -> 177 | V4: Total Sequences in Block Summary | W4: =SUM(U7:U22) -> 30 | AA4: Total Sequences in Block Summary | AB4: =SUM(Z7:Z22) -> 29 | AF4: Total Sequences in Block Summary | AG4: =SUM(AE7:AE22) -> 30 | AK4: Total Sequences in Block Summary | AL4: =SUM(AJ7:AJ22) -> 29 | AP4: Total Sequences in Block Summary | AQ4: =SUM(AO7:AO22) -> 30 | AU4: Total Sequences in Block Summary | AV4: =SUM(AT7:AT22) -> 29
T5: Block 1 | Y5: Block 2 | AD5: Block 3 | AI5: Block 4 | AN5: Block 5 | AS5: Block 6
A6: Sequence Component 1 | B6: Time 1 | C6: Sequence Component 2 | D6: Time 2 | E6: Sequence Component 3 | F6: Time 3 | G6: Sequence Component 4 | H6: Time 4 | I6: Sequence Component 5 | J6: Time 5 | K6: Correct? 0=No 1=Yes | L6: Sequence | N6: Frequency | P6: Relative Frequency | Q6: Variability | T6: Frequency | V6: Relative Frequency | W6: Variability | Y6: Frequency | AA6: Relative Frequency | AB6: Variability | AD6: Frequency | AF6: Relative Frequency | AG6: Variability | AI6: Frequency | AK6: Relative Frequency | AL6: Variability | AN6: Frequency | AP6: Relative Frequency | AQ6: Variability | AS6: Frequency | AU6: Relative Frequency | AV6: Variability
A7: 12 | B7: 10 | C7: 14 | D7: 23 | E7: 24 | F7: 34 | G7: 23 | H7: 40 | K7: 0 | L7: 1122 | N7: 1111 | O7: =COUNTIF($L$7:$L$500,N7) -> 72 | P7: =O7/$Q$4 -> 0.406779661 | Q7: =IF(P7=0,0,(P7*((LOG(P7))/LOG(2)))) -> -0.5278700537 | T7: =N7 -> 1111 | U7: =COUNTIF(L7:L36,T7) -> 7 | V7: =U7/(W4-U20) -> 0.2333333333 | W7: =IF(V7=0,0,(V7*((LOG(V7))/LOG(2)))) -> -0.4898916572 | Y7: =N7 -> 1111 | Z7: =COUNTIF(L37:L65,Y7) -> 9 | AA7: =Z7/(AB4-Z20) -> 0.3103448276 | AB7: =IF(AA7=0,0,(AA7*((LOG(AA7))/LOG(2)))) -> -0.5238794463 | AD7: =N7 -> 1111 | AE7: =COUNTIF(L66:L95,AD7) -> 17 | AF7: =AE7/(AG4-AE20) -> 0.5666666667 | AG7: =IF(AF7=0,0,(AF7*((LOG(AF7))/LOG(2)))) -> -0.4643423941 | AI7: =N7 -> 1111 | AJ7: =COUNTIF(L96:L124,AI7) -> 8 | AK7: =AJ7/(AL4-AJ20) -> 0.275862069 | AL7: =IF(AK7=0,0,(AK7*((LOG(AK7))/LOG(2)))) -> -0.5125464814 | AN7: =N7 -> 1111 | AO7: =COUNTIF(L125:L154,AN7) -> 15 | AP7: =AO7/(AQ4-AO20) -> 0.5 | AQ7: =IF(AP7=0,0,(AP7*((LOG(AP7))/LOG(2)))) -> -0.5 | AS7: =N7 -> 1111 | AT7: =COUNTIF(L155:L183,AS7) -> 16 | AU7: =AT7/(AV4-AT20) -> 0.5517241379 | AV7: =IF(AU7=0,0,(AU7*((LOG(AU7))/LOG(2)))) -> -0.4733688249
A8: 12 | B8: 143 | C8: 23 | D8: 155 | E8: 24 | F8: 162 | G8: 23 | H8: 169 | K8: 0 | L8: 1222 | N8: 1112 | O8: 48 | P8: 0.2711864407 | Q8: -0.5105472676 | T8: 1112 | U8: =COUNTIF(L7:L36,T8) -> 4 | V8: =U8/(W4-U20) -> 0.1333333333 | W8: -0.3875854127 | Y8: 1112 | Z8: =COUNTIF(L37:L65,Y8) -> 9 | AA8: =Z8/(AB4-Z20) -> 0.3103448276 | AB8: -0.5238794463 | AD8: 1112 | AE8: =COUNTIF(L66:L95,AD8) -> 7 | AF8: =AE8/(AG4-AE20) -> 0.2333333333 | AG8: -0.4898916572 | AI8: 1112 | AJ8: =COUNTIF(L96:L124,AI8) -> 12 | AK8: =AJ8/(AL4-AJ20) -> 0.4137931034 | AL8: -0.5267662735 | AN8: 1112 | AO8: =COUNTIF(L125:L154,AN8) -> 9 | AP8: =AO8/(AQ4-AO20) -> 0.3 | AQ8: -0.5210896782 | AS8: 1112 | AT8: =COUNTIF(L155:L183,AS8) -> 7 | AU8: =AT8/(AV4-AT20) -> 0.2413793103 | AV8: -0.4949787073
A9: 12 | B9: 273 | C9: 23 | D9: 286 | E9: 24 | F9: 294 | G9: 23 | H9: 306 | K9: 0 | L9: 1222 | N9: 1121 | O9: 0 | P9: 0 | Q9: 0 | T9: 1121 | U9: =COUNTIF(L7:L36,T9) -> 0 | V9: =U9/(W4-U20) -> 0 | W9: 0 | Y9: 1121 | Z9: =COUNTIF(L37:L65,Y9) -> 0 | AA9: =Z9/(AB4-Z20) -> 0 | AB9: 0 | AD9: 1121 | AE9: =COUNTIF(L66:L95,AD9) -> 0 | AF9: =AE9/(AG4-AE20) -> 0 | AG9: 0 | AI9: 1121 | AJ9: =COUNTIF(L96:L124,AI9) -> 0 | AK9: =AJ9/(AL4-AJ20) -> 0 | AL9: 0 | AN9: 1121 | AO9: =COUNTIF(L125:L154,AN9) -> 0 | AP9: =AO9/(AQ4-AO20) -> 0 | AQ9: 0 | AS9: 1121 | AT9: =COUNTIF(L155:L183,AS9) -> 0 | AU9: =AT9/(AV4-AT20) -> 0 | AV9: 0
A10: 12 | B10: 409 | C10: 14 | D10: 423 | E10: 24 | F10: 435 | G10: 23 | H10: 441 | K10: 0 | L10: 1122 | N10: 1122 | O10: 45 | P10: 0.2542372881 | Q10: -0.5023099459 | T10: 1122 | U10: =COUNTIF(L7:L36,T10) -> 16 | V10: =U10/(W4-U20) -> 0.5333333333 | W10: -0.4836749843 | Y10: 1122 | Z10: =COUNTIF(L37:L65,Y10) -> 9 | AA10: =Z10/(AB4-Z20) -> 0.3103448276 | AB10: -0.5238794463 | AD10: 1122 | AE10: =COUNTIF(L66:L95,AD10) -> 4 | AF10: =AE10/(AG4-AE20) -> 0.1333333333 | AG10: -0.3875854127 | AI10: 1122 | AJ10: =COUNTIF(L96:L124,AI10) -> 6 | AK10: =AJ10/(AL4-AJ20) -> 0.2068965517 | AL10: -0.4702796885 | AN10: 1122 | AO10: =COUNTIF(L125:L154,AN10) -> 5 | AP10: =AO10/(AQ4-AO20) -> 0.1666666667 | AQ10: -0.4308270835 | AS10: 1122 | AT10: =COUNTIF(L155:L183,AS10) -> 5 | AU10: =AT10/(AV4-AT20) -> 0.1724137931 | AV10: -0.4372505
A11: 12 | B11: 540 | C11: 14 | D11: 548 | E11: 24 | F11: 559 | G11: 23 | H11: 565 | K11: 0 | L11: 1122 | N11: 1211 | O11: 0 | P11: 0 | Q11: 0 | T11: 1211 | U11: =COUNTIF(L7:L36,T11) -> 0 | V11: =U11/(W4-U20) -> 0 | W11: 0 | Y11: 1211 | Z11: =COUNTIF(L37:L65,Y11) -> 0 | AA11: =Z11/(AB4-Z20) -> 0 | AB11: 0 | AD11: 1211 | AE11: =COUNTIF(L66:L95,AD11) -> 0 | AF11: =AE11/(AG4-AE20) -> 0 | AG11: 0 | AI11: 1211 | AJ11: =COUNTIF(L96:L124,AI11) -> 0 | AK11: =AJ11/(AL4-AJ20) -> 0 | AL11: 0 | AN11: 1211 | AO11: =COUNTIF(L125:L154,AN11) -> 0 | AP11: =AO11/(AQ4-AO20) -> 0 | AQ11: 0 | AS11: 1211 | AT11: =COUNTIF(L155:L183,AS11) -> 0 | AU11: =AT11/(AV4-AT20) -> 0 | AV11: 0
A12: 12 | B12: 659 | C12: 14 | D12: 669 | E12: 24 | F12: 682 | G12: 23 | H12: 688 | K12: 0 | L12: 1122 | N12: 1212 | O12: 0 | P12: 0 | Q12: 0 | T12: 1212 | U12: =COUNTIF(L7:L36,T12) -> 0 | V12: =U12/(W4-U20) -> 0 | W12: 0 | Y12: 1212 | Z12: =COUNTIF(L37:L65,Y12) -> 0 | AA12: =Z12/(AB4-Z20) -> 0 | AB12: 0 | AD12: 1212 | AE12: =COUNTIF(L66:L95,AD12) -> 0 | AF12: =AE12/(AG4-AE20) -> 0 | AG12: 0 | AI12: 1212 | AJ12: =COUNTIF(L96:L124,AI12) -> 0 | AK12: =AJ12/(AL4-AJ20) -> 0 | AL12: 0 | AN12: 1212 | AO12: =COUNTIF(L125:L154,AN12) -> 0 | AP12: =AO12/(AQ4-AO20) -> 0 | AQ12: 0 | AS12: 1212 | AT12: =COUNTIF(L155:L183,AS12) -> 0 | AU12: =AT12/(AV4-AT20) -> 0 | AV12: 0
A13: 21 | B13: 819 | C13: 21 | D13: 826 | E13: 22 | F13: 832 | G13: 23 | H13: 839 | K13: 0 | L13: 2222 | N13: 1221 | O13: 0 | P13: 0 | Q13: 0 | T13: 1221 | U13: =COUNTIF(L7:L36,T13) -> 0 | V13: =U13/(W4-U20) -> 0 | W13: 0 | Y13: 1221 | Z13: =COUNTIF(L37:L65,Y13) -> 0 | AA13: =Z13/(AB4-Z20) -> 0 | AB13: 0 | AD13: 1221 | AE13: =COUNTIF(L66:L95,AD13) -> 0 | AF13: =AE13/(AG4-AE20) -> 0 | AG13: 0 | AI13: 1221 | AJ13: =COUNTIF(L96:L124,AI13) -> 0 | AK13: =AJ13/(AL4-AJ20) -> 0 | AL13: 0 | AN13: 1221 | AO13: =COUNTIF(L125:L154,AN13) -> 0 | AP13: =AO13/(AQ4-AO20) -> 0 | AQ13: 0 | AS13: 1221 | AT13: =COUNTIF(L155:L183,AS13) -> 0 | AU13: =AT13/(AV4-AT20) -> 0 | AV13: 0
A14: 12 | B14: 947 | C14: 14 | D14: 958 | E14: 24 | F14: 969 | G14: 23 | H14: 976 | K14: 0 | L14: 1122 | N14: 1222 | O14: 7 | P14: 0.0395480226 | Q14: -0.1843036972 | T14: 1222 | U14: =COUNTIF(L7:L36,T14) -> 2 | V14: =U14/(W4-U20) -> 0.06666666667 | W14: -0.260459373 | Y14: 1222 | Z14: =COUNTIF(L37:L65,Y14) -> 2 | AA14: =Z14/(AB4-Z20) -> 0.06896551724 | AB14: -0.2660676548 | AD14: 1222 | AE14: =COUNTIF(L66:L95,AD14) -> 1 | AF14: =AE14/(AG4-AE20) -> 0.03333333333 | AG14: -0.1635630199 | AI14: 1222 | AJ14: =COUNTIF(L96:L124,AI14) -> 1 | AK14: =AJ14/(AL4-AJ20) -> 0.03448275862 | AL14: -0.167516586 | AN14: 1222 | AO14: =COUNTIF(L125:L154,AN14) -> 1 | AP14: =AO14/(AQ4-AO20) -> 0.03333333333 | AQ14: -0.1635630199 | AS14: 1222 | AT14: =COUNTIF(L155:L183,AS14) -> 0 | AU14: =AT14/(AV4-AT20) -> 0 | AV14: 0
A15: 12 | B15: 1077 | C15: 14 | D15: 1089 | E15: 24 | F15: 1101 | G15: 23 | H15: 1107 | K15: 0 | L15: 1122 | N15: 2111 | O15: 0 | P15: 0 | Q15: 0 | T15: 2111 | U15: =COUNTIF(L7:L36,T15) -> 0 | V15: =U15/(W4-U20) -> 0 | W15: 0 | Y15: 2111 | Z15: =COUNTIF(L37:L65,Y15) -> 0 | AA15: =Z15/(AB4-Z20) -> 0 | AB15: 0 | AD15: 2111 | AE15: =COUNTIF(L66:L95,AD15) -> 0 | AF15: =AE15/(AG4-AE20) -> 0 | AG15: 0 | AI15: 2111 | AJ15: =COUNTIF(L96:L124,AI15) -> 0 | AK15: =AJ15/(AL4-AJ20) -> 0 | AL15: 0 | AN15: 2111 | AO15: =COUNTIF(L125:L154,AN15) -> 0 | AP15: =AO15/(AQ4-AO20) -> 0 | AQ15: 0 | AS15: 2111 | AT15: =COUNTIF(L155:L183,AS15) -> 0 | AU15: =AT15/(AV4-AT20) -> 0 | AV15: 0
A16: 12 | B16: 1203 | C16: 14 | D16: 1208 | E16: 24 | F16: 1220 | G16: 23 | H16: 1227 | K16: 0 | L16: 1122 | N16: 2112 | O16: 0 | P16: 0 | Q16: 0 | T16: 2112 | U16: =COUNTIF(L7:L36,T16) -> 0 | V16: =U16/(W4-U20) -> 0 | W16: 0 | Y16: 2112 | Z16: =COUNTIF(L37:L65,Y16) -> 0 | AA16: =Z16/(AB4-Z20) -> 0 | AB16: 0 | AD16: 2112 | AE16: =COUNTIF(L66:L95,AD16) -> 0 | AF16: =AE16/(AG4-AE20) -> 0 | AG16: 0 | AI16: 2112 | AJ16: =COUNTIF(L96:L124,AI16) -> 0 | AK16: =AJ16/(AL4-AJ20) -> 0 | AL16: 0 | AN16: 2112 | AO16: =COUNTIF(L125:L154,AN16) -> 0 | AP16: =AO16/(AQ4-AO20) -> 0 | AQ16: 0 | AS16: 2112 | AT16: =COUNTIF(L155:L183,AS16) -> 0 | AU16: =AT16/(AV4-AT20) -> 0 | AV16: 0
A17: 12 | B17: 1326 | C17: 14 | D17: 1342 | E17: 24 | F17: 1351 | G17: 23 | H17: 1358 | K17: 0 | L17: 1122 | N17: 2121 | O17: 0 | P17: 0 | Q17: 0 | T17: 2121 | U17: =COUNTIF(L7:L36,T17) -> 0 | V17: =U17/(W4-U20) -> 0 | W17: 0 | Y17: 2121 | Z17: =COUNTIF(L37:L65,Y17) -> 0 | AA17: =Z17/(AB4-Z20) -> 0 | AB17: 0 | AD17: 2121 | AE17: =COUNTIF(L66:L95,AD17) -> 0 | AF17: =AE17/(AG4-AE20) -> 0 | AG17: 0 | AI17: 2121 | AJ17: =COUNTIF(L96:L124,AI17) -> 0 | AK17: =AJ17/(AL4-AJ20) -> 0 | AL17: 0 | AN17: 2121 | AO17: =COUNTIF(L125:L154,AN17) -> 0 | AP17: =AO17/(AQ4-AO20) -> 0 | AQ17: 0 | AS17: 2121 | AT17: =COUNTIF(L155:L183,AS17) -> 0 | AU17: =AT17/(AV4-AT20) -> 0 | AV17: 0
A18: 12 | B18: 1457 | C18: 14 | D18: 1464 | E18: 24 | F18: 1476 | G18: 23 | H18: 1482 | K18: 0 | L18: 1122 | N18: 2122 | O18: 0 | P18: 0 | Q18: 0 | T18: 2122 | U18: =COUNTIF(L7:L36,T18) -> 0 | V18: =U18/(W4-U20) -> 0 | W18: 0 | Y18: 2122 | Z18: =COUNTIF(L37:L65,Y18) -> 0 | AA18: =Z18/(AB4-Z20) -> 0 | AB18: 0 | AD18: 2122 | AE18: =COUNTIF(L66:L95,AD18) -> 0 | AF18: =AE18/(AG4-AE20) -> 0 | AG18: 0 | AI18: 2122 | AJ18: =COUNTIF(L96:L124,AI18) -> 0 | AK18: =AJ18/(AL4-AJ20) -> 0 | AL18: 0 | AN18: 2122 | AO18: =COUNTIF(L125:L154,AN18) -> 0 | AP18: =AO18/(AQ4-AO20) -> 0 | AQ18: 0 | AS18: 2122 | AT18: =COUNTIF(L155:L183,AS18) -> 0 | AU18: =AT18/(AV4-AT20) -> 0 | AV18: 0
A19: 12 | B19: 1582 | C19: 14 | D19: 1587 | E19: 24 | F19: 1598 | G19: 23 | H19: 1605 | K19: 0 | L19: 1122 | N19: 2211 | O19: 1 | P19: 0.005649717514 | Q19: -0.04218986186 | T19: 2211 | U19: =COUNTIF(L7:L36,T19) -> 0 | V19: =U19/(W4-U20) -> 0 | W19: 0 | Y19: 2211 | Z19: =COUNTIF(L37:L65,Y19) -> 0 | AA19: =Z19/(AB4-Z20) -> 0 | AB19: 0 | AD19: 2211 | AE19: =COUNTIF(L66:L95,AD19) -> 0 | AF19: =AE19/(AG4-AE20) -> 0 | AG19: 0 | AI19: 2211 | AJ19: =COUNTIF(L96:L124,AI19) -> 0 | AK19: =AJ19/(AL4-AJ20) -> 0 | AL19: 0 | AN19: 2211 | AO19: =COUNTIF(L125:L154,AN19) -> 0 | AP19: =AO19/(AQ4-AO20) -> 0 | AQ19: 0 | AS19: 2211 | AT19: =COUNTIF(L155:L183,AS19) -> 1 | AU19: =AT19/(AV4-AT20) -> 0.03448275862 | AV19: -0.167516586
A20: 12 | B20: 1703 | C20: 14 | D20: 1711 | E20: 13 | F20: 1720 | G20: 23 | H20: 1732 | K20: 0 | L20: 1112 | N20: 2212 | O20: 0 | P20: 0 | Q20: 0 | T20: 2212 | U20: =COUNTIF(L7:L36,T20) -> 0 | Y20: 2212 | Z20: =COUNTIF(L37:L65,Y20) -> 0 | AD20: 2212 | AE20: =COUNTIF(L66:L95,AD20) -> 0 | AI20: 2212 | AJ20: =COUNTIF(L96:L124,AI20) -> 0 | AN20: 2212 | AO20: =COUNTIF(L125:L154,AN20) -> 0 | AS20: 2212 | AT20: =COUNTIF(L155:L183,AS20) -> 0
A21: 12 | B21: 1827 | C21: 14 | D21: 1833 | E21: 24 | F21: 1847 | G21: 23 | H21: 1854 | K21: 0 | L21: 1122 | N21: 2221 | O21: 1 | P21: 0.005649717514 | Q21: -0.04218986186 | T21: 2221 | U21: =COUNTIF(L7:L36,T21) -> 0 | V21: =U21/(W4-U20) -> 0 | W21: =IF(V21=0,0,(V21*((LOG(V21))/LOG(2)))) -> 0 | Y21: 2221 | Z21: =COUNTIF(L37:L65,Y21) -> 0 | AA21: =Z21/(AB4-Z20) -> 0 | AB21: =IF(AA21=0,0,(AA21*((LOG(AA21))/LOG(2)))) -> 0 | AD21: 2221 | AE21: =COUNTIF(L66:L95,AD21) -> 0 | AF21: =AE21/(AG4-AE20) -> 0 | AG21: =IF(AF21=0,0,(AF21*((LOG(AF21))/LOG(2)))) -> 0 | AI21: 2221 | AJ21: =COUNTIF(L96:L124,AI21) -> 1 | AK21: =AJ21/(AL4-AJ20) -> 0.03448275862 | AL21: =IF(AK21=0,0,(AK21*((LOG(AK21))/LOG(2)))) -> -0.167516586 | AN21: 2221 | AO21: =COUNTIF(L125:L154,AN21) -> 0 | AP21: =AO21/(AQ4-AO20) -> 0 | AQ21: =IF(AP21=0,0,(AP21*((LOG(AP21))/LOG(2)))) -> 0 | AS21: 2221 | AT21: =COUNTIF(L155:L183,AS21) -> 0 | AU21: =AT21/(AV4-AT20) -> 0 | AV21: =IF(AU21=0,0,(AU21*((LOG(AU21))/LOG(2)))) -> 0
A22: 12 | B22: 1960 | C22: 14 | D22: 1967 | E22: 24 | F22: 1979 | G22: 23 | H22: 1986 | K22: 0 | L22: 1122 | N22: 2222 | O22: 3 | P22: 0.01694915254 | Q22: -0.0997058144 | T22: 2222 | U22: =COUNTIF(L7:L36,T22) -> 1 | V22: =U22/(W4-U20) -> 0.03333333333 | W22: =IF(V22=0,0,(V22*((LOG(V22))/LOG(2)))) -> -0.1635630199 | Y22: 2222 | Z22: =COUNTIF(L37:L65,Y22) -> 0 | AA22: =Z22/(AB4-Z20) -> 0 | AB22: =IF(AA22=0,0,(AA22*((LOG(AA22))/LOG(2)))) -> 0 | AD22: 2222 | AE22: =COUNTIF(L66:L95,AD22) -> 1 | AF22: =AE22/(AG4-AE20) -> 0.03333333333 | AG22: =IF(AF22=0,0,(AF22*((LOG(AF22))/LOG(2)))) -> -0.1635630199 | AI22: 2222 | AJ22: =COUNTIF(L96:L124,AI22) -> 1 | AK22: =AJ22/(AL4-AJ20) -> 0.03448275862 | AL22: =IF(AK22=0,0,(AK22*((LOG(AK22))/LOG(2)))) -> -0.167516586 | AN22: 2222 | AO22: =COUNTIF(L125:L154,AN22) -> 0 | AP22: =AO22/(AQ4-AO20) -> 0 | AQ22: =IF(AP22=0,0,(AP22*((LOG(AP22))/LOG(2)))) -> 0 | AS22: 2222 | AT22: =COUNTIF(L155:L183,AS22) -> 0 | AU22: =AT22/(AV4-AT20) -> 0 | AV22: =IF(AU22=0,0,(AU22*((LOG(AU22))/LOG(2)))) -> 0
A23: 12 | B23: 2091 | C23: 14 | D23: 2098 | E23: 24 | F23: 2110 | G23: 23 | H23: 2116 | K23: 0 | L23: 1122 | P23: =SUM(P7:P22) -> 1 | Q23: =-SUM(Q7:Q22) -> 1.909116502 | V23: =SUM(V7:V22) -> 1 | W23: =-SUM(W7:W22) -> 1.785174447 | AA23: =SUM(AA7:AA22) -> 1 | AB23: =-SUM(AB7:AB22) -> 1.837705994 | AF23: =SUM(AF7:AF22) -> 1 | AG23: =-SUM(AG7:AG22) -> 1.668945504 | AK23: =SUM(AK7:AK22) -> 1 | AL23: =-SUM(AL7:AL22) -> 2.012142202 | AP23: =SUM(AP7:AP22) -> 1 | AQ23: =-SUM(AQ7:AQ22) -> 1.615479782 | AU23: =SUM(AU7:AU22) -> 1 | AV23: =-SUM(AV7:AV22) -> 1.573114618
A24: 12 | B24: 2221 | C24: 14 | D24: 2228 | E24: 24 | F24: 2240 | G24: 23 | H24: 2246 | K24: 0 | L24: 1122 | P24: U= | Q24: =Q23/(LOG(Q4)/LOG(2)) -> 0.2556530992 | V24: U1= | W24: =W23/(LOG(W4)/LOG(2)) -> 0.3638097105 | AA24: U2= | AB24: =AB23/(LOG(AB4)/LOG(2)) -> 0.3782859578 | AF24: U3= | AG24: =AG23/(LOG(AG4)/LOG(2)) -> 0.3401228275 | AK24: U4= | AL24: =AL23/(LOG(AL4)/LOG(2)) -> 0.4141930987 | AP24: U5= | AQ24: =AQ23/(LOG(AQ4)/LOG(2)) -> 0.3292267782 | AU24: U6= | AV24: =AV23/(LOG(AV4)/LOG(2)) -> 0.3238206613
A25: 12 | B25: 2346 | C25: 14 | D25: 2353 | E25: 24 | F25: 2366 | G25: 23 | H25: 2374 | K25: 0 | L25: 1122
A26: 12 | B26: 2475 | C26: 14 | D26: 2480 | E26: 13 | F26: 2491 | G26: 14 | H26: 2496 | K26: 0 | L26: 1111
A27: 12 | B27: 2588 | C27: 14 | D27: 2592 | E27: 13 | F27: 2609 | G27: 14 | H27: 2621 | K27: 0 | L27: 1111 | N27: Total Target Seq
A28: 12 | B28: 2718 | C28: 14 | D28: 2722 | E28: 13 | F28: 2731 | G28: 14 | H28: 2738 | K28: 0 | L28: 1111 | N28: =COUNTIF(L7:L183,G3) -> 0 | P28: 30 | Q28: 29 | R28: 30 | S28: 29 | T28: 30 | U28: 29
A29: 12 | B29: 2839 | C29: 14 | D29: 2850 | E29: 13 | F29: 2862 | G29: 23 | H29: 2880 | K29: 0 | L29: 1112 | P29: % of reinforcement given in 6 equal intervals based on number of trials
A30: 12 | B30: 2985 | C30: 14 | D30: 2996 | E30: 13 | F30: 3009 | G30: 23 | H30: 3024 | K30: 0 | L30: 1112 | P30: %_1 | Q30: %_2 | R30: %_3 | S30: %_4 | T30: %_5 | U30: %_6
A31: 12 | B31: 3115 | C31: 14 | D31: 3119 | E31: 13 | F31: 3129 | G31: 14 | H31: 3140 | K31: 0 | L31: 1111 | O31: target sequence | P31: =$G$3 -> 2212 | Q31: 2212 | R31: 2212 | S31: 2212 | T31: 2212 | U31: 2212
A32: 12 | B32: 3236 | C32: 14 | D32: 3250 | E32: 13 | F32: 3264 | G32: 14 | H32: 3276 | K32: 0 | L32: 1111 | O32: total reinforcement | P32: =U20 -> 0 | Q32: =Z20 -> 0 | R32: =AE20 -> 0 | S32: =AJ20 -> 0 | T32: =AO20 -> 0 | U32: =AT20 -> 0
A33: 12 | B33: 3380 | C33: 14 | D33: 3391 | E33: 13 | F33: 3403 | G33: 23 | H33: 3417 | K33: 0 | L33: 1112 | O33: % target
A34: 12 | B34: 3520 | C34: 14 | D34: 3529 | E34: 13 | F34: 3537 | G34: 14 | H34: 3550 | K34: 0 | L34: 1111 | O34: CCRF
A35: 12 | B35: 3655 | C35: 14 | D35: 3666 | E35: 24 | F35: 3678 | G35: 23 | H35: 3685 | K35: 0 | L35: 1122 | O35: % CCRf
A36: 12 | B36: 3785 | C36: 14 | D36: 3792 | E36: 13 | F36: 3798 | G36: 14 | H36: 3810 | K36: 0 | L36: 1111 | O36: average response rate | P36: =H36/P28 -> 127 | Q36: =(H65-H36)/Q28 -> 131.5517241 | R36: =(H95-H65)/R28 -> 137.4666667 | S36: =(H124-H95)/S28 -> 135.4482759 | T36: =(H154-H124)/T28 -> 139.3333333 | U36: =(H183-H154)/U28 -> 140.3793103
A37: 12 | B37: 3932 | C37: 23 | D37: 3944 | E37: 24 | F37: 3951 | G37: 23 | H37: 3958 | K37: 0 | L37: 1222
A38: 12 | B38: 4062 | C38: 14 | D38: 4072 | E38: 13 | F38: 4083 | G38: 23 | H38: 4094 | K38: 0 | L38: 1112
A39: 12 | B39: 4194 | C39: 14 | D39: 4201 | E39: 24 | F39: 4217 | G39: 23 | H39: 4224 | K39: 0 | L39: 1122
A40: 12 | B40: 4324 | C40: 14 | D40: 4335 | E40: 13 | F40: 4343 | G40: 14 | H40: 4355 | K40: 0 | L40: 1111
A41: 12 | B41: 4455 | C41: 14 | D41: 4459 | E41: 13 | F41: 4467 | G41: 14 | H41: 4476 | K41: 0 | L41: 1111
A42: 12 | B42: 4574 | C42: 14 | D42: 4578 | E42: 24 | F42: 4590 | G42: 23 | H42: 4597 | K42: 0 | L42: 1122
A43: 12 | B43: 4697 | C43: 14 | D43: 4701 | E43: 13 | F43: 4708 | G43: 23 | H43: 4721 | K43: 0 | L43: 1112
A44: 12 | B44: 4815 | C44: 14 | D44: 4819 | E44: 13 | F44: 4829 | G44: 23 | H44: 4842 | K44: 0 | L44: 1112
A45: 12 | B45: 4940 | C45: 14 | D45: 4943 | E45: 13 | F45: 4954 | G45: 14 | H45: 4964 | K45: 0 | L45: 1111
A46: 12 | B46: 5067 | C46: 14 | D46: 5082 | E46: 24 | F46: 5095 | G46: 23 | H46: 5101 | K46: 0 | L46: 1122
A47: 12 | B47: 5197 | C47: 14 | D47: 5208 | E47: 13 | F47: 5228 | G47: 14 | H47: 5246 | K47: 0 | L47: 1111
A48: 12 | B48: 5351 | C48: 14 | D48: 5359 | E48: 13 | F48: 5373 | G48: 14 | H48: 5378 | K48: 0 | L48: 1111
A49: 12 | B49: 5491 | C49: 14 | D49: 5502 | E49: 24 | F49: 5516 | G49: 23 | H49: 5525 | K49: 0 | L49: 1122
A50: 12 | B50: 5642 | C50: 14 | D50: 5653 | E50: 24 | F50: 5666 | G50: 23 | H50: 5673 | K50: 0 | L50: 1122
A51: 12 | B51: 5773 | C51: 14 | D51: 5782 | E51: 13 | F51: 5790 | G51: 23 | H51: 5802 | K51: 0 | L51: 1112
A52: 12 | B52: 5895 | C52: 14 | D52: 5902 | E52: 13 | F52: 5909 | G52: 14 | H52: 5920 | K52: 0 | L52: 1111
A53: 12 | B53: 6028 | C53: 14 | D53: 6036 | E53: 13 | F53: 6046 | G53: 23 | H53: 6059 | K53: 0 | L53: 1112
A54: 12 | B54: 6163 | C54: 14 | D54: 6170 | E54: 24 | F54: 6183 | G54: 23 | H54: 6189 | K54: 0 | L54: 1122
A55: 12 | B55: 6290 | C55: 14 | D55: 6302 | E55: 24 | F55: 6314 | G55: 23 | H55: 6321 | K55: 0 | L55: 1122
A56: 12 | B56: 6422 | C56: 14 | D56: 6427 | E56: 24 | F56: 6440 | G56: 23 | H56: 6447 | K56: 0 | L56: 1122
A57: 12 | B57: 6546 | C57: 14 | D57: 6552 | E57: 13 | F57: 6563 | G57: 23 | H57: 6579 | K57: 0 | L57: 1112
A58: 12 | B58: 6678 | C58: 14 | D58: 6681 | E58: 24 | F58: 6694 | G58: 23 | H58: 6701 | K58: 0 | L58: 1122
A59: 12 | B59: 6806 | C59: 14 | D59: 6811 | E59: 13 | F59: 6819 | G59: 23 | H59: 6831 | K59: 0 | L59: 1112
A60: 12 | B60: 6944 | C60: 14 | D60: 6958 | E60: 13 | F60: 6969 | G60: 23 | H60: 6982 | K60: 0 | L60: 1112
A61: 12 | B61: 7087 | C61: 14 | D61: 7094 | E61: 13 | F61: 7104 | G61: 14 | H61: 7110 | K61: 0 | L61: 1111
A62: 12 | B62: 7207 | C62: 14 | D62: 7214 | E62: 13 | F62: 7224 | G62: 14 | H62: 7238 | K62: 0 | L62: 1111
A63: 12 | B63: 7334 | C63: 14 | D63: 7345 | E63: 13 | F63: 7355 | G63: 23 | H63: 7378 | K63: 0 | L63: 1112
A64: 12 | B64: 7478 | C64: 23 | D64: 7491 | E64: 24 | F64: 7499 | G64: 23 | H64: 7506 | K64: 0 | L64: 1222
A65: 12 | B65: 7602 | C65: 14 | D65: 7607 | E65: 13 | F65: 7613 | G65: 14 | H65: 7625 | K65: 0 | L65: 1111
A66: 21 | B66: 7722 | C66: 21 | D66: 7729 | E66: 22 | F66: 7738 | G66: 23 | H66: 7745 | K66: 0 | L66: 2222
A67: 12 | B67: 7842 | C67: 14 | D67: 7845 | E67: 13 | F67: 7856 | G67: 14 | H67: 7869 | K67: 0 | L67: 1111
A68: 12 | B68: 7979 | C68: 14 | D68: 7986 | E68: 13 | F68: 7994 | G68: 23 | H68: 8006 | K68: 0 | L68: 1112
A69: 12 | B69: 8102 | C69: 14 | D69: 8106 | E69: 13 | F69: 8116 | G69: 14 | H69: 8130 | K69: 0 | L69: 1111
A70: 12 | B70: 8226 | C70: 14 | D70: 8235 | E70: 13 | F70: 8244 | G70: 14 | H70: 8254 | K70: 0 | L70: 1111
A71: 12 | B71: 8350 | C71: 14 | D71: 8366 | E71: 13 | F71: 8379 | G71: 14 | H71: 8390 | K71: 0 | L71: 1111
A72: 12 | B72: 8486 | C72: 14 | D72: 8490 | E72: 13 | F72: 8498 | G72: 14 | H72: 8506 | K72: 0 | L72: 1111
A73: 12 | B73: 8613 | C73: 14 | D73: 8625 | E73: 13 | F73: 8637 | G73: 14 | H73: 8649 | K73: 0 | L73: 1111
A74: 12 | B74: 8748 | C74: 14 | D74: 8756 | E74: 13 | F74: 8766 | G74: 23 | H74: 8781 | K74: 0 | L74: 1112
A75: 12 | B75: 8893 | C75: 14 | D75: 8905 | E75: 13 | F75: 8921 | G75: 14 | H75: 8931 | K75: 0 | L75: 1111
A76: 12 | B76: 9041 | C76: 14 | D76: 9060 | E76: 13 | F76: 9075 | G76: 14 | H76: 9093 | K76: 0 | L76: 1111
A77: 12 | B77: 9201 | C77: 14 | D77: 9209 | E77: 13 | F77: 9220 | G77: 23 | H77: 9233 | K77: 0 | L77: 1112
A78: 12 | B78: 9327 | C78: 14 | D78: 9332 | E78: 13 | F78: 9339 | G78: 14 | H78: 9346 | K78: 0 | L78: 1111
A79: 12 | B79: 9445 | C79: 14 | D79: 9457 | E79: 24 | F79: 9470 | G79: 23 | H79: 9478 | K79: 0 | L79: 1122
A80: 12 | B80: 9594 | C80: 23 | D80: 9612 | E80: 24 | F80: 9619 | G80: 23 | H80: 9625 | K80: 0 | L80: 1222
A81: 12 | B81: 9722 | C81: 14 | D81: 9734 | E81: 13 | F81: 9748 | G81: 14 | H81: 9763 | K81: 0 | L81: 1111
A82: 12 | B82: 9871 | C82: 14 | D82: 9889 | E82: 13 | F82: 9900 | G82: 23 | H82: 9913 | K82: 0 | L82: 1112
A83: 12 | B83: 10017 | C83: 14 | D83: 10029 | E83: 13 | F83: 10041 | G83: 14 | H83: 10056 | K83: 0 | L83: 1111
A84: 12 | B84: 10171 | C84: 14 | D84: 10189 | E84: 24 | F84: 10200 | G84: 23 | H84: 10207 | K84: 0 | L84: 1122
A85: 12 | B85: 10316 | C85: 14 | D85: 10323 | E85: 24 | F85: 10335 | G85: 23 | H85: 10343 | K85: 0 | L85: 1122
A86: 12 | B86: 10452 | C86: 14 | D86: 10468 | E86: 13 | F86: 10481 | G86: 23 | H86: 10496 | K86: 0 | L86: 1112
A87: 12 | B87: 10598 | C87: 14 | D87: 10608 | E87: 13 | F87: 10624 | G87: 14 | H87: 10632 | K87: 0 | L87: 1111
A88: 12 | B88: 10736 | C88: 14 | D88: 10746 | E88: 13 | F88: 10758 | G88: 23 | H88: 10779 | K88: 0 | L88: 1112
A89: 12 | B89: 10889 | C89: 14 | D89: 10898 | E89: 13 | F89: 10907 | G89: 14 | H89: 10914 | K89: 0 | L89: 1111
A90: 12 | B90: 11024 | C90: 14 | D90: 11032 | E90: 13 | F90: 11041 | G90: 14 | H90: 11053 | K90: 0 | L90: 1111
A91: 12 | B91: 11163 | C91: 14 | D91: 11172 | E91: 13 | F91: 11185 | G91: 14 | H91: 11194 | K91: 0 | L91: 1111
A92: 12 | B92: 11294 | C92: 14 | D92: 11305 | E92: 13 | F92: 11320 | G92: 14 | H92: 11336 | K92: 0 | L92: 1111
A93: 12 | B93: 11444 | C93: 14 | D93: 11456 | E93: 24 | F93: 11473 | G93: 23 | H93: 11481 | K93: 0 | L93: 1122
A94: 12 | B94: 11579 | C94: 14 | D94: 11583 | E94: 13 | F94: 11591 | G94: 23 | H94: 11608 | K94: 0 | L94: 1112
A95: 12 | B95: 11717 | C95: 14 | D95: 11725 | E95: 13 | F95: 11734 | G95: 14 | H95: 11749 | K95: 0 | L95: 1111
A96: 12 | B96: 11852 | C96: 14 | D96: 11859 | E96: 13 | F96: 11870 | G96: 23 | H96: 11883 | K96: 0 | L96: 1112
A97: 12 | B97: 11983 | C97: 14 | D97: 11987 | E97: 13 | F97: 11995 | G97: 14 | H97: 12010 | K97: 0 | L97: 1111
A98: 12 | B98: 12115 | C98: 14 | D98: 12122 | E98: 13 | F98: 12135 | G98: 23 | H98: 12148 | K98: 0 | L98: 1112
A99: 12 | B99: 12247 | C99: 14 | D99: 12254 | E99: 13 | F99: 12262 | G99: 23 | H99: 12274 | K99: 0 | L99: 1112
A100: 12 | B100: 12383 | C100: 14 | D100: 12396 | E100: 13 | F100: 12408 | G100: 23 | H100: 12420 | K100: 0 | L100: 1112
A101: 12 | B101: 12531 | C101: 14 | D101: 12541 | E101: 13 | F101: 12553 | G101: 14 | H101: 12564 | K101: 0 | L101: 1111
A102: 12 | B102: 12673 | C102: 23 | D102: 12685 | E102: 24 | F102: 12692 | G102: 23 | H102: 12699 | K102: 0 | L102: 1222
A103: 12 | B103: 12806 | C103: 14 | D103: 12814 | E103: 24 | F103: 12826 | G103: 23 | H103: 12833 | K103: 0 | L103: 1122
A104: 12 | B104: 12935 | C104: 14 | D104: 12943 | E104: 24 | F104: 12963 | G104: 23 | H104: 12970 | K104: 0 | L104: 1122
A105: 12 | B105: 13072 | C105: 14 | D105: 13087 | E105: 13 | F105: 13099 | G105: 23 | H105: 13113 | K105: 0 | L105: 1112
A106: 12 | B106: 13217 | C106: 14 | D106: 13228 | E106: 24 | F106: 13237 | G106: 23 | H106: 13243 | K106: 0 | L106: 1122
A107: 12 | B107: 13345 | C107: 14 | D107: 13352 | E107: 13 | F107: 13360 | G107: 14 | H107: 13370 | K107: 0 | L107: 1111
A108: 21 | B108: 13470 | C108: 21 | D108: 13477 | E108: 22 | F108: 13483 | G108: 23 | H108: 13492 | K108: 0 | L108: 2222
A109: 21 | B109: 13588 | C109: 21 | D109: 13595 | E109: 22 | F109: 13602 | G109: 14 | H109: 13617 | K109: 0 | L109: 2221
A110: 12 | B110: 13713 | C110: 14 | D110: 13720 | E110: 13 | F110: 13728 | G110: 14 | H110: 13740 | K110: 0 | L110: 1111
A111: 12 | B111: 13846 | C111: 14 | D111: 13856 | E111: 13 | F111: 13867 | G111: 14 | H111: 13878 | K111: 0 | L111: 1111
A112: 12 | B112: 13989 | C112: 14 | D112: 14000 | E112: 13 | F112: 14011 | G112: 23 | H112: 14025 | K112: 0 | L112: 1112
A113: 12 | B113: 14125 | C113: 14 | D113: 14135 | E113: 13 | F113: 14142 | G113: 23 | H113: 14161 | K113: 0 | L113: 1112
A114: 12 | B114: 14263 | C114: 14 | D114: 14272 | E114: 13 | F114: 14283 | G114: 14 | H114: 14294 | K114: 0 | L114: 1111
A115: 12 | B115: 14394 | C115: 14 | D115: 14404 | E115: 13 | F115: 14420 | G115: 14 | H115: 14430 | K115: 0 | L115: 1111
A116: 12 | B116: 14537 | C116: 14 | D116: 14544 | E116: 13 | F116: 14555 | G116: 23 | H116: 14568 | K116: 0 | L116: 1112
A117: 12 | B117: 14679 | C117: 14 | D117: 14689 | E117: 24 | F117: 14704 | G117: 23 | H117: 14713 | K117: 0 | L117: 1122
A118: 12 | B118: 14809 | C118: 14 | D118: 14817 | E118: 13 | F118: 14827 | G118: 14 | H118: 14838 | K118: 0 | L118: 1111
A119: 12 | B119: 14959 | C119: 14 | D119: 14970 | E119: 24 | F119: 14981 | G119: 23 | H119: 14988 | K119: 0 | L119: 1122
A120: 12 | B120: 15085 | C120: 14 | D120: 15089 | E120: 13 | F120: 15097 | G120: 23 | H120: 15106 | K120: 0 | L120: 1112
A121: 12 | B121: 15205 | C121: 14 | D121: 15226 | E121: 13 | F121: 15237 | G121: 23 | H121: 15250 | K121: 0 | L121: 1112
A122: 12 | B122: 15347 | C122: 14 | D122: 15361 | E122: 13 | F122: 15372 | G122: 23 | H122: 15384 | K122: 0 | L122: 1112
A123: 12 | B123: 15496 | C123: 14 | D123: 15506 | E123: 24 | F123: 15517 | G123: 23 | H123: 15525 | K123: 0 | L123: 1122
A124: 12 | B124: 15638 | C124: 14 | D124: 15650 | E124: 13 | F124: 15662 | G124: 23 | H124: 15677 | K124: 0 | L124: 1112
A125: 12 | B125: 15781 | C125: 14 | D125: 15787 | E125: 13 | F125: 15803 | G125: 23 | H125: 15815 | K125: 0 | L125: 1112
A126: 12 | B126: 15924 | C126: 14 | D126: 15932 | E126: 13 | F126: 15946 | G126: 14 | H126: 15956 | K126: 0 | L126: 1111
A127: 12 | B127: 16055 | C127: 14 | D127: 16063 | E127: 13 | F127: 16077 | G127: 14 | H127: 16089 | K127: 0 | L127: 1111
A128: 12 | B128: 16196 | C128: 14 | D128: 16203 | E128: 13 | F128: 16214 | G128: 14 | H128: 16226 | K128: 0 | L128: 1111
A129: 12 | B129: 16326 | C129: 14 | D129: 16331 | E129: 13 | F129: 16341 | G129: 14 | H129: 16352 | K129: 0 | L129: 1111
A130: 12 | B130: 16450 | C130: 14 | D130: 16454 | E130: 13 | F130: 16464 | G130: 14 | H130: 16477 | K130: 0 | L130: 1111
A131: 12 | B131: 16579 | C131: 14 | D131: 16584 | E131: 13 | F131: 16626 | G131: 14 | H131: 16637 | K131: 0 | L131: 1111
A132: 12 | B132: 16741 | C132: 14 | D132: 16755 | E132: 13 | F132: 16763 | G132: 14 | H132: 16775 | K132: 0 | L132: 1111
A133: 12 | B133: 16875 | C133: 14 | D133: 16882 | E133: 13 | F133: 16893 | G133: 23 | H133: 16907 | K133: 0 | L133: 1112
A134: 12 | B134: 17010 | C134: 14 | D134: 17021 | E134: 13 | F134: 17032 | G134: 23 | H134: 17043 | K134: 0 | L134: 1112
A135: 12 | B135: 17140 | C135: 14 | D135: 17154 | E135: 13 | F135: 17164 | G135: 23 | H135: 17176 | K135: 0 | L135: 1112
A136: 12 | B136: 17278 | C136: 14 | D136: 17287 | E136: 13 | F136: 17297 | G136: 14 | H136: 17309 | K136: 0 | L136: 1111
A137: 12 | B137: 17412 | C137: 14 | D137: 17420 | E137: 13 | F137: 17431 | G137: 14 | H137: 17442 | K137: 0 | L137: 1111
A138: 12 | B138: 17567 | C138: 14 | D138: 17579 | E138: 13 | F138: 17592 | G138: 23 | H138: 17605 | K138: 0 | L138: 1112
A139: 12 | B139: 17728 | C139: 23 | D139: 17741 | E139: 24 | F139: 17748 | G139: 23 | H139: 17757 | K139: 0 | L139: 1222
A140: 12 | B140: 17876 | C140: 14 | D140: 17883 | E140: 13 | F140: 17895 | G140: 14 | H140: 17906 | K140: 0 | L140: 1111
A141: 12 | B141: 18006 | C141: 14 | D141: 18021 | E141: 13 | F141: 18032 | G141: 14 | H141: 18044 | K141: 0 | L141: 1111
A142: 12 | B142: 18168 | C142: 14 | D142: 18179 | E142: 24 | F142: 18193 | G142: 23 | H142: 18201 | K142: 0 | L142: 1122
A143: 12 | B143: 18296 | C143: 14 | D143: 18317 | E143: 24 | F143: 18329 | G143: 23 | H143: 18335 | K143: 0 | L143: 1122
A144: 12 | B144: 18438 | C144: 14 | D144: 18451 | E144: 24 | F144: 18463 | G144: 23 | H144: 18470 | K144: 0 | L144: 1122
A145: 12 | B145: 18579 | C145: 14 | D145: 18592 | E145: 13 | F145: 18606 | G145: 14 | H145: 18618 | K145: 0 | L145: 1111
A146: 12 | B146: 18731 | C146: 14 | D146: 18740 | E146: 13 | F146: 18751 | G146: 23 | H146: 18764 | K146: 0 | L146: 1112
A147: 12 | B147: 18881 | C147: 14 | D147: 18891 | E147: 24 | F147: 18903 | G147: 23 | H147: 18910 | K147: 0 | L147: 1122
A148: 12 | B148: 19025 | C148: 14 | D148: 19036 | E148: 13 | F148: 19048 | G148: 23 | H148: 19065 | K148: 0 | L148: 1112
A149: 12 | B149: 19169 | C149: 14 | D149: 19180 | E149: 13 | F149: 19193 | G149: 23 | H149: 19206 | K149: 0 | L149: 1112
A150: 12 | B150: 19310 | C150: 14 | D150: 19321 | E150: 13 | F150: 19332 | G150: 14 | H150: 19343 | K150: 0 | L150: 1111
A151: 12 | B151: 19443 | C151: 14 | D151: 19448 | E151: 13 | F151: 19456 | G151: 14 | H151: 19466 | K151: 0 | L151: 1111
A152: 12 | B152: 19568 | C152: 14 | D152: 19576 | E152: 13 | F152: 19588 | G152: 23 | H152: 19603 | K152: 0 | L152: 1112
A153: 12 | B153: 19702 | C153: 14 | D153: 19711 | E153: 24 | F153: 19726 | G153: 23 | H153: 19733 | K153: 0 | L153: 1122
A154: 12 | B154: 19831 | C154: 14 | D154: 19837 | E154: 13 | F154: 19845 | G154: 14 | H154: 19857 | K154: 0 | L154: 1111
A155: 12 | B155: 19962 | C155: 14 | D155: 19969 | E155: 13 | F155: 19981 | G155: 23 | H155: 19995 | K155: 0 | L155: 1112
A156: 12 | B156: 20096 | C156: 14 | D156: 20112 | E156: 24 | F156: 20125 | G156: 23 | H156: 20132 | K156: 0 | L156: 1122
A157: 12 | B157: 20245 | C157: 14 | D157: 20254 | E157: 13 | F157: 20266 | G157: 14 | H157: 20277 | K157: 0 | L157: 1111
A158: 12 | B158: 20375 | C158: 14 | D158: 20379 | E158: 13 | F158: 20387 | G158: 14 | H158: 20401 | K158: 0 | L158: 1111
A159: 12 | B159: 20507 | C159: 14 | D159: 20516 | E159: 13 | F159: 20553 | G159: 14 | H159: 20565 | K159: 0 | L159: 1111
A160: 12 | B160: 20679 | C160: 14 | D160: 20686 | E160: 13 | F160: 20698 | G160: 23 | H160: 20711 | K160: 0 | L160: 1112
A161: 12 | B161: 20806 | C161: 14 | D161: 20810 | E161: 13 | F161: 20818 | G161: 14 | H161: 20837 | K161: 0 | L161: 1111
A162: 12 | B162: 20937 | C162: 14 | D162: 20944 | E162: 13 | F162: 20961 | G162: 14 | H162: 20972 | K162: 0 | L162: 1111
A163: 12 | B163: 21090 | C163: 14 | D163: 21101 | E163: 13 | F163: 21112 | G163: 23 | H163: 21125 | K163: 0 | L163: 1112
A164: 12 | B164: 21230 | C164: 14 | D164: 21253 | E164: 24 | F164: 21265 | G164: 23 | H164: 21272 | K164: 0 | L164: 1122
A165: 12 | B165: 21374 | C165: 14 | D165: 21389 | E165: 13 | F165: 21401 | G165: 23 | H165: 21413 | K165: 0 | L165: 1112
A166: 12 | B166: 21526 | C166: 14 | D166: 21534 | E166: 13 | F166: 21545 | G166: 23 | H166: 21558 | K166: 0 | L166: 1112
A167: 12 | B167: 21671 | C167: 14 | D167: 21678 | E167: 13 | F167: 21697 | G167: 14 | H167: 21708 | K167: 0 | L167: 1111
A168: 12 | B168: 21811 | C168: 14 | D168: 21825 | E168: 24 | F168: 21842 | G168: 23 | H168: 21849 | K168: 0 | L168: 1122
A169: 12 | B169: 21950 | C169: 14 | D169: 21969 | E169: 24 | F169: 21978 | G169: 23 | H169: 21985 | K169: 0 | L169: 1122
A170: 12 | B170: 22084 | C170: 14 | D170: 22104 | E170: 13 | F170: 22115 | G170: 14 | H170: 22127 | K170: 0 | L170: 1111
A171: 12 | B171: 22223 | C171: 14 | D171: 22238 | E171: 13 | F171: 22250 | G171: 14 | H171: 22260 | K171: 0 | L171: 1111
A172: 12 | B172: 22359 | C172: 14 | D172: 22372 | E172: 13 | F172: 22380 | G172: 14 | H172: 22391 | K172: 0 | L172: 1111
A173: 12 | B173: 22507 | C173: 14 | D173: 22527 | E173: 24 | F173: 22539 | G173: 23 | H173: 22547 | K173: 0 | L173: 1122
A174: 12 | B174: 22649 | C174: 14 | D174: 22660 | E174: 13 | F174: 22672 | G174: 14 | H174: 22679 | K174: 0 | L174: 1111
A175: 21 | B175: 22779 | C175: 21 | D175: 22788 | E175: 11 | F175: 22799 | G175: 12 | H175: 22806 | K175: 0 | L175: 2211
A176: 12 | B176: 22918 | C176: 14 | D176: 22933 | E176: 13 | F176: 22944 | G176: 23 | H176: 22963 | K176: 0 | L176: 1112
A177: 12 | B177: 23068 | C177: 14 | D177: 23079 | E177: 13 | F177: 23097 | G177: 23 | H177: 23109 | K177: 0 | L177: 1112
A178: 12 | B178: 23216 | C178: 14 | D178: 23226 | E178: 13 | F178: 23238 | G178: 14 | H178: 23248 | K178: 0 | L178: 1111
A179: 12 | B179: 23351 | C179: 14 | D179: 23370 | E179: 13 | F179: 23379 | G179: 14 | H179: 23393 | K179: 0 | L179: 1111
A180: 12 | B180: 23501 | C180: 14 | D180: 23508 | E180: 13 | F180: 23523 | G180: 14 | H180: 23536 | K180: 0 | L180: 1111
A181: 12 | B181: 23641 | C181: 14 | D181: 23654 | E181: 13 | F181: 23663 | G181: 14 | H181: 23676 | K181: 0 | L181: 1111
A182: 12 | B182: 23771 | C182: 14 | D182: 23775 | E182: 13 | F182: 23784 | G182: 14 | H182: 23797 | K182: 0 | L182: 1111
A183: 12 | B183: 23895 | C183: 14 | D183: 23903 | E183: 13 | F183: 23913 | G183: 14 | H183: 23928 | L183: 1111

Sheet !M731A10.010
A1: Report for:!M731A10.010
A2: Date: | B2: <date>
A3: Hen: | B3: <hen> | F3: Correct Sequence | G3: =Start!J2 -> 2212 | P3: Total Sequences in Data | Q3: =4994-COUNTBLANK(L7:L5000) -> 177 | V3: Total Sequences in Block Data | W3: =COUNTA(L7:L36) -> 30 | AA3: Total Sequences in Block Data | AB3: =COUNTA(L37:L65) -> 29 | AF3: Total Sequences in Block Data | AG3: =COUNTA(L66:L95) -> 30 | AK3: Total Sequences in Block Data | AL3: =COUNTA(L96:L124) -> 29 | AP3: Total Sequences in Block Data | AQ3: =COUNTA(L125:L154) -> 30 | AU3: Total Sequences in Block Data | AV3: =COUNTA(L155:L183) -> 29
P4: Total Sequences in Summary | Q4: =SUM(O7:O22) -> 177 | V4: Total Sequences in Block Summary | W4: =SUM(U7:U22) -> 30 | AA4: Total Sequences in Block Summary | AB4: =SUM(Z7:Z22) -> 29 | AF4: Total Sequences in Block Summary | AG4: =SUM(AE7:AE22) -> 30 | AK4: Total Sequences in Block Summary | AL4: =SUM(AJ7:AJ22) -> 29 | AP4: Total Sequences in Block Summary | AQ4: =SUM(AO7:AO22) -> 30 | AU4: Total Sequences in Block Summary | AV4: =SUM(AT7:AT22) -> 29
T5: Block 1 | Y5: Block 2 | AD5: Block 3 | AI5: Block 4 | AN5: Block 5 | AS5: Block 6
A6: Sequence Component 1 | B6: Time 1 | C6: Sequence Component 2 | D6: Time 2 | E6: Sequence Component 3 | F6: Time 3 | G6: Sequence Component 4 | H6: Time 4 | I6: Sequence Component 5 | J6: Time 5 | K6: Correct? 0=No 1=Yes | L6: Sequence | N6: Frequency | P6: Relative Frequency | Q6: Variability | T6: Frequency | V6: Relative Frequency | W6: Variability | Y6: Frequency | AA6: Relative Frequency | AB6: Variability | AD6: Frequency | AF6: Relative Frequency | AG6: Variability | AI6: Frequency | AK6: Relative Frequency | AL6: Variability | AN6: Frequency | AP6: Relative Frequency | AQ6: Variability | AS6: Frequency | AU6: Relative Frequency | AV6: Variability
A7: 12 | B7: 9 | C7: 14 | D7: 20 | E7: 24 | F7: 34 | G7: 23 | H7: 40 | K7: 0 | L7: 1122 | N7: 1111 | O7: =COUNTIF($L$7:$L$500,N7) -> 152 | P7: =O7/$Q$4 -> 0.8587570621 | Q7: =IF(P7=0,0,(P7*((LOG(P7))/LOG(2)))) -> -0.1886500654 | T7: =N7 -> 1111 | U7: =COUNTIF(L7:L36,T7) -> 21 | V7: =U7/(W4-U20) -> 0.7 | W7: =IF(V7=0,0,(V7*((LOG(V7))/LOG(2)))) -> -0.360201221 | Y7: =N7 -> 1111 | Z7: =COUNTIF(L37:L65,Y7) -> 27 | AA7: =Z7/(AB4-Z20) -> 0.9310344828 | AB7: =IF(AA7=0,0,(AA7*((LOG(AA7))/LOG(2)))) -> -0.0959835969 | AD7: =N7 -> 1111 | AE7: =COUNTIF(L66:L95,AD7) -> 29 | AF7: =AE7/(AG4-AE20) -> 0.9666666667 | AG7: =IF(AF7=0,0,(AF7*((LOG(AF7))/LOG(2)))) -> -0.04727928046 | AI7: =N7 -> 1111 | AJ7: =COUNTIF(L96:L124,AI7) -> 27 | AK7: =AJ7/(AL4-AJ20) -> 0.9310344828 | AL7: =IF(AK7=0,0,(AK7*((LOG(AK7))/LOG(2)))) -> -0.0959835969 | AN7: =N7 -> 1111 | AO7: =COUNTIF(L125:L154,AN7) -> 24 | AP7: =AO7/(AQ4-AO20) -> 0.8 | AQ7: =IF(AP7=0,0,(AP7*((LOG(AP7))/LOG(2)))) -> -0.2575424759 | AS7: =N7 -> 1111 | AT7: =COUNTIF(L155:L183,AS7) -> 24 | AU7: =AT7/(AV4-AT20) -> 0.8275862069 | AV7: =IF(AU7=0,0,(AU7*((LOG(AU7))/LOG(2)))) -> -0.2259463402
A8: 12 | B8: 144 | C8: 14 | D8: 150 | E8: 24 | F8: 162 | G8: 23 | H8: 168 | K8: 0 | L8: 1122 | N8: 1112 | O8: 17 | P8: 0.09604519774 | Q8: -0.3246464749 | T8: 1112 | U8: =COUNTIF(L7:L36,T8) -> 6 | V8: =U8/(W4-U20) -> 0.2 | W8: -0.464385619 | Y8: 1112 | Z8: =COUNTIF(L37:L65,Y8) -> 2 | AA8: =Z8/(AB4-Z20) -> 0.06896551724 | AB8: -0.2660676548 | AD8: 1112 | AE8: =COUNTIF(L66:L95,AD8) -> 0 | AF8: =AE8/(AG4-AE20) -> 0 | AG8: 0 | AI8: 1112 | AJ8: =COUNTIF(L96:L124,AI8) -> 2 | AK8: =AJ8/(AL4-AJ20) -> 0.06896551724 | AL8: -0.2660676548 | AN8: 1112 | AO8: =COUNTIF(L125:L154,AN8) -> 5 | AP8: =AO8/(AQ4-AO20) -> 0.1666666667 | AQ8: -0.4308270835 | AS8: 1112 | AT8: =COUNTIF(L155:L183,AS8) -> 2 | AU8: =AT8/(AV4-AT20) -> 0.06896551724 | AV8: -0.2660676548
A9: 12 | B9: 269 | C9: 14 | D9: 279 | E9: 13 | F9: 292 | G9: 14 | H9: 304 | K9: 0 | L9: 1111 | N9: 1121 | O9: 0 | P9: 0 | Q9: 0 | T9: 1121 | U9: =COUNTIF(L7:L36,T9) -> 0 | V9: =U9/(W4-U20) -> 0 | W9: 0 | Y9: 1121 | Z9: =COUNTIF(L37:L65,Y9) -> 0 | AA9: =Z9/(AB4-Z20) -> 0 | AB9: 0 | AD9: 1121 | AE9: =COUNTIF(L66:L95,AD9) -> 0 | AF9: =AE9/(AG4-AE20) -> 0 | AG9: 0 | AI9: 1121 | AJ9: =COUNTIF(L96:L124,AI9) -> 0 | AK9: =AJ9/(AL4-AJ20) -> 0 | AL9: 0 | AN9: 1121 | AO9: =COUNTIF(L125:L154,AN9) -> 0 | AP9: =AO9/(AQ4-AO20) -> 0 | AQ9: 0 | AS9: 1121 | AT9: =COUNTIF(L155:L183,AS9) -> 0 | AU9: =AT9/(AV4-AT20) -> 0 | AV9: 0
A10: 12 | B10: 411 | C10: 14 | D10: 421 | E10: 13 | F10: 444 | G10: 23 | H10: 455 | K10: 0 | L10: 1112 | N10: 1122 | O10: 4 | P10: 0.02259887006 | Q10: -0.1235617073 | T10: 1122 | U10: =COUNTIF(L7:L36,T10) -> 3 | V10: =U10/(W4-U20) -> 0.1 | W10: -0.3321928095 | Y10: 1122 | Z10: =COUNTIF(L37:L65,Y10) -> 0 | AA10: =Z10/(AB4-Z20) -> 0 | AB10: 0 | AD10: 1122 | AE10: =COUNTIF(L66:L95,AD10) -> 0 | AF10: =AE10/(AG4-AE20) -> 0 | AG10: 0 | AI10: 1122 | AJ10: =COUNTIF(L96:L124,AI10) -> 0 | AK10: =AJ10/(AL4-AJ20) -> 0 | AL10: 0 | AN10: 1122 | AO10: =COUNTIF(L125:L154,AN10) -> 0 | AP10: =AO10/(AQ4-AO20) -> 0 | AQ10: 0 | AS10: 1122 | AT10: =COUNTIF(L155:L183,AS10) -> 1 | AU10: =AT10/(AV4-AT20) -> 0.03448275862 | AV10: -0.167516586
A11: 12 | B11: 575 | C11: 14 | D11: 585 | E11: 13 | F11: 601 | G11: 23 | H11: 616 | K11: 0 | L11: 1112 | N11: 1211 | O11: 0 | P11: 0 | Q11: 0 | T11: 1211 | U11: =COUNTIF(L7:L36,T11) -> 0 | V11: =U11/(W4-U20) -> 0 | W11: 0 | Y11: 1211 | Z11: =COUNTIF(L37:L65,Y11) -> 0 | AA11: =Z11/(AB4-Z20) -> 0 | AB11: 0 | AD11: 1211 | AE11: =COUNTIF(L66:L95,AD11) -> 0 | AF11: =AE11/(AG4-AE20) -> 0 | AG11: 0 | AI11: 1211 | AJ11: =COUNTIF(L96:L124,AI11) -> 0 | AK11: =AJ11/(AL4-AJ20) -> 0 | AL11: 0 | AN11: 1211 | AO11: =COUNTIF(L125:L154,AN11) -> 0 | AP11: =AO11/(AQ4-AO20) -> 0 | AQ11: 0 | AS11: 1211 | AT11: =COUNTIF(L155:L183,AS11) -> 0 | AU11: =AT11/(AV4-AT20) -> 0 | AV11: 0
A12: 12 | B12: 716 | C12: 14 | D12: 723 | E12: 13 | F12: 735 | G12: 14 | H12: 749 | K12: 0 | L12: 1111 | N12: 1212 | O12: 0 | P12: 0 | Q12: 0 | T12: 1212 | U12: =COUNTIF(L7:L36,T12) -> 0 | V12: =U12/(W4-U20) -> 0 | W12: 0 | Y12: 1212 | Z12: =COUNTIF(L37:L65,Y12) -> 0 | AA12: =Z12/(AB4-Z20) -> 0 | AB12: 0 | AD12: 1212 | AE12: =COUNTIF(L66:L95,AD12) -> 0 | AF12: =AE12/(AG4-AE20) -> 0 | AG12: 0 | AI12: 1212 | AJ12: =COUNTIF(L96:L124,AI12) -> 0 | AK12: =AJ12/(AL4-AJ20) -> 0 | AL12: 0 | AN12: 1212 | AO12: =COUNTIF(L125:L154,AN12) -> 0 | AP12: =AO12/(AQ4-AO20) -> 0 | AQ12: 0 | AS12: 1212 | AT12: =COUNTIF(L155:L183,AS12) -> 0 | AU12: =AT12/(AV4-AT20) -> 0 | AV12: 0
A13: 12 | B13: 846 | C13: 14 | D13: 859 | E13: 24 | F13: 872 | G13: 23 | H13: 879 | K13: 0 | L13: 1122 | N13: 1221 | O13: 0 | P13: 0 | Q13: 0 | T13: 1221 | U13: =COUNTIF(L7:L36,T13) -> 0 | V13: =U13/(W4-U20) -> 0 | W13: 0 | Y13: 1221 | Z13: =COUNTIF(L37:L65,Y13) -> 0 | AA13: =Z13/(AB4-Z20) -> 0 | AB13: 0 | AD13: 1221 | AE13: =COUNTIF(L66:L95,AD13) -> 0 | AF13: =AE13/(AG4-AE20) -> 0 | AG13: 0 | AI13: 1221 | AJ13: =COUNTIF(L96:L124,AI13) -> 0 | AK13: =AJ13/(AL4-AJ20) -> 0 | AL13: 0 | AN13: 1221 | AO13: =COUNTIF(L125:L154,AN13) -> 0 | AP13: =AO13/(AQ4-AO20) -> 0 | AQ13: 0 | AS13: 1221 | AT13: =COUNTIF(L155:L183,AS13) -> 0 | AU13: =AT13/(AV4-AT20) -> 0 | AV13: 0
A14: 12 | B14: 975 | C14: 14 | D14: 980 | E14: 13 | F14: 989 | G14: 23 | H14: 1005 | K14: 0 | L14: 1112 | N14: 1222 | O14: 0 | P14: 0 | Q14: 0 | T14: 1222 | U14: =COUNTIF(L7:L36,T14) -> 0 | V14: =U14/(W4-U20) -> 0 | W14: 0 | Y14: 1222 | Z14: =COUNTIF(L37:L65,Y14) -> 0 | AA14: =Z14/(AB4-Z20) -> 0 | AB14: 0 | AD14: 1222 | AE14: =COUNTIF(L66:L95,AD14) -> 0 | AF14: =AE14/(AG4-AE20) -> 0 | AG14: 0 | AI14: 1222 | AJ14: =COUNTIF(L96:L124,AI14) -> 0 | AK14: =AJ14/(AL4-AJ20) -> 0 | AL14: 0 | AN14: 1222 | AO14: =COUNTIF(L125:L154,AN14) -> 0 | AP14: =AO14/(AQ4-AO20) -> 0 | AQ14: 0 | AS14: 1222 | AT14: =COUNTIF(L155:L183,AS14) -> 0 | AU14: =AT14/(AV4-AT20) -> 0 | AV14: 0
A15: 12 | B15: 1105 | C15: 14 | D15: 1115 | E15: 13 | F15: 1126 | G15: 14 | H15: 1137 | K15: 0 | L15: 1111 | N15: 2111 | O15: 0 | P15: 0 | Q15: 0 | T15: 2111 | U15: =COUNTIF(L7:L36,T15) -> 0 | V15: =U15/(W4-U20) -> 0 | W15: 0 | Y15: 2111 | Z15: =COUNTIF(L37:L65,Y15) -> 0 | AA15: =Z15/(AB4-Z20) -> 0 | AB15: 0 | AD15: 2111 | AE15: =COUNTIF(L66:L95,AD15) -> 0 | AF15: =AE15/(AG4-AE20) -> 0 | AG15: 0 | AI15: 2111 | AJ15: =COUNTIF(L96:L124,AI15) -> 0 | AK15: =AJ15/(AL4-AJ20) -> 0 | AL15: 0 | AN15: 2111 | AO15: =COUNTIF(L125:L154,AN15) -> 0 | AP15: =AO15/(AQ4-AO20) -> 0 | AQ15: 0 | AS15: 2111 | AT15: =COUNTIF(L155:L183,AS15) -> 0 | AU15: =AT15/(AV4-AT20) -> 0 | AV15: 0
A16: 12 | B16: 1236 | C16: 14 | D16: 1243 | E16: 13 | F16: 1254 | G16: 23 | H16: 1269 | K16: 0 | L16: 1112 | N16: 2112 | O16: 0 | P16: 0 | Q16: 0 | T16: 2112 | U16: =COUNTIF(L7:L36,T16) -> 0 | V16: =U16/(W4-U20) -> 0 | W16: 0 | Y16: 2112 | Z16: =COUNTIF(L37:L65,Y16) -> 0 | AA16: =Z16/(AB4-Z20) -> 0 | AB16: 0 | AD16: 2112 | AE16: =COUNTIF(L66:L95,AD16) -> 0 | AF16: =AE16/(AG4-AE20) -> 0 | AG16: 0 | AI16: 2112 | AJ16: =COUNTIF(L96:L124,AI16) -> 0 | AK16: =AJ16/(AL4-AJ20) -> 0 | AL16: 0 | AN16: 2112 | AO16: =COUNTIF(L125:L154,AN16) -> 0 | AP16: =AO16/(AQ4-AO20) -> 0 | AQ16: 0 | AS16: 2112 | AT16: =COUNTIF(L155:L183,AS16) -> 0 | AU16: =AT16/(AV4-AT20) -> 0 | AV16: 0
A17: 12 | B17: 1368 | C17: 14 | D17: 1375 | E17: 13 | F17: 1386 | G17: 23 | H17: 1398 | K17: 0 | L17: 1112 | N17: 2121 | O17: 0 | P17: 0 | Q17: 0 | T17: 2121 | U17: =COUNTIF(L7:L36,T17) -> 0 | V17: =U17/(W4-U20) -> 0 | W17: 0 | Y17: 2121 | Z17: =COUNTIF(L37:L65,Y17) -> 0 | AA17: =Z17/(AB4-Z20) -> 0 | AB17: 0 | AD17: 2121 | AE17: =COUNTIF(L66:L95,AD17) -> 0 | AF17: =AE17/(AG4-AE20) -> 0 | AG17: 0 | AI17: 2121 | AJ17: =COUNTIF(L96:L124,AI17) -> 0 | AK17: =AJ17/(AL4-AJ20) -> 0 | AL17: 0 | AN17: 2121 | AO17: =COUNTIF(L125:L154,AN17) -> 0 | AP17: =AO17/(AQ4-AO20) -> 0 | AQ17: 0 | AS17: 2121 | AT17: =COUNTIF(L155:L183,AS17) -> 0 | AU17: =AT17/(AV4-AT20) -> 0 | AV17: 0
A18: 12 | B18: 1494 | C18: 14 | D18: 1509 | E18: 13 | F18: 1520 | G18: 14 | H18: 1531 | K18: 0 | L18: 1111 | N18: 2122 | O18: 0 | P18: 0 | Q18: 0 | T18: 2122 | U18: =COUNTIF(L7:L36,T18) -> 0 | V18: =U18/(W4-U20) -> 0 | W18: 0 | Y18: 2122 | Z18: =COUNTIF(L37:L65,Y18) -> 0 | AA18: =Z18/(AB4-Z20) -> 0 | AB18: 0 | AD18: 2122 | AE18: =COUNTIF(L66:L95,AD18) -> 0 | AF18: =AE18/(AG4-AE20) -> 0 | AG18: 0 | AI18: 2122 | AJ18: =COUNTIF(L96:L124,AI18) -> 0 | AK18: =AJ18/(AL4-AJ20) -> 0 | AL18: 0 | AN18: 2122 | AO18: =COUNTIF(L125:L154,AN18) -> 0 | AP18: =AO18/(AQ4-AO20) -> 0 | AQ18: 0 | AS18: 2122 | AT18: =COUNTIF(L155:L183,AS18) -> 0 | AU18: =AT18/(AV4-AT20) -> 0 | AV18: 0
A19: 12 | B19: 1629 | C19: 14 | D19: 1641 | E19: 13 | F19: 1653 | G19: 14 | H19: 1666 | K19: 0 | L19: 1111 | N19: 2211 | O19: 2 | P19: 0.01129943503 | Q19: -0.0730802887 | T19: 2211 | U19: =COUNTIF(L7:L36,T19) -> 0 | V19: =U19/(W4-U20) -> 0 | W19: 0 | Y19: 2211 | Z19: =COUNTIF(L37:L65,Y19) -> 0 | AA19: =Z19/(AB4-Z20) -> 0 | AB19: 0 | AD19: 2211 | AE19: =COUNTIF(L66:L95,AD19) -> 1 | AF19: =AE19/(AG4-AE20) -> 0.03333333333 | AG19: -0.1635630199 | AI19: 2211 | AJ19: =COUNTIF(L96:L124,AI19) -> 0 | AK19: =AJ19/(AL4-AJ20) -> 0 | AL19: 0 | AN19: 2211 | AO19: =COUNTIF(L125:L154,AN19) -> 1 | AP19: =AO19/(AQ4-AO20) -> 0.03333333333 | AQ19: -0.1635630199 | AS19: 2211 | AT19: =COUNTIF(L155:L183,AS19) -> 0 | AU19: =AT19/(AV4-AT20) -> 0 | AV19: 0
A20: 12 | B20: 1763 | C20: 14 | D20: 1770 | E20: 13 | F20: 1778 | G20: 14 | H20: 1790 | K20: 0 | L20: 1111 | N20: 2212 | O20: 0 | P20: 0 | Q20: 0 | T20: 2212 | U20: =COUNTIF(L7:L36,T20) -> 0 | Y20: 2212 | Z20: =COUNTIF(L37:L65,Y20) -> 0 | AD20: 2212 | AE20: =COUNTIF(L66:L95,AD20) -> 0 | AI20: 2212 | AJ20: =COUNTIF(L96:L124,AI20) -> 0 | AN20: 2212 | AO20: =COUNTIF(L125:L154,AN20) -> 0 | AS20: 2212 | AT20: =COUNTIF(L155:L183,AS20) -> 0
A21: 12 | B21: 1893 | C21: 14 | D21: 1900 | E21: 13 | F21: 1915 | G21: 14 | H21: 1926 | K21: 0 | L21: 1111 | N21: 2221 | O21: 1 | P21: 0.005649717514 | Q21: -0.04218986186 | T21: 2221 | U21: =COUNTIF(L7:L36,T21) -> 0 | V21: =U21/(W4-U20) -> 0 | W21: =IF(V21=0,0,(V21*((LOG(V21))/LOG(2)))) -> 0 | Y21: 2221 | Z21: =COUNTIF(L37:L65,Y21) -> 0 | AA21: =Z21/(AB4-Z20) -> 0 | AB21: =IF(AA21=0,0,(AA21*((LOG(AA21))/LOG(2)))) -> 0 | AD21: 2221 | AE21: =COUNTIF(L66:L95,AD21) -> 0 | AF21: =AE21/(AG4-AE20) -> 0 | AG21: =IF(AF21=0,0,(AF21*((LOG(AF21))/LOG(2)))) -> 0 | AI21: 2221 | AJ21: =COUNTIF(L96:L124,AI21) -> 0 | AK21: =AJ21/(AL4-AJ20) -> 0 | AL21: =IF(AK21=0,0,(AK21*((LOG(AK21))/LOG(2)))) -> 0 | AN21: 2221 | AO21: =COUNTIF(L125:L154,AN21) -> 0 | AP21: =AO21/(AQ4-AO20) -> 0 | AQ21: =IF(AP21=0,0,(AP21*((LOG(AP21))/LOG(2)))) -> 0 | AS21: 2221 | AT21: =COUNTIF(L155:L183,AS21) -> 1 | AU21: =AT21/(AV4-AT20) -> 0.03448275862 | AV21: =IF(AU21=0,0,(AU21*((LOG(AU21))/LOG(2)))) -> -0.167516586
A22: 12 | B22: 2025 | C22: 14 | D22: 2036 | E22: 13 | F22: 2053 | G22: 14 | H22: 2068 | K22: 0 | L22: 1111 | N22: 2222 | O22: 1 | P22: 0.005649717514 | Q22: -0.04218986186 | T22: 2222 | U22: =COUNTIF(L7:L36,T22) -> 0 | V22: =U22/(W4-U20) -> 0 | W22: =IF(V22=0,0,(V22*((LOG(V22))/LOG(2)))) -> 0 | Y22: 2222 | Z22: =COUNTIF(L37:L65,Y22) -> 0 | AA22: =Z22/(AB4-Z20) -> 0 | AB22: =IF(AA22=0,0,(AA22*((LOG(AA22))/LOG(2)))) -> 0 | AD22: 2222 | AE22: =COUNTIF(L66:L95,AD22) -> 0 | AF22: =AE22/(AG4-AE20) -> 0 | AG22: =IF(AF22=0,0,(AF22*((LOG(AF22))/LOG(2)))) -> 0 | AI22: 2222 | AJ22: =COUNTIF(L96:L124,AI22) -> 0 | AK22: =AJ22/(AL4-AJ20) -> 0 | AL22: =IF(AK22=0,0,(AK22*((LOG(AK22))/LOG(2)))) -> 0 | AN22: 2222 | AO22: =COUNTIF(L125:L154,AN22) -> 0 | AP22: =AO22/(AQ4-AO20) -> 0 | AQ22: =IF(AP22=0,0,(AP22*((LOG(AP22))/LOG(2)))) -> 0 | AS22: 2222 | AT22: =COUNTIF(L155:L183,AS22) -> 1 | AU22: =AT22/(AV4-AT20) -> 0.03448275862 | AV22: =IF(AU22=0,0,(AU22*((LOG(AU22))/LOG(2)))) -> -0.167516586
A23: 12 | B23: 2190 | C23: 14 | D23: 2204 | E23: 13 | F23: 2221 | G23: 14 | H23: 2245 | K23: 0 | L23: 1111 | P23: =SUM(P7:P22) -> 1 | Q23: =-SUM(Q7:Q22) -> 0.79431826 | V23: =SUM(V7:V22) -> 1 | W23: =-SUM(W7:W22) -> 1.156779649 | AA23: =SUM(AA7:AA22) -> 1 | AB23: =-SUM(AB7:AB22) -> 0.3620512517 | AF23: =SUM(AF7:AF22) -> 1 | AG23: =-SUM(AG7:AG22) -> 0.2108423003 | AK23: =SUM(AK7:AK22) -> 1 | AL23: =-SUM(AL7:AL22) -> 0.3620512517 | AP23: =SUM(AP7:AP22) -> 1 | AQ23: =-SUM(AQ7:AQ22) -> 0.8519325792 | AU23: =SUM(AU7:AU22) -> 1 | AV23: =-SUM(AV7:AV22) -> 0.9945637532
A24: 12 | B24: 2338 | C24: 14 | D24: 2349 | E24: 13 | F24: 2367 | G24: 14 | H24: 2379 | K24: 0 | L24: 1111 | P24: U= | Q24: =Q23/(LOG(Q4)/LOG(2)) -> 0.1063685347 | V24: U1= | W24: =W23/(LOG(W4)/LOG(2)) -> 0.2357459631 | AA24: U2= | AB24: =AB23/(LOG(AB4)/LOG(2)) -> 0.07452710336 | AF24: U3= | AG24: =AG23/(LOG(AG4)/LOG(2)) -> 0.04296861652 | AK24: U4= | AL24: =AL23/(LOG(AL4)/LOG(2)) -> 0.07452710336 | AP24: U5= | AQ24: =AQ23/(LOG(AQ4)/LOG(2)) -> 0.1736196401 | AU24: U6= | AV24: =AV23/(LOG(AV4)/LOG(2)) -> 0.2047277983
A25: 12 | B25: 2486 | C25: 14 | D25: 2496 | E25: 13 | F25: 2508 | G25: 14 | H25: 2520 | K25: 0 | L25: 1111
A26: 12 | B26: 2629 | C26: 14 | D26: 2641 | E26: 13 | F26: 2652 | G26: 14 | H26: 2663 | K26: 0 | L26: 1111
A27: 12 | B27: 2764 | C27: 14 | D27: 2777 | E27: 13 | F27: 2789 | G27: 14 | H27: 2804 | K27: 0 | L27: 1111 | N27: Total Target Seq
A28: 12 | B28: 2917 | C28: 14 | D28: 2925 | E28: 13 | F28: 2936 | G28: 14 | H28: 2946 | K28: 0 | L28: 1111 | N28: =COUNTIF(L7:L183,G3) -> 0 | P28: 30 | Q28: 29 | R28: 30 | S28: 29 | T28: 30 | U28: 29
A29: 12 | B29: 3074 | C29: 14 | D29: 3088 | E29: 13 | F29: 3104 | G29: 14 | H29: 3120 | K29: 0 | L29: 1111 | P29: % of reinforcement given in 6 equal intervals based on number of trials
A30: 12 | B30: 3245 | C30: 14 | D30: 3262 | E30: 13 | F30: 3274 | G30: 23 | H30: 3289 | K30: 0 | L30: 1112 | P30: %_1 | Q30: %_2 | R30: %_3 | S30: %_4 | T30: %_5 | U30: %_6
A31: 12 | B31: 3402 | C31: 14 | D31: 3417 | E31: 13 | F31: 3438 | G31: 14 | H31: 3448 | K31: 0 | L31: 1111 | O31: target sequence | P31: =$G$3 -> 2212 | Q31: 2212 | R31: 2212 | S31: 2212 | T31: 2212 | U31: 2212
A32: 12 | B32: 3552 | C32: 14 | D32: 3567 | E32: 13 | F32: 3580 | G32: 14 | H32: 3591 | K32: 0 | L32: 1111 | O32: total reinforcement | P32: =U20 -> 0 | Q32: =Z20 -> 0 | R32: =AE20 -> 0 | S32: =AJ20 -> 0 | T32: =AO20 -> 0 | U32: =AT20 -> 0
A33: 12 | B33: 3693 | C33: 14 | D33: 3705 | E33: 13 | F33: 3712 | G33: 14 | H33: 3720 | K33: 0 | L33: 1111 | O33: % target
A34: 12 | B34: 3817 | C34: 14 | D34: 3829 | E34: 13 | F34: 3849 | G34: 14 | H34: 3872 | K34: 0 | L34: 1111 | O34: CCRF
A35: 12 | B35: 3981 | C35: 14 | D35: 3997 | E35: 13 | F35: 4010 | G35: 14 | H35: 4022 | K35: 0 | L35: 1111 | O35: % CCRf
A36: 12 | B36: 4125 | C36: 14 | D36: 4134 | E36: 13 | F36: 4145 | G36: 14 | H36: 4157 | K36: 0 | L36: 1111 | O36: average response rate | P36: =H36/P28 -> 138.5666667 | Q36: =(H65-H36)/Q28 -> 133.2758621 | R36: =(H95-H65)/R28 -> 136 | S36: =(H124-H95)/S28 -> 133.6551724 | T36: =(H154-H124)/T28 -> 129.4 | U36: =(H183-H154)/U28 -> 140.3103448
A37: 12 | B37: 4259 | C37: 14 | D37: 4276 | E37: 13 | F37: 4289 | G37: 14 | H37: 4312 | K37: 0 | L37: 1111
A38: 12 | B38: 4409 | C38: 14 | D38: 4418 | E38: 13 | F38: 4433 | G38: 23 | H38: 4447 | K38: 0 | L38: 1112
A39: 12 | B39: 4553 | C39: 14 | D39: 4563 | E39: 13 | F39: 4577 | G39: 14 | H39: 4588 | K39: 0 | L39: 1111
A40: 12 | B40: 4688 | C40: 14 | D40: 4695 | E40: 13 | F40: 4703 | G40: 14 | H40: 4713 | K40: 0 | L40: 1111
A41: 12 | B41: 4809 | C41: 14 | D41: 4821 | E41: 13 | F41: 4832 | G41: 14 | H41: 4843 | K41: 0 | L41: 1111
A42: 12 | B42: 4940 | C42: 14 | D42: 4951 | E42: 13 | F42: 4961 | G42: 14 | H42: 4977 | K42: 0 | L42: 1111
A43: 12 | B43: 5092 | C43: 14 | D43: 5104 | E43: 13 | F43: 5118 | G43: 14 | H43: 5130 | K43: 0 | L43: 1111
A44: 12 | B44: 5225 | C44: 14 | D44: 5234 | E44: 13 | F44: 5245 | G44: 14 | H44: 5258 | K44: 0 | L44: 1111
A45: 12 | B45: 5357 | C45: 14 | D45: 5367 | E45: 13 | F45: 5380 | G45: 14 | H45: 5395 | K45: 0 | L45: 1111
A46: 12 | B46: 5495 | C46: 14 | D46: 5506 | E46: 13 | F46: 5523 | G46: 14 | H46: 5541 | K46: 0 | L46: 1111
A47: 12 | B47: 5652 | C47: 14 | D47: 5660 | E47: 13 | F47: 5672 | G47: 23 | H47: 5683 | K47: 0 | L47: 1112
A48: 12 | B48: 5782 | C48: 14 | D48: 5789 | E48: 13 | F48: 5798 | G48: 14 | H48: 5811 | K48: 0 | L48: 1111
A49: 12 | B49: 5911 | C49: 14 | D49: 5920 | E49: 13 | F49: 5928 | G49: 14 | H49: 5936 | K49: 0 | L49: 1111
A50: 12 | B50: 6032 | C50: 14 | D50: 6042 | E50: 13 | F50: 6055 | G50: 14 | H50: 6067 | K50: 0 | L50: 1111
A51: 12 | B51: 6163 | C51: 14 | D51: 6168 | E51: 13 | F51: 6180 | G51: 14 | H51: 6193 | K51: 0 | L51: 1111
A52: 12 | B52: 6289 | C52: 14 | D52: 6299 | E52: 13 | F52: 6306 | G52: 14 | H52: 6314 | K52: 0 | L52: 1111
A53: 12 | B53: 6410 | C53: 14 | D53: 6418 | E53: 13 | F53: 6426 | G53: 14 | H53: 6440 | K53: 0 | L53: 1111
A54: 12 | B54: 6539 | C54: 14 | D54: 6543 | E54: 13 | F54: 6551 | G54: 14 | H54: 6559 | K54: 0 | L54: 1111
A55: 12 | B55: 6672 | C55: 14 | D55: 6680 | E55: 13 | F55: 6696 | G55: 14 | H55: 6707 | K55: 0 | L55: 1111
A56: 12 | B56: 6812 | C56: 14 | D56: 6830 | E56: 13 | F56: 6842 | G56: 14 | H56: 6858 | K56: 0 | L56: 1111
A57: 12 | B57: 6955 | C57: 14 | D57: 6971 | E57: 13 | F57: 6979 | G57: 14 | H57: 6991 | K57: 0 | L57: 1111
A58: 12 | B58: 7093 | C58: 14 | D58: 7107 | E58: 13 | F58: 7114 | G58: 14 | H58: 7123 | K58: 0 | L58: 1111
A59: 12 | B59: 7223 | C59: 14 | D59: 7231 | E59: 13 | F59: 7238 | G59: 14 | H59: 7256 | K59: 0 | L59: 1111
A60: 12 | B60: 7353 | C60: 14 | D60: 7364 | E60: 13 | F60: 7371 | G60: 14 | H60: 7381 | K60: 0 | L60: 1111
A61: 12 | B61: 7478 | C61: 14 | D61: 7483 | E61: 13 | F61: 7498 | G61: 14 | H61: 7510 | K61: 0 | L61: 1111
A62: 12 | B62: 7607 | C62: 14 | D62: 7610 | E62: 13 | F62: 7621 | G62: 14 | H62: 7631 | K62: 0 | L62: 1111
A63: 12 | B63: 7728 | C63: 14 | D63: 7739 | E63: 13 | F63: 7754 | G63: 14 | H63: 7766 | K63: 0 | L63: 1111
A64: 12 | B64: 7859 | C64: 14 | D64: 7864 | E64: 13 | F64: 7881 | G64: 14 | H64: 7891 | K64: 0 | L64: 1111
A65: 12 | B65: 7989 | C65: 14 | D65: 7997 | E65: 13 | F65: 8011 | G65: 14 | H65: 8022 | K65: 0 | L65: 1111
A66: 12 | B66: 8123 | C66: 14 | D66: 8131 | E66: 13 | F66: 8142 | G66: 14 | H66: 8149 | K66: 0 | L66: 1111
A67: 12 | B67: 8274 | C67: 14 | D67: 8286 | E67: 13 | F67: 8296 | G67: 14 | H67: 8307 | K67: 0 | L67: 1111
A68: 12 | B68: 8408 | C68: 14 | D68: 8416 | E68: 13 | F68: 8424 | G68: 14 | H68: 8435 | K68: 0 | L68: 1111
A69: 12 | B69: 8532 | C69: 14 | D69: 8550 | E69: 13 | F69: 8564 | G69: 14 | H69: 8579 | K69: 0 | L69: 1111
A70: 12 | B70: 8681 | C70: 14 | D70: 8696 | E70: 13 | F70: 8705 | G70: 14 | H70: 8723 | K70: 0 | L70: 1111
A71: 12 | B71: 8851 | C71: 14 | D71: 8861 | E71: 13 | F71: 8874 | G71: 14 | H71: 8892 | K71: 0 | L71: 1111
A72: 12 | B72: 8997 | C72: 14 | D72: 9006 | E72: 13 | F72: 9014 | G72: 14 | H72: 9024 | K72: 0 | L72: 1111
A73: 12 | B73: 9120 | C73: 14 | D73: 9129 | E73: 13 | F73: 9137 | G73: 14 | H73: 9149 | K73: 0 | L73: 1111
A74: 12 | B74: 9245 | C74: 14 | D74: 9261 | E74: 13 | F74: 9269 | G74: 14 | H74: 9283 | K74: 0 | L74: 1111
A75: 12 | B75: 9378 | C75: 14 | D75: 9386 | E75: 13 | F75: 9394 | G75: 14 | H75: 9402 | K75: 0 | L75: 1111
A76: 12 | B76: 9498 | C76: 14 | D76: 9503 | E76: 13 | F76: 9518 | G76: 14 | H76: 9526 | K76: 0 | L76: 1111
A77: 12 | B77: 9623 | C77: 14 | D77: 9638 | E77: 13 | F77: 9645 | G77: 14 | H77: 9657 | K77: 0 | L77: 1111
A78: 12 | B78: 9757 | C78: 14 | D78: 9769 | E78: 13 | F78: 9786 | G78: 14 | H78: 9806 | K78: 0 | L78: 1111
A79: 12 | B79: 9904 | C79: 14 | D79: 9919 | E79: 13 | F79: 9930 | G79: 14 | H79: 9941 | K79: 0 | L79: 1111
A80: 12 | B80: 10051 | C80: 14 | D80: 10064 | E80: 13 | F80: 10076 | G80: 14 | H80: 10087 | K80: 0 | L80: 1111
A81: 12 | B81: 10185 | C81: 14 | D81: 10198 | E81: 13 | F81: 10208 | G81: 14 | H81: 10220 | K81: 0 | L81: 1111
A82: 12 | B82: 10313 | C82: 14 | D82: 10326 | E82: 13 | F82: 10337 | G82: 14 | H82: 10348 | K82: 0 | L82: 1111
A83: 12 | B83: 10449 | C83: 14 | D83: 10460 | E83: 13 | F83: 10467 | G83: 14 | H83: 10480 | K83: 0 | L83: 1111
A84: 12 | B84: 10578 | C84: 14 | D84: 10585 | E84: 13 | F84: 10593 | G84: 14 | H84: 10601 | K84: 0 | L84: 1111
A85: 12 | B85: 10697 | C85: 14 | D85: 10708 | E85: 13 | F85: 10715 | G85: 14 | H85: 10727 | K85: 0 | L85: 1111
A86: 12 | B86: 10824 | C86: 14 | D86: 10840 | E86: 13 | F86: 10856 | G86: 14 | H86: 10867 | K86: 0 | L86: 1111
A87: 12 | B87: 10968 | C87: 14 | D87: 10973 | E87: 13 | F87: 10984 | G87: 14 | H87: 10995 | K87: 0 | L87: 1111
A88: 12 | B88: 11091 | C88: 14 | D88: 11095 | E88: 13 | F88: 11104 | G88: 14 | H88: 11116 | K88: 0 | L88: 1111
A89: 21 | B89: 11213 | C89: 21 | D89: 11220 | E89: 11 | F89: 11232 | G89: 12 | H89: 11236 | K89: 0 | L89: 2211
A90: 12 | B90: 11409 | C90: 14 | D90: 11415 | E90: 13 | F90: 11429 | G90: 14 | H90: 11441 | K90: 0 | L90: 1111
A91: 12 | B91: 11542 | C91: 14 | D91: 11551 | E91: 13 | F91: 11558 | G91: 14 | H91: 11566 | K91: 0 | L91: 1111
A92: 12 | B92: 11666 | C92: 14 | D92: 11684 | E92: 13 | F92: 11698 | G92: 14 | H92: 11707 | K92: 0 | L92: 1111
A93: 12 | B93: 11809 | C93: 14 | D93: 11814 | E93: 13 | F93: 11824 | G93: 14 | H93: 11835 | K93: 0 | L93: 1111
A94: 12 | B94: 11934 | C94: 14 | D94: 11938 | E94: 13 | F94: 11951 | G94: 14 | H94: 11959 | K94: 0 | L94: 1111
A95: 12 | B95: 12063 | C95: 14 | D95: 12083 | E95: 13 | F95: 12090 | G95: 14 | H95: 12102 | K95: 0 | L95: 1111
A96: 12 | B96: 12203 | C96: 14 | D96: 12217 | E96: 13 | F96: 12229 | G96: 14 | H96: 12242 | K96: 0 | L96: 1111
A97: 12 | B97: 12343 | C97: 14 | D97: 12347 | E97: 13 | F97: 12359 | G97: 14 | H97: 12375 | K97: 0 | L97: 1111
A98: 12 | B98: 12475 | C98: 14 | D98: 12480 | E98: 13 | F98: 12487 | G98: 14 | H98: 12495 | K98: 0 | L98: 1111
A99: 12 | B99: 12589 | C99: 14 | D99: 12600 | E99: 13 | F99: 12609 | G99: 14 | H99: 12618 | K99: 0 | L99: 1111
A100: 12 | B100: 12718 | C100: 14 | D100: 12727 | E100: 13 | F100: 12738 | G100: 14 | H100: 12745 | K100: 0 | L100: 1111
A101: 12 | B101: 12847 | C101: 14 | D101: 12855 | E101: 13 | F101: 12865 | G101: 14 | H101: 12875 | K101: 0 | L101: 1111
A102: 12 | B102: 12989 | C102: 14 | D102: 13004 | E102: 13 | F102: 13014 | G102: 14 | H102: 13024 | K102: 0 | L102: 1111
A103: 12 | B103: 13124 | C103: 14 | D103: 13132 | E103: 13 | F103: 13141 | G103: 14 | H103: 13152 | K103: 0 | L103: 1111
A104: 12 | B104: 13249 | C104: 14 | D104: 13266 | E104: 13 | F104: 13277 | G104: 14 | H104: 13293 | K104: 0 | L104: 1111
A105: 12 | B105: 13404 | C105: 14 | D105: 13412 | E105: 13 | F105: 13424 | G105: 14 | H105: 13434 | K105: 0 | L105: 1111
A106: 12 | B106: 13548 | C106: 14 | D106: 13551 | E106: 13 | F106: 13570 | G106: 23 | H106: 13583 | K106: 0 | L106: 1112
A107: 12 | B107: 13687 | C107: 14 | D107: 13699 | E107: 13 | F107: 13707 | G107: 14 | H107: 13724 | K107: 0 | L107: 1111
A108: 12 | B108: 13824 | C108: 14 | D108: 13829 | E108: 13 | F108: 13844 | G108: 14 | H108: 13849 | K108: 0 | L108: 1111
A109: 12 | B109: 13948 | C109: 14 | D109: 13960 | E109: 13 | F109: 13969 | G109: 14 | H109: 13984 | K109: 0 | L109: 1111
A110: 12 | B110: 14089 | C110: 14 | D110: 14097 | E110: 13 | F110: 14104 | G110: 14 | H110: 14116 | K110: 0 | L110: 1111
A111: 12 | B111: 14215 | C111: 14 | D111: 14225 | E111: 13 | F111: 14239 | G111: 14 | H111: 14259 | K111: 0 | L111: 1111
A112: 12 | B112: 14356 | C112: 14 | D112: 14371 | E112: 13 | F112: 14381 | G112: 14 | H112: 14393 | K112: 0 | L112: 1111
A113: 12 | B113: 14491 | C113: 14 | D113: 14498 | E113: 13 | F113: 14509 | G113: 14 | H113: 14519 | K113: 0 | L113: 1111
A114: 12 | B114: 14619 | C114: 14 | D114: 14629 | E114: 13 | F114: 14639 | G114: 14 | H114: 14648 | K114: 0 | L114: 1111
A115: 12 | B115: 14746 | C115: 14 | D115: 14757 | E115: 13 | F115: 14771 | G115: 14 | H115: 14782 | K115: 0 | L115: 1111
A116: 12 | B116: 14885 | C116: 14 | D116: 14893 | E116: 13 | F116: 14915 | G116: 14 | H116: 14926 | K116: 0 | L116: 1111
A117: 12 | B117: 15034 | C117: 14 | D117: 15039 | E117: 13 | F117: 15049 | G117: 14 | H117: 15057 | K117: 0 | L117: 1111
A118: 12 | B118: 15167 | C118: 14 | D118: 15175 | E118: 13 | F118: 15183 | G118: 23 | H118: 15215 | K118: 0 | L118: 1112
A119: 12 | B119: 15314 | C119: 14 | D119: 15322 | E119: 13 | F119: 15332 | G119: 14 | H119: 15343 | K119: 0 | L119: 1111
A120: 12 | B120: 15441 | C120: 14 | D120: 15456 | E120: 13 | F120: 15465 | G120: 14 | H120: 15475 | K120: 0 | L120: 1111
A121: 12 | B121: 15572 | C121: 14 | D121: 15576 | E121: 13 | F121: 15585 | G121: 14 | H121: 15593 | K121: 0 | L121: 1111
A122: 12 | B122: 15691 | C122: 14 | D122: 15695 | E122: 13 | F122: 15705 | G122: 14 | H122: 15716 | K122: 0 | L122: 1111
A123: 12 | B123: 15814 | C123: 14 | D123: 15822 | E123: 13 | F123: 15835 | G123: 14 | H123: 15844 | K123: 0 | L123: 1111
A124: 12 | B124: 15942 | C124: 14 | D124: 15958 | E124: 13 | F124: 15966 | G124: 14 | H124: 15978 | K124: 0 | L124: 1111
A125: 12 | B125: 16076 | C125: 14 | D125: 16080 | E125: 13 | F125: 16090 | G125: 14 | H125: 16108 | K125: 0 | L125: 1111
A126: 12 | B126: 16206 | C126: 14 | D126: 16214 | E126: 13 | F126: 16222 | G126: 14 | H126: 16234 | K126: 0 | L126: 1111
A127: 12 | B127: 16331 | C127: 14 | D127: 16338 | E127: 13 | F127: 16346 | G127: 14 | H127: 16361 | K127: 0 | L127: 1111
A128: 12 | B128: 16458 | C128: 14 | D128: 16466 | E128: 13 | F128: 16474 | G128: 14 | H128: 16485 | K128: 0 | L128: 1111
A129: 12 | B129: 16585 | C129: 14 | D129: 16591 | E129: 13 | F129: 16606 | G129: 14 | H129: 16621 | K129: 0 | L129: 1111
A130: 12 | B130: 16760 | C130: 14 | D130: 16775 | E130: 13 | F130: 16788 | G130: 23 | H130: 16804 | K130: 0 | L130: 1112
A131: 12 | B131: 16902 | C131: 14 | D131: 16914 | E131: 13 | F131: 16926 | G131: 14 | H131: 16933 | K131: 0 | L131: 1111
A132: 12 | B132: 17026 | C132: 14 | D132: 17031 | E132: 13 | F132: 17052 | G132: 14 | H132: 17063 | K132: 0 | L132: 1111
A133: 12 | B133: 17160 | C133: 14 | D133: 17176 | E133: 13 | F133: 17190 | G133: 14 | H133: 17196 | K133: 0 | L133: 1111
A134: 12 | B134: 17293 | C134: 14 | D134: 17298 | E134: 13 | F134: 17306 | G134: 14 | H134: 17323 | K134: 0 | L134: 1111
A135: 12 | B135: 17420 | C135: 14 | D135: 17426 | E135: 13 | F135: 17433 | G135: 14 | H135: 17444 | K135: 0 | L135: 1111
A136: 12 | B136: 17541 | C136: 14 | D136: 17545 | E136: 13 | F136: 17555 | G136: 14 | H136: 17567 | K136: 0 | L136: 1111
A137: 12 | B137: 17667 | C137: 14 | D137: 17677 | E137: 13 | F137: 17691 | G137: 23 | H137: 17706 | K137: 0 | L137: 1112
A138: 12 | B138: 17806 | C138: 14 | D138: 17822 | E138: 13 | F138: 17833 | G138: 23 | H138: 17849 | K138: 0 | L138: 1112
A139: 12 | B139: 17941 | C139: 14 | D139: 17951 | E139: 13 | F139: 17966 | G139: 14 | H139: 17984 | K139: 0 | L139: 1111
A140: 12 | B140: 18082 | C140: 14 | D140: 18095 | E140: 13 | F140: 18102 | G140: 14 | H140: 18114 | K140: 0 | L140: 1111
A141: 12 | B141: 18211 | C141: 14 | D141: 18218 | E141: 13 | F141: 18226 | G141: 14 | H141: 18234 | K141: 0 | L141: 1111
A142: 21 | B142: 18331 | C142: 21 | D142: 18339 | E142: 11 | F142: 18350 | G142: 12 | H142: 18366 | K142: 0 | L142: 2211
A143: 12 | B143: 18461 | C143: 14 | D143: 18465 | E143: 13 | F143: 18471 | G143: 14 | H143: 18478 | K143: 0 | L143: 1111
A144: 12 | B144: 18573 | C144: 14 | D144: 18588 | E144: 13 | F144: 18595 | G144: 14 | H144: 18609 | K144: 0 | L144: 1111
A145: 12 | B145: 18704 | C145: 14 | D145: 18708 | E145: 13 | F145: 18712 | G145: 14 | H145: 18724 | K145: 0 | L145: 1111
A146: 12 | B146: 18820 | C146: 14 | D146: 18824 | E146: 13 | F146: 18830 | G146: 14 | H146: 18838 | K146: 0 | L146: 1111
A147: 12 | B147: 18931 | C147: 14 | D147: 18935 | E147: 13 | F147: 18948 | G147: 14 | H147: 18963 | K147: 0 | L147: 1111
A148: 12 | B148: 19065 | C148: 14 | D148: 19069 | E148: 13 | F148: 19081 | G148: 23 | H148: 19093 | K148: 0 | L148: 1112
A149: 12 | B149: 19193 | C149: 14 | D149: 19197 | E149: 13 | F149: 19210 | G149: 14 | H149: 19217 | K149: 0 | L149: 1111
A150: 12 | B150: 19309 | C150: 14 | D150: 19324 | E150: 13 | F150: 19331 | G150: 14 | H150: 19344 | K150: 0 | L150: 1111
A151: 12 | B151: 19441 | C151: 14 | D151: 19449 | E151: 13 | F151: 19457 | G151: 14 | H151: 19463 | K151: 0 | L151: 1111
A152: 12 | B152: 19561 | C152: 14 | D152: 19584 | E152: 13 | F152: 19592 | G152: 14 | H152: 19600 | K152: 0 | L152: 1111
A153: 12 | B153: 19696 | C153: 14 | D153: 19700 | E153: 13 | F153: 19714 | G153: 23 | H153: 19732 | K153: 0 | L153: 1112
A154: 12 | B154: 19824 | C154: 14 | D154: 19828 | E154: 13 | F154: 19838 | G154: 14 | H154: 19860 | K154: 0 | L154: 1111
A155: 12 | B155: 19960 | C155: 14 | D155: 19969 | E155: 13 | F155: 19977 | G155: 14 | H155: 19986 | K155: 0 | L155: 1111
A156: 21 | B156: 20085 | C156: 21 | D156: 20090 | E156: 22 | F156: 20097 | G156: 14 | H156: 20109 | K156: 0 | L156: 2221
A157: 21 | B157: 20210 | C157: 21 | D157: 20215 | E157: 22 | F157: 20222 | G157: 23 | H157: 20228 | K157: 0 | L157: 2222
A158: 12 | B158: 20325 | C158: 14 | D158: 20342 | E158: 13 | F158: 20350 | G158: 23 | H158: 20363 | K158: 0 | L158: 1112
A159: 12 | B159: 20459 | C159: 14 | D159: 20483 | E159: 13 | F159: 20491 | G159: 14 | H159: 20502 | K159: 0 | L159: 1111
A160: 12 | B160: 20608 | C160: 14 | D160: 20613 | E160: 13 | F160: 20628 | G160: 14 | H160: 20640 | K160: 0 | L160: 1111
A161: 12 | B161: 20731 | C161: 14 | D161: 20749 | E161: 13 | F161: 20761 | G161: 14 | H161: 20776 | K161: 0 | L161: 1111
A162: 12 | B162: 20880 | C162: 14 | D162: 20895 | E162: 13 | F162: 20905 | G162: 14 | H162: 20920 | K162: 0 | L162: 1111
A163: 12 | B163: 21016 | C163: 14 | D163: 21023 | E163: 13 | F163: 21033 | G163: 14 | H163: 21040 | K163: 0 | L163: 1111
A164: 12 | B164: 21138 | C164: 14 | D164: 21145 | E164: 13 | F164: 21152 | G164: 14 | H164: 21164 | K164: 0 | L164: 1111
A165: 12 | B165: 21263 | C165: 14 | D165: 21275 | E165: 13 | F165: 21280 | G165: 14 | H165: 21290 | K165: 0 | L165: 1111
A166: 12 | B166: 21386 | C166: 14 | D166: 21394 | E166: 13 | F166: 21409 | G166: 14 | H166: 21421 | K166: 0 | L166: 1111
A167: 12 | B167: 21517 | C167: 14 | D167: 21529 | E167: 13 | F167: 21540 | G167: 14 | H167: 21551 | K167: 0 | L167: 1111
A168: 12 | B168: 21650 | C168: 14 | D168: 21655 | E168: 13 | F168: 21670 | G168: 14 | H168: 21677 | K168: 0 | L168: 1111
A169: 12 | B169: 21773 | C169: 14 | D169: 21780 | E169: 13 | F169: 21795 | G169: 14 | H169: 21825 | K169: 0 | L169: 1111
A170: 12 | B170: 21923 | C170: 14 | D170: 21934 | E170: 13 | F170: 21949 | G170: 14 | H170: 21961 | K170: 0 | L170: 1111
A171: 12 | B171: 22057 | C171: 14 | D171: 22075 | E171: 13 | F171: 22088 | G171: 14 | H171: 22099 | K171: 0 | L171: 1111
A172: 12 | B172: 22205 | C172: 14 | D172: 22220 | E172: 13 | F172: 22233 | G172: 14 | H172: 22245 | K172: 0 | L172: 1111
A173: 12 | B173: 22346 | C173: 14 | D173: 22355 | E173: 13 | F173: 22378 | G173: 14 | H173: 22390 | K173: 0 | L173: 1111
A174: 12 | B174: 22586 | C174: 14 | D174: 22601 | E174: 24 | F174: 22616 | G174: 23 | H174: 22623 | K174: 0 | L174: 1122
A175: 12 | B175: 22719 | C175: 14 | D175: 22726 | E175: 13 | F175: 22740 | G175: 14 | H175: 22748 | K175: 0 | L175: 1111
A176: 12 | B176: 22844 | C176: 14 | D176: 22855 | E176: 13 | F176: 22870 | G176: 14 | H176: 22882 | K176: 0 | L176: 1111
A177: 12 | B177: 22977 | C177: 14 | D177: 22981 | E177: 13 | F177: 23007 | G177: 14 | H177: 23016 | K177: 0 | L177: 1111
A178: 12 | B178: 23112 | C178: 14 | D178: 23116 | E178: 13 | F178: 23136 | G178: 23 | H178: 23152 | K178: 0 | L178: 1112
A179: 12 | B179: 23251 | C179: 14 | D179: 23278 | E179: 13 | F179: 23293 | G179: 14 | H179: 23308 | K179: 0 | L179: 1111
A180: 12 | B180: 23403 | C180: 14 | D180: 23410 | E180: 13 | F180: 23437 | G180: 14 | H180: 23452 | K180: 0 | L180: 1111
A181: 12 | B181: 23562 | C181: 14 | D181: 23573 | E181: 13 | F181: 23588 | G181: 14 | H181: 23599 | K181: 0 | L181: 1111
A182: 12 | B182: 23707 | C182: 14 | D182: 23716 | E182: 13 | F182: 23734 | G182: 14 | H182: 23747 | K182: 0 | L182: 1111
A183: 12 | B183: 23844 | C183: 14 | D183: 23906 | E183: 13 | F183: 23918 | G183: 14 | H183: 23929 | L183: 1111

Sheet !M801A40.010
A1: Report for:!M801A40.010
A2: Date: | B2: <date>
A3: Hen: | B3: <hen> | F3: Correct Sequence | G3: =Start!J2 -> 2212 | P3: Total Sequences in Data | Q3: =4994-COUNTBLANK(L7:L5000) -> 174 | V3: Total Sequences in Block Data | W3: =COUNTA(L7:L35) -> 29 | AA3: Total Sequences in Block Data | AB3: =COUNTA(L36:L64) -> 29 | AF3: Total Sequences in Block Data | AG3: =COUNTA(L65:L93) -> 29 | AK3: Total Sequences in Block Data | AL3: =COUNTA(L94:L122) -> 29 | AP3: Total Sequences in Block Data | AQ3: =COUNTA(L123:L151) -> 29 | AU3: Total Sequences in Block Data | AV3: =COUNTA(L152:L180) -> 29
P4: Total Sequences in Summary | Q4: =SUM(O7:O22) -> 174 | V4: Total Sequences in Block Summary | W4: =SUM(U7:U22) -> 29 | AA4: Total Sequences in Block Summary | AB4: =SUM(Z7:Z22) -> 29 | AF4: Total Sequences in Block Summary | AG4: =SUM(AE7:AE22) -> 29 | AK4: Total Sequences in Block Summary | AL4: =SUM(AJ7:AJ22) -> 29 | AP4: Total Sequences in Block Summary | AQ4: =SUM(AO7:AO22) -> 29 | AU4: Total Sequences in Block Summary | AV4: =SUM(AT7:AT22) -> 29
T5: Block 1 | Y5: Block 2 | AD5: Block 3 | AI5: Block 4 | AN5: Block 5 | AS5: Block 6
A6: Sequence Component 1 | B6: Time 1 | C6: Sequence Component 2 | D6: Time 2 | E6: Sequence Component 3 | F6: Time 3 | G6: Sequence Component 4 | H6: Time 4 | I6: Sequence Component 5 | J6: Time 5 | K6: Correct? 0=No 1=Yes | L6: Sequence | N6: Frequency | P6: Relative Frequency | Q6: Variability | T6: Frequency | V6: Relative Frequency | W6: Variability | Y6: Frequency | AA6: Relative Frequency | AB6: Variability | AD6: Frequency | AF6: Relative Frequency | AG6: Variability | AI6: Frequency | AK6: Relative Frequency | AL6: Variability | AN6: Frequency | AP6: Relative Frequency | AQ6: Variability | AS6: Frequency | AU6: Relative Frequency | AV6: Variability
A7: 12 | B7: 12 | C7: 14 | D7: 29 | E7: 24 | F7: 43 | G7: 23 | H7: 51 | K7: 0 | L7: 1122 | N7: 1111 | O7: =COUNTIF($L$7:$L$500,N7) -> 88 | P7: =O7/$Q$4 -> 0.5057471264 | Q7: =IF(P7=0,0,(P7*((LOG(P7))/LOG(2)))) -> -0.4974083057 | T7: =N7 -> 1111 | U7: =COUNTIF(L7:L35,T7) -> 23 | V7: =U7/(W4-U20) -> 0.7931034483 | W7: =IF(V7=0,0,(V7*((LOG(V7))/LOG(2)))) -> -0.2652288931 | Y7: =N7 -> 1111 | Z7: =COUNTIF(L36:L64,Y7) -> 26 | AA7: =Z7/(AB4-Z20) -> 0.8965517241 | AB7: =IF(AA7=0,0,(AA7*((LOG(AA7))/LOG(2)))) -> -0.1412439035 | AD7: =N7 -> 1111 | AE7: =COUNTIF(L65:L93,AD7) -> 11 | AF7: =AE7/(AG4-AE20) -> 0.3793103448 | AG7: =IF(AF7=0,0,(AF7*((LOG(AF7))/LOG(2)))) -> -0.5304842463 | AI7: =N7 -> 1111 | AJ7: =COUNTIF(L94:L122,AI7) -> 11 | AK7: =AJ7/(AL4-AJ20) -> 0.3793103448 | AL7: =IF(AK7=0,0,(AK7*((LOG(AK7))/LOG(2)))) -> -0.5304842463 | AN7: =N7 -> 1111 | AO7: =COUNTIF(L123:L151,AN7) -> 11 | AP7: =AO7/(AQ4-AO20) -> 0.3793103448 | AQ7: =IF(AP7=0,0,(AP7*((LOG(AP7))/LOG(2)))) -> -0.5304842463 | AS7: =N7 -> 1111 | AT7: =COUNTIF(L152:L180,AS7) -> 6 | AU7: =AT7/(AV4-AT20) -> 0.2068965517 | AV7: =IF(AU7=0,0,(AU7*((LOG(AU7))/LOG(2)))) -> -0.4702796885
A8: 12 | B8: 159 | C8: 23 | D8: 172 | E8: 24 | F8: 182 | G8: 14 | H8: 215 | K8: 0 | L8: 1221 | N8: 1112 | O8: 33 | P8: 0.1896551724 | Q8: -0.4548972955 | T8: 1112 | U8: =COUNTIF(L7:L35,T8) -> 2 | V8: =U8/(W4-U20) -> 0.06896551724 | W8: -0.2660676548 | Y8: 1112 | Z8: =COUNTIF(L36:L64,Y8) -> 3 | AA8: =Z8/(AB4-Z20) -> 0.1034482759 | AB8: -0.3385881201 | AD8: 1112 | AE8: =COUNTIF(L65:L93,AD8) -> 10 | AF8: =AE8/(AG4-AE20) -> 0.3448275862 | AG8: -0.5296734139 | AI8: 1112 | AJ8: =COUNTIF(L94:L122,AI8) -> 7 | AK8: =AJ8/(AL4-AJ20) -> 0.2413793103 | AL8: -0.4949787073 | AN8: 1112 | AO8: =COUNTIF(L123:L151,AN8) -> 6 | AP8: =AO8/(AQ4-AO20) -> 0.2068965517 | AQ8: -0.4702796885 | AS8: 1112 | AT8: =COUNTIF(L152:L180,AS8) -> 5 | AU8: =AT8/(AV4-AT20) -> 0.1724137931 | AV8: -0.4372505
A9: 12 | B9: 320 | C9: 14 | D9: 333 | E9: 24 | F9: 345 | G9: 23 | H9: 352 | K9: 0 | L9: 1122 | N9: 1121 | O9: 0 | P9: 0 | Q9: 0 | T9: 1121 | U9: =COUNTIF(L7:L35,T9) -> 0 | V9: =U9/(W4-U20) -> 0 | W9: 0 | Y9: 1121 | Z9: =COUNTIF(L36:L64,Y9) -> 0 | AA9: =Z9/(AB4-Z20) -> 0 | AB9: 0 | AD9: 1121 | AE9: =COUNTIF(L65:L93,AD9) -> 0 | AF9: =AE9/(AG4-AE20) -> 0 | AG9: 0 | AI9: 1121 | AJ9: =COUNTIF(L94:L122,AI9) -> 0 | AK9: =AJ9/(AL4-AJ20) -> 0 | AL9: 0 | AN9: 1121 | AO9: =COUNTIF(L123:L151,AN9) -> 0 | AP9: =AO9/(AQ4-AO20) -> 0 | AQ9: 0 | AS9: 1121 | AT9: =COUNTIF(L152:L180,AS9) -> 0 | AU9: =AT9/(AV4-AT20) -> 0 | AV9: 0
A10: 12 | B10: 453 | C10: 14 | D10: 465 | E10: 24 | F10: 477 | G10: 23 | H10: 485 | K10: 0 | L10: 1122 | N10: 1122 | O10: 37 | P10: 0.2126436782 | Q10: -0.4749375564 | T10: 1122 | U10: =COUNTIF(L7:L35,T10) -> 3 | V10: =U10/(W4-U20) -> 0.1034482759 | W10: -0.3385881201 | Y10: 1122 | Z10: =COUNTIF(L36:L64,Y10) -> 0 | AA10: =Z10/(AB4-Z20) -> 0 | AB10: 0 | AD10: 1122 | AE10: =COUNTIF(L65:L93,AD10) -> 7 | AF10: =AE10/(AG4-AE20) -> 0.2413793103 | AG10: -0.4949787073 | AI10: 1122 | AJ10: =COUNTIF(L94:L122,AI10) -> 6 | AK10: =AJ10/(AL4-AJ20) -> 0.2068965517 | AL10: -0.4702796885 | AN10: 1122 | AO10: =COUNTIF(L123:L151,AN10) -> 8 | AP10: =AO10/(AQ4-AO20) -> 0.275862069 | AQ10: -0.5125464814 | AS10: 1122 | AT10: =COUNTIF(L152:L180,AS10) -> 13 | AU10: =AT10/(AV4-AT20) -> 0.4482758621 | AV10: -0.5188978138
A11: 12 | B11: 585 | C11: 14 | D11: 590 | E11: 13 | F11: 599 | G11: 14 | H11: 623 | K11: 0 | L11: 1111 | N11: 1211 | O11: 0 | P11: 0 | Q11: 0 | T11: 1211 | U11: =COUNTIF(L7:L35,T11) -> 0 | V11: =U11/(W4-U20) -> 0 | W11: 0 | Y11: 1211 | Z11: =COUNTIF(L36:L64,Y11) -> 0 | AA11: =Z11/(AB4-Z20) -> 0 | AB11: 0 | AD11: 1211 | AE11: =COUNTIF(L65:L93,AD11) -> 0 | AF11: =AE11/(AG4-AE20) -> 0 | AG11: 0 | AI11: 1211 | AJ11: =COUNTIF(L94:L122,AI11) -> 0 | AK11: =AJ11/(AL4-AJ20) -> 0 | AL11: 0 | AN11: 1211 | AO11: =COUNTIF(L123:L151,AN11) -> 0 | AP11: =AO11/(AQ4-AO20) -> 0 | AQ11: 0 | AS11: 1211 | AT11: =COUNTIF(L152:L180,AS11) -> 0 | AU11: =AT11/(AV4-AT20) -> 0 | AV11: 0
A12: 12 | B12: 724 | C12: 14 | D12: 729 | E12: 13 | F12: 741 | G12: 14 | H12: 756 | K12: 0 | L12: 1111 | N12: 1212 | O12: 0 | P12: 0 | Q12: 0 | T12: 1212 | U12: =COUNTIF(L7:L35,T12) -> 0 | V12: =U12/(W4-U20) -> 0 | W12: 0 | Y12: 1212 | Z12: =COUNTIF(L36:L64,Y12) -> 0 | AA12: =Z12/(AB4-Z20) -> 0 | AB12: 0 | AD12: 1212 | AE12: =COUNTIF(L65:L93,AD12) -> 0 | AF12: =AE12/(AG4-AE20) -> 0 | AG12: 0 | AI12: 1212 | AJ12: =COUNTIF(L94:L122,AI12) -> 0 | AK12: =AJ12/(AL4-AJ20) -> 0 | AL12: 0 | AN12: 1212 | AO12: =COUNTIF(L123:L151,AN12) -> 0 | AP12: =AO12/(AQ4-AO20) -> 0 | AQ12: 0 | AS12: 1212 | AT12: =COUNTIF(L152:L180,AS12) -> 0 | AU12: =AT12/(AV4-AT20) -> 0 | AV12: 0
A13: 12 | B13: 855 | C13: 14 | D13: 865 | E13: 13 | F13: 877 | G13: 23 | H13: 889 | K13: 0 | L13: 1112 | N13: 1221 | O13: 1 | P13: 0.005747126437 | Q13: -0.04277553733 | T13: 1221 | U13: =COUNTIF(L7:L35,T13) -> 1 | V13: =U13/(W4-U20) -> 0.03448275862 | W13: -0.167516586 | Y13: 1221 | Z13: =COUNTIF(L36:L64,Y13) -> 0 | AA13: =Z13/(AB4-Z20) -> 0 | AB13: 0 | AD13: 1221 | AE13: =COUNTIF(L65:L93,AD13) -> 0 | AF13: =AE13/(AG4-AE20) -> 0 | AG13: 0 | AI13: 1221 | AJ13: =COUNTIF(L94:L122,AI13) -> 0 | AK13: =AJ13/(AL4-AJ20) -> 0 | AL13: 0 | AN13: 1221 | AO13: =COUNTIF(L123:L151,AN13) -> 0 | AP13: =AO13/(AQ4-AO20) -> 0 | AQ13: 0 | AS13: 1221 | AT13: =COUNTIF(L152:L180,AS13) -> 0 | AU13: =AT13/(AV4-AT20) -> 0 | AV13: 0
A14: 12 | B14: 992 | C14: 14 | D14: 999 | E14: 13 | F14: 1016 | G14: 14 | H14: 1034 | K14: 0 | L14: 1111 | N14: 1222 | O14: 13 | P14: 0.07471264368 | Q14: -0.2796123512 | T14: 1222 | U14: =COUNTIF(L7:L35,T14) -> 0 | V14: =U14/(W4-U20) -> 0 | W14: 0 | Y14: 1222 | Z14: =COUNTIF(L36:L64,Y14) -> 0 | AA14: =Z14/(AB4-Z20) -> 0 | AB14: 0 | AD14: 1222 | AE14: =COUNTIF(L65:L93,AD14) -> 1 | AF14: =AE14/(AG4-AE20) -> 0.03448275862 | AG14: -0.167516586 | AI14: 1222 | AJ14: =COUNTIF(L94:L122,AI14) -> 5 | AK14: =AJ14/(AL4-AJ20) -> 0.1724137931 | AL14: -0.4372505 | AN14: 1222 | AO14: =COUNTIF(L123:L151,AN14) -> 4 | AP14: =AO14/(AQ4-AO20) -> 0.1379310345 | AQ14: -0.3942042752 | AS14: 1222 | AT14: =COUNTIF(L152:L180,AS14) -> 3 | AU14: =AT14/(AV4-AT20) -> 0.1034482759 | AV14: -0.3385881201
A15: 12 | B15: 1137 | C15: 14 | D15: 1152 | E15: 13 | F15: 1163 | G15: 14 | H15: 1182 | K15: 0 | L15: 1111 | N15: 2111 | O15: 0 | P15: 0 | Q15: 0 | T15: 2111 | U15: =COUNTIF(L7:L35,T15) -> 0 | V15: =U15/(W4-U20) -> 0 | W15: 0 | Y15: 2111 | Z15: =COUNTIF(L36:L64,Y15) -> 0 | AA15: =Z15/(AB4-Z20) -> 0 | AB15: 0 | AD15: 2111 | AE15: =COUNTIF(L65:L93,AD15) -> 0 | AF15: =AE15/(AG4-AE20) -> 0 | AG15: 0 | AI15: 2111 | AJ15: =COUNTIF(L94:L122,AI15) -> 0 | AK15: =AJ15/(AL4-AJ20) -> 0 | AL15: 0 | AN15: 2111 | AO15: =COUNTIF(L123:L151,AN15) -> 0 | AP15: =AO15/(AQ4-AO20) -> 0 | AQ15: 0 | AS15: 2111 | AT15: =COUNTIF(L152:L180,AS15) -> 0 | AU15: =AT15/(AV4-AT20) -> 0 | AV15: 0
A16: 12 | B16: 1278 | C16: 14 | D16: 1285 | E16: 13 | F16: 1301 | G16: 14 | H16: 1311 | K16: 0 | L16: 1111 | N16: 2112 | O16: 0 | P16: 0 | Q16: 0 | T16: 2112 | U16: =COUNTIF(L7:L35,T16) -> 0 | V16: =U16/(W4-U20) -> 0 | W16: 0 | Y16: 2112 | Z16: =COUNTIF(L36:L64,Y16) -> 0 | AA16: =Z16/(AB4-Z20) -> 0 | AB16: 0 | AD16: 2112 | AE16: =COUNTIF(L65:L93,AD16) -> 0 | AF16: =AE16/(AG4-AE20) -> 0 | AG16: 0 | AI16: 2112 | AJ16: =COUNTIF(L94:L122,AI16) -> 0 | AK16: =AJ16/(AL4-AJ20) -> 0 | AL16: 0 | AN16: 2112 | AO16: =COUNTIF(L123:L151,AN16) -> 0 | AP16: =AO16/(AQ4-AO20) -> 0 | AQ16: 0 | AS16: 2112 | AT16: =COUNTIF(L152:L180,AS16) -> 0 | AU16: =AT16/(AV4-AT20) -> 0 | AV16: 0
A17: 12 | B17: 1420 | C17: 14 | D17: 1431 | E17: 13 | F17: 1445 | G17: 14 | H17: 1454 | K17: 0 | L17: 1111 | N17: 2121 | O17: 0 | P17: 0 | Q17: 0 | T17: 2121 | U17: =COUNTIF(L7:L35,T17) -> 0 | V17: =U17/(W4-U20) -> 0 | W17: 0 | Y17: 2121 | Z17: =COUNTIF(L36:L64,Y17) -> 0 | AA17: =Z17/(AB4-Z20) -> 0 | AB17: 0 | AD17: 2121 | AE17: =COUNTIF(L65:L93,AD17) -> 0 | AF17: =AE17/(AG4-AE20) -> 0 | AG17: 0 | AI17: 2121 | AJ17: =COUNTIF(L94:L122,AI17) -> 0 | AK17: =AJ17/(AL4-AJ20) -> 0 | AL17: 0 | AN17: 2121 | AO17: =COUNTIF(L123:L151,AN17) -> 0 | AP17: =AO17/(AQ4-AO20) -> 0 | AQ17: 0 | AS17: 2121 | AT17: =COUNTIF(L152:L180,AS17) -> 0 | AU17: =AT17/(AV4-AT20) -> 0 | AV17: 0
A18: 12 | B18: 1562 | C18: 14 | D18: 1568 | E18: 13 | F18: 1579 | G18: 23 | H18: 1605 | K18: 0 | L18: 1112 | N18: 2122 | O18: 0 | P18: 0 | Q18: 0 | T18: 2122 | U18: =COUNTIF(L7:L35,T18) -> 0 | V18: =U18/(W4-U20) -> 0 | W18: 0 | Y18: 2122 | Z18: =COUNTIF(L36:L64,Y18) -> 0 | AA18: =Z18/(AB4-Z20) -> 0 | AB18: 0 | AD18: 2122 | AE18: =COUNTIF(L65:L93,AD18) -> 0 | AF18: =AE18/(AG4-AE20) -> 0 | AG18: 0 | AI18: 2122 | AJ18: =COUNTIF(L94:L122,AI18) -> 0 | AK18: =AJ18/(AL4-AJ20) -> 0 | AL18: 0 | AN18: 2122 | AO18: =COUNTIF(L123:L151,AN18) -> 0 | AP18: =AO18/(AQ4-AO20) -> 0 | AQ18: 0 | AS18: 2122 | AT18: =COUNTIF(L152:L180,AS18) -> 0 | AU18: =AT18/(AV4-AT20) -> 0 | AV18: 0
A19: 12 | B19: 1706 | C19: 14 | D19: 1715 | E19: 13 | F19: 1723 | G19: 14 | H19: 1735 | K19: 0 | L19: 1111 | N19: 2211 | O19: 0 | P19: 0 | Q19: 0 | T19: 2211 | U19: =COUNTIF(L7:L35,T19) -> 0 | V19: =U19/(W4-U20) -> 0 | W19: 0 | Y19: 2211 | Z19: =COUNTIF(L36:L64,Y19) -> 0 | AA19: =Z19/(AB4-Z20) -> 0 | AB19: 0 | AD19: 2211 | AE19: =COUNTIF(L65:L93,AD19) -> 0 | AF19: =AE19/(AG4-AE20) -> 0 | AG19: 0 | AI19: 2211 | AJ19: =COUNTIF(L94:L122,AI19) -> 0 | AK19: =AJ19/(AL4-AJ20) -> 0 | AL19: 0 | AN19: 2211 | AO19: =COUNTIF(L123:L151,AN19) -> 0 | AP19: =AO19/(AQ4-AO20) -> 0 | AQ19: 0 | AS19: 2211 | AT19: =COUNTIF(L152:L180,AS19) -> 0 | AU19: =AT19/(AV4-AT20) -> 0 | AV19: 0
A20: 12 | B20: 1833 | C20: 14 | D20: 1842 | E20: 13 | F20: 1849 | G20: 14 | H20: 1863 | K20: 0 | L20: 1111 | N20: 2212 | O20: 0 | P20: 0 | Q20: 0 | T20: 2212 | U20: =COUNTIF(L7:L35,T20) -> 0 | Y20: 2212 | Z20: =COUNTIF(L36:L64,Y20) -> 0 | AD20: 2212 | AE20: =COUNTIF(L65:L93,AD20) -> 0 | AI20: 2212 | AJ20: =COUNTIF(L94:L122,AI20) -> 0 | AN20: 2212 | AO20: =COUNTIF(L123:L151,AN20) -> 0 | AS20: 2212 | AT20: =COUNTIF(L152:L180,AS20) -> 0
A21: 12 | B21: 1966 | C21: 14 | D21: 1975 | E21: 13 | F21: 1987 | G21: 14 | H21: 2002 | K21: 0 | L21: 1111 | N21: 2221 | O21: 0 | P21: 0 | Q21: 0 | T21: 2221 | U21: =COUNTIF(L7:L35,T21) -> 0 | V21: =U21/(W4-U20) -> 0 | W21: =IF(V21=0,0,(V21*((LOG(V21))/LOG(2)))) -> 0 | Y21: 2221 | Z21: =COUNTIF(L36:L64,Y21) -> 0 | AA21: =Z21/(AB4-Z20) -> 0 | AB21: =IF(AA21=0,0,(AA21*((LOG(AA21))/LOG(2)))) -> 0 | AD21: 2221 | AE21: =COUNTIF(L65:L93,AD21) -> 0 | AF21: =AE21/(AG4-AE20) -> 0 | AG21: =IF(AF21=0,0,(AF21*((LOG(AF21))/LOG(2)))) -> 0 | AI21: 2221 | AJ21: =COUNTIF(L94:L122,AI21) -> 0 | AK21: =AJ21/(AL4-AJ20) -> 0 | AL21: =IF(AK21=0,0,(AK21*((LOG(AK21))/LOG(2)))) -> 0 | AN21: 2221 | AO21: =COUNTIF(L123:L151,AN21) -> 0 | AP21: =AO21/(AQ4-AO20) -> 0 | AQ21: =IF(AP21=0,0,(AP21*((LOG(AP21))/LOG(2)))) -> 0 | AS21: 2221 | AT21: =COUNTIF(L152:L180,AS21) -> 0 | AU21: =AT21/(AV4-AT20) -> 0 | AV21: =IF(AU21=0,0,(AU21*((LOG(AU21))/LOG(2)))) -> 0
A22: 12 | B22: 2099 | C22: 14 | D22: 2103 | E22: 13 | F22: 2113 | G22: 14 | H22: 2128 | K22: 0 | L22: 1111 | N22: 2222 | O22: 2 | P22: 0.01149425287 | Q22: -0.07405682179 | T22: 2222 | U22: =COUNTIF(L7:L35,T22) -> 0 | V22: =U22/(W4-U20) -> 0 | W22: =IF(V22=0,0,(V22*((LOG(V22))/LOG(2)))) -> 0 | Y22: 2222 | Z22: =COUNTIF(L36:L64,Y22) -> 0 | AA22: =Z22/(AB4-Z20) -> 0 | AB22: =IF(AA22=0,0,(AA22*((LOG(AA22))/LOG(2)))) -> 0 | AD22: 2222 | AE22: =COUNTIF(L65:L93,AD22) -> 0 | AF22: =AE22/(AG4-AE20) -> 0 | AG22: =IF(AF22=0,0,(AF22*((LOG(AF22))/LOG(2)))) -> 0 | AI22: 2222 | AJ22: =COUNTIF(L94:L122,AI22) -> 0 | AK22: =AJ22/(AL4-AJ20) -> 0 | AL22: =IF(AK22=0,0,(AK22*((LOG(AK22))/LOG(2)))) -> 0 | AN22: 2222 | AO22: =COUNTIF(L123:L151,AN22) -> 0 | AP22: =AO22/(AQ4-AO20) -> 0 | AQ22: =IF(AP22=0,0,(AP22*((LOG(AP22))/LOG(2)))) -> 0 | AS22: 2222 | AT22: =COUNTIF(L152:L180,AS22) -> 2 | AU22: =AT22/(AV4-AT20) -> 0.06896551724 | AV22: =IF(AU22=0,0,(AU22*((LOG(AU22))/LOG(2)))) -> -0.2660676548
A23: 12 | B23: 2225 | C23: 14 | D23: 2234 | E23: 13 | F23: 2245 | G23: 14 | H23: 2255 | K23: 0 | L23: 1111 | P23: =SUM(P7:P22) -> 1 | Q23: =-SUM(Q7:Q22) -> 1.823687868 | V23: =SUM(V7:V22) -> 1 | W23: =-SUM(W7:W22) -> 1.037401254 | AA23: =SUM(AA7:AA22) -> 1 | AB23: =-SUM(AB7:AB22) -> 0.4798320236 | AF23: =SUM(AF7:AF22) -> 1 | AG23: =-SUM(AG7:AG22) -> 1.722652953 | AK23: =SUM(AK7:AK22) -> 1 | AL23: =-SUM(AL7:AL22) -> 1.932993142 | AP23: =SUM(AP7:AP22) -> 1 | AQ23: =-SUM(AQ7:AQ22) -> 1.907514691 | AU23: =SUM(AU7:AU22) -> 1 | AV23: =-SUM(AV7:AV22) -> 2.031083777
A24: 12 | B24: 2352 | C24: 14 | D24: 2357 | E24: 13 | F24: 2364 | G24: 14 | H24: 2376 | K24: 0 | L24: 1111 | P24: U= | Q24: =Q23/(LOG(Q4)/LOG(2)) -> 0.2450223986 | V24: U1= | W24: =W23/(LOG(W4)/LOG(2)) -> 0.2135457621 | AA24: U2= | AB24: =AB23/(LOG(AB4)/LOG(2)) -> 0.09877190217 | AF24: U3= | AG24: =AG23/(LOG(AG4)/LOG(2)) -> 0.3546026539 | AK24: U4= | AL24: =AL23/(LOG(AL4)/LOG(2)) -> 0.3979005155 | AP24: U5= | AQ24: =AQ23/(LOG(AQ4)/LOG(2)) -> 0.3926558571 | AU24: U6= | AV24: =AV23/(LOG(AV4)/LOG(2)) -> 0.418092162
A25: 12 | B25: 2474 | C25: 14 | D25: 2482 | E25: 13 | F25: 2493 | G25: 14 | H25: 2521 | K25: 0 | L25: 1111
A26: 12 | B26: 2618 | C26: 14 | D26: 2633 | E26: 13 | F26: 2640 | G26: 14 | H26: 2651 | K26: 0 | L26: 1111
A27: 12 | B27: 2750 | C27: 14 | D27: 2753 | E27: 13 | F27: 2767 | G27: 14 | H27: 2783 | K27: 0 | L27: 1111 | N27: Total Target Seq
A28: 12 | B28: 2883 | C28: 14 | D28: 2888 | E28: 13 | F28: 2901 | G28: 14 | H28: 2912 | K28: 0 | L28: 1111 | N28: =COUNTIF(L7:L180,G3) -> 0 | P28: 29 | Q28: 29 | R28: 29 | S28: 29 | T28: 29 | U28: 29
A29: 12 | B29: 3012 | C29: 14 | D29: 3022 | E29: 13 | F29: 3033 | G29: 14 | H29: 3045 | K29: 0 | L29: 1111 | P29: % of reinforcement given in 6 equal intervals based on number of trials
A30: 12 | B30: 3140 | C30: 14 | D30: 3145 | E30: 13 | F30: 3156 | G30: 14 | H30: 3167 | K30: 0 | L30: 1111 | P30: %_1 | Q30: %_2 | R30: %_3 | S30: %_4 | T30: %_5 | U30: %_6
A31: 12 | B31: 3265 | C31: 14 | D31: 3269 | E31: 13 | F31: 3277 | G31: 14 | H31: 3290 | K31: 0 | L31: 1111 | O31: target sequence | P31: =$G$3 -> 2212 | Q31: 2212 | R31: 2212 | S31: 2212 | T31: 2212 | U31: 2212
A32: 12 | B32: 3389 | C32: 14 | D32: 3393 | E32: 13 | F32: 3403 | G32: 14 | H32: 3414 | K32: 0 | L32: 1111 | O32: total reinforcement | P32: =U20 -> 0 | Q32: =Z20 -> 0 | R32: =AE20 -> 0 | S32: =AJ20 -> 0 | T32: =AO20 -> 0 | U32: =AT20 -> 0
A33: 12 | B33: 3516 | C33: 14 | D33: 3526 | E33: 13 | F33: 3542 | G33: 14 | H33: 3560 | K33: 0 | L33: 1111 | O33: % target
A34: 12 | B34: 3658 | C34: 14 | D34: 3672 | E34: 13 | F34: 3683 | G34: 14 | H34: 3699 | K34: 0 | L34: 1111 | O34: CCRF
A35: 12 | B35: 3796 | C35: 14 | D35: 3800 | E35: 13 | F35: 3815 | G35: 14 | H35: 3826 | K35: 0 | L35: 1111 | O35: % CCRf
A36: 12 | B36: 3925 | C36: 14 | D36: 3929 | E36: 13 | F36: 3939 | G36: 14 | H36: 3949 | K36: 0 | L36: 1111 | O36: average response rate | P36: =H35/P28 -> 131.9310345 | Q36: =(H64-H35)/Q28 -> 133.8965517 | R36: =(H93-H64)/R28 -> 140.1724138 | S36: =(H122-H93)/S28 -> 139 | T36: =(H151-H122)/T28 -> 138 | U36: =(H180-H151)/U28 -> 141.3103448
A37: 12 | B37: 4048 | C37: 14 | D37: 4052 | E37: 13 | F37: 4058 | G37: 14 | H37: 4073 | K37: 0 | L37: 1111
A38: 12 | B38: 4172 | C38: 14 | D38: 4183 | E38: 13 | F38: 4195 | G38: 14 | H38: 4206 | K38: 0 | L38: 1111
A39: 12 | B39: 4303 | C39: 14 | D39: 4324 | E39: 13 | F39: 4339 | G39: 14 | H39: 4351 | K39: 0 | L39: 1111
A40: 12 | B40: 4450 | C40: 14 | D40: 4468 | E40: 13 | F40: 4479 | G40: 14 | H40: 4491 | K40: 0 | L40: 1111
A41: 12 | B41: 4589 | C41: 14 | D41: 4594 | E41: 13 | F41: 4610 | G41: 14 | H41: 4621 | K41: 0 | L41: 1111
A42: 12 | B42: 4713 | C42: 14 | D42: 4728 | E42: 13 | F42: 4736 | G42: 23 | H42: 4752 | K42: 0 | L42: 1112
A43: 12 | B43: 4848 | C43: 14 | D43: 4864 | E43: 13 | F43: 4872 | G43: 23 | H43: 4888 | K43: 0 | L43: 1112
A44: 12 | B44: 4994 | C44: 14 | D44: 4998 | E44: 13 | F44: 5010 | G44: 14 | H44: 5021 | K44: 0 | L44: 1111
A45: 12 | B45: 5119 | C45: 14 | D45: 5135 | E45: 13 | F45: 5147 | G45: 14 | H45: 5158 | K45: 0 | L45: 1111
A46: 12 | B46: 5254 | C46: 14 | D46: 5268 | E46: 13 | F46: 5279 | G46: 14 | H46: 5287 | K46: 0 | L46: 1111
A47: 12 | B47: 5389 | C47: 14 | D47: 5396 | E47: 13 | F47: 5408 | G47: 14 | H47: 5417 | K47: 0 | L47: 1111
A48: 12 | B48: 5518 | C48: 14 | D48: 5522 | E48: 13 | F48: 5536 | G48: 14 | H48: 5548 | K48: 0 | L48: 1111
A49: 12 | B49: 5644 | C49: 14 | D49: 5655 | E49: 13 | F49: 5670 | G49: 14 | H49: 5682 | K49: 0 | L49: 1111
A50: 12 | B50: 5783 | C50: 14 | D50: 5788 | E50: 13 | F50: 5797 | G50: 14 | H50: 5812 | K50: 0 | L50: 1111
A51: 12 | B51: 5908 | C51: 14 | D51: 5914 | E51: 13 | F51: 5930 | G51: 14 | H51: 5945 | K51: 0 | L51: 1111
A52: 12 | B52: 6044 | C52: 14 | D52: 6063 | E52: 13 | F52: 6074 | G52: 14 | H52: 6088 | K52: 0 | L52: 1111
A53: 12 | B53: 6194 | C53: 14 | D53: 6210 | E53: 13 | F53: 6221 | G53: 14 | H53: 6236 | K53: 0 | L53: 1111
A54: 12 | B54: 6337 | C54: 14 | D54: 6345 | E54: 13 | F54: 6357 | G54: 14 | H54: 6374 | K54: 0 | L54: 1111
A55: 12 | B55: 6471 | C55: 14 | D55: 6475 | E55: 13 | F55: 6489 | G55: 14 | H55: 6500 | K55: 0 | L55: 1111
A56: 12 | B56: 6598 | C56: 14 | D56: 6612 | E56: 13 | F56: 6632 | G56: 14 | H56: 6647 | K56: 0 | L56: 1111
A57: 12 | B57: 6747 | C57: 14 | D57: 6752 | E57: 13 | F57: 6763 | G57: 14 | H57: 6771 | K57: 0 | L57: 1111
A58: 12 | B58: 6865 | C58: 14 | D58: 6881 | E58: 13 | F58: 6894 | G58: 14 | H58: 6905 | K58: 0 | L58: 1111
A59: 12 | B59: 7003 | C59: 14 | D59: 7007 | E59: 13 | F59: 7017 | G59: 14 | H59: 7033 | K59: 0 | L59: 1111
A60: 12 | B60: 7142 | C60: 14 | D60: 7153 | E60: 13 | F60: 7164 | G60: 14 | H60: 7180 | K60: 0 | L60: 1111
A61: 12 | B61: 7279 | C61: 14 | D61: 7288 | E61: 13 | F61: 7307 | G61: 14 | H61: 7314 | K61: 0 | L61: 1111
A62: 12 | B62: 7414 | C62: 14 | D62: 7419 | E62: 13 | F62: 7438 | G62: 14 | H62: 7449 | K62: 0 | L62: 1111
A63: 12 | B63: 7546 | C63: 14 | D63: 7558 | E63: 13 | F63: 7569 | G63: 23 | H63: 7586 | K63: 0 | L63: 1112
A64: 12 | B64: 7680 | C64: 14 | D64: 7689 | E64: 13 | F64: 7698 | G64: 14 | H64: 7709 | K64: 0 | L64: 1111
A65: 12 | B65: 7805 | C65: 14 | D65: 7812 | E65: 13 | F65: 7854 | G65: 14 | H65: 7868 | K65: 0 | L65: 1111
A66: 12 | B66: 7965 | C66: 14 | D66: 7985 | E66: 13 | F66: 7993 | G66: 23 | H66: 8009 | K66: 0 | L66: 1112
A67: 12 | B67: 8106 | C67: 14 | D67: 8119 | E67: 13 | F67: 8130 | G67: 14 | H67: 8139 | K67: 0 | L67: 1111
A68: 12 | B68: 8242 | C68: 14 | D68: 8247 | E68: 13 | F68: 8262 | G68: 14 | H68: 8277 | K68: 0 | L68: 1111
A69: 12 | B69: 8375 | C69: 14 | D69: 8386 | E69: 13 | F69: 8402 | G69: 14 | H69: 8413 | K69: 0 | L69: 1111
A70: 12 | B70: 8517 | C70: 14 | D70: 8528 | E70: 13 | F70: 8543 | G70: 23 | H70: 8561 | K70: 0 | L70: 1112
A71: 12 | B71: 8658 | C71: 14 | D71: 8670 | E71: 13 | F71: 8688 | G71: 14 | H71: 8703 | K71: 0 | L71: 1111
A72: 12 | B72: 8807 | C72: 14 | D72: 8815 | E72: 24 | F72: 8832 | G72: 23 | H72: 8839 | K72: 0 | L72: 1122
A73: 12 | B73: 8939 | C73: 14 | D73: 8946 | E73: 13 | F73: 8966 | G73: 23 | H73: 8983 | K73: 0 | L73: 1112
A74: 12 | B74: 9090 | C74: 23 | D74: 9106 | E74: 24 | F74: 9113 | G74: 23 | H74: 9120 | K74: 0 | L74: 1222
A75: 12 | B75: 9227 | C75: 14 | D75: 9243 | E75: 24 | F75: 9255 | G75: 23 | H75: 9263 | K75: 0 | L75: 1122
A76: 12 | B76: 9363 | C76: 14 | D76: 9375 | E76: 13 | F76: 9390 | G76: 23 | H76: 9403 | K76: 0 | L76: 1112
A77: 12 | B77: 9499 | C77: 14 | D77: 9507 | E77: 13 | F77: 9531 | G77: 14 | H77: 9543 | K77: 0 | L77: 1111
A78: 12 | B78: 9685 | C78: 14 | D78: 9700 | E78: 13 | F78: 9712 | G78: 23 | H78: 9726 | K78: 0 | L78: 1112
A79: 12 | B79: 9822 | C79: 14 | D79: 9834 | E79: 24 | F79: 9848 | G79: 23 | H79: 9855 | K79: 0 | L79: 1122
A80: 12 | B80: 9950 | C80: 14 | D80: 9969 | E80: 13 | F80: 9985 | G80: 14 | H80: 9997 | K80: 0 | L80: 1111
A81: 12 | B81: 10093 | C81: 14 | D81: 10107 | E81: 13 | F81: 10118 | G81: 14 | H81: 10130 | K81: 0 | L81: 1111
A82: 12 | B82: 10232 | C82: 14 | D82: 10244 | E82: 24 | F82: 10255 | G82: 23 | H82: 10262 | K82: 0 | L82: 1122
A83: 12 | B83: 10363 | C83: 14 | D83: 10379 | E83: 13 | F83: 10394 | G83: 14 | H83: 10406 | K83: 0 | L83: 1111
A84: 12 | B84: 10503 | C84: 14 | D84: 10515 | E84: 13 | F84: 10530 | G84: 14 | H84: 10538 | K84: 0 | L84: 1111
A85: 12 | B85: 10639 | C85: 14 | D85: 10643 | E85: 24 | F85: 10668 | G85: 23 | H85: 10675 | K85: 0 | L85: 1122
A86: 12 | B86: 10786 | C86: 14 | D86: 10795 | E86: 24 | F86: 10810 | G86: 23 | H86: 10818 | K86: 0 | L86: 1122
A87: 12 | B87: 10916 | C87: 14 | D87: 10927 | E87: 13 | F87: 10941 | G87: 23 | H87: 10964 | K87: 0 | L87: 1112
A88: 12 | B88: 11060 | C88: 14 | D88: 11071 | E88: 13 | F88: 11090 | G88: 23 | H88: 11106 | K88: 0 | L88: 1112
A89: 12 | B89: 11201 | C89: 14 | D89: 11206 | E89: 13 | F89: 11220 | G89: 23 | H89: 11232 | K89: 0 | L89: 1112
A90: 12 | B90: 11334 | C90: 14 | D90: 11346 | E90: 24 | F90: 11358 | G90: 23 | H90: 11364 | K90: 0 | L90: 1122
A91: 12 | B91: 11463 | C91: 14 | D91: 11468 | E91: 13 | F91: 11482 | G91: 14 | H91: 11497 | K91: 0 | L91: 1111
A92: 12 | B92: 11594 | C92: 14 | D92: 11610 | E92: 13 | F92: 11629 | G92: 23 | H92: 11646 | K92: 0 | L92: 1112
A93: 12 | B93: 11741 | C93: 14 | D93: 11760 | E93: 13 | F93: 11761 | G93: 23 | H93: 11774 | K93: 0 | L93: 1112
A94: 12 | B94: 11873 | C94: 14 | D94: 11884 | E94: 24 | F94: 11903 | G94: 23 | H94: 11910 | K94: 0 | L94: 1122
A95: 12 | B95: 12006 | C95: 14 | D95: 12016 | E95: 13 | F95: 12031 | G95: 14 | H95: 12074 | K95: 0 | L95: 1111
A96: 12 | B96: 12173 | C96: 14 | D96: 12187 | E96: 13 | F96: 12201 | G96: 23 | H96: 12216 | K96: 0 | L96: 1112
A97: 12 | B97: 12336 | C97: 23 | D97: 12352 | E97: 24 | F97: 12359 | G97: 23 | H97: 12366 | K97: 0 | L97: 1222
A98: 12 | B98: 12460 | C98: 23 | D98: 12474 | E98: 24 | F98: 12480 | G98: 23 | H98: 12487 | K98: 0 | L98: 1222
A99: 12 | B99: 12583 | C99: 23 | D99: 12593 | E99: 24 | F99: 12600 | G99: 23 | H99: 12607 | K99: 0 | L99: 1222
A100: 12 | B100: 12703 | C100: 14 | D100: 12709 | E100: 13 | F100: 12723 | G100: 23 | H100: 12739 | K100: 0 | L100: 1112
A101: 12 | B101: 12835 | C101: 14 | D101: 12845 | E101: 13 | F101: 12859 | G101: 23 | H101: 12872 | K101: 0 | L101: 1112
A102: 12 | B102: 12968 | C102: 14 | D102: 12991 | E102: 13 | F102: 13006 | G102: 14 | H102: 13022 | K102: 0 | L102: 1111
A103: 12 | B103: 13113 | C103: 14 | D103: 13131 | E103: 24 | F103: 13145 | G103: 23 | H103: 13152 | K103: 0 | L103: 1122
A104: 12 | B104: 13252 | C104: 14 | D104: 13265 | E104: 24 | F104: 13280 | G104: 23 | H104: 13286 | K104: 0 | L104: 1122
A105: 12 | B105: 13382 | C105: 14 | D105: 13408 | E105: 24 | F105: 13440 | G105: 23 | H105: 13447 | K105: 0 | L105: 1122
A106: 12 | B106: 13544 | C106: 14 | D106: 13554 | E106: 24 | F106: 13566 | G106: 23 | H106: 13571 | K106: 0 | L106: 1122
A107: 12 | B107: 13667 | C107: 14 | D107: 13689 | E107: 13 | F107: 13711 | G107: 14 | H107: 13723 | K107: 0 | L107: 1111
A108: 12 | B108: 13823 | C108: 14 | D108: 13830 | E108: 13 | F108: 13841 | G108: 14 | H108: 13859 | K108: 0 | L108: 1111
A109: 12 | B109: 13954 | C109: 14 | D109: 13961 | E109: 24 | F109: 13981 | G109: 23 | H109: 13986 | K109: 0 | L109: 1122
A110: 12 | B110: 14088 | C110: 14 | D110: 14096 | E110: 13 | F110: 14107 | G110: 14 | H110: 14119 | K110: 0 | L110: 1111
A111: 12 | B111: 14216 | C111: 14 | D111: 14228 | E111: 13 | F111: 14240 | G111: 23 | H111: 14260 | K111: 0 | L111: 1112
A112: 12 | B112: 14358 | C112: 14 | D112: 14374 | E112: 13 | F112: 14388 | G112: 23 | H112: 14409 | K112: 0 | L112: 1112
A113: 12 | B113: 14513 | C113: 14 | D113: 14521 | E113: 13 | F113: 14538 | G113: 14 | H113: 14549 | K113: 0 | L113: 1111
A114: 12 | B114: 14646 | C114: 14 | D114: 14659 | E114: 13 | F114: 14661 | G114: 14 | H114: 14671 | K114: 0 | L114: 1111
A115: 12 | B115: 14768 | C115: 14 | D115: 14781 | E115: 13 | F115: 14796 | G115: 23 | H115: 14809 | K115: 0 | L115: 1112
A116: 12 | B116: 14918 | C116: 23 | D116: 14936 | E116: 24 | F116: 14945 | G116: 23 | H116: 14952 | K116: 0 | L116: 1222
A117: 12 | B117: 15054 | C117: 14 | D117: 15079 | E117: 13 | F117: 15090 | G117: 23 | H117: 15107 | K117: 0 | L117: 1112
A118: 12 | B118: 15242 | C118: 23 | D118: 15261 | E118: 24 | F118: 15268 | G118: 23 | H118: 15273 | K118: 0 | L118: 1222
A119: 12 | B119: 15369 | C119: 14 | D119: 15388 | E119: 13 | F119: 15398 | G119: 14 | H119: 15413 | K119: 0 | L119: 1111
A120: 12 | B120: 15508 | C120: 14 | D120: 15510 | E120: 13 | F120: 15525 | G120: 14 | H120: 15539 | K120: 0 | L120: 1111
A121: 12 | B121: 15632 | C121: 14 | D121: 15649 | E121: 13 | F121: 15660 | G121: 14 | H121: 15670 | K121: 0 | L121: 1111
A122: 12 | B122: 15762 | C122: 14 | D122: 15779 | E122: 13 | F122: 15791 | G122: 14 | H122: 15805 | K122: 0 | L122: 1111
A123: 12 | B123: 15904 | C123: 23 | D123: 15920 | E123: 24 | F123: 15925 | G123: 23 | H123: 15931 | K123: 0 | L123: 1222
A124: 12 | B124: 16027 | C124: 14 | D124: 16037 | E124: 13 | F124: 16052 | G124: 23 | H124: 16066 | K124: 0 | L124: 1112
A125: 12 | B125: 16162 | C125: 14 | D125: 16173 | E125: 13 | F125: 16186 | G125: 14 | H125: 16200 | K125: 0 | L125: 1111
A126: 12 | B126: 16298 | C126: 14 | D126: 16313 | E126: 13 | F126: 16325 | G126: 14 | H126: 16336 | K126: 0 | L126: 1111
A127: 12 | B127: 16432 | C127: 14 | D127: 16448 | E127: 24 | F127: 16470 | G127: 23 | H127: 16480 | K127: 0 | L127: 1122
A128: 12 | B128: 16574 | C128: 14 | D128: 16585 | E128: 24 | F128: 16598 | G128: 23 | H128: 16605 | K128: 0 | L128: 1122
A129: 12 | B129: 16704 | C129: 14 | D129: 16717 | E129: 13 | F129: 16724 | G129: 14 | H129: 16739 | K129: 0 | L129: 1111
A130: 12 | B130: 16836 | C130: 14 | D130: 16848 | E130: 13 | F130: 16859 | G130: 14 | H130: 16872 | K130: 0 | L130: 1111
A131: 12 | B131: 16968 | C131: 23 | D131: 16987 | E131: 24 | F131: 16993 | G131: 23 | H131: 17000 | K131: 0 | L131: 1222
A132: 12 | B132: 17105 | C132: 23 | D132: 17120 | E132: 24 | F132: 17129 | G132: 23 | H132: 17135 | K132: 0 | L132: 1222
A133: 12 | B133: 17235 | C133: 14 | D133: 17248 | E133: 13 | F133: 17262 | G133: 14 | H133: 17279 | K133: 0 | L133: 1111
A134: 12 | B134: 17390 | C134: 14 | D134: 17401 | E134: 24 | F134: 17414 | G134: 23 | H134: 17421 | K134: 0 | L134: 1122
A135: 12 | B135: 17532 | C135: 14 | D135: 17546 | E135: 13 | F135: 17557 | G135: 14 | H135: 17571 | K135: 0 | L135: 1111
A136: 12 | B136: 17667 | C136: 14 | D136: 17678 | E136: 24 | F136: 17687 | G136: 23 | H136: 17696 | K136: 0 | L136: 1122
A137: 12 | B137: 17792 | C137: 14 | D137: 17795 | E137: 13 | F137: 17805 | G137: 14 | H137: 17823 | K137: 0 | L137: 1111
A138: 12 | B138: 17925 | C138: 14 | D138: 17943 | E138: 13 | F138: 17956 | G138: 14 | H138: 17969 | K138: 0 | L138: 1111
A139: 12 | B139: 18065 | C139: 14 | D139: 18073 | E139: 13 | F139: 18085 | G139: 23 | H139: 18097 | K139: 0 | L139: 1112
A140: 12 | B140: 18194 | C140: 14 | D140: 18207 | E140: 13 | F140: 18218 | G140: 14 | H140: 18231 | K140: 0 | L140: 1111
A141: 12 | B141: 18327 | C141: 14 | D141: 18344 | E141: 13 | F141: 18355 | G141: 14 | H141: 18366 | K141: 0 | L141: 1111
A142: 12 | B142: 18459 | C142: 14 | D142: 18476 | E142: 13 | F142: 18478 | G142: 23 | H142: 18494 | K142: 0 | L142: 1112
A143: 12 | B143: 18599 | C143: 14 | D143: 18617 | E143: 24 | F143: 18637 | G143: 23 | H143: 18644 | K143: 0 | L143: 1122
A144: 12 | B144: 18745 | C144: 14 | D144: 18757 | E144: 24 | F144: 18771 | G144: 23 | H144: 18779 | K144: 0 | L144: 1122
A145: 12 | B145: 18890 | C145: 14 | D145: 18902 | E145: 13 | F145: 18914 | G145: 23 | H145: 18929 | K145: 0 | L145: 1112
A146: 12 | B146: 19040 | C146: 23 | D146: 19073 | E146: 24 | F146: 19079 | G146: 23 | H146: 19085 | K146: 0 | L146: 1222
A147: 12 | B147: 19191 | C147: 14 | D147: 19202 | E147: 13 | F147: 19215 | G147: 23 | H147: 19233 | K147: 0 | L147: 1112
A148: 12 | B148: 19336 | C148: 14 | D148: 19353 | E148: 24 | F148: 19372 | G148: 23 | H148: 19378 | K148: 0 | L148: 1122
A149: 12 | B149: 19475 | C149: 14 | D149: 19496 | E149: 24 | F149: 19511 | G149: 23 | H149: 19518 | K149: 0 | L149: 1122
A150: 12 | B150: 19612 | C150: 14 | D150: 19633 | E150: 13 | F150: 19645 | G150: 14 | H150: 19658 | K150: 0 | L150: 1111
A151: 12 | B151: 19768 | C151: 14 | D151: 19781 | E151: 13 | F151: 19793 | G151: 23 | H151: 19807 | K151: 0 | L151: 1112
A152: 21 | B152: 19929 | C152: 21 | D152: 19936 | E152: 22 | F152: 19943 | G152: 23 | H152: 19948 | K152: 0 | L152: 2222
A153: 12 | B153: 20061 | C153: 14 | D153: 20076 | E153: 24 | F153: 20092 | G153: 23 | H153: 20099 | K153: 0 | L153: 1122
A154: 12 | B154: 20200 | C154: 14 | D154: 20211 | E154: 24 | F154: 20224 | G154: 23 | H154: 20228 | K154: 0 | L154: 1122
A155: 12 | B155: 20325 | C155: 14 | D155: 20342 | E155: 24 | F155: 20360 | G155: 23 | H155: 20368 | K155: 0 | L155: 1122
A156: 12 | B156: 20474 | C156: 14 | D156: 20486 | E156: 13 | F156: 20498 | G156: 14 | H156: 20514 | K156: 0 | L156: 1111
A157: 12 | B157: 20628 | C157: 14 | D157: 20640 | E157: 13 | F157: 20656 | G157: 14 | H157: 20668 | K157: 0 | L157: 1111
A158: 12 | B158: 20796 | C158: 14 | D158: 20809 | E158: 24 | F158: 20822 | G158: 23 | H158: 20829 | K158: 0 | L158: 1122
A159: 12 | B159: 20926 | C159: 14 | D159: 20939 | E159: 13 | F159: 20950 | G159: 23 | H159: 20966 | K159: 0 | L159: 1112
A160: 12 | B160: 21066 | C160: 14 | D160: 21093 | E160: 13 | F160: 21112 | G160: 14 | H160: 21125 | K160: 0 | L160: 1111
A161: 12 | B161: 21224 | C161: 14 | D161: 21229 | E161: 24 | F161: 21243 | G161: 23 | H161: 21250 | K161: 0 | L161: 1122
A162: 12 | B162: 21364 | C162: 14 | D162: 21375 | E162: 13 | F162: 21387 | G162: 23 | H162: 21404 | K162: 0 | L162: 1112
A163: 12 | B163: 21501 | C163: 23 | D163: 21515 | E163: 24 | F163: 21522 | G163: 23 | H163: 21529 | K163: 0 | L163: 1222
A164: 12 | B164: 21627 | C164: 14 | D164: 21647 | E164: 24 | F164: 21664 | G164: 23 | H164: 21670 | K164: 0 | L164: 1122
A165: 12 | B165: 21790 | C165: 23 | D165: 21802 | E165: 24 | F165: 21809 | G165: 23 | H165: 21815 | K165: 0 | L165: 1222
A166: 12 | B166: 21923 | C166: 23 | D166: 21934 | E166: 24 | F166: 21941 | G166: 23 | H166: 21947 | K166: 0 | L166: 1222
A167: 12 | B167: 22049 | C167: 14 | D167: 22062 | E167: 13 | F167: 22077 | G167: 14 | H167: 22092 | K167: 0 | L167: 1111
A168: 12 | B168: 22199 | C168: 14 | D168: 22219 | E168: 24 | F168: 22232 | G168: 23 | H168: 22239 | K168: 0 | L168: 1122
A169: 12 | B169: 22351 | C169: 14 | D169: 22363 | E169: 24 | F169: 22372 | G169: 23 | H169: 22379 | K169: 0 | L169: 1122
A170: 12 | B170: 22474 | C170: 14 | D170: 22493 | E170: 13 | F170: 22508 | G170: 23 | H170: 22518 | K170: 0 | L170: 1112
A171: 12 | B171: 22617 | C171: 14 | D171: 22629 | E171: 24 | F171: 22646 | G171: 23 | H171: 22654 | K171: 0 | L171: 1122
A172: 21 | B172: 22749 | C172: 21 | D172: 22754 | E172: 22 | F172: 22761 | G172: 23 | H172: 22768 | K172: 0 | L172: 2222
A173: 12 | B173: 22864 | C173: 14 | D173: 22874 | E173: 13 | F173: 22897 | G173: 14 | H173: 22909 | K173: 0 | L173: 1111
A174: 12 | B174: 23004 | C174: 14 | D174: 23011 | E174: 13 | F174: 23022 | G174: 14 | H174: 23034 | K174: 0 | L174: 1111
A175: 12 | B175: 23142 | C175: 14 | D175: 23155 | E175: 24 | F175: 23177 | G175: 23 | H175: 23183 | K175: 0 | L175: 1122
A176: 12 | B176: 23278 | C176: 14 | D176: 23295 | E176: 24 | F176: 23313 | G176: 23 | H176: 23320 | K176: 0 | L176: 1122
A177: 12 | B177: 23440 | C177: 14 | D177: 23458 | E177: 24 | F177: 23481 | G177: 23 | H177: 23487 | K177: 0 | L177: 1122
A178: 12 | B178: 23583 | C178: 14 | D178: 23598 | E178: 24 | F178: 23617 | G178: 23 | H178: 23623 | K178: 0 | L178: 1122
A179: 12 | B179: 23720 | C179: 14 | D179: 23732 | E179: 13 | F179: 23746 | G179: 23 | H179: 23762 | K179: 0 | L179: 1112
A180: 12 | B180: 23860 | C180: 14 | D180: 23878 | E180: 13 | F180: 23893 | G180: 23 | H180: 23905 | K180: 0 | L180: 1112

Sheet !M802820.010
A1: Report for:!M802820.010
A2: Date: | B2: <date>
A3: Hen: | B3: <hen> | F3: Correct Sequence | G3: =Start!J2 -> 2212 | P3: Total Sequences in Data | Q3: =4994-COUNTBLANK(L7:L5000) -> 150 | V3: Total Sequences in Block Data | W3: =COUNTA(L7:L31) -> 25 | AA3: Total Sequences in Block Data | AB3: =COUNTA(L32:L56) -> 25 | AF3: Total Sequences in Block Data | AG3: =COUNTA(L57:L81) -> 25 | AK3: Total Sequences in Block Data | AL3: =COUNTA(L82:L106) -> 25 | AP3: Total Sequences in Block Data | AQ3: =COUNTA(L107:L131) -> 25 | AU3: Total Sequences in Block Data | AV3: =COUNTA(L132:L156) -> 25
P4: Total Sequences in Summary | Q4: =SUM(O7:O22) -> 150 | V4: Total Sequences in Block Summary | W4: =SUM(U7:U22) -> 25 | AA4: Total Sequences in Block Summary | AB4: =SUM(Z7:Z22) -> 25 | AF4: Total Sequences in Block Summary | AG4: =SUM(AE7:AE22) -> 25 | AK4: Total Sequences in Block Summary | AL4: =SUM(AJ7:AJ22) -> 25 | AP4: Total Sequences in Block Summary | AQ4: =SUM(AO7:AO22) -> 25 | AU4: Total Sequences in Block Summary | AV4: =SUM(AT7:AT22) -> 25
T5: Block 1 | Y5: Block 2 | AD5: Block 3 | AI5: Block 4 | AN5: Block 5 | AS5: Block 6
A6: Sequence Component 1 | B6: Time 1 | C6: Sequence Component 2 | D6: Time 2 | E6: Sequence Component 3 | F6: Time 3 | G6: Sequence Component 4 | H6: Time 4 | I6: Sequence Component 5 | J6: Time 5 | K6: Correct? 0=No 1=Yes | L6: Sequence | N6: Frequency | P6: Relative Frequency | Q6: Variability | T6: Frequency | V6: Relative Frequency | W6: Variability | Y6: Frequency | AA6: Relative Frequency | AB6: Variability | AD6: Frequency | AF6: Relative Frequency | AG6: Variability | AI6: Frequency | AK6: Relative Frequency | AL6: Variability | AN6: Frequency | AP6: Relative Frequency | AQ6: Variability | AS6: Frequency | AU6: Relative Frequency | AV6: Variability
A7: 12 | B7: 9 | C7: 14 | D7: 18 | E7: 13 | F7: 35 | G7: 23 | H7: 52 | K7: 0 | L7: 1112 | N7: 1111 | O7: =COUNTIF($L$7:$L$500,N7) -> 54 | P7: =O7/$Q$4 -> 0.36 | Q7: =IF(P7=0,0,(P7*((LOG(P7))/LOG(2)))) -> -0.5306152278 | T7: =N7 -> 1111 | U7: =COUNTIF(L7:L31,T7) -> 20 | V7: =U7/(W4-U20) -> 0.8 | W7: =IF(V7=0,0,(V7*((LOG(V7))/LOG(2)))) -> -0.2575424759 | Y7: =N7 -> 1111 | Z7: =COUNTIF(L32:L56,Y7) -> 15 | AA7: =Z7/(AB4-Z20) -> 0.6 | AB7: =IF(AA7=0,0,(AA7*((LOG(AA7))/LOG(2)))) -> -0.4421793565 | AD7: =N7 -> 1111 | AE7: =COUNTIF(L57:L81,AD7) -> 3 | AF7: =AE7/(AG4-AE20) -> 0.12 | AG7: =IF(AF7=0,0,(AF7*((LOG(AF7))/LOG(2)))) -> -0.3670672427 | AI7: =N7 -> 1111 | AJ7: =COUNTIF(L82:L106,AI7) -> 5 | AK7: =AJ7/(AL4-AJ20) -> 0.2 | AL7: =IF(AK7=0,0,(AK7*((LOG(AK7))/LOG(2)))) -> -0.464385619 | AN7: =N7 -> 1111 | AO7: =COUNTIF(L107:L131,AN7) -> 7 | AP7: =AO7/(AQ4-AO20) -> 0.28 | AQ7: =IF(AP7=0,0,(AP7*((LOG(AP7))/LOG(2)))) -> -0.514220355 | AS7: =N7 -> 1111 | AT7: =COUNTIF(L132:L156,AS7) -> 4 | AU7: =AT7/(AV4-AT20) -> 0.16 | AV7: =IF(AU7=0,0,(AU7*((LOG(AU7))/LOG(2)))) -> -0.4230169904
A8: 12 | B8: 151 | C8: 14 | D8: 155 | E8: 13 | F8: 169 | G8: 23 | H8: 194 | K8: 0 | L8: 1112 | N8: 1112 | O8: 31 | P8: 0.2066666667 | Q8: -0.4700886252 | T8: 1112 | U8: =COUNTIF(L7:L31,T8) -> 3 | V8: =U8/(W4-U20) -> 0.12 | W8: -0.3670672427 | Y8: 1112 | Z8: =COUNTIF(L32:L56,Y8) -> 4 | AA8: =Z8/(AB4-Z20) -> 0.16 | AB8: -0.4230169904 | AD8: 1112 | AE8: =COUNTIF(L57:L81,AD8) -> 6 | AF8: =AE8/(AG4-AE20) -> 0.24 | AG8: -0.4941344854 | AI8: 1112 | AJ8: =COUNTIF(L82:L106,AI8) -> 6 | AK8: =AJ8/(AL4-AJ20) -> 0.24 | AL8: -0.4941344854 | AN8: 1112 | AO8: =COUNTIF(L107:L131,AN8) -> 7 | AP8: =AO8/(AQ4-AO20) -> 0.28 | AQ8: -0.514220355 | AS8: 1112 | AT8: =COUNTIF(L132:L156,AS8) -> 5 | AU8: =AT8/(AV4-AT20) -> 0.2 | AV8: -0.464385619
A9: 12 | B9: 294 | C9: 14 | D9: 307 | E9: 24 | F9: 324 | G9: 23 | H9: 331 | K9: 0 | L9: 1122 | N9: 1121 | O9: 2 | P9: 0.01333333333 | Q9: -0.08305091587 | T9: 1121 | U9: =COUNTIF(L7:L31,T9) -> 0 | V9: =U9/(W4-U20) -> 0 | W9: 0 | Y9: 1121 | Z9: =COUNTIF(L32:L56,Y9) -> 1 | AA9: =Z9/(AB4-Z20) -> 0.04 | AB9: -0.1857542476 | AD9: 1121 | AE9: =COUNTIF(L57:L81,AD9) -> 0 | AF9: =AE9/(AG4-AE20) -> 0 | AG9: 0 | AI9: 1121 | AJ9: =COUNTIF(L82:L106,AI9) -> 1 | AK9: =AJ9/(AL4-AJ20) -> 0.04 | AL9: -0.1857542476 | AN9: 1121 | AO9: =COUNTIF(L107:L131,AN9) -> 0 | AP9: =AO9/(AQ4-AO20) -> 0 | AQ9: 0 | AS9: 1121 | AT9: =COUNTIF(L132:L156,AS9) -> 0 | AU9: =AT9/(AV4-AT20) -> 0 | AV9: 0
A10: 12 | B10: 434 | C10: 14 | D10: 441 | E10: 24 | F10: 453 | G10: 23 | H10: 462 | K10: 0 | L10: 1122 | N10: 1122 | O10: 41 | P10: 0.2733333333 | Q10: -0.5114795608 | T10: 1122 | U10: =COUNTIF(L7:L31,T10) -> 2 | V10: =U10/(W4-U20) -> 0.08 | W10: -0.2915084952 | Y10: 1122 | Z10: =COUNTIF(L32:L56,Y10) -> 4 | AA10: =Z10/(AB4-Z20) -> 0.16 | AB10: -0.4230169904 | AD10: 1122 | AE10: =COUNTIF(L57:L81,AD10) -> 11 | AF10: =AE10/(AG4-AE20) -> 0.44 | AG10: -0.5211468113 | AI10: 1122 | AJ10: =COUNTIF(L82:L106,AI10) -> 9 | AK10: =AJ10/(AL4-AJ20) -> 0.36 | AL10: -0.5306152278 | AN10: 1122 | AO10: =COUNTIF(L107:L131,AN10) -> 8 | AP10: =AO10/(AQ4-AO20) -> 0.32 | AQ10: -0.5260339807 | AS10: 1122 | AT10: =COUNTIF(L132:L156,AS10) -> 7 | AU10: =AT10/(AV4-AT20) -> 0.28 | AV10: -0.514220355
A11: 12 | B11: 565 | C11: 14 | D11: 579 | E11: 13 | F11: 593 | G11: 14 | H11: 624 | K11: 0 | L11: 1111 | N11: 1211 | O11: 0 | P11: 0 | Q11: 0 | T11: 1211 | U11: =COUNTIF(L7:L31,T11) -> 0 | V11: =U11/(W4-U20) -> 0 | W11: 0 | Y11: 1211 | Z11: =COUNTIF(L32:L56,Y11) -> 0 | AA11: =Z11/(AB4-Z20) -> 0 | AB11: 0 | AD11: 1211 | AE11: =COUNTIF(L57:L81,AD11) -> 0 | AF11: =AE11/(AG4-AE20) -> 0 | AG11: 0 | AI11: 1211 | AJ11: =COUNTIF(L82:L106,AI11) -> 0 | AK11: =AJ11/(AL4-AJ20) -> 0 | AL11: 0 | AN11: 1211 | AO11: =COUNTIF(L107:L131,AN11) -> 0 | AP11: =AO11/(AQ4-AO20) -> 0 | AQ11: 0 | AS11: 1211 | AT11: =COUNTIF(L132:L156,AS11) -> 0 | AU11: =AT11/(AV4-AT20) -> 0 | AV11: 0
A12: 12 | B12: 727 | C12: 14 | D12: 736 | E12: 13 | F12: 748 | G12: 14 | H12: 764 | K12: 0 | L12: 1111 | N12: 1212 | O12: 0 | P12: 0 | Q12: 0 | T12: 1212 | U12: =COUNTIF(L7:L31,T12) -> 0 | V12: =U12/(W4-U20) -> 0 | W12: 0 | Y12: 1212 | Z12: =COUNTIF(L32:L56,Y12) -> 0 | AA12: =Z12/(AB4-Z20) -> 0 | AB12: 0 | AD12: 1212 | AE12: =COUNTIF(L57:L81,AD12) -> 0 | AF12: =AE12/(AG4-AE20) -> 0 | AG12: 0 | AI12: 1212 | AJ12: =COUNTIF(L82:L106,AI12) -> 0 | AK12: =AJ12/(AL4-AJ20) -> 0 | AL12: 0 | AN12: 1212 | AO12: =COUNTIF(L107:L131,AN12) -> 0 | AP12: =AO12/(AQ4-AO20) -> 0 | AQ12: 0 | AS12: 1212 | AT12: =COUNTIF(L132:L156,AS12) -> 0 | AU12: =AT12/(AV4-AT20) -> 0 | AV12: 0
A13: 12 | B13: 870 | C13: 14 | D13: 889 | E13: 13 | F13: 911 | G13: 23 | H13: 926 | K13: 0 | L13: 1112 | N13: 1221 | O13: 2 | P13: 0.01333333333 | Q13: -0.08305091587 | T13: 1221 | U13: =COUNTIF(L7:L31,T13) -> 0 | V13: =U13/(W4-U20) -> 0 | W13: 0 | Y13: 1221 | Z13: =COUNTIF(L32:L56,Y13) -> 0 | AA13: =Z13/(AB4-Z20) -> 0 | AB13: 0 | AD13: 1221 | AE13: =COUNTIF(L57:L81,AD13) -> 1 | AF13: =AE13/(AG4-AE20) -> 0.04 | AG13: -0.1857542476 | AI13: 1221 | AJ13: =COUNTIF(L82:L106,AI13) -> 0 | AK13: =AJ13/(AL4-AJ20) -> 0 | AL13: 0 | AN13: 1221 | AO13: =COUNTIF(L107:L131,AN13) -> 0 | AP13: =AO13/(AQ4-AO20) -> 0 | AQ13: 0 | AS13: 1221 | AT13: =COUNTIF(L132:L156,AS13) -> 1 | AU13: =AT13/(AV4-AT20) -> 0.04 | AV13: -0.1857542476
A14: 12 | B14: 1023 | C14: 14 | D14: 1033 | E14: 13 | F14: 1046 | G14: 14 | H14: 1064 | K14: 0 | L14: 1111 | N14: 1222 | O14: 15 | P14: 0.1 | Q14: -0.3321928095 | T14: 1222 | U14: =COUNTIF(L7:L31,T14) -> 0 | V14: =U14/(W4-U20) -> 0 | W14: 0 | Y14: 1222 | Z14: =COUNTIF(L32:L56,Y14) -> 1 | AA14: =Z14/(AB4-Z20) -> 0.04 | AB14: -0.1857542476 | AD14: 1222 | AE14: =COUNTIF(L57:L81,AD14) -> 3 | AF14: =AE14/(AG4-AE20) -> 0.12 | AG14: -0.3670672427 | AI14: 1222 | AJ14: =COUNTIF(L82:L106,AI14) -> 4 | AK14: =AJ14/(AL4-AJ20) -> 0.16 | AL14: -0.4230169904 | AN14: 1222 | AO14: =COUNTIF(L107:L131,AN14) -> 3 | AP14: =AO14/(AQ4-AO20) -> 0.12 | AQ14: -0.3670672427 | AS14: 1222 | AT14: =COUNTIF(L132:L156,AS14) -> 4 | AU14: =AT14/(AV4-AT20) -> 0.16 | AV14: -0.4230169904
A15: 12 | B15: 1170 | C15: 14 | D15: 1183 | E15: 13 | F15: 1196 | G15: 14 | H15: 1215 | K15: 0 | L15: 1111 | N15: 2111 | O15: 0 | P15: 0 | Q15: 0 | T15: 2111 | U15: =COUNTIF(L7:L31,T15) -> 0 | V15: =U15/(W4-U20) -> 0 | W15: 0 | Y15: 2111 | Z15: =COUNTIF(L32:L56,Y15) -> 0 | AA15: =Z15/(AB4-Z20) -> 0 | AB15: 0 | AD15: 2111 | AE15: =COUNTIF(L57:L81,AD15) -> 0 | AF15: =AE15/(AG4-AE20) -> 0 | AG15: 0 | AI15: 2111 | AJ15: =COUNTIF(L82:L106,AI15) -> 0 | AK15: =AJ15/(AL4-AJ20) -> 0 | AL15: 0 | AN15: 2111 | AO15: =COUNTIF(L107:L131,AN15) -> 0 | AP15: =AO15/(AQ4-AO20) -> 0 | AQ15: 0 | AS15: 2111 | AT15: =COUNTIF(L132:L156,AS15) -> 0 | AU15: =AT15/(AV4-AT20) -> 0 | AV15: 0
A16: 12 | B16: 1319 | C16: 14 | D16: 1329 | E16: 13 | F16: 1347 | G16: 14 | H16: 1363 | K16: 0 | L16: 1111 | N16: 2112 | O16: 0 | P16: 0 | Q16: 0 | T16: 2112 | U16: =COUNTIF(L7:L31,T16) -> 0 | V16: =U16/(W4-U20) -> 0 | W16: 0 | Y16: 2112 | Z16: =COUNTIF(L32:L56,Y16) -> 0 | AA16: =Z16/(AB4-Z20) -> 0 | AB16: 0 | AD16: 2112 | AE16: =COUNTIF(L57:L81,AD16) -> 0 | AF16: =AE16/(AG4-AE20) -> 0 | AG16: 0 | AI16: 2112 | AJ16: =COUNTIF(L82:L106,AI16) -> 0 | AK16: =AJ16/(AL4-AJ20) -> 0 | AL16: 0 | AN16: 2112 | AO16: =COUNTIF(L107:L131,AN16) -> 0 | AP16: =AO16/(AQ4-AO20) -> 0 | AQ16: 0 | AS16: 2112 | AT16: =COUNTIF(L132:L156,AS16) -> 0 | AU16: =AT16/(AV4-AT20) -> 0 | AV16: 0
A17: 12 | B17: 1457 | C17: 14 | D17: 1470 | E17: 13 | F17: 1483 | G17: 14 | H17: 1500 | K17: 0 | L17: 1111 | N17: 2121 | O17: 0 | P17: 0 | Q17: 0 | T17: 2121 | U17: =COUNTIF(L7:L31,T17) -> 0 | V17: =U17/(W4-U20) -> 0 | W17: 0 | Y17: 2121 | Z17: =COUNTIF(L32:L56,Y17) -> 0 | AA17: =Z17/(AB4-Z20) -> 0 | AB17: 0 | AD17: 2121 | AE17: =COUNTIF(L57:L81,AD17) -> 0 | AF17: =AE17/(AG4-AE20) -> 0 | AG17: 0 | AI17: 2121 | AJ17: =COUNTIF(L82:L106,AI17) -> 0 | AK17: =AJ17/(AL4-AJ20) -> 0 | AL17: 0 | AN17: 2121 | AO17: =COUNTIF(L107:L131,AN17) -> 0 | AP17: =AO17/(AQ4-AO20) -> 0 | AQ17: 0 | AS17: 2121 | AT17: =COUNTIF(L132:L156,AS17) -> 0 | AU17: =AT17/(AV4-AT20) -> 0 | AV17: 0
A18: 12 | B18: 1600 | C18: 14 | D18: 1608 | E18: 13 | F18: 1627 | G18: 14 | H18: 1644 | K18: 0 | L18: 1111 | N18: 2122 | O18: 0 | P18: 0 | Q18: 0 | T18: 2122 | U18: =COUNTIF(L7:L31,T18) -> 0 | V18: =U18/(W4-U20) -> 0 | W18: 0 | Y18: 2122 | Z18: =COUNTIF(L32:L56,Y18) -> 0 | AA18: =Z18/(AB4-Z20) -> 0 | AB18: 0 | AD18: 2122 | AE18: =COUNTIF(L57:L81,AD18) -> 0 | AF18: =AE18/(AG4-AE20) -> 0 | AG18: 0 | AI18: 2122 | AJ18: =COUNTIF(L82:L106,AI18) -> 0 | AK18: =AJ18/(AL4-AJ20) -> 0 | AL18: 0 | AN18: 2122 | AO18: =COUNTIF(L107:L131,AN18) -> 0 | AP18: =AO18/(AQ4-AO20) -> 0 | AQ18: 0 | AS18: 2122 | AT18: =COUNTIF(L132:L156,AS18) -> 0 | AU18: =AT18/(AV4-AT20) -> 0 | AV18: 0
A19: 12 | B19: 1743 | C19: 14 | D19: 1756 | E19: 13 | F19: 1768 | G19: 14 | H19: 1781 | K19: 0 | L19: 1111 | N19: 2211 | O19: 1 | P19: 0.006666666667 | Q19: -0.0481921246 | T19: 2211 | U19: =COUNTIF(L7:L31,T19) -> 0 | V19: =U19/(W4-U20) -> 0 | W19: 0 | Y19: 2211 | Z19: =COUNTIF(L32:L56,Y19) -> 0 | AA19: =Z19/(AB4-Z20) -> 0 | AB19: 0 | AD19: 2211 | AE19: =COUNTIF(L57:L81,AD19) -> 1 | AF19: =AE19/(AG4-AE20) -> 0.04 | AG19: -0.1857542476 | AI19: 2211 | AJ19: =COUNTIF(L82:L106,AI19) -> 0 | AK19: =AJ19/(AL4-AJ20) -> 0 | AL19: 0 | AN19: 2211 | AO19: =COUNTIF(L107:L131,AN19) -> 0 | AP19: =AO19/(AQ4-AO20) -> 0 | AQ19: 0 | AS19: 2211 | AT19: =COUNTIF(L132:L156,AS19) -> 0 | AU19: =AT19/(AV4-AT20) -> 0 | AV19: 0
A20: 12 | B20: 1877 | C20: 14 | D20: 1896 | E20: 13 | F20: 1905 | G20: 14 | H20: 1918 | K20: 0 | L20: 1111 | N20: 2212 | O20: 0 | P20: 0 | Q20: 0 | T20: 2212 | U20: =COUNTIF(L7:L31,T20) -> 0 | Y20: 2212 | Z20: =COUNTIF(L32:L56,Y20) -> 0 | AD20: 2212 | AE20: =COUNTIF(L57:L81,AD20) -> 0 | AI20: 2212 | AJ20: =COUNTIF(L82:L106,AI20) -> 0 | AN20: 2212 | AO20: =COUNTIF(L107:L131,AN20) -> 0 | AS20: 2212 | AT20: =COUNTIF(L132:L156,AS20) -> 0
A21: 12 | B21: 2022 | C21: 14 | D21: 2031 | E21: 13 | F21: 2043 | G21: 14 | H21: 2052 | K21: 0 | L21: 1111 | N21: 2221 | O21: 0 | P21: 0 | Q21: 0 | T21: 2221 | U21: =COUNTIF(L7:L31,T21) -> 0 | V21: =U21/(W4-U20) -> 0 | W21: =IF(V21=0,0,(V21*((LOG(V21))/LOG(2)))) -> 0 | Y21: 2221 | Z21: =COUNTIF(L32:L56,Y21) -> 0 | AA21: =Z21/(AB4-Z20) -> 0 | AB21: =IF(AA21=0,0,(AA21*((LOG(AA21))/LOG(2)))) -> 0 | AD21: 2221 | AE21: =COUNTIF(L57:L81,AD21) -> 0 | AF21: =AE21/(AG4-AE20) -> 0 | AG21: =IF(AF21=0,0,(AF21*((LOG(AF21))/LOG(2)))) -> 0 | AI21: 2221 | AJ21: =COUNTIF(L82:L106,AI21) -> 0 | AK21: =AJ21/(AL4-AJ20) -> 0 | AL21: =IF(AK21=0,0,(AK21*((LOG(AK21))/LOG(2)))) -> 0 | AN21: 2221 | AO21: =COUNTIF(L107:L131,AN21) -> 0 | AP21: =AO21/(AQ4-AO20) -> 0 | AQ21: =IF(AP21=0,0,(AP21*((LOG(AP21))/LOG(2)))) -> 0 | AS21: 2221 | AT21: =COUNTIF(L132:L156,AS21) -> 0 | AU21: =AT21/(AV4-AT20) -> 0 | AV21: =IF(AU21=0,0,(AU21*((LOG(AU21))/LOG(2)))) -> 0
A22: 12 | B22: 2146 | C22: 14 | D22: 2155 | E22: 13 | F22: 2169 | G22: 14 | H22: 2185 | K22: 0 | L22: 1111 | N22: 2222 | O22: 4 | P22: 0.02666666667 | Q22: -0.1394351651 | T22: 2222 | U22: =COUNTIF(L7:L31,T22) -> 0 | V22: =U22/(W4-U20) -> 0 | W22: =IF(V22=0,0,(V22*((LOG(V22))/LOG(2)))) -> 0 | Y22: 2222 | Z22: =COUNTIF(L32:L56,Y22) -> 0 | AA22: =Z22/(AB4-Z20) -> 0 | AB22: =IF(AA22=0,0,(AA22*((LOG(AA22))/LOG(2)))) -> 0 | AD22: 2222 | AE22: =COUNTIF(L57:L81,AD22) -> 0 | AF22: =AE22/(AG4-AE20) -> 0 | AG22: =IF(AF22=0,0,(AF22*((LOG(AF22))/LOG(2)))) -> 0 | AI22: 2222 | AJ22: =COUNTIF(L82:L106,AI22) -> 0 | AK22: =AJ22/(AL4-AJ20) -> 0 | AL22: =IF(AK22=0,0,(AK22*((LOG(AK22))/LOG(2)))) -> 0 | AN22: 2222 | AO22: =COUNTIF(L107:L131,AN22) -> 0 | AP22: =AO22/(AQ4-AO20) -> 0 | AQ22: =IF(AP22=0,0,(AP22*((LOG(AP22))/LOG(2)))) -> 0 | AS22: 2222 | AT22: =COUNTIF(L132:L156,AS22) -> 4 | AU22: =AT22/(AV4-AT20) -> 0.16 | AV22: =IF(AU22=0,0,(AU22*((LOG(AU22))/LOG(2)))) -> -0.4230169904
A23: 12 | B23: 2282 | C23: 14 | D23: 2294 | E23: 13 | F23: 2309 | G23: 14 | H23: 2322 | K23: 0 | L23: 1111 | P23: =SUM(P7:P22) -> 1 | Q23: =-SUM(Q7:Q22) -> 2.198105345 | V23: =SUM(V7:V22) -> 1 | W23: =-SUM(W7:W22) -> 0.9161182138 | AA23: =SUM(AA7:AA22) -> 1 | AB23: =-SUM(AB7:AB22) -> 1.659721832 | AF23: =SUM(AF7:AF22) -> 1 | AG23: =-SUM(AG7:AG22) -> 2.120924277 | AK23: =SUM(AK7:AK22) -> 1 | AL23: =-SUM(AL7:AL22) -> 2.09790657 | AP23: =SUM(AP7:AP22) -> 1 | AQ23: =-SUM(AQ7:AQ22) -> 1.921541933 | AU23: =SUM(AU7:AU22) -> 1 | AV23: =-SUM(AV7:AV22) -> 2.433411193
A24: 12 | B24: 2419 | C24: 14 | D24: 2424 | E24: 13 | F24: 2431 | G24: 14 | H24: 2441 | K24: 0 | L24: 1111 | P24: U= | Q24: =Q23/(LOG(Q4)/LOG(2)) -> 0.3040753184 | V24: U1= | W24: =W23/(LOG(W4)/LOG(2)) -> 0.1972753195 | AA24: U2= | AB24: =AB23/(LOG(AB4)/LOG(2)) -> 0.3574016431 | AF24: U3= | AG24: =AG23/(LOG(AG4)/LOG(2)) -> 0.4567161838 | AK24: U4= | AL24: =AL23/(LOG(AL4)/LOG(2)) -> 0.4517595904 | AP24: U5= | AQ24: =AQ23/(LOG(AQ4)/LOG(2)) -> 0.413781533 | AU24: U6= | AV24: =AV23/(LOG(AV4)/LOG(2)) -> 0.5240065784
A25: 12 | B25: 2539 | C25: 14 | D25: 2550 | E25: 13 | F25: 2561 | G25: 14 | H25: 2581 | K25: 0 | L25: 1111
A26: 12 | B26: 2684 | C26: 14 | D26: 2696 | E26: 13 | F26: 2708 | G26: 14 | H26: 2722 | K26: 0 | L26: 1111
A27: 12 | B27: 2826 | C27: 14 | D27: 2833 | E27: 13 | F27: 2845 | G27: 14 | H27: 2863 | K27: 0 | L27: 1111 | N27: Total Target Seq
A28: 12 | B28: 2957 | C28: 14 | D28: 2968 | E28: 13 | F28: 2986 | G28: 14 | H28: 2998 | K28: 0 | L28: 1111 | N28: =COUNTIF(L7:L156,G3) -> 0 | P28: 25 | Q28: 25 | R28: 25 | S28: 25 | T28: 25 | U28: 25
A29: 12 | B29: 3093 | C29: 14 | D29: 3105 | E29: 13 | F29: 3113 | G29: 14 | H29: 3125 | K29: 0 | L29: 1111 | P29: % of reinforcement given in 6 equal intervals based on number of trials
A30: 12 | B30: 3223 | C30: 14 | D30: 3233 | E30: 13 | F30: 3242 | G30: 14 | H30: 3250 | K30: 0 | L30: 1111 | P30: %_1 | Q30: %_2 | R30: %_3 | S30: %_4 | T30: %_5 | U30: %_6
A31: 12 | B31: 3346 | C31: 14 | D31: 3351 | E31: 13 | F31: 3358 | G31: 14 | H31: 3366 | K31: 0 | L31: 1111 | O31: target sequence | P31: =$G$3 -> 2212 | Q31: 2212 | R31: 2212 | S31: 2212 | T31: 2212 | U31: 2212
A32: 12 | B32: 3462 | C32: 14 | D32: 3483 | E32: 13 | F32: 3491 | G32: 14 | H32: 3508 | K32: 0 | L32: 1111 | O32: total reinforcement | P32: =U20 -> 0 | Q32: =Z20 -> 0 | R32: =AE20 -> 0 | S32: =AJ20 -> 0 | T32: =AO20 -> 0 | U32: =AT20 -> 0
A33: 12 | B33: 3622 | C33: 14 | D33: 3634 | E33: 13 | F33: 3648 | G33: 14 | H33: 3661 | K33: 0 | L33: 1111 | O33: % target
A34: 12 | B34: 3754 | C34: 14 | D34: 3771 | E34: 13 | F34: 3779 | G34: 23 | H34: 3804 | K34: 0 | L34: 1112 | O34: CCRF
A35: 12 | B35: 3900 | C35: 14 | D35: 3920 | E35: 13 | F35: 3931 | G35: 14 | H35: 3940 | K35: 0 | L35: 1111 | O35: % CCRf
A36: 12 | B36: 4036 | C36: 14 | D36: 4040 | E36: 13 | F36: 4052 | G36: 14 | H36: 4060 | K36: 0 | L36: 1111 | O36: average response rate | P36: =H31/P28 -> 134.64 | Q36: =(H56-H31)/Q28 -> 149.56 | R36: =(H81-H56)/R28 -> 162.32 | S36: =(H106-H81)/S28 -> 158.6 | T36: =(H131-H106)/T28 -> 165.08 | U36: =(H156-H131)/U28 -> 182.2
A37: 12 | B37: 4157 | C37: 14 | D37: 4166 | E37: 13 | F37: 4181 | G37: 14 | H37: 4189 | K37: 0 | L37: 1111
A38: 12 | B38: 4285 | C38: 14 | D38: 4300 | E38: 13 | F38: 4312 | G38: 14 | H38: 4320 | K38: 0 | L38: 1111
A39: 12 | B39: 4416 | C39: 14 | D39: 4424 | E39: 13 | F39: 4440 | G39: 23 | H39: 4463 | K39: 0 | L39: 1112
A40: 12 | B40: 4561 | C40: 14 | D40: 4573 | E40: 13 | F40: 4584 | G40: 14 | H40: 4599 | K40: 0 | L40: 1111
A41: 12 | B41: 4696 | C41: 14 | D41: 4711 | E41: 13 | F41: 4729 | G41: 14 | H41: 4740 | K41: 0 | L41: 1111
A42: 12 | B42: 4842 | C42: 14 | D42: 4847 | E42: 13 | F42: 4857 | G42: 14 | H42: 4865 | K42: 0 | L42: 1111
A43: 12 | B43: 4958 | C43: 14 | D43: 4995 | E43: 13 | F43: 5012 | G43: 14 | H43: 5027 | K43: 0 | L43: 1111
A44: 12 | B44: 5211 | C44: 23 | D44: 5258 | E44: 24 | F44: 5266 | G44: 23 | H44: 5273 | K44: 0 | L44: 1222
A45: 12 | B45: 5369 | C45: 14 | D45: 5390 | E45: 13 | F45: 5399 | G45: 14 | H45: 5448 | K45: 0 | L45: 1111
A46: 12 | B46: 5548 | C46: 14 | D46: 5553 | E46: 13 | F46: 5564 | G46: 14 | H46: 5574 | K46: 0 | L46: 1111
A47: 12 | B47: 5672 | C47: 14 | D47: 5684 | E47: 13 | F47: 5706 | G47: 14 | H47: 5732 | K47: 0 | L47: 1111
A48: 12 | B48: 5829 | C48: 14 | D48: 5855 | E48: 13 | F48: 5865 | G48: 14 | H48: 5873 | K48: 0 | L48: 1111
A49: 12 | B49: 5970 | C49: 14 | D49: 5981 | E49: 24 | F49: 6009 | G49: 14 | H49: 6023 | K49: 0 | L49: 1121
A50: 12 | B50: 6124 | C50: 14 | D50: 6157 | E50: 13 | F50: 6168 | G50: 14 | H50: 6180 | K50: 0 | L50: 1111
A51: 12 | B51: 6276 | C51: 14 | D51: 6292 | E51: 24 | F51: 6308 | G51: 23 | H51: 6315 | K51: 0 | L51: 1122
A52: 12 | B52: 6418 | C52: 14 | D52: 6433 | E52: 24 | F52: 6484 | G52: 23 | H52: 6492 | K52: 0 | L52: 1122
A53: 12 | B53: 6591 | C53: 14 | D53: 6608 | E53: 24 | F53: 6654 | G53: 23 | H53: 6661 | K53: 0 | L53: 1122
A54: 12 | B54: 6757 | C54: 14 | D54: 6772 | E54: 24 | F54: 6795 | G54: 23 | H54: 6801 | K54: 0 | L54: 1122
A55: 12 | B55: 6899 | C55: 14 | D55: 6906 | E55: 13 | F55: 6921 | G55: 23 | H55: 6969 | K55: 0 | L55: 1112
A56: 12 | B56: 7066 | C56: 14 | D56: 7075 | E56: 13 | F56: 7093 | G56: 23 | H56: 7105 | K56: 0 | L56: 1112
A57: 12 | B57: 7211 | C57: 23 | D57: 7252 | E57: 24 | F57: 7259 | G57: 14 | H57: 7279 | K57: 0 | L57: 1221
A58: 21 | B58: 7413 | C58: 21 | D58: 7420 | E58: 11 | F58: 7433 | G58: 12 | H58: 7449 | K58: 0 | L58: 2211
A59: 12 | B59: 7719 | C59: 23 | D59: 7736 | E59: 24 | F59: 7749 | G59: 23 | H59: 7758 | K59: 0 | L59: 1222
A60: 12 | B60: 7875 | C60: 14 | D60: 7892 | E60: 13 | F60: 7906 | G60: 23 | H60: 7922 | K60: 0 | L60: 1112
A61: 12 | B61: 8023 | C61: 14 | D61: 8052 | E61: 13 | F61: 8067 | G61: 23 | H61: 8084 | K61: 0 | L61: 1112
A62: 12 | B62: 8183 | C62: 14 | D62: 8206 | E62: 13 | F62: 8220 | G62: 14 | H62: 8228 | K62: 0 | L62: 1111
A63: 12 | B63: 8326 | C63: 14 | D63: 8331 | E63: 13 | F63: 8349 | G63: 14 | H63: 8361 | K63: 0 | L63: 1111
A64: 12 | B64: 8457 | C64: 23 | D64: 8490 | E64: 24 | F64: 8499 | G64: 23 | H64: 8511 | K64: 0 | L64: 1222
A65: 12 | B65: 8621 | C65: 14 | D65: 8642 | E65: 24 | F65: 8661 | G65: 23 | H65: 8670 | K65: 0 | L65: 1122
A66: 12 | B66: 8770 | C66: 14 | D66: 8787 | E66: 24 | F66: 8803 | G66: 23 | H66: 8810 | K66: 0 | L66: 1122
A67: 12 | B67: 8907 | C67: 14 | D67: 8934 | E67: 24 | F67: 8962 | G67: 23 | H67: 8970 | K67: 0 | L67: 1122
A68: 12 | B68: 9070 | C68: 14 | D68: 9091 | E68: 24 | F68: 9109 | G68: 23 | H68: 9117 | K68: 0 | L68: 1122
A69: 12 | B69: 9227 | C69: 14 | D69: 9239 | E69: 24 | F69: 9258 | G69: 23 | H69: 9266 | K69: 0 | L69: 1122
A70: 12 | B70: 9365 | C70: 14 | D70: 9402 | E70: 13 | F70: 9417 | G70: 23 | H70: 9431 | K70: 0 | L70: 1112
A71: 12 | B71: 9528 | C71: 14 | D71: 9546 | E71: 24 | F71: 9561 | G71: 23 | H71: 9570 | K71: 0 | L71: 1122
A72: 12 | B72: 9691 | C72: 14 | D72: 9709 | E72: 24 | F72: 9722 | G72: 23 | H72: 9729 | K72: 0 | L72: 1122
A73: 12 | B73: 9832 | C73: 14 | D73: 9845 | E73: 24 | F73: 9867 | G73: 23 | H73: 9874 | K73: 0 | L73: 1122
A74: 12 | B74: 9978 | C74: 23 | D74: 9995 | E74: 24 | F74: 10002 | G74: 23 | H74: 10009 | K74: 0 | L74: 1222
A75: 12 | B75: 10108 | C75: 14 | D75: 10145 | E75: 13 | F75: 10158 | G75: 23 | H75: 10183 | K75: 0 | L75: 1112
A76: 12 | B76: 10310 | C76: 14 | D76: 10324 | E76: 24 | F76: 10338 | G76: 23 | H76: 10360 | K76: 0 | L76: 1122
A77: 12 | B77: 10474 | C77: 14 | D77: 10493 | E77: 24 | F77: 10508 | G77: 23 | H77: 10514 | K77: 0 | L77: 1122
A78: 12 | B78: 10623 | C78: 14 | D78: 10637 | E78: 13 | F78: 10654 | G78: 14 | H78: 10669 | K78: 0 | L78: 1111
A79: 12 | B79: 10768 | C79: 14 | D79: 10796 | E79: 24 | F79: 10816 | G79: 23 | H79: 10824 | K79: 0 | L79: 1122
A80: 12 | B80: 10955 | C80: 14 | D80: 10975 | E80: 13 | F80: 10987 | G80: 23 | H80: 11010 | K80: 0 | L80: 1112
A81: 12 | B81: 11107 | C81: 14 | D81: 11124 | E81: 13 | F81: 11142 | G81: 23 | H81: 11163 | K81: 0 | L81: 1112
A82: 12 | B82: 11271 | C82: 23 | D82: 11285 | E82: 24 | F82: 11292 | G82: 23 | H82: 11300 | K82: 0 | L82: 1222
A83: 12 | B83: 11425 | C83: 14 | D83: 11438 | E83: 24 | F83: 11451 | G83: 23 | H83: 11458 | K83: 0 | L83: 1122
A84: 12 | B84: 11567 | C84: 14 | D84: 11582 | E84: 24 | F84: 11616 | G84: 23 | H84: 11621 | K84: 0 | L84: 1122
A85: 12 | B85: 11737 | C85: 14 | D85: 11762 | E85: 24 | F85: 11787 | G85: 14 | H85: 11801 | K85: 0 | L85: 1121
A86: 12 | B86: 11905 | C86: 23 | D86: 11925 | E86: 24 | F86: 11931 | G86: 23 | H86: 11942 | K86: 0 | L86: 1222
A87: 12 | B87: 12043 | C87: 14 | D87: 12079 | E87: 13 | F87: 12095 | G87: 23 | H87: 12114 | K87: 0 | L87: 1112
A88: 12 | B88: 12217 | C88: 14 | D88: 12229 | E88: 13 | F88: 12250 | G88: 23 | H88: 12273 | K88: 0 | L88: 1112
A89: 12 | B89: 12378 | C89: 14 | D89: 12392 | E89: 24 | F89: 12404 | G89: 23 | H89: 12409 | K89: 0 | L89: 1122
A90: 12 | B90: 12513 | C90: 14 | D90: 12515 | E90: 13 | F90: 12527 | G90: 23 | H90: 12543 | K90: 0 | L90: 1112
A91: 12 | B91: 12643 | C91: 14 | D91: 12652 | E91: 24 | F91: 12699 | G91: 23 | H91: 12707 | K91: 0 | L91: 1122
A92: 12 | B92: 12817 | C92: 14 | D92: 12836 | E92: 13 | F92: 12853 | G92: 23 | H92: 12866 | K92: 0 | L92: 1112
A93: 12 | B93: 12969 | C93: 14 | D93: 12982 | E93: 13 | F93: 12990 | G93: 14 | H93: 13011 | K93: 0 | L93: 1111
A94: 12 | B94: 13139 | C94: 23 | D94: 13193 | E94: 24 | F94: 13201 | G94: 23 | H94: 13208 | K94: 0 | L94: 1222
A95: 12 | B95: 13325 | C95: 14 | D95: 13338 | E95: 24 | F95: 13358 | G95: 23 | H95: 13366 | K95: 0 | L95: 1122
A96: 12 | B96: 13490 | C96: 14 | D96: 13522 | E96: 24 | F96: 13541 | G96: 23 | H96: 13548 | K96: 0 | L96: 1122
A97: 12 | B97: 13670 | C97: 14 | D97: 13689 | E97: 24 | F97: 13712 | G97: 23 | H97: 13717 | K97: 0 | L97: 1122
A98: 12 | B98: 13843 | C98: 14 | D98: 13864 | E98: 24 | F98: 13879 | G98: 23 | H98: 13883 | K98: 0 | L98: 1122
A99: 12 | B99: 13982 | C99: 14 | D99: 14007 | E99: 13 | F99: 14020 | G99: 23 | H99: 14040 | K99: 0 | L99: 1112
A100: 12 | B100: 14146 | C100: 14 | D100: 14159 | E100: 13 | F100: 14168 | G100: 14 | H100: 14178 | K100: 0 | L100: 1111
A101: 12 | B101: 14275 | C101: 14 | D101: 14285 | E101: 13 | F101: 14295 | G101: 14 | H101: 14302 | K101: 0 | L101: 1111
A102: 12 | B102: 14400 | C102: 14 | D102: 14419 | E102: 13 | F102: 14435 | G102: 14 | H102: 14452 | K102: 0 | L102: 1111
A103: 12 | B103: 14580 | C103: 14 | D103: 14591 | E103: 13 | F103: 14603 | G103: 14 | H103: 14637 | K103: 0 | L103: 1111
A104: 12 | B104: 14735 | C104: 14 | D104: 14751 | E104: 13 | F104: 14767 | G104: 23 | H104: 14790 | K104: 0 | L104: 1112
A105: 12 | B105: 14908 | C105: 23 | D105: 14930 | E105: 24 | F105: 14955 | G105: 23 | H105: 14966 | K105: 0 | L105: 1222
A106: 12 | B106: 15082 | C106: 14 | D106: 15096 | E106: 24 | F106: 15115 | G106: 23 | H106: 15128 | K106: 0 | L106: 1122
A107: 12 | B107: 15243 | C107: 14 | D107: 15259 | E107: 24 | F107: 15278 | G107: 23 | H107: 15285 | K107: 0 | L107: 1122
A108: 12 | B108: 15411 | C108: 23 | D108: 15428 | E108: 24 | F108: 15436 | G108: 23 | H108: 15446 | K108: 0 | L108: 1222
A109: 12 | B109: 15545 | C109: 14 | D109: 15569 | E109: 13 | F109: 15605 | G109: 23 | H109: 15624 | K109: 0 | L109: 1112
A110: 12 | B110: 15722 | C110: 14 | D110: 15764 | E110: 24 | F110: 15783 | G110: 23 | H110: 15791 | K110: 0 | L110: 1122
A111: 12 | B111: 15921 | C111: 14 | D111: 15943 | E111: 13 | F111: 15960 | G111: 23 | H111: 15994 | K111: 0 | L111: 1112
A112: 12 | B112: 16097 | C112: 14 | D112: 16113 | E112: 13 | F112: 16133 | G112: 23 | H112: 16148 | K112: 0 | L112: 1112
A113: 12 | B113: 16244 | C113: 14 | D113: 16249 | E113: 13 | F113: 16280 | G113: 23 | H113: 16292 | K113: 0 | L113: 1112
A114: 12 | B114: 16391 | C114: 14 | D114: 16402 | E114: 13 | F114: 16419 | G114: 23 | H114: 16433 | K114: 0 | L114: 1112
A115: 12 | B115: 16527 | C115: 14 | D115: 16536 | E115: 13 | F115: 16547 | G115: 14 | H115: 16561 | K115: 0 | L115: 1111
A116: 12 | B116: 16661 | C116: 14 | D116: 16676 | E116: 24 | F116: 16695 | G116: 23 | H116: 16703 | K116: 0 | L116: 1122
A117: 12 | B117: 16801 | C117: 14 | D117: 16823 | E117: 13 | F117: 16837 | G117: 23 | H117: 16861 | K117: 0 | L117: 1112
A118: 12 | B118: 16961 | C118: 14 | D118: 16996 | E118: 13 | F118: 17025 | G118: 14 | H118: 17037 | K118: 0 | L118: 1111
A119: 12 | B119: 17140 | C119: 14 | D119: 17153 | E119: 13 | F119: 17163 | G119: 14 | H119: 17171 | K119: 0 | L119: 1111
A120: 12 | B120: 17288 | C120: 14 | D120: 17308 | E120: 13 | F120: 17317 | G120: 14 | H120: 17333 | K120: 0 | L120: 1111
A121: 12 | B121: 17448 | C121: 14 | D121: 17469 | E121: 24 | F121: 17485 | G121: 23 | H121: 17492 | K121: 0 | L121: 1122
A122: 12 | B122: 17603 | C122: 23 | D122: 17647 | E122: 24 | F122: 17655 | G122: 23 | H122: 17667 | K122: 0 | L122: 1222
A123: 12 | B123: 17767 | C123: 14 | D123: 17793 | E123: 13 | F123: 17808 | G123: 23 | H123: 17835 | K123: 0 | L123: 1112
A124: 12 | B124: 17973 | C124: 23 | D124: 18007 | E124: 24 | F124: 18013 | G124: 23 | H124: 18029 | K124: 0 | L124: 1222
A125: 12 | B125: 18128 | C125: 14 | D125: 18157 | E125: 24 | F125: 18178 | G125: 23 | H125: 18185 | K125: 0 | L125: 1122
A126: 12 | B126: 18280 | C126: 14 | D126: 18296 | E126: 13 | F126: 18323 | G126: 14 | H126: 18345 | K126: 0 | L126: 1111
A127: 12 | B127: 18455 | C127: 14 | D127: 18468 | E127: 24 | F127: 18489 | G127: 23 | H127: 18502 | K127: 0 | L127: 1122
A128: 12 | B128: 18612 | C128: 14 | D128: 18631 | E128: 24 | F128: 18651 | G128: 23 | H128: 18664 | K128: 0 | L128: 1122
A129: 12 | B129: 18771 | C129: 14 | D129: 18783 | E129: 13 | F129: 18793 | G129: 14 | H129: 18809 | K129: 0 | L129: 1111
A130: 12 | B130: 18904 | C130: 14 | D130: 18932 | E130: 24 | F130: 18959 | G130: 23 | H130: 18969 | K130: 0 | L130: 1122
A131: 12 | B131: 19144 | C131: 14 | D131: 19155 | E131: 13 | F131: 19202 | G131: 14 | H131: 19255 | K131: 0 | L131: 1111
A132: 12 | B132: 19382 | C132: 14 | D132: 19395 | E132: 24 | F132: 19419 | G132: 23 | H132: 19426 | K132: 0 | L132: 1122
A133: 21 | B133: 19571 | C133: 21 | D133: 19578 | E133: 22 | F133: 19589 | G133: 23 | H133: 19599 | K133: 0 | L133: 2222
A134: 12 | B134: 19696 | C134: 14 | D134: 19700 | E134: 13 | F134: 19709 | G134: 14 | H134: 19723 | K134: 0 | L134: 1111
A135: 12 | B135: 19824 | C135: 14 | D135: 19826 | E135: 13 | F135: 19871 | G135: 14 | H135: 19883 | K135: 0 | L135: 1111
A136: 12 | B136: 19981 | C136: 14 | D136: 20000 | E136: 13 | F136: 20012 | G136: 14 | H136: 20030 | K136: 0 | L136: 1111
A137: 12 | B137: 20138 | C137: 14 | D137: 20162 | E137: 13 | F137: 20179 | G137: 23 | H137: 20204 | K137: 0 | L137: 1112
A138: 12 | B138: 20348 | C138: 14 | D138: 20363 | E138: 13 | F138: 20382 | G138: 23 | H138: 20406 | K138: 0 | L138: 1112
A139: 12 | B139: 20504 | C139: 14 | D139: 20531 | E139: 13 | F139: 20544 | G139: 23 | H139: 20561 | K139: 0 | L139: 1112
A140: 12 | B140: 20694 | C140: 14 | D140: 20715 | E140: 24 | F140: 20738 | G140: 23 | H140: 20750 | K140: 0 | L140: 1122
A141: 21 | B141: 20932 | C141: 21 | D141: 20941 | E141: 22 | F141: 20949 | G141: 23 | H141: 20956 | K141: 0 | L141: 2222
A142: 12 | B142: 21088 | C142: 23 | D142: 21122 | E142: 24 | F142: 21133 | G142: 23 | H142: 21142 | K142: 0 | L142: 1222
A143: 12 | B143: 21301 | C143: 14 | D143: 21319 | E143: 13 | F143: 21337 | G143: 23 | H143: 21363 | K143: 0 | L143: 1112
A144: 12 | B144: 21459 | C144: 14 | D144: 21473 | E144: 24 | F144: 21489 | G144: 23 | H144: 21497 | K144: 0 | L144: 1122
A145: 21 | B145: 21861 | C145: 21 | D145: 21875 | E145: 22 | F145: 21882 | G145: 23 | H145: 21900 | K145: 0 | L145: 2222
A146: 12 | B146: 22008 | C146: 14 | D146: 22020 | E146: 24 | F146: 22120 | G146: 23 | H146: 22128 | K146: 0 | L146: 1122
A147: 12 | B147: 22247 | C147: 23 | D147: 22261 | E147: 24 | F147: 22266 | G147: 14 | H147: 22290 | K147: 0 | L147: 1221
A148: 12 | B148: 22389 | C148: 14 | D148: 22407 | E148: 13 | F148: 22430 | G148: 14 | H148: 22454 | K148: 0 | L148: 1111
A149: 21 | B149: 22565 | C149: 21 | D149: 22576 | E149: 22 | F149: 22583 | G149: 23 | H149: 22592 | K149: 0 | L149: 2222
A150: 12 | B150: 22690 | C150: 14 | D150: 22712 | E150: 24 | F150: 22732 | G150: 23 | H150: 22747 | K150: 0 | L150: 1122
A151: 12 | B151: 22873 | C151: 23 | D151: 22906 | E151: 24 | F151: 22911 | G151: 23 | H151: 22922 | K151: 0 | L151: 1222
A152: 12 | B152: 23050 | C152: 23 | D152: 23076 | E152: 24 | F152: 23084 | G152: 23 | H152: 23095 | K152: 0 | L152: 1222
A153: 12 | B153: 23267 | C153: 23 | D153: 23290 | E153: 24 | F153: 23298 | G153: 23 | H153: 23305 | K153: 0 | L153: 1222
A154: 12 | B154: 23426 | C154: 14 | D154: 23443 | E154: 24 | F154: 23461 | G154: 23 | H154: 23468 | K154: 0 | L154: 1122
A155: 12 | B155: 23561 | C155: 14 | D155: 23581 | E155: 24 | F155: 23593 | G155: 23 | H155: 23606 | K155: 0 | L155: 1122
A156: 12 | B156: 23756 | C156: 14 | D156: 23776 | E156: 13 | F156: 23792 | G156: 23 | H156: 23810 | K156: 0 | L156: 1112

Sheet !M803930.010
A1: Report for:!M803930.010
A2: Date: | B2: <date>
A3: Hen: | B3: <hen> | F3: Correct Sequence | G3: =Start!J2 -> 2212 | P3: Total Sequences in Data | Q3: =4994-COUNTBLANK(L7:L5000) -> 160 | V3: Total Sequences in Block Data | W3: =COUNTA(L7:L33) -> 27 | AA3: Total Sequences in Block Data | AB3: =COUNTA(L34:L59) -> 26 | AF3: Total Sequences in Block Data | AG3: =COUNTA(L60:L86) -> 27 | AK3: Total Sequences in Block Data | AL3: =COUNTA(L87:L113) -> 27 | AP3: Total Sequences in Block Data | AQ3: =COUNTA(L114:L139) -> 26 | AU3: Total Sequences in Block Data | AV3: =COUNTA(L140:L166) -> 27
P4: Total Sequences in Summary | Q4: =SUM(O7:O22) -> 160 | V4: Total Sequences in Block Summary | W4: =SUM(U7:U22) -> 27 | AA4: Total Sequences in Block Summary | AB4: =SUM(Z7:Z22) -> 26 | AF4: Total Sequences in Block Summary | AG4: =SUM(AE7:AE22) -> 27 | AK4: Total Sequences in Block Summary | AL4: =SUM(AJ7:AJ22) -> 27 | AP4: Total Sequences in Block Summary | AQ4: =SUM(AO7:AO22) -> 26 | AU4: Total Sequences in Block Summary | AV4: =SUM(AT7:AT22) -> 27
T5: Block 1 | Y5: Block 2 | AD5: Block 3 | AI5: Block 4 | AN5: Block 5 | AS5: Block 6
A6: Sequence Component 1 | B6: Time 1 | C6: Sequence Component 2 | D6: Time 2 | E6: Sequence Component 3 | F6: Time 3 | G6: Sequence Component 4 | H6: Time 4 | I6: Sequence Component 5 | J6: Time 5 | K6: Correct? 0=No 1=Yes | L6: Sequence | N6: Frequency | P6: Relative Frequency | Q6: Variability | T6: Frequency | V6: Relative Frequency | W6: Variability | Y6: Frequency | AA6: Relative Frequency | AB6: Variability | AD6: Frequency | AF6: Relative Frequency | AG6: Variability | AI6: Frequency | AK6: Relative Frequency | AL6: Variability | AN6: Frequency | AP6: Relative Frequency | AQ6: Variability | AS6: Frequency | AU6: Relative Frequency | AV6: Variability
A7: 12 | B7: 9 | C7: 14 | D7: 24 | E7: 24 | F7: 37 | G7: 14 | H7: 49 | K7: 0 | L7: 1121 | N7: 1111 | O7: =COUNTIF($L$7:$L$500,N7) -> 44 | P7: =O7/$Q$4 -> 0.275 | Q7: =IF(P7=0,0,(P7*((LOG(P7))/LOG(2)))) -> -0.512186531 | T7: =N7 -> 1111 | U7: =COUNTIF(L7:L33,T7) -> 3 | V7: =U7/(W4-U20) -> 0.1111111111 | W7: =IF(V7=0,0,(V7*((LOG(V7))/LOG(2)))) -> -0.352213889 | Y7: =N7 -> 1111 | Z7: =COUNTIF(L34:L59,Y7) -> 12 | AA7: =Z7/(AB4-Z20) -> 0.4615384615 | AB7: =IF(AA7=0,0,(AA7*((LOG(AA7))/LOG(2)))) -> -0.5148356388 | AD7: =N7 -> 1111 | AE7: =COUNTIF(L60:L86,AD7) -> 17 | AF7: =AE7/(AG4-AE20) -> 0.6296296296 | AG7: =IF(AF7=0,0,(AF7*((LOG(AF7))/LOG(2)))) -> -0.4202303421 | AI7: =N7 -> 1111 | AJ7: =COUNTIF(L87:L113,AI7) -> 2 | AK7: =AJ7/(AL4-AJ20) -> 0.07407407407 | AL7: =IF(AK7=0,0,(AK7*((LOG(AK7))/LOG(2)))) -> -0.278139815 | AN7: =N7 -> 1111 | AO7: =COUNTIF(L114:L139,AN7) -> 8 | AP7: =AO7/(AQ4-AO20) -> 0.3076923077 | AQ7: =IF(AP7=0,0,(AP7*((LOG(AP7))/LOG(2)))) -> -0.523212221 | AS7: =N7 -> 1111 | AT7: =COUNTIF(L140:L166,AS7) -> 2 | AU7: =AT7/(AV4-AT20) -> 0.07407407407 | AV7: =IF(AU7=0,0,(AU7*((LOG(AU7))/LOG(2)))) -> -0.278139815
A8: 12 | B8: 165 | C8: 23 | D8: 176 | E8: 24 | F8: 213 | G8: 23 | H8: 225 | K8: 0 | L8: 1222 | N8: 1112 | O8: 43 | P8: 0.26875 | Q8: -0.5094595227 | T8: 1112 | U8: =COUNTIF(L7:L33,T8) -> 8 | V8: =U8/(W4-U20) -> 0.2962962963 | W8: -0.5199666673 | Y8: 1112 | Z8: =COUNTIF(L34:L59,Y8) -> 4 | AA8: =Z8/(AB4-Z20) -> 0.1538461538 | AB8: -0.4154522643 | AD8: 1112 | AE8: =COUNTIF(L60:L86,AD8) -> 7 | AF8: =AE8/(AG4-AE20) -> 0.2592592593 | AG8: -0.5049158541 | AI8: 1112 | AJ8: =COUNTIF(L87:L113,AI8) -> 9 | AK8: =AJ8/(AL4-AJ20) -> 0.3333333333 | AL8: -0.5283208336 | AN8: 1112 | AO8: =COUNTIF(L114:L139,AN8) -> 10 | AP8: =AO8/(AQ4-AO20) -> 0.3846153846 | AQ8: -0.5301967782 | AS8: 1112 | AT8: =COUNTIF(L140:L166,AS8) -> 5 | AU8: =AT8/(AV4-AT20) -> 0.1851851852 | AV8: -0.4505480384
A9: 12 | B9: 327 | C9: 14 | D9: 339 | E9: 24 | F9: 355 | G9: 23 | H9: 367 | K9: 0 | L9: 1122 | N9: 1121 | O9: 1 | P9: 0.00625 | Q9: -0.04576205059 | T9: 1121 | U9: =COUNTIF(L7:L33,T9) -> 1 | V9: =U9/(W4-U20) -> 0.03703703704 | W9: -0.1761069445 | Y9: 1121 | Z9: =COUNTIF(L34:L59,Y9) -> 0 | AA9: =Z9/(AB4-Z20) -> 0 | AB9: 0 | AD9: 1121 | AE9: =COUNTIF(L60:L86,AD9) -> 0 | AF9: =AE9/(AG4-AE20) -> 0 | AG9: 0 | AI9: 1121 | AJ9: =COUNTIF(L87:L113,AI9) -> 0 | AK9: =AJ9/(AL4-AJ20) -> 0 | AL9: 0 | AN9: 1121 | AO9: =COUNTIF(L114:L139,AN9) -> 0 | AP9: =AO9/(AQ4-AO20) -> 0 | AQ9: 0 | AS9: 1121 | AT9: =COUNTIF(L140:L166,AS9) -> 0 | AU9: =AT9/(AV4-AT20) -> 0 | AV9: 0
A10: 12 | B10: 468 | C10: 14 | D10: 480 | E10: 24 | F10: 496 | G10: 23 | H10: 507 | K10: 0 | L10: 1122 | N10: 1122 | O10: 61 | P10: 0.38125 | Q10: -0.5303914762 | T10: 1122 | U10: =COUNTIF(L7:L33,T10) -> 14 | V10: =U10/(W4-U20) -> 0.5185185185 | W10: -0.4913131897 | Y10: 1122 | Z10: =COUNTIF(L34:L59,Y10) -> 10 | AA10: =Z10/(AB4-Z20) -> 0.3846153846 | AB10: -0.5301967782 | AD10: 1122 | AE10: =COUNTIF(L60:L86,AD10) -> 1 | AF10: =AE10/(AG4-AE20) -> 0.03703703704 | AG10: -0.1761069445 | AI10: 1122 | AJ10: =COUNTIF(L87:L113,AI10) -> 14 | AK10: =AJ10/(AL4-AJ20) -> 0.5185185185 | AL10: -0.4913131897 | AN10: 1122 | AO10: =COUNTIF(L114:L139,AN10) -> 8 | AP10: =AO10/(AQ4-AO20) -> 0.3076923077 | AQ10: -0.523212221 | AS10: 1122 | AT10: =COUNTIF(L140:L166,AS10) -> 14 | AU10: =AT10/(AV4-AT20) -> 0.5185185185 | AV10: -0.4913131897
A11: 12 | B11: 608 | C11: 14 | D11: 620 | E11: 24 | F11: 631 | G11: 23 | H11: 639 | K11: 0 | L11: 1122 | N11: 1211 | O11: 0 | P11: 0 | Q11: 0 | T11: 1211 | U11: =COUNTIF(L7:L33,T11) -> 0 | V11: =U11/(W4-U20) -> 0 | W11: 0 | Y11: 1211 | Z11: =COUNTIF(L34:L59,Y11) -> 0 | AA11: =Z11/(AB4-Z20) -> 0 | AB11: 0 | AD11: 1211 | AE11: =COUNTIF(L60:L86,AD11) -> 0 | AF11: =AE11/(AG4-AE20) -> 0 | AG11: 0 | AI11: 1211 | AJ11: =COUNTIF(L87:L113,AI11) -> 0 | AK11: =AJ11/(AL4-AJ20) -> 0 | AL11: 0 | AN11: 1211 | AO11: =COUNTIF(L114:L139,AN11) -> 0 | AP11: =AO11/(AQ4-AO20) -> 0 | AQ11: 0 | AS11: 1211 | AT11: =COUNTIF(L140:L166,AS11) -> 0 | AU11: =AT11/(AV4-AT20) -> 0 | AV11: 0
A12: 12 | B12: 737 | C12: 14 | D12: 747 | E12: 24 | F12: 758 | G12: 23 | H12: 765 | K12: 0 | L12: 1122 | N12: 1212 | O12: 0 | P12: 0 | Q12: 0 | T12: 1212 | U12: =COUNTIF(L7:L33,T12) -> 0 | V12: =U12/(W4-U20) -> 0 | W12: 0 | Y12: 1212 | Z12: =COUNTIF(L34:L59,Y12) -> 0 | AA12: =Z12/(AB4-Z20) -> 0 | AB12: 0 | AD12: 1212 | AE12: =COUNTIF(L60:L86,AD12) -> 0 | AF12: =AE12/(AG4-AE20) -> 0 | AG12: 0 | AI12: 1212 | AJ12: =COUNTIF(L87:L113,AI12) -> 0 | AK12: =AJ12/(AL4-AJ20) -> 0 | AL12: 0 | AN12: 1212 | AO12: =COUNTIF(L114:L139,AN12) -> 0 | AP12: =AO12/(AQ4-AO20) -> 0 | AQ12: 0 | AS12: 1212 | AT12: =COUNTIF(L140:L166,AS12) -> 0 | AU12: =AT12/(AV4-AT20) -> 0 | AV12: 0
A13: 12 | B13: 863 | C13: 14 | D13: 875 | E13: 13 | F13: 895 | G13: 23 | H13: 907 | K13: 0 | L13: 1112 | N13: 1221 | O13: 0 | P13: 0 | Q13: 0 | T13: 1221 | U13: =COUNTIF(L7:L33,T13) -> 0 | V13: =U13/(W4-U20) -> 0 | W13: 0 | Y13: 1221 | Z13: =COUNTIF(L34:L59,Y13) -> 0 | AA13: =Z13/(AB4-Z20) -> 0 | AB13: 0 | AD13: 1221 | AE13: =COUNTIF(L60:L86,AD13) -> 0 | AF13: =AE13/(AG4-AE20) -> 0 | AG13: 0 | AI13: 1221 | AJ13: =COUNTIF(L87:L113,AI13) -> 0 | AK13: =AJ13/(AL4-AJ20) -> 0 | AL13: 0 | AN13: 1221 | AO13: =COUNTIF(L114:L139,AN13) -> 0 | AP13: =AO13/(AQ4-AO20) -> 0 | AQ13: 0 | AS13: 1221 | AT13: =COUNTIF(L140:L166,AS13) -> 0 | AU13: =AT13/(AV4-AT20) -> 0 | AV13: 0
A14: 12 | B14: 1004 | C14: 14 | D14: 1015 | E14: 13 | F14: 1028 | G14: 23 | H14: 1038 | K14: 0 | L14: 1112 | N14: 1222 | O14: 11 | P14: 0.06875 | Q14: -0.2655466327 | T14: 1222 | U14: =COUNTIF(L7:L33,T14) -> 1 | V14: =U14/(W4-U20) -> 0.03703703704 | W14: -0.1761069445 | Y14: 1222 | Z14: =COUNTIF(L34:L59,Y14) -> 0 | AA14: =Z14/(AB4-Z20) -> 0 | AB14: 0 | AD14: 1222 | AE14: =COUNTIF(L60:L86,AD14) -> 2 | AF14: =AE14/(AG4-AE20) -> 0.07407407407 | AG14: -0.278139815 | AI14: 1222 | AJ14: =COUNTIF(L87:L113,AI14) -> 2 | AK14: =AJ14/(AL4-AJ20) -> 0.07407407407 | AL14: -0.278139815 | AN14: 1222 | AO14: =COUNTIF(L114:L139,AN14) -> 0 | AP14: =AO14/(AQ4-AO20) -> 0 | AQ14: 0 | AS14: 1222 | AT14: =COUNTIF(L140:L166,AS14) -> 6 | AU14: =AT14/(AV4-AT20) -> 0.2222222222 | AV14: -0.4822055559
A15: 12 | B15: 1137 | C15: 14 | D15: 1148 | E15: 24 | F15: 1162 | G15: 23 | H15: 1217 | K15: 0 | L15: 1122 | N15: 2111 | O15: 0 | P15: 0 | Q15: 0 | T15: 2111 | U15: =COUNTIF(L7:L33,T15) -> 0 | V15: =U15/(W4-U20) -> 0 | W15: 0 | Y15: 2111 | Z15: =COUNTIF(L34:L59,Y15) -> 0 | AA15: =Z15/(AB4-Z20) -> 0 | AB15: 0 | AD15: 2111 | AE15: =COUNTIF(L60:L86,AD15) -> 0 | AF15: =AE15/(AG4-AE20) -> 0 | AG15: 0 | AI15: 2111 | AJ15: =COUNTIF(L87:L113,AI15) -> 0 | AK15: =AJ15/(AL4-AJ20) -> 0 | AL15: 0 | AN15: 2111 | AO15: =COUNTIF(L114:L139,AN15) -> 0 | AP15: =AO15/(AQ4-AO20) -> 0 | AQ15: 0 | AS15: 2111 | AT15: =COUNTIF(L140:L166,AS15) -> 0 | AU15: =AT15/(AV4-AT20) -> 0 | AV15: 0
A16: 12 | B16: 1313 | C16: 14 | D16: 1324 | E16: 24 | F16: 1339 | G16: 23 | H16: 1346 | K16: 0 | L16: 1122 | N16: 2112 | O16: 0 | P16: 0 | Q16: 0 | T16: 2112 | U16: =COUNTIF(L7:L33,T16) -> 0 | V16: =U16/(W4-U20) -> 0 | W16: 0 | Y16: 2112 | Z16: =COUNTIF(L34:L59,Y16) -> 0 | AA16: =Z16/(AB4-Z20) -> 0 | AB16: 0 | AD16: 2112 | AE16: =COUNTIF(L60:L86,AD16) -> 0 | AF16: =AE16/(AG4-AE20) -> 0 | AG16: 0 | AI16: 2112 | AJ16: =COUNTIF(L87:L113,AI16) -> 0 | AK16: =AJ16/(AL4-AJ20) -> 0 | AL16: 0 | AN16: 2112 | AO16: =COUNTIF(L114:L139,AN16) -> 0 | AP16: =AO16/(AQ4-AO20) -> 0 | AQ16: 0 | AS16: 2112 | AT16: =COUNTIF(L140:L166,AS16) -> 0 | AU16: =AT16/(AV4-AT20) -> 0 | AV16: 0
A17: 12 | B17: 1443 | C17: 14 | D17: 1454 | E17: 13 | F17: 1465 | G17: 14 | H17: 1502 | K17: 0 | L17: 1111 | N17: 2121 | O17: 0 | P17: 0 | Q17: 0 | T17: 2121 | U17: =COUNTIF(L7:L33,T17) -> 0 | V17: =U17/(W4-U20) -> 0 | W17: 0 | Y17: 2121 | Z17: =COUNTIF(L34:L59,Y17) -> 0 | AA17: =Z17/(AB4-Z20) -> 0 | AB17: 0 | AD17: 2121 | AE17: =COUNTIF(L60:L86,AD17) -> 0 | AF17: =AE17/(AG4-AE20) -> 0 | AG17: 0 | AI17: 2121 | AJ17: =COUNTIF(L87:L113,AI17) -> 0 | AK17: =AJ17/(AL4-AJ20) -> 0 | AL17: 0 | AN17: 2121 | AO17: =COUNTIF(L114:L139,AN17) -> 0 | AP17: =AO17/(AQ4-AO20) -> 0 | AQ17: 0 | AS17: 2121 | AT17: =COUNTIF(L140:L166,AS17) -> 0 | AU17: =AT17/(AV4-AT20) -> 0 | AV17: 0
A18: 12 | B18: 1598 | C18: 14 | D18: 1611 | E18: 24 | F18: 1627 | G18: 23 | H18: 1639 | K18: 0 | L18: 1122 | N18: 2122 | O18: 0 | P18: 0 | Q18: 0 | T18: 2122 | U18: =COUNTIF(L7:L33,T18) -> 0 | V18: =U18/(W4-U20) -> 0 | W18: 0 | Y18: 2122 | Z18: =COUNTIF(L34:L59,Y18) -> 0 | AA18: =Z18/(AB4-Z20) -> 0 | AB18: 0 | AD18: 2122 | AE18: =COUNTIF(L60:L86,AD18) -> 0 | AF18: =AE18/(AG4-AE20) -> 0 | AG18: 0 | AI18: 2122 | AJ18: =COUNTIF(L87:L113,AI18) -> 0 | AK18: =AJ18/(AL4-AJ20) -> 0 | AL18: 0 | AN18: 2122 | AO18: =COUNTIF(L114:L139,AN18) -> 0 | AP18: =AO18/(AQ4-AO20) -> 0 | AQ18: 0 | AS18: 2122 | AT18: =COUNTIF(L140:L166,AS18) -> 0 | AU18: =AT18/(AV4-AT20) -> 0 | AV18: 0
A19: 12 | B19: 1750 | C19: 14 | D19: 1764 | E19: 13 | F19: 1791 | G19: 23 | H19: 1810 | K19: 0 | L19: 1112 | N19: 2211 | O19: 0 | P19: 0 | Q19: 0 | T19: 2211 | U19: =COUNTIF(L7:L33,T19) -> 0 | V19: =U19/(W4-U20) -> 0 | W19: 0 | Y19: 2211 | Z19: =COUNTIF(L34:L59,Y19) -> 0 | AA19: =Z19/(AB4-Z20) -> 0 | AB19: 0 | AD19: 2211 | AE19: =COUNTIF(L60:L86,AD19) -> 0 | AF19: =AE19/(AG4-AE20) -> 0 | AG19: 0 | AI19: 2211 | AJ19: =COUNTIF(L87:L113,AI19) -> 0 | AK19: =AJ19/(AL4-AJ20) -> 0 | AL19: 0 | AN19: 2211 | AO19: =COUNTIF(L114:L139,AN19) -> 0 | AP19: =AO19/(AQ4-AO20) -> 0 | AQ19: 0 | AS19: 2211 | AT19: =COUNTIF(L140:L166,AS19) -> 0 | AU19: =AT19/(AV4-AT20) -> 0 | AV19: 0
A20: 12 | B20: 1921 | C20: 14 | D20: 1933 | E20: 13 | F20: 1951 | G20: 23 | H20: 1972 | K20: 0 | L20: 1112 | N20: 2212 | O20: 0 | P20: 0 | Q20: 0 | T20: 2212 | U20: =COUNTIF(L7:L33,T20) -> 0 | Y20: 2212 | Z20: =COUNTIF(L34:L59,Y20) -> 0 | AD20: 2212 | AE20: =COUNTIF(L60:L86,AD20) -> 0 | AI20: 2212 | AJ20: =COUNTIF(L87:L113,AI20) -> 0 | AN20: 2212 | AO20: =COUNTIF(L114:L139,AN20) -> 0 | AS20: 2212 | AT20: =COUNTIF(L140:L166,AS20) -> 0
A21: 12 | B21: 2085 | C21: 14 | D21: 2105 | E21: 13 | F21: 2146 | G21: 23 | H21: 2161 | K21: 0 | L21: 1112 | N21: 2221 | O21: 0 | P21: 0 | Q21: 0 | T21: 2221 | U21: =COUNTIF(L7:L33,T21) -> 0 | V21: =U21/(W4-U20) -> 0 | W21: =IF(V21=0,0,(V21*((LOG(V21))/LOG(2)))) -> 0 | Y21: 2221 | Z21: =COUNTIF(L34:L59,Y21) -> 0 | AA21: =Z21/(AB4-Z20) -> 0 | AB21: =IF(AA21=0,0,(AA21*((LOG(AA21))/LOG(2)))) -> 0 | AD21: 2221 | AE21: =COUNTIF(L60:L86,AD21) -> 0 | AF21: =AE21/(AG4-AE20) -> 0 | AG21: =IF(AF21=0,0,(AF21*((LOG(AF21))/LOG(2)))) -> 0 | AI21: 2221 | AJ21: =COUNTIF(L87:L113,AI21) -> 0 | AK21: =AJ21/(AL4-AJ20) -> 0 | AL21: =IF(AK21=0,0,(AK21*((LOG(AK21))/LOG(2)))) -> 0 | AN21: 2221 | AO21: =COUNTIF(L114:L139,AN21) -> 0 | AP21: =AO21/(AQ4-AO20) -> 0 | AQ21: =IF(AP21=0,0,(AP21*((LOG(AP21))/LOG(2)))) -> 0 | AS21: 2221 | AT21: =COUNTIF(L140:L166,AS21) -> 0 | AU21: =AT21/(AV4-AT20) -> 0 | AV21: =IF(AU21=0,0,(AU21*((LOG(AU21))/LOG(2)))) -> 0
A22: 12 | B22: 2262 | C22: 14 | D22: 2273 | E22: 13 | F22: 2286 | G22: 14 | H22: 2297 | K22: 0 | L22: 1111 | N22: 2222 | O22: 0 | P22: 0 | Q22: 0 | T22: 2222 | U22: =COUNTIF(L7:L33,T22) -> 0 | V22: =U22/(W4-U20) -> 0 | W22: =IF(V22=0,0,(V22*((LOG(V22))/LOG(2)))) -> 0 | Y22: 2222 | Z22: =COUNTIF(L34:L59,Y22) -> 0 | AA22: =Z22/(AB4-Z20) -> 0 | AB22: =IF(AA22=0,0,(AA22*((LOG(AA22))/LOG(2)))) -> 0 | AD22: 2222 | AE22: =COUNTIF(L60:L86,AD22) -> 0 | AF22: =AE22/(AG4-AE20) -> 0 | AG22: =IF(AF22=0,0,(AF22*((LOG(AF22))/LOG(2)))) -> 0 | AI22: 2222 | AJ22: =COUNTIF(L87:L113,AI22) -> 0 | AK22: =AJ22/(AL4-AJ20) -> 0 | AL22: =IF(AK22=0,0,(AK22*((LOG(AK22))/LOG(2)))) -> 0 | AN22: 2222 | AO22: =COUNTIF(L114:L139,AN22) -> 0 | AP22: =AO22/(AQ4-AO20) -> 0 | AQ22: =IF(AP22=0,0,(AP22*((LOG(AP22))/LOG(2)))) -> 0 | AS22: 2222 | AT22: =COUNTIF(L140:L166,AS22) -> 0 | AU22: =AT22/(AV4-AT20) -> 0 | AV22: =IF(AU22=0,0,(AU22*((LOG(AU22))/LOG(2)))) -> 0
A23: 12 | B23: 2398 | C23: 14 | D23: 2433 | E23: 24 | F23: 2444 | G23: 23 | H23: 2451 | K23: 0 | L23: 1122 | P23: =SUM(P7:P22) -> 1 | Q23: =-SUM(Q7:Q22) -> 1.863346213 | V23: =SUM(V7:V22) -> 1 | W23: =-SUM(W7:W22) -> 1.715707635 | AA23: =SUM(AA7:AA22) -> 1 | AB23: =-SUM(AB7:AB22) -> 1.460484681 | AF23: =SUM(AF7:AF22) -> 1 | AG23: =-SUM(AG7:AG22) -> 1.379392956 | AK23: =SUM(AK7:AK22) -> 1 | AL23: =-SUM(AL7:AL22) -> 1.575913653 | AP23: =SUM(AP7:AP22) -> 1 | AQ23: =-SUM(AQ7:AQ22) -> 1.57662122 | AU23: =SUM(AU7:AU22) -> 1 | AV23: =-SUM(AV7:AV22) -> 1.702206599
A24: 12 | B24: 2543 | C24: 14 | D24: 2593 | E24: 13 | F24: 2607 | G24: 23 | H24: 2619 | K24: 0 | L24: 1112 | P24: U= | Q24: =Q23/(LOG(Q4)/LOG(2)) -> 0.2544884611 | V24: U1= | W24: =W23/(LOG(W4)/LOG(2)) -> 0.3608303318 | AA24: U2= | AB24: =AB23/(LOG(AB4)/LOG(2)) -> 0.3107123522 | AF24: U3= | AG24: =AG23/(LOG(AG4)/LOG(2)) -> 0.2901000192 | AK24: U4= | AL24: =AL23/(LOG(AL4)/LOG(2)) -> 0.331430271 | AP24: U5= | AQ24: =AQ23/(LOG(AQ4)/LOG(2)) -> 0.3354199425 | AU24: U6= | AV24: =AV23/(LOG(AV4)/LOG(2)) -> 0.35799093
A25: 12 | B25: 2715 | C25: 14 | D25: 2725 | E25: 24 | F25: 2746 | G25: 23 | H25: 2758 | K25: 0 | L25: 1122
A26: 12 | B26: 2859 | C26: 14 | D26: 2870 | E26: 24 | F26: 2887 | G26: 23 | H26: 2895 | K26: 0 | L26: 1122
A27: 12 | B27: 2991 | C27: 14 | D27: 3007 | E27: 24 | F27: 3057 | G27: 23 | H27: 3065 | K27: 0 | L27: 1122 | N27: Total Target Seq
A28: 12 | B28: 3174 | C28: 14 | D28: 3195 | E28: 13 | F28: 3206 | G28: 23 | H28: 3226 | K28: 0 | L28: 1112 | N28: =COUNTIF(L7:L166,G3) -> 0 | P28: 27 | Q28: 26 | R28: 27 | S28: 27 | T28: 26 | U28: 27
A29: 12 | B29: 3328 | C29: 14 | D29: 3338 | E29: 24 | F29: 3352 | G29: 23 | H29: 3360 | K29: 0 | L29: 1122 | P29: % of reinforcement given in 6 equal intervals based on number of trials
A30: 12 | B30: 3456 | C30: 14 | D30: 3468 | E30: 24 | F30: 3482 | G30: 23 | H30: 3493 | K30: 0 | L30: 1122 | P30: %_1 | Q30: %_2 | R30: %_3 | S30: %_4 | T30: %_5 | U30: %_6
A31: 12 | B31: 3591 | C31: 14 | D31: 3600 | E31: 13 | F31: 3610 | G31: 14 | H31: 3625 | K31: 0 | L31: 1111 | O31: target sequence | P31: =$G$3 -> 2212 | Q31: 2212 | R31: 2212 | S31: 2212 | T31: 2212 | U31: 2212
A32: 12 | B32: 3723 | C32: 14 | D32: 3742 | E32: 13 | F32: 3762 | G32: 23 | H32: 3775 | K32: 0 | L32: 1112 | O32: total reinforcement | P32: =U20 -> 0 | Q32: =Z20 -> 0 | R32: =AE20 -> 0 | S32: =AJ20 -> 0 | T32: =AO20 -> 0 | U32: =AT20 -> 0
A33: 12 | B33: 3880 | C33: 14 | D33: 3890 | E33: 24 | F33: 3910 | G33: 23 | H33: 3920 | K33: 0 | L33: 1122 | O33: % target
A34: 12 | B34: 4013 | C34: 14 | D34: 4037 | E34: 13 | F34: 4042 | G34: 23 | H34: 4061 | K34: 0 | L34: 1112 | O34: CCRF
A35: 12 | B35: 4165 | C35: 14 | D35: 4185 | E35: 24 | F35: 4216 | G35: 23 | H35: 4223 | K35: 0 | L35: 1122 | O35: % CCRf
A36: 12 | B36: 4325 | C36: 14 | D36: 4354 | E36: 13 | F36: 4365 | G36: 23 | H36: 4385 | K36: 0 | L36: 1112 | O36: average response rate | P36: =H33/P28 -> 145.1851852 | Q36: =(H59-H33)/Q28 -> 154.4615385 | R36: =(H86-H59)/R28 -> 151.8148148 | S36: =(H113-H86)/S28 -> 143.0740741 | T36: =(H139-H113)/T28 -> 148.1538462 | U36: =(H166-H139)/U28 -> 155.3703704
A37: 12 | B37: 4480 | C37: 14 | D37: 4489 | E37: 13 | F37: 4502 | G37: 14 | H37: 4517 | K37: 0 | L37: 1111
A38: 12 | B38: 4619 | C38: 14 | D38: 4675 | E38: 24 | F38: 4689 | G38: 23 | H38: 4695 | K38: 0 | L38: 1122
A39: 12 | B39: 4790 | C39: 14 | D39: 4813 | E39: 13 | F39: 4823 | G39: 14 | H39: 4835 | K39: 0 | L39: 1111
A40: 12 | B40: 4937 | C40: 14 | D40: 4950 | E40: 13 | F40: 4970 | G40: 14 | H40: 4980 | K40: 0 | L40: 1111
A41: 12 | B41: 5097 | C41: 14 | D41: 5111 | E41: 13 | F41: 5118 | G41: 14 | H41: 5132 | K41: 0 | L41: 1111
A42: 12 | B42: 5250 | C42: 14 | D42: 5264 | E42: 13 | F42: 5271 | G42: 14 | H42: 5282 | K42: 0 | L42: 1111
A43: 12 | B43: 5379 | C43: 14 | D43: 5398 | E43: 13 | F43: 5413 | G43: 23 | H43: 5436 | K43: 0 | L43: 1112
A44: 12 | B44: 5540 | C44: 14 | D44: 5567 | E44: 24 | F44: 5605 | G44: 23 | H44: 5611 | K44: 0 | L44: 1122
A45: 12 | B45: 5713 | C45: 14 | D45: 5724 | E45: 24 | F45: 5740 | G45: 23 | H45: 5748 | K45: 0 | L45: 1122
A46: 12 | B46: 5854 | C46: 14 | D46: 5882 | E46: 24 | F46: 5893 | G46: 23 | H46: 5901 | K46: 0 | L46: 1122
A47: 12 | B47: 6006 | C47: 14 | D47: 6017 | E47: 24 | F47: 6034 | G47: 23 | H47: 6042 | K47: 0 | L47: 1122
A48: 12 | B48: 6151 | C48: 14 | D48: 6165 | E48: 13 | F48: 6176 | G48: 14 | H48: 6187 | K48: 0 | L48: 1111
A49: 12 | B49: 6288 | C49: 14 | D49: 6299 | E49: 24 | F49: 6310 | G49: 23 | H49: 6318 | K49: 0 | L49: 1122
A50: 12 | B50: 6427 | C50: 14 | D50: 6438 | E50: 24 | F50: 6453 | G50: 23 | H50: 6460 | K50: 0 | L50: 1122
A51: 12 | B51: 6551 | C51: 14 | D51: 6564 | E51: 24 | F51: 6576 | G51: 23 | H51: 6584 | K51: 0 | L51: 1122
A52: 12 | B52: 6681 | C52: 14 | D52: 6688 | E52: 13 | F52: 6702 | G52: 14 | H52: 6714 | K52: 0 | L52: 1111
A53: 12 | B53: 6818 | C53: 14 | D53: 6832 | E53: 13 | F53: 6842 | G53: 14 | H53: 6866 | K53: 0 | L53: 1111
A54: 12 | B54: 6967 | C54: 14 | D54: 6978 | E54: 13 | F54: 6998 | G54: 14 | H54: 7012 | K54: 0 | L54: 1111
A55: 12 | B55: 7111 | C55: 14 | D55: 7126 | E55: 13 | F55: 7137 | G55: 14 | H55: 7162 | K55: 0 | L55: 1111
A56: 12 | B56: 7265 | C56: 14 | D56: 7347 | E56: 24 | F56: 7371 | G56: 23 | H56: 7379 | K56: 0 | L56: 1122
A57: 12 | B57: 7507 | C57: 14 | D57: 7519 | E57: 13 | F57: 7529 | G57: 23 | H57: 7562 | K57: 0 | L57: 1112
A58: 12 | B58: 7675 | C58: 14 | D58: 7686 | E58: 13 | F58: 7699 | G58: 14 | H58: 7714 | K58: 0 | L58: 1111
A59: 12 | B59: 7811 | C59: 14 | D59: 7840 | E59: 13 | F59: 7921 | G59: 14 | H59: 7936 | K59: 0 | L59: 1111
A60: 12 | B60: 8035 | C60: 14 | D60: 8052 | E60: 13 | F60: 8063 | G60: 23 | H60: 8079 | K60: 0 | L60: 1112
A61: 12 | B61: 8181 | C61: 14 | D61: 8196 | E61: 13 | F61: 8233 | G61: 14 | H61: 8249 | K61: 0 | L61: 1111
A62: 12 | B62: 8352 | C62: 14 | D62: 8363 | E62: 13 | F62: 8380 | G62: 14 | H62: 8393 | K62: 0 | L62: 1111
A63: 12 | B63: 8490 | C63: 14 | D63: 8500 | E63: 13 | F63: 8511 | G63: 23 | H63: 8526 | K63: 0 | L63: 1112
A64: 12 | B64: 8645 | C64: 14 | D64: 8665 | E64: 13 | F64: 8690 | G64: 14 | H64: 8704 | K64: 0 | L64: 1111
A65: 12 | B65: 8802 | C65: 14 | D65: 8828 | E65: 13 | F65: 8847 | G65: 14 | H65: 8867 | K65: 0 | L65: 1111
A66: 12 | B66: 8971 | C66: 14 | D66: 8981 | E66: 13 | F66: 8993 | G66: 14 | H66: 9015 | K66: 0 | L66: 1111
A67: 12 | B67: 9108 | C67: 14 | D67: 9121 | E67: 13 | F67: 9135 | G67: 14 | H67: 9150 | K67: 0 | L67: 1111
A68: 12 | B68: 9254 | C68: 14 | D68: 9288 | E68: 13 | F68: 9300 | G68: 23 | H68: 9314 | K68: 0 | L68: 1112
A69: 12 | B69: 9414 | C69: 14 | D69: 9434 | E69: 13 | F69: 9446 | G69: 14 | H69: 9461 | K69: 0 | L69: 1111
A70: 12 | B70: 9557 | C70: 14 | D70: 9569 | E70: 13 | F70: 9576 | G70: 14 | H70: 9590 | K70: 0 | L70: 1111
A71: 12 | B71: 9700 | C71: 14 | D71: 9713 | E71: 24 | F71: 9728 | G71: 23 | H71: 9737 | K71: 0 | L71: 1122
A72: 12 | B72: 9868 | C72: 14 | D72: 9887 | E72: 13 | F72: 9897 | G72: 23 | H72: 9910 | K72: 0 | L72: 1112
A73: 12 | B73: 10006 | C73: 14 | D73: 10030 | E73: 13 | F73: 10041 | G73: 23 | H73: 10060 | K73: 0 | L73: 1112
A74: 12 | B74: 10156 | C74: 14 | D74: 10168 | E74: 13 | F74: 10182 | G74: 14 | H74: 10194 | K74: 0 | L74: 1111
A75: 12 | B75: 10302 | C75: 23 | D75: 10326 | E75: 24 | F75: 10333 | G75: 23 | H75: 10340 | K75: 0 | L75: 1222
A76: 12 | B76: 10460 | C76: 14 | D76: 10475 | E76: 13 | F76: 10487 | G76: 14 | H76: 10499 | K76: 0 | L76: 1111
A77: 12 | B77: 10591 | C77: 14 | D77: 10625 | E77: 13 | F77: 10643 | G77: 14 | H77: 10655 | K77: 0 | L77: 1111
A78: 12 | B78: 10809 | C78: 14 | D78: 10850 | E78: 13 | F78: 10859 | G78: 23 | H78: 10874 | K78: 0 | L78: 1112
A79: 12 | B79: 10970 | C79: 14 | D79: 11008 | E79: 13 | F79: 11016 | G79: 14 | H79: 11031 | K79: 0 | L79: 1111
A80: 12 | B80: 11136 | C80: 23 | D80: 11156 | E80: 24 | F80: 11161 | G80: 23 | H80: 11167 | K80: 0 | L80: 1222
A81: 12 | B81: 11258 | C81: 14 | D81: 11284 | E81: 13 | F81: 11297 | G81: 14 | H81: 11309 | K81: 0 | L81: 1111
A82: 12 | B82: 11404 | C82: 14 | D82: 11412 | E82: 13 | F82: 11429 | G82: 14 | H82: 11444 | K82: 0 | L82: 1111
A83: 12 | B83: 11541 | C83: 14 | D83: 11551 | E83: 13 | F83: 11558 | G83: 14 | H83: 11571 | K83: 0 | L83: 1111
A84: 12 | B84: 11667 | C84: 14 | D84: 11677 | E84: 13 | F84: 11691 | G84: 14 | H84: 11705 | K84: 0 | L84: 1111
A85: 12 | B85: 11802 | C85: 14 | D85: 11861 | E85: 13 | F85: 11868 | G85: 14 | H85: 11897 | K85: 0 | L85: 1111
A86: 12 | B86: 11993 | C86: 14 | D86: 12005 | E86: 13 | F86: 12017 | G86: 23 | H86: 12035 | K86: 0 | L86: 1112
A87: 12 | B87: 12134 | C87: 14 | D87: 12143 | E87: 24 | F87: 12157 | G87: 23 | H87: 12169 | K87: 0 | L87: 1122
A88: 12 | B88: 12267 | C88: 14 | D88: 12289 | E88: 13 | F88: 12301 | G88: 14 | H88: 12315 | K88: 0 | L88: 1111
A89: 12 | B89: 12411 | C89: 14 | D89: 12440 | E89: 13 | F89: 12459 | G89: 23 | H89: 12472 | K89: 0 | L89: 1112
A90: 12 | B90: 12574 | C90: 14 | D90: 12585 | E90: 24 | F90: 12602 | G90: 23 | H90: 12612 | K90: 0 | L90: 1122
A91: 12 | B91: 12709 | C91: 14 | D91: 12730 | E91: 24 | F91: 12751 | G91: 23 | H91: 12759 | K91: 0 | L91: 1122
A92: 12 | B92: 12856 | C92: 14 | D92: 12858 | E92: 24 | F92: 12873 | G92: 23 | H92: 12892 | K92: 0 | L92: 1122
A93: 12 | B93: 12989 | C93: 14 | D93: 12999 | E93: 24 | F93: 13015 | G93: 23 | H93: 13023 | K93: 0 | L93: 1122
A94: 12 | B94: 13142 | C94: 23 | D94: 13157 | E94: 24 | F94: 13165 | G94: 23 | H94: 13176 | K94: 0 | L94: 1222
A95: 12 | B95: 13303 | C95: 23 | D95: 13345 | E95: 24 | F95: 13352 | G95: 23 | H95: 13359 | K95: 0 | L95: 1222
A96: 12 | B96: 13457 | C96: 14 | D96: 13470 | E96: 24 | F96: 13483 | G96: 23 | H96: 13490 | K96: 0 | L96: 1122
A97: 12 | B97: 13596 | C97: 14 | D97: 13606 | E97: 24 | F97: 13615 | G97: 23 | H97: 13622 | K97: 0 | L97: 1122
A98: 12 | B98: 13728 | C98: 14 | D98: 13758 | E98: 13 | F98: 13769 | G98: 23 | H98: 13783 | K98: 0 | L98: 1112
A99: 12 | B99: 13880 | C99: 14 | D99: 13900 | E99: 24 | F99: 13914 | G99: 23 | H99: 13923 | K99: 0 | L99: 1122
A100: 12 | B100: 14025 | C100: 14 | D100: 14036 | E100: 13 | F100: 14057 | G100: 23 | H100: 14076 | K100: 0 | L100: 1112
A101: 12 | B101: 14173 | C101: 14 | D101: 14186 | E101: 13 | F101: 14197 | G101: 23 | H101: 14213 | K101: 0 | L101: 1112
A102: 12 | B102: 14309 | C102: 14 | D102: 14329 | E102: 24 | F102: 14344 | G102: 23 | H102: 14351 | K102: 0 | L102: 1122
A103: 12 | B103: 14447 | C103: 14 | D103: 14469 | E103: 24 | F103: 14482 | G103: 23 | H103: 14489 | K103: 0 | L103: 1122
A104: 12 | B104: 14593 | C104: 14 | D104: 14619 | E104: 13 | F104: 14640 | G104: 14 | H104: 14650 | K104: 0 | L104: 1111
A105: 12 | B105: 14750 | C105: 14 | D105: 14761 | E105: 13 | F105: 14773 | G105: 23 | H105: 14789 | K105: 0 | L105: 1112
A106: 12 | B106: 14887 | C106: 14 | D106: 14901 | E106: 13 | F106: 14911 | G106: 23 | H106: 14922 | K106: 0 | L106: 1112
A107: 12 | B107: 15021 | C107: 14 | D107: 15035 | E107: 24 | F107: 15046 | G107: 23 | H107: 15052 | K107: 0 | L107: 1122
A108: 12 | B108: 15150 | C108: 14 | D108: 15162 | E108: 13 | F108: 15177 | G108: 23 | H108: 15195 | K108: 0 | L108: 1112
A109: 12 | B109: 15296 | C109: 14 | D109: 15307 | E109: 24 | F109: 15323 | G109: 23 | H109: 15330 | K109: 0 | L109: 1122
A110: 12 | B110: 15428 | C110: 14 | D110: 15442 | E110: 13 | F110: 15453 | G110: 23 | H110: 15466 | K110: 0 | L110: 1112
A111: 12 | B111: 15579 | C111: 14 | D111: 15591 | E111: 24 | F111: 15614 | G111: 23 | H111: 15625 | K111: 0 | L111: 1122
A112: 12 | B112: 15724 | C112: 14 | D112: 15736 | E112: 13 | F112: 15750 | G112: 23 | H112: 15766 | K112: 0 | L112: 1112
A113: 12 | B113: 15862 | C113: 14 | D113: 15880 | E113: 24 | F113: 15888 | G113: 23 | H113: 15898 | K113: 0 | L113: 1122
A114: 12 | B114: 15995 | C114: 14 | D114: 16010 | E114: 13 | F114: 16021 | G114: 23 | H114: 16032 | K114: 0 | L114: 1112
A115: 12 | B115: 16129 | C115: 14 | D115: 16169 | E115: 13 | F115: 16185 | G115: 23 | H115: 16209 | K115: 0 | L115: 1112
A116: 12 | B116: 16304 | C116: 14 | D116: 16315 | E116: 13 | F116: 16330 | G116: 23 | H116: 16344 | K116: 0 | L116: 1112
A117: 12 | B117: 16438 | C117: 14 | D117: 16452 | E117: 13 | F117: 16472 | G117: 14 | H117: 16493 | K117: 0 | L117: 1111
A118: 12 | B118: 16592 | C118: 14 | D118: 16618 | E118: 24 | F118: 16633 | G118: 23 | H118: 16640 | K118: 0 | L118: 1122
A119: 12 | B119: 16741 | C119: 14 | D119: 16752 | E119: 13 | F119: 16768 | G119: 23 | H119: 16780 | K119: 0 | L119: 1112
A120: 12 | B120: 16876 | C120: 14 | D120: 16901 | E120: 24 | F120: 16912 | G120: 23 | H120: 16917 | K120: 0 | L120: 1122
A121: 12 | B121: 17021 | C121: 14 | D121: 17045 | E121: 13 | F121: 17056 | G121: 23 | H121: 17068 | K121: 0 | L121: 1112
A122: 12 | B122: 17162 | C122: 14 | D122: 17173 | E122: 24 | F122: 17184 | G122: 23 | H122: 17194 | K122: 0 | L122: 1122
A123: 12 | B123: 17290 | C123: 14 | D123: 17310 | E123: 13 | F123: 17328 | G123: 23 | H123: 17349 | K123: 0 | L123: 1112
A124: 12 | B124: 17452 | C124: 14 | D124: 17476 | E124: 24 | F124: 17491 | G124: 23 | H124: 17500 | K124: 0 | L124: 1122
A125: 12 | B125: 17603 | C125: 14 | D125: 17614 | E125: 24 | F125: 17627 | G125: 23 | H125: 17634 | K125: 0 | L125: 1122
A126: 12 | B126: 17739 | C126: 14 | D126: 17757 | E126: 24 | F126: 17774 | G126: 23 | H126: 17781 | K126: 0 | L126: 1122
A127: 12 | B127: 17887 | C127: 14 | D127: 17902 | E127: 13 | F127: 17918 | G127: 23 | H127: 17930 | K127: 0 | L127: 1112
A128: 12 | B128: 18048 | C128: 14 | D128: 18049 | E128: 13 | F128: 18064 | G128: 23 | H128: 18080 | K128: 0 | L128: 1112
A129: 12 | B129: 18194 | C129: 14 | D129: 18207 | E129: 13 | F129: 18217 | G129: 14 | H129: 18220 | K129: 0 | L129: 1111
A130: 12 | B130: 18346 | C130: 14 | D130: 18364 | E130: 13 | F130: 18383 | G130: 14 | H130: 18401 | K130: 0 | L130: 1111
A131: 12 | B131: 18501 | C131: 14 | D131: 18514 | E131: 13 | F131: 18529 | G131: 23 | H131: 18547 | K131: 0 | L131: 1112
A132: 12 | B132: 18640 | C132: 14 | D132: 18660 | E132: 13 | F132: 18681 | G132: 23 | H132: 18698 | K132: 0 | L132: 1112
A133: 12 | B133: 18796 | C133: 14 | D133: 18821 | E133: 13 | F133: 18834 | G133: 14 | H133: 18847 | K133: 0 | L133: 1111
A134: 12 | B134: 18959 | C134: 14 | D134: 18977 | E134: 24 | F134: 18996 | G134: 23 | H134: 19007 | K134: 0 | L134: 1122
A135: 12 | B135: 19105 | C135: 14 | D135: 19118 | E135: 13 | F135: 19132 | G135: 14 | H135: 19145 | K135: 0 | L135: 1111
A136: 12 | B136: 19245 | C136: 14 | D136: 19267 | E136: 24 | F136: 19283 | G136: 23 | H136: 19290 | K136: 0 | L136: 1122
A137: 12 | B137: 19389 | C137: 14 | D137: 19396 | E137: 13 | F137: 19408 | G137: 14 | H137: 19422 | K137: 0 | L137: 1111
A138: 12 | B138: 19553 | C138: 14 | D138: 19570 | E138: 13 | F138: 19585 | G138: 14 | H138: 19605 | K138: 0 | L138: 1111
A139: 12 | B139: 19702 | C139: 14 | D139: 19712 | E139: 13 | F139: 19736 | G139: 14 | H139: 19750 | K139: 0 | L139: 1111
A140: 12 | B140: 19853 | C140: 14 | D140: 19871 | E140: 24 | F140: 19885 | G140: 23 | H140: 19892 | K140: 0 | L140: 1122
A141: 12 | B141: 20017 | C141: 14 | D141: 20037 | E141: 24 | F141: 20053 | G141: 23 | H141: 20064 | K141: 0 | L141: 1122
A142: 12 | B142: 20160 | C142: 14 | D142: 20178 | E142: 13 | F142: 20195 | G142: 23 | H142: 20218 | K142: 0 | L142: 1112
A143: 12 | B143: 20332 | C143: 23 | D143: 20357 | E143: 24 | F143: 20364 | G143: 23 | H143: 20371 | K143: 0 | L143: 1222
A144: 12 | B144: 20464 | C144: 14 | D144: 20496 | E144: 13 | F144: 20514 | G144: 14 | H144: 20544 | K144: 0 | L144: 1111
A145: 12 | B145: 20699 | C145: 14 | D145: 20713 | E145: 24 | F145: 20724 | G145: 23 | H145: 20731 | K145: 0 | L145: 1122
A146: 12 | B146: 20840 | C146: 14 | D146: 20853 | E146: 24 | F146: 20873 | G146: 23 | H146: 20881 | K146: 0 | L146: 1122
A147: 12 | B147: 20993 | C147: 14 | D147: 21004 | E147: 24 | F147: 21015 | G147: 23 | H147: 21023 | K147: 0 | L147: 1122
A148: 12 | B148: 21122 | C148: 14 | D148: 21148 | E148: 24 | F148: 21162 | G148: 23 | H148: 21169 | K148: 0 | L148: 1122
A149: 12 | B149: 21265 | C149: 14 | D149: 21274 | E149: 24 | F149: 21285 | G149: 23 | H149: 21292 | K149: 0 | L149: 1122
A150: 12 | B150: 21388 | C150: 14 | D150: 21429 | E150: 24 | F150: 21442 | G150: 23 | H150: 21450 | K150: 0 | L150: 1122
A151: 12 | B151: 21563 | C151: 23 | D151: 21611 | E151: 24 | F151: 21618 | G151: 23 | H151: 21625 | K151: 0 | L151: 1222
A152: 12 | B152: 21769 | C152: 23 | D152: 21785 | E152: 24 | F152: 21792 | G152: 23 | H152: 21798 | K152: 0 | L152: 1222
A153: 12 | B153: 21894 | C153: 14 | D153: 21909 | E153: 24 | F153: 21921 | G153: 23 | H153: 21928 | K153: 0 | L153: 1122
A154: 12 | B154: 22040 | C154: 23 | D154: 22068 | E154: 24 | F154: 22077 | G154: 23 | H154: 22084 | K154: 0 | L154: 1222
A155: 12 | B155: 22185 | C155: 14 | D155: 22204 | E155: 24 | F155: 22216 | G155: 23 | H155: 22222 | K155: 0 | L155: 1122
A156: 12 | B156: 22318 | C156: 14 | D156: 22346 | E156: 24 | F156: 22367 | G156: 23 | H156: 22377 | K156: 0 | L156: 1122
A157: 12 | B157: 22494 | C157: 14 | D157: 22519 | E157: 13 | F157: 22532 | G157: 23 | H157: 22556 | K157: 0 | L157: 1112
A158: 12 | B158: 22668 | C158: 23 | D158: 22684 | E158: 24 | F158: 22693 | G158: 23 | H158: 22699 | K158: 0 | L158: 1222
A159: 12 | B159: 22812 | C159: 14 | D159: 22823 | E159: 13 | F159: 22828 | G159: 23 | H159: 22843 | K159: 0 | L159: 1112
A160: 12 | B160: 22960 | C160: 23 | D160: 22979 | E160: 24 | F160: 22989 | G160: 23 | H160: 22996 | K160: 0 | L160: 1222
A161: 12 | B161: 23093 | C161: 14 | D161: 23112 | E161: 24 | F161: 23123 | G161: 23 | H161: 23130 | K161: 0 | L161: 1122
A162: 12 | B162: 23238 | C162: 14 | D162: 23249 | E162: 13 | F162: 23273 | G162: 23 | H162: 23287 | K162: 0 | L162: 1112
A163: 12 | B163: 23402 | C163: 14 | D163: 23431 | E163: 13 | F163: 23433 | G163: 23 | H163: 23457 | K163: 0 | L163: 1112
A164: 12 | B164: 23589 | C164: 14 | D164: 23600 | E164: 24 | F164: 23612 | G164: 23 | H164: 23620 | K164: 0 | L164: 1122
A165: 12 | B165: 23716 | C165: 14 | D165: 23736 | E165: 13 | F165: 23746 | G165: 14 | H165: 23770 | K165: 0 | L165: 1111
A166: 12 | B166: 23910 | C166: 14 | D166: 23921 | E166: 24 | F166: 23938 | G166: 23 | H166: 23945 | L166: 1122

Sheet !M804A00.010
A1: Report for:!M804A00.010
A2: Date: | B2: <date>
A3: Hen: | B3: <hen> | F3: Correct Sequence | G3: =Start!J2 -> 2212 | P3: Total Sequences in Data | Q3: =4994-COUNTBLANK(L7:L5000) -> 148 | V3: Total Sequences in Block Data | W3: =COUNTA(L7:L31) -> 25 | AA3: Total Sequences in Block Data | AB3: =COUNTA(L32:L55) -> 24 | AF3: Total Sequences in Block Data | AG3: =COUNTA(L56:L80) -> 25 | AK3: Total Sequences in Block Data | AL3: =COUNTA(L81:L105) -> 25 | AP3: Total Sequences in Block Data | AQ3: =COUNTA(L106:L129) -> 24 | AU3: Total Sequences in Block Data | AV3: =COUNTA(L130:L154) -> 25
P4: Total Sequences in Summary | Q4: =SUM(O7:O22) -> 148 | V4: Total Sequences in Block Summary | W4: =SUM(U7:U22) -> 25 | AA4: Total Sequences in Block Summary | AB4: =SUM(Z7:Z22) -> 24 | AF4: Total Sequences in Block Summary | AG4: =SUM(AE7:AE22) -> 25 | AK4: Total Sequences in Block Summary | AL4: =SUM(AJ7:AJ22) -> 25 | AP4: Total Sequences in Block Summary | AQ4: =SUM(AO7:AO22) -> 24 | AU4: Total Sequences in Block Summary | AV4: =SUM(AT7:AT22) -> 25
T5: Block 1 | Y5: Block 2 | AD5: Block 3 | AI5: Block 4 | AN5: Block 5 | AS5: Block 6
A6: Sequence Component 1 | B6: Time 1 | C6: Sequence Component 2 | D6: Time 2 | E6: Sequence Component 3 | F6: Time 3 | G6: Sequence Component 4 | H6: Time 4 | I6: Sequence Component 5 | J6: Time 5 | K6: Correct? 0=No 1=Yes | L6: Sequence | N6: Frequency | P6: Relative Frequency | Q6: Variability | T6: Frequency | V6: Relative Frequency | W6: Variability | Y6: Frequency | AA6: Relative Frequency | AB6: Variability | AD6: Frequency | AF6: Relative Frequency | AG6: Variability | AI6: Frequency | AK6: Relative Frequency | AL6: Variability | AN6: Frequency | AP6: Relative Frequency | AQ6: Variability | AS6: Frequency | AU6: Relative Frequency | AV6: Variability
A7: 12 | B7: 54 | C7: 23 | D7: 75 | E7: 24 | F7: 91 | G7: 23 | H7: 100 | K7: 0 | L7: 1222 | N7: 1111 | O7: =COUNTIF($L$7:$L$500,N7) -> 78 | P7: =O7/$Q$4 -> 0.527027027 | Q7: =IF(P7=0,0,(P7*((LOG(P7))/LOG(2)))) -> -0.4869999287 | T7: =N7 -> 1111 | U7: =COUNTIF(L7:L31,T7) -> 6 | V7: =U7/(W4-U20) -> 0.24 | W7: =IF(V7=0,0,(V7*((LOG(V7))/LOG(2)))) -> -0.4941344854 | Y7: =N7 -> 1111 | Z7: =COUNTIF(L32:L55,Y7) -> 9 | AA7: =Z7/(AB4-Z20) -> 0.375 | AB7: =IF(AA7=0,0,(AA7*((LOG(AA7))/LOG(2)))) -> -0.5306390622 | AD7: =N7 -> 1111 | AE7: =COUNTIF(L56:L80,AD7) -> 22 | AF7: =AE7/(AG4-AE20) -> 0.88 | AG7: =IF(AF7=0,0,(AF7*((LOG(AF7))/LOG(2)))) -> -0.1622936226 | AI7: =N7 -> 1111 | AJ7: =COUNTIF(L81:L105,AI7) -> 15 | AK7: =AJ7/(AL4-AJ20) -> 0.6 | AL7: =IF(AK7=0,0,(AK7*((LOG(AK7))/LOG(2)))) -> -0.4421793565 | AN7: =N7 -> 1111 | AO7: =COUNTIF(L106:L129,AN7) -> 7 | AP7: =AO7/(AQ4-AO20) -> 0.2916666667 | AQ7: =IF(AP7=0,0,(AP7*((LOG(AP7))/LOG(2)))) -> -0.5184688771 | AS7: =N7 -> 1111 | AT7: =COUNTIF(L130:L154,AS7) -> 19 | AU7: =AT7/(AV4-AT20) -> 0.76 | AV7: =IF(AU7=0,0,(AU7*((LOG(AU7))/LOG(2)))) -> -0.300905794
A8: 21 | B8: 224 | C8: 21 | D8: 232 | E8: 22 | F8: 238 | G8: 23 | H8: 245 | K8: 0 | L8: 2222 | N8: 1112 | O8: 27 | P8: 0.1824324324 | Q8: -0.447792421 | T8: 1112 | U8: =COUNTIF(L7:L31,T8) -> 7 | V8: =U8/(W4-U20) -> 0.28 | W8: -0.514220355 | Y8: 1112 | Z8: =COUNTIF(L32:L55,Y8) -> 6 | AA8: =Z8/(AB4-Z20) -> 0.25 | AB8: -0.5 | AD8: 1112 | AE8: =COUNTIF(L56:L80,AD8) -> 2 | AF8: =AE8/(AG4-AE20) -> 0.08 | AG8: -0.2915084952 | AI8: 1112 | AJ8: =COUNTIF(L81:L105,AI8) -> 5 | AK8: =AJ8/(AL4-AJ20) -> 0.2 | AL8: -0.464385619 | AN8: 1112 | AO8: =COUNTIF(L106:L129,AN8) -> 4 | AP8: =AO8/(AQ4-AO20) -> 0.1666666667 | AQ8: -0.4308270835 | AS8: 1112 | AT8: =COUNTIF(L130:L154,AS8) -> 3 | AU8: =AT8/(AV4-AT20) -> 0.12 | AV8: -0.3670672427
A9: 12 | B9: 346 | C9: 14 | D9: 357 | E9: 13 | F9: 370 | G9: 23 | H9: 387 | K9: 0 | L9: 1112 | N9: 1121 | O9: 0 | P9: 0 | Q9: 0 | T9: 1121 | U9: =COUNTIF(L7:L31,T9) -> 0 | V9: =U9/(W4-U20) -> 0 | W9: 0 | Y9: 1121 | Z9: =COUNTIF(L32:L55,Y9) -> 0 | AA9: =Z9/(AB4-Z20) -> 0 | AB9: 0 | AD9: 1121 | AE9: =COUNTIF(L56:L80,AD9) -> 0 | AF9: =AE9/(AG4-AE20) -> 0 | AG9: 0 | AI9: 1121 | AJ9: =COUNTIF(L81:L105,AI9) -> 0 | AK9: =AJ9/(AL4-AJ20) -> 0 | AL9: 0 | AN9: 1121 | AO9: =COUNTIF(L106:L129,AN9) -> 0 | AP9: =AO9/(AQ4-AO20) -> 0 | AQ9: 0 | AS9: 1121 | AT9: =COUNTIF(L130:L154,AS9) -> 0 | AU9: =AT9/(AV4-AT20) -> 0 | AV9: 0
A10: 12 | B10: 496 | C10: 14 | D10: 508 | E10: 24 | F10: 526 | G10: 23 | H10: 539 | K10: 0 | L10: 1122 | N10: 1122 | O10: 31 | P10: 0.2094594595 | Q10: -0.4723849237 | T10: 1122 | U10: =COUNTIF(L7:L31,T10) -> 10 | V10: =U10/(W4-U20) -> 0.4 | W10: -0.528771238 | Y10: 1122 | Z10: =COUNTIF(L32:L55,Y10) -> 8 | AA10: =Z10/(AB4-Z20) -> 0.3333333333 | AB10: -0.5283208336 | AD10: 1122 | AE10: =COUNTIF(L56:L80,AD10) -> 1 | AF10: =AE10/(AG4-AE20) -> 0.04 | AG10: -0.1857542476 | AI10: 1122 | AJ10: =COUNTIF(L81:L105,AI10) -> 4 | AK10: =AJ10/(AL4-AJ20) -> 0.16 | AL10: -0.4230169904 | AN10: 1122 | AO10: =COUNTIF(L106:L129,AN10) -> 8 | AP10: =AO10/(AQ4-AO20) -> 0.3333333333 | AQ10: -0.5283208336 | AS10: 1122 | AT10: =COUNTIF(L130:L154,AS10) -> 0 | AU10: =AT10/(AV4-AT20) -> 0 | AV10: 0
A11: 12 | B11: 656 | C11: 14 | D11: 669 | E11: 24 | F11: 684 | G11: 23 | H11: 696 | K11: 0 | L11: 1122 | N11: 1211 | O11: 0 | P11: 0 | Q11: 0 | T11: 1211 | U11: =COUNTIF(L7:L31,T11) -> 0 | V11: =U11/(W4-U20) -> 0 | W11: 0 | Y11: 1211 | Z11: =COUNTIF(L32:L55,Y11) -> 0 | AA11: =Z11/(AB4-Z20) -> 0 | AB11: 0 | AD11: 1211 | AE11: =COUNTIF(L56:L80,AD11) -> 0 | AF11: =AE11/(AG4-AE20) -> 0 | AG11: 0 | AI11: 1211 | AJ11: =COUNTIF(L81:L105,AI11) -> 0 | AK11: =AJ11/(AL4-AJ20) -> 0 | AL11: 0 | AN11: 1211 | AO11: =COUNTIF(L106:L129,AN11) -> 0 | AP11: =AO11/(AQ4-AO20) -> 0 | AQ11: 0 | AS11: 1211 | AT11: =COUNTIF(L130:L154,AS11) -> 0 | AU11: =AT11/(AV4-AT20) -> 0 | AV11: 0
A12: 12 | B12: 792 | C12: 14 | D12: 804 | E12: 24 | F12: 816 | G12: 23 | H12: 823 | K12: 0 | L12: 1122 | N12: 1212 | O12: 0 | P12: 0 | Q12: 0 | T12: 1212 | U12: =COUNTIF(L7:L31,T12) -> 0 | V12: =U12/(W4-U20) -> 0 | W12: 0 | Y12: 1212 | Z12: =COUNTIF(L32:L55,Y12) -> 0 | AA12: =Z12/(AB4-Z20) -> 0 | AB12: 0 | AD12: 1212 | AE12: =COUNTIF(L56:L80,AD12) -> 0 | AF12: =AE12/(AG4-AE20) -> 0 | AG12: 0 | AI12: 1212 | AJ12: =COUNTIF(L81:L105,AI12) -> 0 | AK12: =AJ12/(AL4-AJ20) -> 0 | AL12: 0 | AN12: 1212 | AO12: =COUNTIF(L106:L129,AN12) -> 0 | AP12: =AO12/(AQ4-AO20) -> 0 | AQ12: 0 | AS12: 1212 | AT12: =COUNTIF(L130:L154,AS12) -> 0 | AU12: =AT12/(AV4-AT20) -> 0 | AV12: 0
A13: 12 | B13: 925 | C13: 14 | D13: 935 | E13: 24 | F13: 950 | G13: 23 | H13: 958 | K13: 0 | L13: 1122 | N13: 1221 | O13: 0 | P13: 0 | Q13: 0 | T13: 1221 | U13: =COUNTIF(L7:L31,T13) -> 0 | V13: =U13/(W4-U20) -> 0 | W13: 0 | Y13: 1221 | Z13: =COUNTIF(L32:L55,Y13) -> 0 | AA13: =Z13/(AB4-Z20) -> 0 | AB13: 0 | AD13: 1221 | AE13: =COUNTIF(L56:L80,AD13) -> 0 | AF13: =AE13/(AG4-AE20) -> 0 | AG13: 0 | AI13: 1221 | AJ13: =COUNTIF(L81:L105,AI13) -> 0 | AK13: =AJ13/(AL4-AJ20) -> 0 | AL13: 0 | AN13: 1221 | AO13: =COUNTIF(L106:L129,AN13) -> 0 | AP13: =AO13/(AQ4-AO20) -> 0 | AQ13: 0 | AS13: 1221 | AT13: =COUNTIF(L130:L154,AS13) -> 0 | AU13: =AT13/(AV4-AT20) -> 0 | AV13: 0
A14: 12 | B14: 1057 | C14: 14 | D14: 1070 | E14: 24 | F14: 1083 | G14: 23 | H14: 1089 | K14: 0 | L14: 1122 | N14: 1222 | O14: 11 | P14: 0.07432432432 | Q14: -0.2787178325 | T14: 1222 | U14: =COUNTIF(L7:L31,T14) -> 1 | V14: =U14/(W4-U20) -> 0.04 | W14: -0.1857542476 | Y14: 1222 | Z14: =COUNTIF(L32:L55,Y14) -> 1 | AA14: =Z14/(AB4-Z20) -> 0.04166666667 | AB14: -0.1910401042 | AD14: 1222 | AE14: =COUNTIF(L56:L80,AD14) -> 0 | AF14: =AE14/(AG4-AE20) -> 0 | AG14: 0 | AI14: 1222 | AJ14: =COUNTIF(L81:L105,AI14) -> 1 | AK14: =AJ14/(AL4-AJ20) -> 0.04 | AL14: -0.1857542476 | AN14: 1222 | AO14: =COUNTIF(L106:L129,AN14) -> 5 | AP14: =AO14/(AQ4-AO20) -> 0.2083333333 | AQ14: -0.4714655012 | AS14: 1222 | AT14: =COUNTIF(L130:L154,AS14) -> 3 | AU14: =AT14/(AV4-AT20) -> 0.12 | AV14: -0.3670672427
A15: 12 | B15: 1185 | C15: 14 | D15: 1193 | E15: 13 | F15: 1205 | G15: 14 | H15: 1221 | K15: 0 | L15: 1111 | N15: 2111 | O15: 0 | P15: 0 | Q15: 0 | T15: 2111 | U15: =COUNTIF(L7:L31,T15) -> 0 | V15: =U15/(W4-U20) -> 0 | W15: 0 | Y15: 2111 | Z15: =COUNTIF(L32:L55,Y15) -> 0 | AA15: =Z15/(AB4-Z20) -> 0 | AB15: 0 | AD15: 2111 | AE15: =COUNTIF(L56:L80,AD15) -> 0 | AF15: =AE15/(AG4-AE20) -> 0 | AG15: 0 | AI15: 2111 | AJ15: =COUNTIF(L81:L105,AI15) -> 0 | AK15: =AJ15/(AL4-AJ20) -> 0 | AL15: 0 | AN15: 2111 | AO15: =COUNTIF(L106:L129,AN15) -> 0 | AP15: =AO15/(AQ4-AO20) -> 0 | AQ15: 0 | AS15: 2111 | AT15: =COUNTIF(L130:L154,AS15) -> 0 | AU15: =AT15/(AV4-AT20) -> 0 | AV15: 0
A16: 12 | B16: 1324 | C16: 14 | D16: 1336 | E16: 13 | F16: 1352 | G16: 14 | H16: 1369 | K16: 0 | L16: 1111 | N16: 2112 | O16: 0 | P16: 0 | Q16: 0 | T16: 2112 | U16: =COUNTIF(L7:L31,T16) -> 0 | V16: =U16/(W4-U20) -> 0 | W16: 0 | Y16: 2112 | Z16: =COUNTIF(L32:L55,Y16) -> 0 | AA16: =Z16/(AB4-Z20) -> 0 | AB16: 0 | AD16: 2112 | AE16: =COUNTIF(L56:L80,AD16) -> 0 | AF16: =AE16/(AG4-AE20) -> 0 | AG16: 0 | AI16: 2112 | AJ16: =COUNTIF(L81:L105,AI16) -> 0 | AK16: =AJ16/(AL4-AJ20) -> 0 | AL16: 0 | AN16: 2112 | AO16: =COUNTIF(L106:L129,AN16) -> 0 | AP16: =AO16/(AQ4-AO20) -> 0 | AQ16: 0 | AS16: 2112 | AT16: =COUNTIF(L130:L154,AS16) -> 0 | AU16: =AT16/(AV4-AT20) -> 0 | AV16: 0
A17: 12 | B17: 1531 | C17: 14 | D17: 1542 | E17: 13 | F17: 1555 | G17: 23 | H17: 1578 | K17: 0 | L17: 1112 | N17: 2121 | O17: 0 | P17: 0 | Q17: 0 | T17: 2121 | U17: =COUNTIF(L7:L31,T17) -> 0 | V17: =U17/(W4-U20) -> 0 | W17: 0 | Y17: 2121 | Z17: =COUNTIF(L32:L55,Y17) -> 0 | AA17: =Z17/(AB4-Z20) -> 0 | AB17: 0 | AD17: 2121 | AE17: =COUNTIF(L56:L80,AD17) -> 0 | AF17: =AE17/(AG4-AE20) -> 0 | AG17: 0 | AI17: 2121 | AJ17: =COUNTIF(L81:L105,AI17) -> 0 | AK17: =AJ17/(AL4-AJ20) -> 0 | AL17: 0 | AN17: 2121 | AO17: =COUNTIF(L106:L129,AN17) -> 0 | AP17: =AO17/(AQ4-AO20) -> 0 | AQ17: 0 | AS17: 2121 | AT17: =COUNTIF(L130:L154,AS17) -> 0 | AU17: =AT17/(AV4-AT20) -> 0 | AV17: 0
A18: 12 | B18: 1681 | C18: 14 | D18: 1696 | E18: 24 | F18: 1710 | G18: 23 | H18: 1718 | K18: 0 | L18: 1122 | N18: 2122 | O18: 0 | P18: 0 | Q18: 0 | T18: 2122 | U18: =COUNTIF(L7:L31,T18) -> 0 | V18: =U18/(W4-U20) -> 0 | W18: 0 | Y18: 2122 | Z18: =COUNTIF(L32:L55,Y18) -> 0 | AA18: =Z18/(AB4-Z20) -> 0 | AB18: 0 | AD18: 2122 | AE18: =COUNTIF(L56:L80,AD18) -> 0 | AF18: =AE18/(AG4-AE20) -> 0 | AG18: 0 | AI18: 2122 | AJ18: =COUNTIF(L81:L105,AI18) -> 0 | AK18: =AJ18/(AL4-AJ20) -> 0 | AL18: 0 | AN18: 2122 | AO18: =COUNTIF(L106:L129,AN18) -> 0 | AP18: =AO18/(AQ4-AO20) -> 0 | AQ18: 0 | AS18: 2122 | AT18: =COUNTIF(L130:L154,AS18) -> 0 | AU18: =AT18/(AV4-AT20) -> 0 | AV18: 0
A19: 12 | B19: 1816 | C19: 14 | D19: 1829 | E19: 13 | F19: 1845 | G19: 23 | H19: 1865 | K19: 0 | L19: 1112 | N19: 2211 | O19: 0 | P19: 0 | Q19: 0 | T19: 2211 | U19: =COUNTIF(L7:L31,T19) -> 0 | V19: =U19/(W4-U20) -> 0 | W19: 0 | Y19: 2211 | Z19: =COUNTIF(L32:L55,Y19) -> 0 | AA19: =Z19/(AB4-Z20) -> 0 | AB19: 0 | AD19: 2211 | AE19: =COUNTIF(L56:L80,AD19) -> 0 | AF19: =AE19/(AG4-AE20) -> 0 | AG19: 0 | AI19: 2211 | AJ19: =COUNTIF(L81:L105,AI19) -> 0 | AK19: =AJ19/(AL4-AJ20) -> 0 | AL19: 0 | AN19: 2211 | AO19: =COUNTIF(L106:L129,AN19) -> 0 | AP19: =AO19/(AQ4-AO20) -> 0 | AQ19: 0 | AS19: 2211 | AT19: =COUNTIF(L130:L154,AS19) -> 0 | AU19: =AT19/(AV4-AT20) -> 0 | AV19: 0
A20: 12 | B20: 1964 | C20: 14 | D20: 1978 | E20: 24 | F20: 1989 | G20: 23 | H20: 1996 | K20: 0 | L20: 1122 | N20: 2212 | O20: 0 | P20: 0 | Q20: 0 | T20: 2212 | U20: =COUNTIF(L7:L31,T20) -> 0 | Y20: 2212 | Z20: =COUNTIF(L32:L55,Y20) -> 0 | AD20: 2212 | AE20: =COUNTIF(L56:L80,AD20) -> 0 | AI20: 2212 | AJ20: =COUNTIF(L81:L105,AI20) -> 0 | AN20: 2212 | AO20: =COUNTIF(L106:L129,AN20) -> 0 | AS20: 2212 | AT20: =COUNTIF(L130:L154,AS20) -> 0
A21: 12 | B21: 2090 | C21: 14 | D21: 2098 | E21: 13 | F21: 2115 | G21: 14 | H21: 2127 | K21: 0 | L21: 1111 | N21: 2221 | O21: 0 | P21: 0 | Q21: 0 | T21: 2221 | U21: =COUNTIF(L7:L31,T21) -> 0 | V21: =U21/(W4-U20) -> 0 | W21: =IF(V21=0,0,(V21*((LOG(V21))/LOG(2)))) -> 0 | Y21: 2221 | Z21: =COUNTIF(L32:L55,Y21) -> 0 | AA21: =Z21/(AB4-Z20) -> 0 | AB21: =IF(AA21=0,0,(AA21*((LOG(AA21))/LOG(2)))) -> 0 | AD21: 2221 | AE21: =COUNTIF(L56:L80,AD21) -> 0 | AF21: =AE21/(AG4-AE20) -> 0 | AG21: =IF(AF21=0,0,(AF21*((LOG(AF21))/LOG(2)))) -> 0 | AI21: 2221 | AJ21: =COUNTIF(L81:L105,AI21) -> 0 | AK21: =AJ21/(AL4-AJ20) -> 0 | AL21: =IF(AK21=0,0,(AK21*((LOG(AK21))/LOG(2)))) -> 0 | AN21: 2221 | AO21: =COUNTIF(L106:L129,AN21) -> 0 | AP21: =AO21/(AQ4-AO20) -> 0 | AQ21: =IF(AP21=0,0,(AP21*((LOG(AP21))/LOG(2)))) -> 0 | AS21: 2221 | AT21: =COUNTIF(L130:L154,AS21) -> 0 | AU21: =AT21/(AV4-AT20) -> 0 | AV21: =IF(AU21=0,0,(AU21*((LOG(AU21))/LOG(2)))) -> 0
A22: 12 | B22: 2239 | C22: 14 | D22: 2250 | E22: 13 | F22: 2262 | G22: 23 | H22: 2278 | K22: 0 | L22: 1112 | N22: 2222 | O22: 1 | P22: 0.006756756757 | Q22: -0.04871252274 | T22: 2222 | U22: =COUNTIF(L7:L31,T22) -> 1 | V22: =U22/(W4-U20) -> 0.04 | W22: =IF(V22=0,0,(V22*((LOG(V22))/LOG(2)))) -> -0.1857542476 | Y22: 2222 | Z22: =COUNTIF(L32:L55,Y22) -> 0 | AA22: =Z22/(AB4-Z20) -> 0 | AB22: =IF(AA22=0,0,(AA22*((LOG(AA22))/LOG(2)))) -> 0 | AD22: 2222 | AE22: =COUNTIF(L56:L80,AD22) -> 0 | AF22: =AE22/(AG4-AE20) -> 0 | AG22: =IF(AF22=0,0,(AF22*((LOG(AF22))/LOG(2)))) -> 0 | AI22: 2222 | AJ22: =COUNTIF(L81:L105,AI22) -> 0 | AK22: =AJ22/(AL4-AJ20) -> 0 | AL22: =IF(AK22=0,0,(AK22*((LOG(AK22))/LOG(2)))) -> 0 | AN22: 2222 | AO22: =COUNTIF(L106:L129,AN22) -> 0 | AP22: =AO22/(AQ4-AO20) -> 0 | AQ22: =IF(AP22=0,0,(AP22*((LOG(AP22))/LOG(2)))) -> 0 | AS22: 2222 | AT22: =COUNTIF(L130:L154,AS22) -> 0 | AU22: =AT22/(AV4-AT20) -> 0 | AV22: =IF(AU22=0,0,(AU22*((LOG(AU22))/LOG(2)))) -> 0
A23: 12 | B23: 2379 | C23: 14 | D23: 2410 | E23: 13 | F23: 2421 | G23: 23 | H23: 2436 | K23: 0 | L23: 1112 | P23: =SUM(P7:P22) -> 1 | Q23: =-SUM(Q7:Q22) -> 1.734607629 | V23: =SUM(V7:V22) -> 1 | W23: =-SUM(W7:W22) -> 1.908634573 | AA23: =SUM(AA7:AA22) -> 1 | AB23: =-SUM(AB7:AB22) -> 1.75 | AF23: =SUM(AF7:AF22) -> 1 | AG23: =-SUM(AG7:AG22) -> 0.6395563654 | AK23: =SUM(AK7:AK22) -> 1 | AL23: =-SUM(AL7:AL22) -> 1.515336213 | AP23: =SUM(AP7:AP22) -> 1 | AQ23: =-SUM(AQ7:AQ22) -> 1.949082295 | AU23: =SUM(AU7:AU22) -> 1 | AV23: =-SUM(AV7:AV22) -> 1.035040279
A24: 12 | B24: 2541 | C24: 14 | D24: 2548 | E24: 13 | F24: 2593 | G24: 14 | H24: 2609 | K24: 0 | L24: 1111 | P24: U= | Q24: =Q23/(LOG(Q4)/LOG(2)) -> 0.2406018239 | V24: U1= | W24: =W23/(LOG(W4)/LOG(2)) -> 0.4110020844 | AA24: U2= | AB24: =AB23/(LOG(AB4)/LOG(2)) -> 0.381682511 | AF24: U3= | AG24: =AG23/(LOG(AG4)/LOG(2)) -> 0.1377209671 | AK24: U4= | AL24: =AL23/(LOG(AL4)/LOG(2)) -> 0.3263098924 | AP24: U5= | AQ24: =AQ23/(LOG(AQ4)/LOG(2)) -> 0.425103214 | AU24: U6= | AV24: =AV23/(LOG(AV4)/LOG(2)) -> 0.2228837925
A25: 12 | B25: 2734 | C25: 14 | D25: 2756 | E25: 13 | F25: 2772 | G25: 14 | H25: 2787 | K25: 0 | L25: 1111
A26: 12 | B26: 2893 | C26: 14 | D26: 2902 | E26: 13 | F26: 2915 | G26: 14 | H26: 2919 | K26: 0 | L26: 1111
A27: 12 | B27: 3027 | C27: 14 | D27: 3048 | E27: 24 | F27: 3064 | G27: 23 | H27: 3076 | K27: 0 | L27: 1122 | N27: Total Target Seq
A28: 12 | B28: 3173 | C28: 14 | D28: 3194 | E28: 13 | F28: 3211 | G28: 23 | H28: 3224 | K28: 0 | L28: 1112 | N28: =COUNTIF(L7:L154,G3) -> 0 | P28: 25 | Q28: 24 | R28: 25 | S28: 25 | T28: 24 | U28: 25
A29: 12 | B29: 3338 | C29: 14 | D29: 3350 | E29: 24 | F29: 3376 | G29: 23 | H29: 3391 | K29: 0 | L29: 1122 | P29: % of reinforcement given in 6 equal intervals based on number of trials
A30: 12 | B30: 3493 | C30: 14 | D30: 3504 | E30: 24 | F30: 3520 | G30: 23 | H30: 3530 | K30: 0 | L30: 1122 | P30: %_1 | Q30: %_2 | R30: %_3 | S30: %_4 | T30: %_5 | U30: %_6
A31: 12 | B31: 3634 | C31: 14 | D31: 3649 | E31: 13 | F31: 3667 | G31: 23 | H31: 3686 | K31: 0 | L31: 1112 | O31: target sequence | P31: =$G$3 -> 2212 | Q31: 2212 | R31: 2212 | S31: 2212 | T31: 2212 | U31: 2212
A32: 12 | B32: 3789 | C32: 14 | D32: 3820 | E32: 24 | F32: 3833 | G32: 23 | H32: 3846 | K32: 0 | L32: 1122 | O32: total reinforcement | P32: =U20 -> 0 | Q32: =Z20 -> 0 | R32: =AE20 -> 0 | S32: =AJ20 -> 0 | T32: =AO20 -> 0 | U32: =AT20 -> 0
A33: 12 | B33: 3962 | C33: 23 | D33: 3974 | E33: 24 | F33: 3983 | G33: 23 | H33: 3990 | K33: 0 | L33: 1222 | O33: % target
A34: 12 | B34: 4087 | C34: 14 | D34: 4099 | E34: 24 | F34: 4111 | G34: 23 | H34: 4119 | K34: 0 | L34: 1122 | O34: CCRF
A35: 12 | B35: 4216 | C35: 14 | D35: 4227 | E35: 24 | F35: 4240 | G35: 23 | H35: 4248 | K35: 0 | L35: 1122 | O35: % CCRf
A36: 12 | B36: 4348 | C36: 14 | D36: 4359 | E36: 24 | F36: 4372 | G36: 23 | H36: 4379 | K36: 0 | L36: 1122 | O36: average response rate | P36: =H31/P28 -> 147.44 | Q36: =(H55-H31)/Q28 -> 143.0416667 | R36: =(H80-H55)/R28 -> 152.08 | S36: =(H105-H80)/S28 -> 168.2 | T36: =(H129-H105)/T28 -> 174.875 | U36: =(H154-H129)/U28 -> 183.96
A37: 12 | B37: 4478 | C37: 14 | D37: 4488 | E37: 13 | F37: 4499 | G37: 14 | H37: 4515 | K37: 0 | L37: 1111
A38: 12 | B38: 4608 | C38: 14 | D38: 4624 | E38: 13 | F38: 4641 | G38: 23 | H38: 4659 | K38: 0 | L38: 1112
A39: 12 | B39: 4755 | C39: 14 | D39: 4765 | E39: 13 | F39: 4777 | G39: 23 | H39: 4799 | K39: 0 | L39: 1112
A40: 12 | B40: 4896 | C40: 14 | D40: 4924 | E40: 24 | F40: 4944 | G40: 23 | H40: 4954 | K40: 0 | L40: 1122
A41: 12 | B41: 5051 | C41: 14 | D41: 5063 | E41: 13 | F41: 5075 | G41: 23 | H41: 5087 | K41: 0 | L41: 1112
A42: 12 | B42: 5197 | C42: 14 | D42: 5221 | E42: 24 | F42: 5235 | G42: 23 | H42: 5242 | K42: 0 | L42: 1122
A43: 12 | B43: 5341 | C43: 14 | D43: 5359 | E43: 24 | F43: 5379 | G43: 23 | H43: 5388 | K43: 0 | L43: 1122
A44: 12 | B44: 5485 | C44: 14 | D44: 5503 | E44: 13 | F44: 5517 | G44: 23 | H44: 5530 | K44: 0 | L44: 1112
A45: 12 | B45: 5630 | C45: 14 | D45: 5641 | E45: 24 | F45: 5657 | G45: 23 | H45: 5666 | K45: 0 | L45: 1122
A46: 12 | B46: 5763 | C46: 14 | D46: 5775 | E46: 13 | F46: 5785 | G46: 14 | H46: 5801 | K46: 0 | L46: 1111
A47: 12 | B47: 5900 | C47: 14 | D47: 5913 | E47: 13 | F47: 5924 | G47: 14 | H47: 5938 | K47: 0 | L47: 1111
A48: 12 | B48: 6038 | C48: 14 | D48: 6049 | E48: 13 | F48: 6063 | G48: 14 | H48: 6075 | K48: 0 | L48: 1111
A49: 12 | B49: 6173 | C49: 14 | D49: 6189 | E49: 13 | F49: 6201 | G49: 23 | H49: 6220 | K49: 0 | L49: 1112
A50: 12 | B50: 6320 | C50: 14 | D50: 6332 | E50: 13 | F50: 6344 | G50: 14 | H50: 6366 | K50: 0 | L50: 1111
A51: 12 | B51: 6463 | C51: 14 | D51: 6478 | E51: 13 | F51: 6497 | G51: 14 | H51: 6511 | K51: 0 | L51: 1111
A52: 12 | B52: 6607 | C52: 14 | D52: 6634 | E52: 13 | F52: 6649 | G52: 14 | H52: 6664 | K52: 0 | L52: 1111
A53: 12 | B53: 6762 | C53: 14 | D53: 6777 | E53: 13 | F53: 6793 | G53: 23 | H53: 6810 | K53: 0 | L53: 1112
A54: 12 | B54: 6907 | C54: 14 | D54: 6940 | E54: 13 | F54: 6950 | G54: 14 | H54: 6968 | K54: 0 | L54: 1111
A55: 12 | B55: 7065 | C55: 14 | D55: 7094 | E55: 13 | F55: 7104 | G55: 14 | H55: 7119 | K55: 0 | L55: 1111
A56: 12 | B56: 7218 | C56: 14 | D56: 7235 | E56: 13 | F56: 7248 | G56: 14 | H56: 7260 | K56: 0 | L56: 1111
A57: 12 | B57: 7365 | C57: 14 | D57: 7383 | E57: 24 | F57: 7398 | G57: 23 | H57: 7406 | K57: 0 | L57: 1122
A58: 12 | B58: 7506 | C58: 14 | D58: 7517 | E58: 13 | F58: 7536 | G58: 14 | H58: 7548 | K58: 0 | L58: 1111
A59: 12 | B59: 7645 | C59: 14 | D59: 7664 | E59: 13 | F59: 7687 | G59: 14 | H59: 7701 | K59: 0 | L59: 1111
A60: 12 | B60: 7797 | C60: 14 | D60: 7812 | E60: 13 | F60: 7825 | G60: 14 | H60: 7846 | K60: 0 | L60: 1111
A61: 12 | B61: 7938 | C61: 14 | D61: 7971 | E61: 13 | F61: 7996 | G61: 14 | H61: 8013 | K61: 0 | L61: 1111
A62: 12 | B62: 8144 | C62: 14 | D62: 8155 | E62: 13 | F62: 8172 | G62: 23 | H62: 8193 | K62: 0 | L62: 1112
A63: 12 | B63: 8296 | C63: 14 | D63: 8312 | E63: 13 | F63: 8327 | G63: 14 | H63: 8342 | K63: 0 | L63: 1111
A64: 12 | B64: 8465 | C64: 14 | D64: 8480 | E64: 13 | F64: 8503 | G64: 14 | H64: 8525 | K64: 0 | L64: 1111
A65: 12 | B65: 8627 | C65: 14 | D65: 8640 | E65: 13 | F65: 8655 | G65: 14 | H65: 8666 | K65: 0 | L65: 1111
A66: 12 | B66: 8764 | C66: 14 | D66: 8780 | E66: 13 | F66: 8793 | G66: 14 | H66: 8811 | K66: 0 | L66: 1111
A67: 12 | B67: 8919 | C67: 14 | D67: 8922 | E67: 13 | F67: 8933 | G67: 14 | H67: 8947 | K67: 0 | L67: 1111
A68: 12 | B68: 9064 | C68: 14 | D68: 9075 | E68: 13 | F68: 9089 | G68: 14 | H68: 9102 | K68: 0 | L68: 1111
A69: 12 | B69: 9205 | C69: 14 | D69: 9218 | E69: 13 | F69: 9232 | G69: 14 | H69: 9248 | K69: 0 | L69: 1111
A70: 12 | B70: 9350 | C70: 14 | D70: 9373 | E70: 13 | F70: 9387 | G70: 14 | H70: 9408 | K70: 0 | L70: 1111
A71: 12 | B71: 9522 | C71: 14 | D71: 9536 | E71: 13 | F71: 9550 | G71: 23 | H71: 9559 | K71: 0 | L71: 1112
A72: 12 | B72: 9661 | C72: 14 | D72: 9673 | E72: 13 | F72: 9694 | G72: 14 | H72: 9709 | K72: 0 | L72: 1111
A73: 12 | B73: 9806 | C73: 14 | D73: 9815 | E73: 13 | F73: 9827 | G73: 14 | H73: 9847 | K73: 0 | L73: 1111
A74: 12 | B74: 9949 | C74: 14 | D74: 9962 | E74: 13 | F74: 9980 | G74: 14 | H74: 9994 | K74: 0 | L74: 1111
A75: 12 | B75: 10098 | C75: 14 | D75: 10113 | E75: 13 | F75: 10126 | G75: 14 | H75: 10145 | K75: 0 | L75: 1111
A76: 12 | B76: 10250 | C76: 14 | D76: 10271 | E76: 13 | F76: 10282 | G76: 14 | H76: 10294 | K76: 0 | L76: 1111
A77: 12 | B77: 10397 | C77: 14 | D77: 10418 | E77: 13 | F77: 10428 | G77: 14 | H77: 10439 | K77: 0 | L77: 1111
A78: 12 | B78: 10543 | C78: 14 | D78: 10575 | E78: 13 | F78: 10594 | G78: 14 | H78: 10606 | K78: 0 | L78: 1111
A79: 12 | B79: 10719 | C79: 14 | D79: 10737 | E79: 13 | F79: 10754 | G79: 14 | H79: 10770 | K79: 0 | L79: 1111
A80: 12 | B80: 10869 | C80: 14 | D80: 10889 | E80: 13 | F80: 10907 | G80: 14 | H80: 10921 | K80: 0 | L80: 1111
A81: 12 | B81: 11050 | C81: 14 | D81: 11061 | E81: 13 | F81: 11085 | G81: 14 | H81: 11107 | K81: 0 | L81: 1111
A82: 12 | B82: 11227 | C82: 14 | D82: 11267 | E82: 24 | F82: 11281 | G82: 23 | H82: 11286 | K82: 0 | L82: 1122
A83: 12 | B83: 11417 | C83: 14 | D83: 11450 | E83: 13 | F83: 11462 | G83: 14 | H83: 11480 | K83: 0 | L83: 1111
A84: 12 | B84: 11579 | C84: 14 | D84: 11597 | E84: 13 | F84: 11608 | G84: 23 | H84: 11622 | K84: 0 | L84: 1112
A85: 12 | B85: 11720 | C85: 14 | D85: 11736 | E85: 13 | F85: 11760 | G85: 14 | H85: 11782 | K85: 0 | L85: 1111
A86: 12 | B86: 11924 | C86: 14 | D86: 11946 | E86: 13 | F86: 11964 | G86: 14 | H86: 11976 | K86: 0 | L86: 1111
A87: 12 | B87: 12081 | C87: 14 | D87: 12113 | E87: 13 | F87: 12131 | G87: 14 | H87: 12159 | K87: 0 | L87: 1111
A88: 12 | B88: 12270 | C88: 14 | D88: 12286 | E88: 13 | F88: 12305 | G88: 14 | H88: 12323 | K88: 0 | L88: 1111
A89: 12 | B89: 12473 | C89: 14 | D89: 12495 | E89: 24 | F89: 12516 | G89: 23 | H89: 12525 | K89: 0 | L89: 1122
A90: 12 | B90: 12693 | C90: 23 | D90: 12708 | E90: 24 | F90: 12716 | G90: 23 | H90: 12724 | K90: 0 | L90: 1222
A91: 12 | B91: 12834 | C91: 14 | D91: 12846 | E91: 13 | F91: 12872 | G91: 14 | H91: 12886 | K91: 0 | L91: 1111
A92: 12 | B92: 12998 | C92: 14 | D92: 13014 | E92: 13 | F92: 13028 | G92: 14 | H92: 13042 | K92: 0 | L92: 1111
A93: 12 | B93: 13136 | C93: 14 | D93: 13153 | E93: 13 | F93: 13171 | G93: 14 | H93: 13183 | K93: 0 | L93: 1111
A94: 12 | B94: 13288 | C94: 14 | D94: 13306 | E94: 13 | F94: 13321 | G94: 14 | H94: 13339 | K94: 0 | L94: 1111
A95: 12 | B95: 13436 | C95: 14 | D95: 13454 | E95: 13 | F95: 13467 | G95: 14 | H95: 13483 | K95: 0 | L95: 1111
A96: 12 | B96: 13594 | C96: 14 | D96: 13604 | E96: 13 | F96: 13627 | G96: 23 | H96: 13651 | K96: 0 | L96: 1112
A97: 12 | B97: 13755 | C97: 14 | D97: 13766 | E97: 13 | F97: 13785 | G97: 14 | H97: 13797 | K97: 0 | L97: 1111
A98: 12 | B98: 13910 | C98: 14 | D98: 13928 | E98: 13 | F98: 13977 | G98: 23 | H98: 14003 | K98: 0 | L98: 1112
A99: 12 | B99: 14143 | C99: 14 | D99: 14156 | E99: 24 | F99: 14176 | G99: 23 | H99: 14187 | K99: 0 | L99: 1122
A100: 12 | B100: 14293 | C100: 14 | D100: 14307 | E100: 13 | F100: 14318 | G100: 14 | H100: 14334 | K100: 0 | L100: 1111
A101: 12 | B101: 14433 | C101: 14 | D101: 14444 | E101: 13 | F101: 14455 | G101: 14 | H101: 14470 | K101: 0 | L101: 1111
A102: 12 | B102: 14583 | C102: 14 | D102: 14605 | E102: 24 | F102: 14625 | G102: 23 | H102: 14632 | K102: 0 | L102: 1122
A103: 12 | B103: 14761 | C103: 14 | D103: 14775 | E103: 13 | F103: 14816 | G103: 23 | H103: 14832 | K103: 0 | L103: 1112
A104: 12 | B104: 14923 | C104: 14 | D104: 14939 | E104: 13 | F104: 14951 | G104: 14 | H104: 14977 | K104: 0 | L104: 1111
A105: 12 | B105: 15076 | C105: 14 | D105: 15097 | E105: 13 | F105: 15112 | G105: 23 | H105: 15126 | K105: 0 | L105: 1112
A106: 12 | B106: 15225 | C106: 14 | D106: 15249 | E106: 13 | F106: 15263 | G106: 14 | H106: 15275 | K106: 0 | L106: 1111
A107: 12 | B107: 15372 | C107: 14 | D107: 15394 | E107: 24 | F107: 15419 | G107: 23 | H107: 15427 | K107: 0 | L107: 1122
A108: 12 | B108: 15571 | C108: 14 | D108: 15589 | E108: 24 | F108: 15609 | G108: 23 | H108: 15618 | K108: 0 | L108: 1122
A109: 12 | B109: 15737 | C109: 14 | D109: 15776 | E109: 24 | F109: 15801 | G109: 23 | H109: 15815 | K109: 0 | L109: 1122
A110: 12 | B110: 15934 | C110: 23 | D110: 15950 | E110: 24 | F110: 15957 | G110: 23 | H110: 15964 | K110: 0 | L110: 1222
A111: 12 | B111: 16093 | C111: 14 | D111: 16114 | E111: 24 | F111: 16129 | G111: 23 | H111: 16138 | K111: 0 | L111: 1122
A112: 12 | B112: 16243 | C112: 14 | D112: 16257 | E112: 13 | F112: 16272 | G112: 14 | H112: 16292 | K112: 0 | L112: 1111
A113: 12 | B113: 16398 | C113: 14 | D113: 16419 | E113: 13 | F113: 16454 | G113: 14 | H113: 16481 | K113: 0 | L113: 1111
A114: 12 | B114: 16581 | C114: 14 | D114: 16617 | E114: 24 | F114: 16637 | G114: 23 | H114: 16644 | K114: 0 | L114: 1122
A115: 12 | B115: 16751 | C115: 14 | D115: 16773 | E115: 24 | F115: 16793 | G115: 23 | H115: 16801 | K115: 0 | L115: 1122
A116: 12 | B116: 16962 | C116: 23 | D116: 16982 | E116: 24 | F116: 16996 | G116: 23 | H116: 17005 | K116: 0 | L116: 1222
A117: 12 | B117: 17130 | C117: 23 | D117: 17172 | E117: 24 | F117: 17185 | G117: 23 | H117: 17214 | K117: 0 | L117: 1222
A118: 12 | B118: 17346 | C118: 14 | D118: 17363 | E118: 24 | F118: 17394 | G118: 23 | H118: 17401 | K118: 0 | L118: 1122
A119: 12 | B119: 17523 | C119: 14 | D119: 17539 | E119: 13 | F119: 17565 | G119: 23 | H119: 17588 | K119: 0 | L119: 1112
A120: 12 | B120: 17690 | C120: 14 | D120: 17701 | E120: 13 | F120: 17754 | G120: 14 | H120: 17784 | K120: 0 | L120: 1111
A121: 12 | B121: 17930 | C121: 14 | D121: 17945 | E121: 24 | F121: 17971 | G121: 23 | H121: 17978 | K121: 0 | L121: 1122
A122: 12 | B122: 18108 | C122: 23 | D122: 18135 | E122: 24 | F122: 18144 | G122: 23 | H122: 18151 | K122: 0 | L122: 1222
A123: 12 | B123: 18301 | C123: 14 | D123: 18328 | E123: 13 | F123: 18341 | G123: 23 | H123: 18357 | K123: 0 | L123: 1112
A124: 12 | B124: 18502 | C124: 23 | D124: 18536 | E124: 24 | F124: 18544 | G124: 23 | H124: 18551 | K124: 0 | L124: 1222
A125: 12 | B125: 18651 | C125: 14 | D125: 18666 | E125: 13 | F125: 18682 | G125: 23 | H125: 18697 | K125: 0 | L125: 1112
A126: 12 | B126: 18795 | C126: 14 | D126: 18809 | E126: 13 | F126: 18821 | G126: 23 | H126: 18833 | K126: 0 | L126: 1112
A127: 12 | B127: 18955 | C127: 14 | D127: 18968 | E127: 13 | F127: 18984 | G127: 14 | H127: 19004 | K127: 0 | L127: 1111
A128: 12 | B128: 19101 | C128: 14 | D128: 19122 | E128: 13 | F128: 19140 | G128: 14 | H128: 19155 | K128: 0 | L128: 1111
A129: 12 | B129: 19277 | C129: 14 | D129: 19292 | E129: 13 | F129: 19308 | G129: 14 | H129: 19323 | K129: 0 | L129: 1111
A130: 12 | B130: 19512 | C130: 23 | D130: 19529 | E130: 24 | F130: 19538 | G130: 23 | H130: 19547 | K130: 0 | L130: 1222
A131: 12 | B131: 19692 | C131: 14 | D131: 19710 | E131: 13 | F131: 19722 | G131: 23 | H131: 19758 | K131: 0 | L131: 1112
A132: 12 | B132: 19897 | C132: 23 | D132: 19928 | E132: 24 | F132: 19936 | G132: 23 | H132: 19944 | K132: 0 | L132: 1222
A133: 12 | B133: 20068 | C133: 14 | D133: 20094 | E133: 13 | F133: 20109 | G133: 14 | H133: 20133 | K133: 0 | L133: 1111
A134: 12 | B134: 20230 | C134: 14 | D134: 20244 | E134: 13 | F134: 20275 | G134: 14 | H134: 20294 | K134: 0 | L134: 1111
A135: 12 | B135: 20391 | C135: 14 | D135: 20407 | E135: 13 | F135: 20426 | G135: 14 | H135: 20439 | K135: 0 | L135: 1111
A136: 12 | B136: 20544 | C136: 14 | D136: 20572 | E136: 13 | F136: 20586 | G136: 14 | H136: 20605 | K136: 0 | L136: 1111
A137: 12 | B137: 20740 | C137: 14 | D137: 20761 | E137: 13 | F137: 20785 | G137: 14 | H137: 20804 | K137: 0 | L137: 1111
A138: 12 | B138: 20981 | C138: 23 | D138: 20999 | E138: 24 | F138: 21007 | G138: 23 | H138: 21014 | K138: 0 | L138: 1222
A139: 12 | B139: 21129 | C139: 14 | D139: 21144 | E139: 13 | F139: 21157 | G139: 14 | H139: 21182 | K139: 0 | L139: 1111
A140: 12 | B140: 21305 | C140: 14 | D140: 21322 | E140: 13 | F140: 21347 | G140: 14 | H140: 21366 | K140: 0 | L140: 1111
A141: 12 | B141: 21478 | C141: 14 | D141: 21493 | E141: 13 | F141: 21507 | G141: 23 | H141: 21527 | K141: 0 | L141: 1112
A142: 12 | B142: 21647 | C142: 14 | D142: 21668 | E142: 13 | F142: 21681 | G142: 14 | H142: 21696 | K142: 0 | L142: 1111
A143: 12 | B143: 21816 | C143: 14 | D143: 21831 | E143: 13 | F143: 21833 | G143: 23 | H143: 21854 | K143: 0 | L143: 1112
A144: 12 | B144: 21963 | C144: 14 | D144: 21981 | E144: 13 | F144: 21998 | G144: 14 | H144: 22012 | K144: 0 | L144: 1111
A145: 12 | B145: 22119 | C145: 14 | D145: 22137 | E145: 13 | F145: 22150 | G145: 14 | H145: 22170 | K145: 0 | L145: 1111
A146: 12 | B146: 22282 | C146: 14 | D146: 22299 | E146: 13 | F146: 22308 | G146: 14 | H146: 22327 | K146: 0 | L146: 1111
A147: 12 | B147: 22425 | C147: 14 | D147: 22443 | E147: 13 | F147: 22462 | G147: 14 | H147: 22472 | K147: 0 | L147: 1111
A148: 12 | B148: 22580 | C148: 14 | D148: 22591 | E148: 13 | F148: 22602 | G148: 14 | H148: 22616 | K148: 0 | L148: 1111
A149: 12 | B149: 22733 | C149: 14 | D149: 22745 | E149: 13 | F149: 22763 | G149: 14 | H149: 22782 | K149: 0 | L149: 1111
A150: 12 | B150: 22920 | C150: 14 | D150: 22939 | E150: 13 | F150: 22969 | G150: 14 | H150: 22990 | K150: 0 | L150: 1111
A151: 12 | B151: 23280 | C151: 14 | D151: 23310 | E151: 13 | F151: 23324 | G151: 14 | H151: 23337 | K151: 0 | L151: 1111
A152: 12 | B152: 23497 | C152: 14 | D152: 23523 | E152: 13 | F152: 23543 | G152: 14 | H152: 23567 | K152: 0 | L152: 1111
A153: 12 | B153: 23699 | C153: 14 | D153: 23711 | E153: 13 | F153: 23728 | G153: 14 | H153: 23747 | K153: 0 | L153: 1111
A154: 12 | B154: 23872 | C154: 14 | D154: 23885 | E154: 13 | F154: 23907 | G154: 14 | H154: 23922 | K154: 1 | L154: 1111

Sheet !M805930.010
A1: Report for:!M805930.010
A2: Date: | B2: <date>
A3: Hen: | B3: <hen> | F3: Correct Sequence | G3: =Start!J2 -> 2212 | P3: Total Sequences in Data | Q3: =4994-COUNTBLANK(L7:L5000) -> 146 | V3: Total Sequences in Block Data | W3: =COUNTA(L7:L30) -> 24 | AA3: Total Sequences in Block Data | AB3: =COUNTA(L31:L55) -> 25 | AF3: Total Sequences in Block Data | AG3: =COUNTA(L56:L79) -> 24 | AK3: Total Sequences in Block Data | AL3: =COUNTA(L80:L103) -> 24 | AP3: Total Sequences in Block Data | AQ3: =COUNTA(L104:L128) -> 25 | AU3: Total Sequences in Block Data | AV3: =COUNTA(L129:L152) -> 24
P4: Total Sequences in Summary | Q4: =SUM(O7:O22) -> 146 | V4: Total Sequences in Block Summary | W4: =SUM(U7:U22) -> 24 | AA4: Total Sequences in Block Summary | AB4: =SUM(Z7:Z22) -> 25 | AF4: Total Sequences in Block Summary | AG4: =SUM(AE7:AE22) -> 24 | AK4: Total Sequences in Block Summary | AL4: =SUM(AJ7:AJ22) -> 24 | AP4: Total Sequences in Block Summary | AQ4: =SUM(AO7:AO22) -> 25 | AU4: Total Sequences in Block Summary | AV4: =SUM(AT7:AT22) -> 24
T5: Block 1 | Y5: Block 2 | AD5: Block 3 | AI5: Block 4 | AN5: Block 5 | AS5: Block 6
A6: Sequence Component 1 | B6: Time 1 | C6: Sequence Component 2 | D6: Time 2 | E6: Sequence Component 3 | F6: Time 3 | G6: Sequence Component 4 | H6: Time 4 | I6: Sequence Component 5 | J6: Time 5 | K6: Correct? 0=No 1=Yes | L6: Sequence | N6: Frequency | P6: Relative Frequency | Q6: Variability | T6: Frequency | V6: Relative Frequency | W6: Variability | Y6: Frequency | AA6: Relative Frequency | AB6: Variability | AD6: Frequency | AF6: Relative Frequency | AG6: Variability | AI6: Frequency | AK6: Relative Frequency | AL6: Variability | AN6: Frequency | AP6: Relative Frequency | AQ6: Variability | AS6: Frequency | AU6: Relative Frequency | AV6: Variability
A7: 12 | B7: 15 | C7: 14 | D7: 46 | E7: 13 | F7: 59 | G7: 14 | H7: 72 | K7: 0 | L7: 1111 | N7: 1111 | O7: =COUNTIF($L$7:$L$500,N7) -> 119 | P7: =O7/$Q$4 -> 0.8150684932 | Q7: =IF(P7=0,0,(P7*((LOG(P7))/LOG(2)))) -> -0.2404507443 | T7: =N7 -> 1111 | U7: =COUNTIF(L7:L30,T7) -> 13 | V7: =U7/(W4-U20) -> 0.5416666667 | W7: =IF(V7=0,0,(V7*((LOG(V7))/LOG(2)))) -> -0.4791165072 | Y7: =N7 -> 1111 | Z7: =COUNTIF(L31:L55,Y7) -> 14 | AA7: =Z7/(AB4-Z20) -> 0.56 | AB7: =IF(AA7=0,0,(AA7*((LOG(AA7))/LOG(2)))) -> -0.4684407099 | AD7: =N7 -> 1111 | AE7: =COUNTIF(L56:L79,AD7) -> 24 | AF7: =AE7/(AG4-AE20) -> 1 | AG7: =IF(AF7=0,0,(AF7*((LOG(AF7))/LOG(2)))) -> 0 | AI7: =N7 -> 1111 | AJ7: =COUNTIF(L80:L103,AI7) -> 24 | AK7: =AJ7/(AL4-AJ20) -> 1 | AL7: =IF(AK7=0,0,(AK7*((LOG(AK7))/LOG(2)))) -> 0 | AN7: =N7 -> 1111 | AO7: =COUNTIF(L104:L128,AN7) -> 24 | AP7: =AO7/(AQ4-AO20) -> 0.96 | AQ7: =IF(AP7=0,0,(AP7*((LOG(AP7))/LOG(2)))) -> -0.05653794149 | AS7: =N7 -> 1111 | AT7: =COUNTIF(L129:L152,AS7) -> 20 | AU7: =AT7/(AV4-AT20) -> 0.8333333333 | AV7: =IF(AU7=0,0,(AU7*((LOG(AU7))/LOG(2)))) -> -0.2191953382
A8: 12 | B8: 171 | C8: 14 | D8: 203 | E8: 13 | F8: 215 | G8: 23 | H8: 228 | K8: 0 | L8: 1112 | N8: 1112 | O8: 13 | P8: 0.08904109589 | Q8: -0.3106986502 | T8: 1112 | U8: =COUNTIF(L7:L30,T8) -> 8 | V8: =U8/(W4-U20) -> 0.3333333333 | W8: -0.5283208336 | Y8: 1112 | Z8: =COUNTIF(L31:L55,Y8) -> 3 | AA8: =Z8/(AB4-Z20) -> 0.12 | AB8: -0.3670672427 | AD8: 1112 | AE8: =COUNTIF(L56:L79,AD8) -> 0 | AF8: =AE8/(AG4-AE20) -> 0 | AG8: 0 | AI8: 1112 | AJ8: =COUNTIF(L80:L103,AI8) -> 0 | AK8: =AJ8/(AL4-AJ20) -> 0 | AL8: 0 | AN8: 1112 | AO8: =COUNTIF(L104:L128,AN8) -> 0 | AP8: =AO8/(AQ4-AO20) -> 0 | AQ8: 0 | AS8: 1112 | AT8: =COUNTIF(L129:L152,AS8) -> 2 | AU8: =AT8/(AV4-AT20) -> 0.08333333333 | AV8: -0.2987468751
A9: 12 | B9: 339 | C9: 14 | D9: 357 | E9: 13 | F9: 385 | G9: 14 | H9: 397 | K9: 0 | L9: 1111 | N9: 1121 | O9: 0 | P9: 0 | Q9: 0 | T9: 1121 | U9: =COUNTIF(L7:L30,T9) -> 0 | V9: =U9/(W4-U20) -> 0 | W9: 0 | Y9: 1121 | Z9: =COUNTIF(L31:L55,Y9) -> 0 | AA9: =Z9/(AB4-Z20) -> 0 | AB9: 0 | AD9: 1121 | AE9: =COUNTIF(L56:L79,AD9) -> 0 | AF9: =AE9/(AG4-AE20) -> 0 | AG9: 0 | AI9: 1121 | AJ9: =COUNTIF(L80:L103,AI9) -> 0 | AK9: =AJ9/(AL4-AJ20) -> 0 | AL9: 0 | AN9: 1121 | AO9: =COUNTIF(L104:L128,AN9) -> 0 | AP9: =AO9/(AQ4-AO20) -> 0 | AQ9: 0 | AS9: 1121 | AT9: =COUNTIF(L129:L152,AS9) -> 0 | AU9: =AT9/(AV4-AT20) -> 0 | AV9: 0
A10: 12 | B10: 501 | C10: 14 | D10: 516 | E10: 24 | F10: 529 | G10: 23 | H10: 536 | K10: 0 | L10: 1122 | N10: 1122 | O10: 12 | P10: 0.08219178082 | Q10: -0.2962900322 | T10: 1122 | U10: =COUNTIF(L7:L30,T10) -> 3 | V10: =U10/(W4-U20) -> 0.125 | W10: -0.375 | Y10: 1122 | Z10: =COUNTIF(L31:L55,Y10) -> 7 | AA10: =Z10/(AB4-Z20) -> 0.28 | AB10: -0.514220355 | AD10: 1122 | AE10: =COUNTIF(L56:L79,AD10) -> 0 | AF10: =AE10/(AG4-AE20) -> 0 | AG10: 0 | AI10: 1122 | AJ10: =COUNTIF(L80:L103,AI10) -> 0 | AK10: =AJ10/(AL4-AJ20) -> 0 | AL10: 0 | AN10: 1122 | AO10: =COUNTIF(L104:L128,AN10) -> 1 | AP10: =AO10/(AQ4-AO20) -> 0.04 | AQ10: -0.1857542476 | AS10: 1122 | AT10: =COUNTIF(L129:L152,AS10) -> 1 | AU10: =AT10/(AV4-AT20) -> 0.04166666667 | AV10: -0.1910401042
A11: 12 | B11: 658 | C11: 14 | D11: 669 | E11: 13 | F11: 683 | G11: 23 | H11: 693 | K11: 0 | L11: 1112 | N11: 1211 | O11: 0 | P11: 0 | Q11: 0 | T11: 1211 | U11: =COUNTIF(L7:L30,T11) -> 0 | V11: =U11/(W4-U20) -> 0 | W11: 0 | Y11: 1211 | Z11: =COUNTIF(L31:L55,Y11) -> 0 | AA11: =Z11/(AB4-Z20) -> 0 | AB11: 0 | AD11: 1211 | AE11: =COUNTIF(L56:L79,AD11) -> 0 | AF11: =AE11/(AG4-AE20) -> 0 | AG11: 0 | AI11: 1211 | AJ11: =COUNTIF(L80:L103,AI11) -> 0 | AK11: =AJ11/(AL4-AJ20) -> 0 | AL11: 0 | AN11: 1211 | AO11: =COUNTIF(L104:L128,AN11) -> 0 | AP11: =AO11/(AQ4-AO20) -> 0 | AQ11: 0 | AS11: 1211 | AT11: =COUNTIF(L129:L152,AS11) -> 0 | AU11: =AT11/(AV4-AT20) -> 0 | AV11: 0
A12: 12 | B12: 804 | C12: 14 | D12: 820 | E12: 13 | F12: 853 | G12: 14 | H12: 868 | K12: 0 | L12: 1111 | N12: 1212 | O12: 0 | P12: 0 | Q12: 0 | T12: 1212 | U12: =COUNTIF(L7:L30,T12) -> 0 | V12: =U12/(W4-U20) -> 0 | W12: 0 | Y12: 1212 | Z12: =COUNTIF(L31:L55,Y12) -> 0 | AA12: =Z12/(AB4-Z20) -> 0 | AB12: 0 | AD12: 1212 | AE12: =COUNTIF(L56:L79,AD12) -> 0 | AF12: =AE12/(AG4-AE20) -> 0 | AG12: 0 | AI12: 1212 | AJ12: =COUNTIF(L80:L103,AI12) -> 0 | AK12: =AJ12/(AL4-AJ20) -> 0 | AL12: 0 | AN12: 1212 | AO12: =COUNTIF(L104:L128,AN12) -> 0 | AP12: =AO12/(AQ4-AO20) -> 0 | AQ12: 0 | AS12: 1212 | AT12: =COUNTIF(L129:L152,AS12) -> 0 | AU12: =AT12/(AV4-AT20) -> 0 | AV12: 0
A13: 12 | B13: 971 | C13: 14 | D13: 979 | E13: 13 | F13: 991 | G13: 23 | H13: 1001 | K13: 0 | L13: 1112 | N13: 1221 | O13: 0 | P13: 0 | Q13: 0 | T13: 1221 | U13: =COUNTIF(L7:L30,T13) -> 0 | V13: =U13/(W4-U20) -> 0 | W13: 0 | Y13: 1221 | Z13: =COUNTIF(L31:L55,Y13) -> 0 | AA13: =Z13/(AB4-Z20) -> 0 | AB13: 0 | AD13: 1221 | AE13: =COUNTIF(L56:L79,AD13) -> 0 | AF13: =AE13/(AG4-AE20) -> 0 | AG13: 0 | AI13: 1221 | AJ13: =COUNTIF(L80:L103,AI13) -> 0 | AK13: =AJ13/(AL4-AJ20) -> 0 | AL13: 0 | AN13: 1221 | AO13: =COUNTIF(L104:L128,AN13) -> 0 | AP13: =AO13/(AQ4-AO20) -> 0 | AQ13: 0 | AS13: 1221 | AT13: =COUNTIF(L129:L152,AS13) -> 0 | AU13: =AT13/(AV4-AT20) -> 0 | AV13: 0
A14: 12 | B14: 1104 | C14: 14 | D14: 1118 | E14: 13 | F14: 1133 | G14: 14 | H14: 1144 | K14: 0 | L14: 1111 | N14: 1222 | O14: 2 | P14: 0.01369863014 | Q14: -0.08479211724 | T14: 1222 | U14: =COUNTIF(L7:L30,T14) -> 0 | V14: =U14/(W4-U20) -> 0 | W14: 0 | Y14: 1222 | Z14: =COUNTIF(L31:L55,Y14) -> 1 | AA14: =Z14/(AB4-Z20) -> 0.04 | AB14: -0.1857542476 | AD14: 1222 | AE14: =COUNTIF(L56:L79,AD14) -> 0 | AF14: =AE14/(AG4-AE20) -> 0 | AG14: 0 | AI14: 1222 | AJ14: =COUNTIF(L80:L103,AI14) -> 0 | AK14: =AJ14/(AL4-AJ20) -> 0 | AL14: 0 | AN14: 1222 | AO14: =COUNTIF(L104:L128,AN14) -> 0 | AP14: =AO14/(AQ4-AO20) -> 0 | AQ14: 0 | AS14: 1222 | AT14: =COUNTIF(L129:L152,AS14) -> 1 | AU14: =AT14/(AV4-AT20) -> 0.04166666667 | AV14: -0.1910401042
A15: 12 | B15: 1242 | C15: 14 | D15: 1260 | E15: 13 | F15: 1274 | G15: 14 | H15: 1295 | K15: 0 | L15: 1111 | N15: 2111 | O15: 0 | P15: 0 | Q15: 0 | T15: 2111 | U15: =COUNTIF(L7:L30,T15) -> 0 | V15: =U15/(W4-U20) -> 0 | W15: 0 | Y15: 2111 | Z15: =COUNTIF(L31:L55,Y15) -> 0 | AA15: =Z15/(AB4-Z20) -> 0 | AB15: 0 | AD15: 2111 | AE15: =COUNTIF(L56:L79,AD15) -> 0 | AF15: =AE15/(AG4-AE20) -> 0 | AG15: 0 | AI15: 2111 | AJ15: =COUNTIF(L80:L103,AI15) -> 0 | AK15: =AJ15/(AL4-AJ20) -> 0 | AL15: 0 | AN15: 2111 | AO15: =COUNTIF(L104:L128,AN15) -> 0 | AP15: =AO15/(AQ4-AO20) -> 0 | AQ15: 0 | AS15: 2111 | AT15: =COUNTIF(L129:L152,AS15) -> 0 | AU15: =AT15/(AV4-AT20) -> 0 | AV15: 0
A16: 12 | B16: 1417 | C16: 14 | D16: 1428 | E16: 13 | F16: 1444 | G16: 14 | H16: 1461 | K16: 0 | L16: 1111 | N16: 2112 | O16: 0 | P16: 0 | Q16: 0 | T16: 2112 | U16: =COUNTIF(L7:L30,T16) -> 0 | V16: =U16/(W4-U20) -> 0 | W16: 0 | Y16: 2112 | Z16: =COUNTIF(L31:L55,Y16) -> 0 | AA16: =Z16/(AB4-Z20) -> 0 | AB16: 0 | AD16: 2112 | AE16: =COUNTIF(L56:L79,AD16) -> 0 | AF16: =AE16/(AG4-AE20) -> 0 | AG16: 0 | AI16: 2112 | AJ16: =COUNTIF(L80:L103,AI16) -> 0 | AK16: =AJ16/(AL4-AJ20) -> 0 | AL16: 0 | AN16: 2112 | AO16: =COUNTIF(L104:L128,AN16) -> 0 | AP16: =AO16/(AQ4-AO20) -> 0 | AQ16: 0 | AS16: 2112 | AT16: =COUNTIF(L129:L152,AS16) -> 0 | AU16: =AT16/(AV4-AT20) -> 0 | AV16: 0
A17: 12 | B17: 1567 | C17: 14 | D17: 1632 | E17: 13 | F17: 1651 | G17: 14 | H17: 1658 | K17: 0 | L17: 1111 | N17: 2121 | O17: 0 | P17: 0 | Q17: 0 | T17: 2121 | U17: =COUNTIF(L7:L30,T17) -> 0 | V17: =U17/(W4-U20) -> 0 | W17: 0 | Y17: 2121 | Z17: =COUNTIF(L31:L55,Y17) -> 0 | AA17: =Z17/(AB4-Z20) -> 0 | AB17: 0 | AD17: 2121 | AE17: =COUNTIF(L56:L79,AD17) -> 0 | AF17: =AE17/(AG4-AE20) -> 0 | AG17: 0 | AI17: 2121 | AJ17: =COUNTIF(L80:L103,AI17) -> 0 | AK17: =AJ17/(AL4-AJ20) -> 0 | AL17: 0 | AN17: 2121 | AO17: =COUNTIF(L104:L128,AN17) -> 0 | AP17: =AO17/(AQ4-AO20) -> 0 | AQ17: 0 | AS17: 2121 | AT17: =COUNTIF(L129:L152,AS17) -> 0 | AU17: =AT17/(AV4-AT20) -> 0 | AV17: 0
A18: 12 | B18: 1776 | C18: 14 | D18: 1799 | E18: 13 | F18: 1810 | G18: 23 | H18: 1830 | K18: 0 | L18: 1112 | N18: 2122 | O18: 0 | P18: 0 | Q18: 0 | T18: 2122 | U18: =COUNTIF(L7:L30,T18) -> 0 | V18: =U18/(W4-U20) -> 0 | W18: 0 | Y18: 2122 | Z18: =COUNTIF(L31:L55,Y18) -> 0 | AA18: =Z18/(AB4-Z20) -> 0 | AB18: 0 | AD18: 2122 | AE18: =COUNTIF(L56:L79,AD18) -> 0 | AF18: =AE18/(AG4-AE20) -> 0 | AG18: 0 | AI18: 2122 | AJ18: =COUNTIF(L80:L103,AI18) -> 0 | AK18: =AJ18/(AL4-AJ20) -> 0 | AL18: 0 | AN18: 2122 | AO18: =COUNTIF(L104:L128,AN18) -> 0 | AP18: =AO18/(AQ4-AO20) -> 0 | AQ18: 0 | AS18: 2122 | AT18: =COUNTIF(L129:L152,AS18) -> 0 | AU18: =AT18/(AV4-AT20) -> 0 | AV18: 0
A19: 12 | B19: 1952 | C19: 14 | D19: 1979 | E19: 13 | F19: 2002 | G19: 14 | H19: 2023 | K19: 0 | L19: 1111 | N19: 2211 | O19: 0 | P19: 0 | Q19: 0 | T19: 2211 | U19: =COUNTIF(L7:L30,T19) -> 0 | V19: =U19/(W4-U20) -> 0 | W19: 0 | Y19: 2211 | Z19: =COUNTIF(L31:L55,Y19) -> 0 | AA19: =Z19/(AB4-Z20) -> 0 | AB19: 0 | AD19: 2211 | AE19: =COUNTIF(L56:L79,AD19) -> 0 | AF19: =AE19/(AG4-AE20) -> 0 | AG19: 0 | AI19: 2211 | AJ19: =COUNTIF(L80:L103,AI19) -> 0 | AK19: =AJ19/(AL4-AJ20) -> 0 | AL19: 0 | AN19: 2211 | AO19: =COUNTIF(L104:L128,AN19) -> 0 | AP19: =AO19/(AQ4-AO20) -> 0 | AQ19: 0 | AS19: 2211 | AT19: =COUNTIF(L129:L152,AS19) -> 0 | AU19: =AT19/(AV4-AT20) -> 0 | AV19: 0
A20: 12 | B20: 2142 | C20: 14 | D20: 2181 | E20: 24 | F20: 2190 | G20: 23 | H20: 2198 | K20: 0 | L20: 1122 | N20: 2212 | O20: 0 | P20: 0 | Q20: 0 | T20: 2212 | U20: =COUNTIF(L7:L30,T20) -> 0 | Y20: 2212 | Z20: =COUNTIF(L31:L55,Y20) -> 0 | AD20: 2212 | AE20: =COUNTIF(L56:L79,AD20) -> 0 | AI20: 2212 | AJ20: =COUNTIF(L80:L103,AI20) -> 0 | AN20: 2212 | AO20: =COUNTIF(L104:L128,AN20) -> 0 | AS20: 2212 | AT20: =COUNTIF(L129:L152,AS20) -> 0
A21: 12 | B21: 2312 | C21: 14 | D21: 2337 | E21: 13 | F21: 2345 | G21: 14 | H21: 2358 | K21: 0 | L21: 1111 | N21: 2221 | O21: 0 | P21: 0 | Q21: 0 | T21: 2221 | U21: =COUNTIF(L7:L30,T21) -> 0 | V21: =U21/(W4-U20) -> 0 | W21: =IF(V21=0,0,(V21*((LOG(V21))/LOG(2)))) -> 0 | Y21: 2221 | Z21: =COUNTIF(L31:L55,Y21) -> 0 | AA21: =Z21/(AB4-Z20) -> 0 | AB21: =IF(AA21=0,0,(AA21*((LOG(AA21))/LOG(2)))) -> 0 | AD21: 2221 | AE21: =COUNTIF(L56:L79,AD21) -> 0 | AF21: =AE21/(AG4-AE20) -> 0 | AG21: =IF(AF21=0,0,(AF21*((LOG(AF21))/LOG(2)))) -> 0 | AI21: 2221 | AJ21: =COUNTIF(L80:L103,AI21) -> 0 | AK21: =AJ21/(AL4-AJ20) -> 0 | AL21: =IF(AK21=0,0,(AK21*((LOG(AK21))/LOG(2)))) -> 0 | AN21: 2221 | AO21: =COUNTIF(L104:L128,AN21) -> 0 | AP21: =AO21/(AQ4-AO20) -> 0 | AQ21: =IF(AP21=0,0,(AP21*((LOG(AP21))/LOG(2)))) -> 0 | AS21: 2221 | AT21: =COUNTIF(L129:L152,AS21) -> 0 | AU21: =AT21/(AV4-AT20) -> 0 | AV21: =IF(AU21=0,0,(AU21*((LOG(AU21))/LOG(2)))) -> 0
A22: 12 | B22: 2484 | C22: 14 | D22: 2495 | E22: 13 | F22: 2505 | G22: 23 | H22: 2518 | K22: 0 | L22: 1112 | N22: 2222 | O22: 0 | P22: 0 | Q22: 0 | T22: 2222 | U22: =COUNTIF(L7:L30,T22) -> 0 | V22: =U22/(W4-U20) -> 0 | W22: =IF(V22=0,0,(V22*((LOG(V22))/LOG(2)))) -> 0 | Y22: 2222 | Z22: =COUNTIF(L31:L55,Y22) -> 0 | AA22: =Z22/(AB4-Z20) -> 0 | AB22: =IF(AA22=0,0,(AA22*((LOG(AA22))/LOG(2)))) -> 0 | AD22: 2222 | AE22: =COUNTIF(L56:L79,AD22) -> 0 | AF22: =AE22/(AG4-AE20) -> 0 | AG22: =IF(AF22=0,0,(AF22*((LOG(AF22))/LOG(2)))) -> 0 | AI22: 2222 | AJ22: =COUNTIF(L80:L103,AI22) -> 0 | AK22: =AJ22/(AL4-AJ20) -> 0 | AL22: =IF(AK22=0,0,(AK22*((LOG(AK22))/LOG(2)))) -> 0 | AN22: 2222 | AO22: =COUNTIF(L104:L128,AN22) -> 0 | AP22: =AO22/(AQ4-AO20) -> 0 | AQ22: =IF(AP22=0,0,(AP22*((LOG(AP22))/LOG(2)))) -> 0 | AS22: 2222 | AT22: =COUNTIF(L129:L152,AS22) -> 0 | AU22: =AT22/(AV4-AT20) -> 0 | AV22: =IF(AU22=0,0,(AU22*((LOG(AU22))/LOG(2)))) -> 0
A23: 12 | B23: 2623 | C23: 14 | D23: 2636 | E23: 13 | F23: 2649 | G23: 23 | H23: 2659 | K23: 0 | L23: 1112 | P23: =SUM(P7:P22) -> 1 | Q23: =-SUM(Q7:Q22) -> 0.932231544 | V23: =SUM(V7:V22) -> 1 | W23: =-SUM(W7:W22) -> 1.382437341 | AA23: =SUM(AA7:AA22) -> 1 | AB23: =-SUM(AB7:AB22) -> 1.535482555 | AF23: =SUM(AF7:AF22) -> 1 | AG23: =-SUM(AG7:AG22) -> 0 | AK23: =SUM(AK7:AK22) -> 1 | AL23: =-SUM(AL7:AL22) -> 0 | AP23: =SUM(AP7:AP22) -> 1 | AQ23: =-SUM(AQ7:AQ22) -> 0.2422921891 | AU23: =SUM(AU7:AU22) -> 1 | AV23: =-SUM(AV7:AV22) -> 0.9000224216
A24: 12 | B24: 2817 | C24: 14 | D24: 2830 | E24: 24 | F24: 2858 | G24: 23 | H24: 2868 | K24: 0 | L24: 1122 | P24: U= | Q24: =Q23/(LOG(Q4)/LOG(2)) -> 0.1296598458 | V24: U1= | W24: =W23/(LOG(W4)/LOG(2)) -> 0.3015155174 | AA24: U2= | AB24: =AB23/(LOG(AB4)/LOG(2)) -> 0.3306481709 | AF24: U3= | AG24: =AG23/(LOG(AG4)/LOG(2)) -> 0 | AK24: U4= | AL24: =AL23/(LOG(AL4)/LOG(2)) -> 0 | AP24: U5= | AQ24: =AQ23/(LOG(AQ4)/LOG(2)) -> 0.05217478302 | AU24: U6= | AV24: =AV23/(LOG(AV4)/LOG(2)) -> 0.196298753
A25: 12 | B25: 2974 | C25: 14 | D25: 2994 | E25: 13 | F25: 3016 | G25: 14 | H25: 3037 | K25: 0 | L25: 1111
A26: 12 | B26: 3144 | C26: 14 | D26: 3171 | E26: 13 | F26: 3190 | G26: 14 | H26: 3203 | K26: 0 | L26: 1111
A27: 12 | B27: 3317 | C27: 14 | D27: 3331 | E27: 13 | F27: 3347 | G27: 23 | H27: 3365 | K27: 0 | L27: 1112 | N27: Total Target Seq
A28: 12 | B28: 3522 | C28: 14 | D28: 3532 | E28: 13 | F28: 3561 | G28: 14 | H28: 3577 | K28: 0 | L28: 1111 | N28: =COUNTIF(L7:L152,G3) -> 0 | P28: 24 | Q28: 25 | R28: 24 | S28: 24 | T28: 25 | U28: 24
A29: 12 | B29: 3699 | C29: 14 | D29: 3727 | E29: 13 | F29: 3740 | G29: 23 | H29: 3763 | K29: 0 | L29: 1112 | P29: % of reinforcement given in 6 equal intervals based on number of trials
A30: 12 | B30: 3881 | C30: 14 | D30: 3897 | E30: 13 | F30: 3942 | G30: 14 | H30: 3956 | K30: 0 | L30: 1111 | P30: %_1 | Q30: %_2 | R30: %_3 | S30: %_4 | T30: %_5 | U30: %_6
A31: 12 | B31: 4056 | C31: 14 | D31: 4067 | E31: 13 | F31: 4088 | G31: 14 | H31: 4109 | K31: 0 | L31: 1111 | O31: target sequence | P31: =$G$3 -> 2212 | Q31: 2212 | R31: 2212 | S31: 2212 | T31: 2212 | U31: 2212
A32: 12 | B32: 4233 | C32: 14 | D32: 4261 | E32: 13 | F32: 4277 | G32: 14 | H32: 4297 | K32: 0 | L32: 1111 | O32: total reinforcement | P32: =U20 -> 0 | Q32: =Z20 -> 0 | R32: =AE20 -> 0 | S32: =AJ20 -> 0 | T32: =AO20 -> 0 | U32: =AT20 -> 0
A33: 12 | B33: 4421 | C33: 14 | D33: 4437 | E33: 13 | F33: 4448 | G33: 14 | H33: 4460 | K33: 0 | L33: 1111 | O33: % target
A34: 12 | B34: 4599 | C34: 14 | D34: 4618 | E34: 13 | F34: 4638 | G34: 14 | H34: 4653 | K34: 0 | L34: 1111 | O34: CCRF
A35: 12 | B35: 4846 | C35: 14 | D35: 4873 | E35: 13 | F35: 4900 | G35: 14 | H35: 4912 | K35: 0 | L35: 1111 | O35: % CCRf
A36: 12 | B36: 5021 | C36: 14 | D36: 5039 | E36: 24 | F36: 5063 | G36: 23 | H36: 5071 | K36: 0 | L36: 1122 | O36: average response rate | P36: =H30/P28 -> 164.8333333 | Q36: =(H55-H30)/Q28 -> 175.76 | R36: =(H79-H55)/R28 -> 173.5 | S36: =(H103-H79)/S28 -> 147.6666667 | T36: =(H128-H103)/T28 -> 152.08 | U36: =(H152-H128)/U28 -> 172.4583333
A37: 12 | B37: 5197 | C37: 14 | D37: 5218 | E37: 13 | F37: 5256 | G37: 23 | H37: 5269 | K37: 0 | L37: 1112
A38: 12 | B38: 5391 | C38: 14 | D38: 5434 | E38: 24 | F38: 5447 | G38: 23 | H38: 5456 | K38: 0 | L38: 1122
A39: 12 | B39: 5557 | C39: 14 | D39: 5574 | E39: 24 | F39: 5587 | G39: 23 | H39: 5594 | K39: 0 | L39: 1122
A40: 12 | B40: 5702 | C40: 14 | D40: 5721 | E40: 13 | F40: 5731 | G40: 23 | H40: 5747 | K40: 0 | L40: 1112
A41: 12 | B41: 5873 | C41: 14 | D41: 5895 | E41: 24 | F41: 5912 | G41: 23 | H41: 5922 | K41: 0 | L41: 1122
A42: 12 | B42: 6066 | C42: 23 | D42: 6076 | E42: 24 | F42: 6084 | G42: 23 | H42: 6092 | K42: 0 | L42: 1222
A43: 12 | B43: 6202 | C43: 14 | D43: 6219 | E43: 13 | F43: 6235 | G43: 23 | H43: 6247 | K43: 0 | L43: 1112
A44: 12 | B44: 6368 | C44: 14 | D44: 6393 | E44: 13 | F44: 6407 | G44: 14 | H44: 6420 | K44: 0 | L44: 1111
A45: 12 | B45: 6543 | C45: 14 | D45: 6577 | E45: 24 | F45: 6586 | G45: 23 | H45: 6594 | K45: 0 | L45: 1122
A46: 12 | B46: 6702 | C46: 14 | D46: 6735 | E46: 13 | F46: 6751 | G46: 14 | H46: 6770 | K46: 0 | L46: 1111
A47: 12 | B47: 6892 | C47: 14 | D47: 6915 | E47: 13 | F47: 6937 | G47: 14 | H47: 6946 | K47: 0 | L47: 1111
A48: 12 | B48: 7060 | C48: 14 | D48: 7076 | E48: 24 | F48: 7094 | G48: 23 | H48: 7102 | K48: 0 | L48: 1122
A49: 12 | B49: 7217 | C49: 14 | D49: 7236 | E49: 13 | F49: 7255 | G49: 14 | H49: 7275 | K49: 0 | L49: 1111
A50: 12 | B50: 7380 | C50: 14 | D50: 7411 | E50: 24 | F50: 7432 | G50: 23 | H50: 7439 | K50: 0 | L50: 1122
A51: 12 | B51: 7573 | C51: 14 | D51: 7587 | E51: 13 | F51: 7605 | G51: 14 | H51: 7633 | K51: 0 | L51: 1111
A52: 12 | B52: 7754 | C52: 14 | D52: 7765 | E52: 13 | F52: 7820 | G52: 14 | H52: 7835 | K52: 0 | L52: 1111
A53: 12 | B53: 7951 | C53: 14 | D53: 7961 | E53: 13 | F53: 7975 | G53: 14 | H53: 7988 | K53: 0 | L53: 1111
A54: 12 | B54: 8139 | C54: 14 | D54: 8152 | E54: 13 | F54: 8170 | G54: 14 | H54: 8189 | K54: 0 | L54: 1111
A55: 12 | B55: 8300 | C55: 14 | D55: 8326 | E55: 13 | F55: 8341 | G55: 14 | H55: 8350 | K55: 0 | L55: 1111
A56: 12 | B56: 8490 | C56: 14 | D56: 8508 | E56: 13 | F56: 8518 | G56: 14 | H56: 8530 | K56: 0 | L56: 1111
A57: 12 | B57: 8669 | C57: 14 | D57: 8683 | E57: 13 | F57: 8694 | G57: 14 | H57: 8706 | K57: 0 | L57: 1111
A58: 12 | B58: 8844 | C58: 14 | D58: 8880 | E58: 13 | F58: 8899 | G58: 14 | H58: 8911 | K58: 0 | L58: 1111
A59: 12 | B59: 9061 | C59: 14 | D59: 9100 | E59: 13 | F59: 9113 | G59: 14 | H59: 9125 | K59: 0 | L59: 1111
A60: 12 | B60: 9239 | C60: 14 | D60: 9286 | E60: 13 | F60: 9301 | G60: 14 | H60: 9319 | K60: 0 | L60: 1111
A61: 12 | B61: 9497 | C61: 14 | D61: 9523 | E61: 13 | F61: 9553 | G61: 14 | H61: 9565 | K61: 0 | L61: 1111
A62: 12 | B62: 9714 | C62: 14 | D62: 9739 | E62: 13 | F62: 9756 | G62: 14 | H62: 9774 | K62: 0 | L62: 1111
A63: 12 | B63: 9878 | C63: 14 | D63: 9897 | E63: 13 | F63: 9923 | G63: 14 | H63: 9941 | K63: 0 | L63: 1111
A64: 12 | B64: 10070 | C64: 14 | D64: 10084 | E64: 13 | F64: 10095 | G64: 14 | H64: 10107 | K64: 0 | L64: 1111
A65: 12 | B65: 10244 | C65: 14 | D65: 10255 | E65: 13 | F65: 10270 | G65: 14 | H65: 10293 | K65: 0 | L65: 1111
A66: 12 | B66: 10449 | C66: 14 | D66: 10467 | E66: 13 | F66: 10475 | G66: 14 | H66: 10486 | K66: 0 | L66: 1111
A67: 12 | B67: 10642 | C67: 14 | D67: 10672 | E67: 13 | F67: 10694 | G67: 14 | H67: 10701 | K67: 0 | L67: 1111
A68: 12 | B68: 10804 | C68: 14 | D68: 10816 | E68: 13 | F68: 10833 | G68: 14 | H68: 10848 | K68: 0 | L68: 1111
A69: 12 | B69: 10945 | C69: 14 | D69: 10966 | E69: 13 | F69: 10979 | G69: 14 | H69: 10989 | K69: 0 | L69: 1111
A70: 12 | B70: 11114 | C70: 14 | D70: 11129 | E70: 13 | F70: 11148 | G70: 14 | H70: 11164 | K70: 0 | L70: 1111
A71: 12 | B71: 11283 | C71: 14 | D71: 11317 | E71: 13 | F71: 11330 | G71: 14 | H71: 11343 | K71: 0 | L71: 1111
A72: 12 | B72: 11467 | C72: 14 | D72: 11484 | E72: 13 | F72: 11495 | G72: 14 | H72: 11508 | K72: 0 | L72: 1111
A73: 12 | B73: 11604 | C73: 14 | D73: 11634 | E73: 13 | F73: 11651 | G73: 14 | H73: 11663 | K73: 0 | L73: 1111
A74: 12 | B74: 11784 | C74: 14 | D74: 11799 | E74: 13 | F74: 11807 | G74: 14 | H74: 11823 | K74: 0 | L74: 1111
A75: 12 | B75: 11927 | C75: 14 | D75: 11944 | E75: 13 | F75: 11958 | G75: 14 | H75: 11960 | K75: 0 | L75: 1111
A76: 12 | B76: 12056 | C76: 14 | D76: 12071 | E76: 13 | F76: 12079 | G76: 14 | H76: 12088 | K76: 0 | L76: 1111
A77: 12 | B77: 12187 | C77: 14 | D77: 12212 | E77: 13 | F77: 12223 | G77: 14 | H77: 12238 | K77: 0 | L77: 1111
A78: 12 | B78: 12337 | C78: 14 | D78: 12355 | E78: 13 | F78: 12365 | G78: 14 | H78: 12377 | K78: 0 | L78: 1111
A79: 12 | B79: 12474 | C79: 14 | D79: 12492 | E79: 13 | F79: 12506 | G79: 14 | H79: 12514 | K79: 0 | L79: 1111
A80: 12 | B80: 12619 | C80: 14 | D80: 12638 | E80: 13 | F80: 12653 | G80: 14 | H80: 12689 | K80: 0 | L80: 1111
A81: 12 | B81: 12782 | C81: 14 | D81: 12800 | E81: 13 | F81: 12817 | G81: 14 | H81: 12829 | K81: 0 | L81: 1111
A82: 12 | B82: 12925 | C82: 14 | D82: 12941 | E82: 13 | F82: 12959 | G82: 14 | H82: 12980 | K82: 0 | L82: 1111
A83: 12 | B83: 13092 | C83: 14 | D83: 13101 | E83: 13 | F83: 13116 | G83: 14 | H83: 13127 | K83: 0 | L83: 1111
A84: 12 | B84: 13224 | C84: 14 | D84: 13233 | E84: 13 | F84: 13245 | G84: 14 | H84: 13256 | K84: 0 | L84: 1111
A85: 12 | B85: 13354 | C85: 14 | D85: 13362 | E85: 13 | F85: 13376 | G85: 14 | H85: 13387 | K85: 0 | L85: 1111
A86: 12 | B86: 13483 | C86: 14 | D86: 13500 | E86: 13 | F86: 13530 | G86: 14 | H86: 13543 | K86: 0 | L86: 1111
A87: 12 | B87: 13658 | C87: 14 | D87: 13674 | E87: 13 | F87: 13693 | G87: 14 | H87: 13714 | K87: 0 | L87: 1111
A88: 12 | B88: 13815 | C88: 14 | D88: 13835 | E88: 13 | F88: 13846 | G88: 14 | H88: 13862 | K88: 0 | L88: 1111
A89: 12 | B89: 13964 | C89: 14 | D89: 13975 | E89: 13 | F89: 13990 | G89: 14 | H89: 14004 | K89: 0 | L89: 1111
A90: 12 | B90: 14107 | C90: 14 | D90: 14122 | E90: 13 | F90: 14136 | G90: 14 | H90: 14149 | K90: 0 | L90: 1111
A91: 12 | B91: 14240 | C91: 14 | D91: 14258 | E91: 13 | F91: 14271 | G91: 14 | H91: 14283 | K91: 0 | L91: 1111
A92: 12 | B92: 14391 | C92: 14 | D92: 14409 | E92: 13 | F92: 14420 | G92: 14 | H92: 14431 | K92: 0 | L92: 1111
A93: 12 | B93: 14535 | C93: 14 | D93: 14544 | E93: 13 | F93: 14563 | G93: 14 | H93: 14571 | K93: 0 | L93: 1111
A94: 12 | B94: 14684 | C94: 14 | D94: 14695 | E94: 13 | F94: 14716 | G94: 14 | H94: 14739 | K94: 0 | L94: 1111
A95: 12 | B95: 14844 | C95: 14 | D95: 14862 | E95: 13 | F95: 14874 | G95: 14 | H95: 14887 | K95: 0 | L95: 1111
A96: 12 | B96: 14979 | C96: 14 | D96: 15000 | E96: 13 | F96: 15015 | G96: 14 | H96: 15038 | K96: 0 | L96: 1111
A97: 12 | B97: 15136 | C97: 14 | D97: 15162 | E97: 13 | F97: 15179 | G97: 14 | H97: 15194 | K97: 0 | L97: 1111
A98: 12 | B98: 15290 | C98: 14 | D98: 15300 | E98: 13 | F98: 15313 | G98: 14 | H98: 15324 | K98: 0 | L98: 1111
A99: 12 | B99: 15424 | C99: 14 | D99: 15439 | E99: 13 | F99: 15458 | G99: 14 | H99: 15469 | K99: 0 | L99: 1111
A100: 12 | B100: 15570 | C100: 14 | D100: 15585 | E100: 13 | F100: 15605 | G100: 14 | H100: 15619 | K100: 0 | L100: 1111
A101: 12 | B101: 15721 | C101: 14 | D101: 15732 | E101: 13 | F101: 15752 | G101: 14 | H101: 15762 | K101: 0 | L101: 1111
A102: 12 | B102: 15874 | C102: 14 | D102: 15885 | E102: 13 | F102: 15896 | G102: 14 | H102: 15906 | K102: 0 | L102: 1111
A103: 12 | B103: 16015 | C103: 14 | D103: 16025 | E103: 13 | F103: 16046 | G103: 14 | H103: 16058 | K103: 0 | L103: 1111
A104: 12 | B104: 16165 | C104: 14 | D104: 16180 | E104: 13 | F104: 16191 | G104: 14 | H104: 16203 | K104: 0 | L104: 1111
A105: 12 | B105: 16325 | C105: 14 | D105: 16336 | E105: 13 | F105: 16353 | G105: 14 | H105: 16366 | K105: 0 | L105: 1111
A106: 12 | B106: 16458 | C106: 14 | D106: 16495 | E106: 13 | F106: 16510 | G106: 14 | H106: 16540 | K106: 0 | L106: 1111
A107: 12 | B107: 16644 | C107: 14 | D107: 16666 | E107: 13 | F107: 16691 | G107: 14 | H107: 16704 | K107: 0 | L107: 1111
A108: 12 | B108: 16808 | C108: 14 | D108: 16820 | E108: 13 | F108: 16831 | G108: 14 | H108: 16848 | K108: 0 | L108: 1111
A109: 12 | B109: 16943 | C109: 14 | D109: 16956 | E109: 13 | F109: 16967 | G109: 14 | H109: 16978 | K109: 0 | L109: 1111
A110: 12 | B110: 17077 | C110: 14 | D110: 17093 | E110: 13 | F110: 17104 | G110: 14 | H110: 17116 | K110: 0 | L110: 1111
A111: 12 | B111: 17235 | C111: 14 | D111: 17244 | E111: 13 | F111: 17254 | G111: 14 | H111: 17266 | K111: 0 | L111: 1111
A112: 12 | B112: 17362 | C112: 14 | D112: 17379 | E112: 13 | F112: 17391 | G112: 14 | H112: 17402 | K112: 0 | L112: 1111
A113: 12 | B113: 17501 | C113: 14 | D113: 17512 | E113: 13 | F113: 17524 | G113: 14 | H113: 17547 | K113: 0 | L113: 1111
A114: 12 | B114: 17644 | C114: 14 | D114: 17659 | E114: 13 | F114: 17673 | G114: 14 | H114: 17685 | K114: 0 | L114: 1111
A115: 12 | B115: 17792 | C115: 14 | D115: 17805 | E115: 13 | F115: 17817 | G115: 14 | H115: 17838 | K115: 0 | L115: 1111
A116: 12 | B116: 17947 | C116: 14 | D116: 17964 | E116: 13 | F116: 17979 | G116: 14 | H116: 17990 | K116: 0 | L116: 1111
A117: 12 | B117: 18087 | C117: 14 | D117: 18102 | E117: 13 | F117: 18105 | G117: 14 | H117: 18113 | K117: 0 | L117: 1111
A118: 12 | B118: 18218 | C118: 14 | D118: 18234 | E118: 13 | F118: 18245 | G118: 14 | H118: 18269 | K118: 0 | L118: 1111
A119: 12 | B119: 18373 | C119: 14 | D119: 18385 | E119: 13 | F119: 18399 | G119: 14 | H119: 18426 | K119: 0 | L119: 1111
A120: 12 | B120: 18524 | C120: 14 | D120: 18531 | E120: 13 | F120: 18551 | G120: 14 | H120: 18572 | K120: 0 | L120: 1111
A121: 12 | B121: 18667 | C121: 14 | D121: 18683 | E121: 13 | F121: 18705 | G121: 14 | H121: 18716 | K121: 0 | L121: 1111
A122: 12 | B122: 18832 | C122: 14 | D122: 18842 | E122: 13 | F122: 18856 | G122: 14 | H122: 18865 | K122: 0 | L122: 1111
A123: 12 | B123: 18964 | C123: 14 | D123: 18992 | E123: 13 | F123: 19006 | G123: 14 | H123: 19017 | K123: 0 | L123: 1111
A124: 12 | B124: 19119 | C124: 14 | D124: 19141 | E124: 13 | F124: 19158 | G124: 14 | H124: 19176 | K124: 0 | L124: 1111
A125: 12 | B125: 19279 | C125: 14 | D125: 19281 | E125: 13 | F125: 19301 | G125: 14 | H125: 19316 | K125: 0 | L125: 1111
A126: 12 | B126: 19427 | C126: 14 | D126: 19445 | E126: 13 | F126: 19459 | G126: 14 | H126: 19481 | K126: 0 | L126: 1111
A127: 12 | B127: 19600 | C127: 14 | D127: 19611 | E127: 24 | F127: 19666 | G127: 23 | H127: 19681 | K127: 0 | L127: 1122
A128: 12 | B128: 19787 | C128: 14 | D128: 19799 | E128: 13 | F128: 19814 | G128: 14 | H128: 19860 | K128: 0 | L128: 1111
A129: 12 | B129: 19962 | C129: 14 | D129: 19988 | E129: 13 | F129: 20017 | G129: 14 | H129: 20051 | K129: 0 | L129: 1111
A130: 12 | B130: 20155 | C130: 14 | D130: 20192 | E130: 13 | F130: 20211 | G130: 23 | H130: 20230 | K130: 0 | L130: 1112
A131: 12 | B131: 20328 | C131: 14 | D131: 20347 | E131: 13 | F131: 20360 | G131: 14 | H131: 20392 | K131: 0 | L131: 1111
A132: 12 | B132: 20492 | C132: 14 | D132: 20509 | E132: 13 | F132: 20542 | G132: 23 | H132: 20584 | K132: 0 | L132: 1112
A133: 12 | B133: 20758 | C133: 23 | D133: 20775 | E133: 24 | F133: 20784 | G133: 23 | H133: 20790 | K133: 0 | L133: 1222
A134: 12 | B134: 20903 | C134: 14 | D134: 20922 | E134: 24 | F134: 20947 | G134: 23 | H134: 20959 | K134: 0 | L134: 1122
A135: 12 | B135: 21060 | C135: 14 | D135: 21071 | E135: 13 | F135: 21096 | G135: 14 | H135: 21120 | K135: 0 | L135: 1111
A136: 12 | B136: 21240 | C136: 14 | D136: 21268 | E136: 13 | F136: 21270 | G136: 14 | H136: 21285 | K136: 0 | L136: 1111
A137: 12 | B137: 21387 | C137: 14 | D137: 21409 | E137: 13 | F137: 21429 | G137: 14 | H137: 21443 | K137: 0 | L137: 1111
A138: 12 | B138: 21569 | C138: 14 | D138: 21587 | E138: 13 | F138: 21618 | G138: 14 | H138: 21638 | K138: 0 | L138: 1111
A139: 12 | B139: 21743 | C139: 14 | D139: 21761 | E139: 13 | F139: 21778 | G139: 14 | H139: 21792 | K139: 0 | L139: 1111
A140: 12 | B140: 21888 | C140: 14 | D140: 21900 | E140: 13 | F140: 21911 | G140: 14 | H140: 21930 | K140: 0 | L140: 1111
A141: 12 | B141: 22030 | C141: 14 | D141: 22058 | E141: 13 | F141: 22072 | G141: 14 | H141: 22084 | K141: 0 | L141: 1111
A142: 12 | B142: 22188 | C142: 14 | D142: 22203 | E142: 13 | F142: 22221 | G142: 14 | H142: 22233 | K142: 0 | L142: 1111
A143: 12 | B143: 22333 | C143: 14 | D143: 22357 | E143: 13 | F143: 22366 | G143: 14 | H143: 22378 | K143: 0 | L143: 1111
A144: 12 | B144: 22480 | C144: 14 | D144: 22517 | E144: 13 | F144: 22531 | G144: 14 | H144: 22548 | K144: 0 | L144: 1111
A145: 12 | B145: 22648 | C145: 14 | D145: 22662 | E145: 13 | F145: 22663 | G145: 14 | H145: 22673 | K145: 0 | L145: 1111
A146: 12 | B146: 22865 | C146: 14 | D146: 22892 | E146: 13 | F146: 22910 | G146: 14 | H146: 22936 | K146: 0 | L146: 1111
A147: 12 | B147: 23062 | C147: 14 | D147: 23076 | E147: 13 | F147: 23105 | G147: 14 | H147: 23121 | K147: 0 | L147: 1111
A148: 12 | B148: 23244 | C148: 14 | D148: 23261 | E148: 13 | F148: 23273 | G148: 14 | H148: 23296 | K148: 0 | L148: 1111
A149: 12 | B149: 23412 | C149: 14 | D149: 23447 | E149: 13 | F149: 23467 | G149: 14 | H149: 23468 | K149: 0 | L149: 1111
A150: 12 | B150: 23593 | C150: 14 | D150: 23602 | E150: 13 | F150: 23610 | G150: 14 | H150: 23637 | K150: 0 | L150: 1111
A151: 12 | B151: 23735 | C151: 14 | D151: 23767 | E151: 13 | F151: 23785 | G151: 14 | H151: 23793 | K151: 0 | L151: 1111
A152: 12 | B152: 23923 | C152: 14 | D152: 23970 | E152: 13 | F152: 23984 | G152: 14 | H152: 23999 | L152: 1111

Sheet !M806840.010
A1: Report for:!M806840.010
A2: Date: | B2: <date>
A3: Hen: | B3: <hen> | F3: Correct Sequence | G3: =Start!J2 -> 2212 | P3: Total Sequences in Data | Q3: =4994-COUNTBLANK(L7:L5000) -> 137 | V3: Total Sequences in Block Data | W3: =COUNTA(L7:L29) -> 23 | AA3: Total Sequences in Block Data | AB3: =COUNTA(L30:L52) -> 23 | AF3: Total Sequences in Block Data | AG3: =COUNTA(L53:L74) -> 22 | AK3: Total Sequences in Block Data | AL3: =COUNTA(L75:L97) -> 23 | AP3: Total Sequences in Block Data | AQ3: =COUNTA(L98:L120) -> 23 | AU3: Total Sequences in Block Data | AV3: =COUNTA(L121:L143) -> 23
P4: Total Sequences in Summary | Q4: =SUM(O7:O22) -> 137 | V4: Total Sequences in Block Summary | W4: =SUM(U7:U22) -> 23 | AA4: Total Sequences in Block Summary | AB4: =SUM(Z7:Z22) -> 23 | AF4: Total Sequences in Block Summary | AG4: =SUM(AE7:AE22) -> 22 | AK4: Total Sequences in Block Summary | AL4: =SUM(AJ7:AJ22) -> 23 | AP4: Total Sequences in Block Summary | AQ4: =SUM(AO7:AO22) -> 23 | AU4: Total Sequences in Block Summary | AV4: =SUM(AT7:AT22) -> 23
T5: Block 1 | Y5: Block 2 | AD5: Block 3 | AI5: Block 4 | AN5: Block 5 | AS5: Block 6
A6: Sequence Component 1 | B6: Time 1 | C6: Sequence Component 2 | D6: Time 2 | E6: Sequence Component 3 | F6: Time 3 | G6: Sequence Component 4 | H6: Time 4 | I6: Sequence Component 5 | J6: Time 5 | K6: Correct? 0=No 1=Yes | L6: Sequence | N6: Frequency | P6: Relative Frequency | Q6: Variability | T6: Frequency | V6: Relative Frequency | W6: Variability | Y6: Frequency | AA6: Relative Frequency | AB6: Variability | AD6: Frequency | AF6: Relative Frequency | AG6: Variability | AI6: Frequency | AK6: Relative Frequency | AL6: Variability | AN6: Frequency | AP6: Relative Frequency | AQ6: Variability | AS6: Frequency | AU6: Relative Frequency | AV6: Variability
A7: 12 | B7: 16 | C7: 14 | D7: 46 | E7: 13 | F7: 61 | G7: 14 | H7: 74 | K7: 0 | L7: 1111 | N7: 1111 | O7: =COUNTIF($L$7:$L$500,N7) -> 68 | P7: =O7/$Q$4 -> 0.496350365 | Q7: =IF(P7=0,0,(P7*((LOG(P7))/LOG(2)))) -> -0.5015964119 | T7: =N7 -> 1111 | U7: =COUNTIF(L7:L29,T7) -> 19 | V7: =U7/(W4-U20) -> 0.8260869565 | W7: =IF(V7=0,0,(V7*((LOG(V7))/LOG(2)))) -> -0.2276980178 | Y7: =N7 -> 1111 | Z7: =COUNTIF(L30:L52,Y7) -> 5 | AA7: =Z7/(AB4-Z20) -> 0.2173913043 | AB7: =IF(AA7=0,0,(AA7*((LOG(AA7))/LOG(2)))) -> -0.4786160568 | AD7: =N7 -> 1111 | AE7: =COUNTIF(L53:L74,AD7) -> 2 | AF7: =AE7/(AG4-AE20) -> 0.09090909091 | AG7: =IF(AF7=0,0,(AF7*((LOG(AF7))/LOG(2)))) -> -0.3144937835 | AI7: =N7 -> 1111 | AJ7: =COUNTIF(L75:L97,AI7) -> 7 | AK7: =AJ7/(AL4-AJ20) -> 0.3043478261 | AL7: =IF(AK7=0,0,(AK7*((LOG(AK7))/LOG(2)))) -> -0.5223238799 | AN7: =N7 -> 1111 | AO7: =COUNTIF(L98:L120,AN7) -> 12 | AP7: =AO7/(AQ4-AO20) -> 0.5217391304 | AQ7: =IF(AP7=0,0,(AP7*((LOG(AP7))/LOG(2)))) -> -0.4897040637 | AS7: =N7 -> 1111 | AT7: =COUNTIF(L121:L143,AS7) -> 23 | AU7: =AT7/(AV4-AT20) -> 1 | AV7: =IF(AU7=0,0,(AU7*((LOG(AU7))/LOG(2)))) -> 0
A8: 12 | B8: 179 | C8: 14 | D8: 190 | E8: 13 | F8: 203 | G8: 14 | H8: 219 | K8: 0 | L8: 1111 | N8: 1112 | O8: 23 | P8: 0.1678832117 | Q8: -0.4322103133 | T8: 1112 | U8: =COUNTIF(L7:L29,T8) -> 1 | V8: =U8/(W4-U20) -> 0.04347826087 | W8: -0.1966766068 | Y8: 1112 | Z8: =COUNTIF(L30:L52,Y8) -> 5 | AA8: =Z8/(AB4-Z20) -> 0.2173913043 | AB8: -0.4786160568 | AD8: 1112 | AE8: =COUNTIF(L53:L74,AD8) -> 9 | AF8: =AE8/(AG4-AE20) -> 0.4090909091 | AG8: -0.5275254343 | AI8: 1112 | AJ8: =COUNTIF(L75:L97,AI8) -> 6 | AK8: =AJ8/(AL4-AJ20) -> 0.2608695652 | AL8: -0.505721597 | AN8: 1112 | AO8: =COUNTIF(L98:L120,AN8) -> 2 | AP8: =AO8/(AQ4-AO20) -> 0.08695652174 | AQ8: -0.3063966918 | AS8: 1112 | AT8: =COUNTIF(L121:L143,AS8) -> 0 | AU8: =AT8/(AV4-AT20) -> 0 | AV8: 0
A9: 12 | B9: 316 | C9: 14 | D9: 328 | E9: 13 | F9: 341 | G9: 14 | H9: 354 | K9: 0 | L9: 1111 | N9: 1121 | O9: 0 | P9: 0 | Q9: 0 | T9: 1121 | U9: =COUNTIF(L7:L29,T9) -> 0 | V9: =U9/(W4-U20) -> 0 | W9: 0 | Y9: 1121 | Z9: =COUNTIF(L30:L52,Y9) -> 0 | AA9: =Z9/(AB4-Z20) -> 0 | AB9: 0 | AD9: 1121 | AE9: =COUNTIF(L53:L74,AD9) -> 0 | AF9: =AE9/(AG4-AE20) -> 0 | AG9: 0 | AI9: 1121 | AJ9: =COUNTIF(L75:L97,AI9) -> 0 | AK9: =AJ9/(AL4-AJ20) -> 0 | AL9: 0 | AN9: 1121 | AO9: =COUNTIF(L98:L120,AN9) -> 0 | AP9: =AO9/(AQ4-AO20) -> 0 | AQ9: 0 | AS9: 1121 | AT9: =COUNTIF(L121:L143,AS9) -> 0 | AU9: =AT9/(AV4-AT20) -> 0 | AV9: 0
A10: 12 | B10: 537 | C10: 23 | D10: 564 | E10: 13 | F10: 576 | G10: 14 | H10: 593 | K10: 0 | L10: 1211 | N10: 1122 | O10: 35 | P10: 0.2554744526 | Q10: -0.5029650899 | T10: 1122 | U10: =COUNTIF(L7:L29,T10) -> 1 | V10: =U10/(W4-U20) -> 0.04347826087 | W10: -0.1966766068 | Y10: 1122 | Z10: =COUNTIF(L30:L52,Y10) -> 9 | AA10: =Z10/(AB4-Z20) -> 0.3913043478 | AB10: -0.5296840257 | AD10: 1122 | AE10: =COUNTIF(L53:L74,AD10) -> 10 | AF10: =AE10/(AG4-AE20) -> 0.4545454545 | AG10: -0.5170470562 | AI10: 1122 | AJ10: =COUNTIF(L75:L97,AI10) -> 8 | AK10: =AJ10/(AL4-AJ20) -> 0.347826087 | AL10: -0.5299345934 | AN10: 1122 | AO10: =COUNTIF(L98:L120,AN10) -> 7 | AP10: =AO10/(AQ4-AO20) -> 0.3043478261 | AQ10: -0.5223238799 | AS10: 1122 | AT10: =COUNTIF(L121:L143,AS10) -> 0 | AU10: =AT10/(AV4-AT20) -> 0 | AV10: 0
A11: 12 | B11: 696 | C11: 14 | D11: 721 | E11: 13 | F11: 734 | G11: 14 | H11: 747 | K11: 0 | L11: 1111 | N11: 1211 | O11: 1 | P11: 0.007299270073 | Q11: -0.05181045316 | T11: 1211 | U11: =COUNTIF(L7:L29,T11) -> 1 | V11: =U11/(W4-U20) -> 0.04347826087 | W11: -0.1966766068 | Y11: 1211 | Z11: =COUNTIF(L30:L52,Y11) -> 0 | AA11: =Z11/(AB4-Z20) -> 0 | AB11: 0 | AD11: 1211 | AE11: =COUNTIF(L53:L74,AD11) -> 0 | AF11: =AE11/(AG4-AE20) -> 0 | AG11: 0 | AI11: 1211 | AJ11: =COUNTIF(L75:L97,AI11) -> 0 | AK11: =AJ11/(AL4-AJ20) -> 0 | AL11: 0 | AN11: 1211 | AO11: =COUNTIF(L98:L120,AN11) -> 0 | AP11: =AO11/(AQ4-AO20) -> 0 | AQ11: 0 | AS11: 1211 | AT11: =COUNTIF(L121:L143,AS11) -> 0 | AU11: =AT11/(AV4-AT20) -> 0 | AV11: 0
A12: 12 | B12: 846 | C12: 14 | D12: 871 | E12: 13 | F12: 881 | G12: 14 | H12: 891 | K12: 0 | L12: 1111 | N12: 1212 | O12: 0 | P12: 0 | Q12: 0 | T12: 1212 | U12: =COUNTIF(L7:L29,T12) -> 0 | V12: =U12/(W4-U20) -> 0 | W12: 0 | Y12: 1212 | Z12: =COUNTIF(L30:L52,Y12) -> 0 | AA12: =Z12/(AB4-Z20) -> 0 | AB12: 0 | AD12: 1212 | AE12: =COUNTIF(L53:L74,AD12) -> 0 | AF12: =AE12/(AG4-AE20) -> 0 | AG12: 0 | AI12: 1212 | AJ12: =COUNTIF(L75:L97,AI12) -> 0 | AK12: =AJ12/(AL4-AJ20) -> 0 | AL12: 0 | AN12: 1212 | AO12: =COUNTIF(L98:L120,AN12) -> 0 | AP12: =AO12/(AQ4-AO20) -> 0 | AQ12: 0 | AS12: 1212 | AT12: =COUNTIF(L121:L143,AS12) -> 0 | AU12: =AT12/(AV4-AT20) -> 0 | AV12: 0
A13: 12 | B13: 992 | C13: 14 | D13: 1018 | E13: 13 | F13: 1035 | G13: 23 | H13: 1048 | K13: 0 | L13: 1112 | N13: 1221 | O13: 0 | P13: 0 | Q13: 0 | T13: 1221 | U13: =COUNTIF(L7:L29,T13) -> 0 | V13: =U13/(W4-U20) -> 0 | W13: 0 | Y13: 1221 | Z13: =COUNTIF(L30:L52,Y13) -> 0 | AA13: =Z13/(AB4-Z20) -> 0 | AB13: 0 | AD13: 1221 | AE13: =COUNTIF(L53:L74,AD13) -> 0 | AF13: =AE13/(AG4-AE20) -> 0 | AG13: 0 | AI13: 1221 | AJ13: =COUNTIF(L75:L97,AI13) -> 0 | AK13: =AJ13/(AL4-AJ20) -> 0 | AL13: 0 | AN13: 1221 | AO13: =COUNTIF(L98:L120,AN13) -> 0 | AP13: =AO13/(AQ4-AO20) -> 0 | AQ13: 0 | AS13: 1221 | AT13: =COUNTIF(L121:L143,AS13) -> 0 | AU13: =AT13/(AV4-AT20) -> 0 | AV13: 0
A14: 21 | B14: 1157 | C14: 12 | D14: 1171 | E14: 13 | F14: 1193 | G14: 23 | H14: 1213 | K14: 0 | L14: 2112 | N14: 1222 | O14: 7 | P14: 0.05109489051 | Q14: -0.2192316798 | T14: 1222 | U14: =COUNTIF(L7:L29,T14) -> 0 | V14: =U14/(W4-U20) -> 0 | W14: 0 | Y14: 1222 | Z14: =COUNTIF(L30:L52,Y14) -> 4 | AA14: =Z14/(AB4-Z20) -> 0.1739130435 | AB14: -0.4388803402 | AD14: 1222 | AE14: =COUNTIF(L53:L74,AD14) -> 1 | AF14: =AE14/(AG4-AE20) -> 0.04545454545 | AG14: -0.2027014372 | AI14: 1222 | AJ14: =COUNTIF(L75:L97,AI14) -> 1 | AK14: =AJ14/(AL4-AJ20) -> 0.04347826087 | AL14: -0.1966766068 | AN14: 1222 | AO14: =COUNTIF(L98:L120,AN14) -> 1 | AP14: =AO14/(AQ4-AO20) -> 0.04347826087 | AQ14: -0.1966766068 | AS14: 1222 | AT14: =COUNTIF(L121:L143,AS14) -> 0 | AU14: =AT14/(AV4-AT20) -> 0 | AV14: 0
A15: 12 | B15: 1312 | C15: 14 | D15: 1320 | E15: 13 | F15: 1331 | G15: 14 | H15: 1343 | K15: 0 | L15: 1111 | N15: 2111 | O15: 0 | P15: 0 | Q15: 0 | T15: 2111 | U15: =COUNTIF(L7:L29,T15) -> 0 | V15: =U15/(W4-U20) -> 0 | W15: 0 | Y15: 2111 | Z15: =COUNTIF(L30:L52,Y15) -> 0 | AA15: =Z15/(AB4-Z20) -> 0 | AB15: 0 | AD15: 2111 | AE15: =COUNTIF(L53:L74,AD15) -> 0 | AF15: =AE15/(AG4-AE20) -> 0 | AG15: 0 | AI15: 2111 | AJ15: =COUNTIF(L75:L97,AI15) -> 0 | AK15: =AJ15/(AL4-AJ20) -> 0 | AL15: 0 | AN15: 2111 | AO15: =COUNTIF(L98:L120,AN15) -> 0 | AP15: =AO15/(AQ4-AO20) -> 0 | AQ15: 0 | AS15: 2111 | AT15: =COUNTIF(L121:L143,AS15) -> 0 | AU15: =AT15/(AV4-AT20) -> 0 | AV15: 0
A16: 12 | B16: 1450 | C16: 14 | D16: 1462 | E16: 24 | F16: 1486 | G16: 23 | H16: 1497 | K16: 0 | L16: 1122 | N16: 2112 | O16: 3 | P16: 0.02189781022 | Q16: -0.1207241514 | T16: 2112 | U16: =COUNTIF(L7:L29,T16) -> 1 | V16: =U16/(W4-U20) -> 0.04347826087 | W16: -0.1966766068 | Y16: 2112 | Z16: =COUNTIF(L30:L52,Y16) -> 0 | AA16: =Z16/(AB4-Z20) -> 0 | AB16: 0 | AD16: 2112 | AE16: =COUNTIF(L53:L74,AD16) -> 0 | AF16: =AE16/(AG4-AE20) -> 0 | AG16: 0 | AI16: 2112 | AJ16: =COUNTIF(L75:L97,AI16) -> 1 | AK16: =AJ16/(AL4-AJ20) -> 0.04347826087 | AL16: -0.1966766068 | AN16: 2112 | AO16: =COUNTIF(L98:L120,AN16) -> 1 | AP16: =AO16/(AQ4-AO20) -> 0.04347826087 | AQ16: -0.1966766068 | AS16: 2112 | AT16: =COUNTIF(L121:L143,AS16) -> 0 | AU16: =AT16/(AV4-AT20) -> 0 | AV16: 0
A17: 12 | B17: 1607 | C17: 14 | D17: 1625 | E17: 13 | F17: 1634 | G17: 14 | H17: 1662 | K17: 0 | L17: 1111 | N17: 2121 | O17: 0 | P17: 0 | Q17: 0 | T17: 2121 | U17: =COUNTIF(L7:L29,T17) -> 0 | V17: =U17/(W4-U20) -> 0 | W17: 0 | Y17: 2121 | Z17: =COUNTIF(L30:L52,Y17) -> 0 | AA17: =Z17/(AB4-Z20) -> 0 | AB17: 0 | AD17: 2121 | AE17: =COUNTIF(L53:L74,AD17) -> 0 | AF17: =AE17/(AG4-AE20) -> 0 | AG17: 0 | AI17: 2121 | AJ17: =COUNTIF(L75:L97,AI17) -> 0 | AK17: =AJ17/(AL4-AJ20) -> 0 | AL17: 0 | AN17: 2121 | AO17: =COUNTIF(L98:L120,AN17) -> 0 | AP17: =AO17/(AQ4-AO20) -> 0 | AQ17: 0 | AS17: 2121 | AT17: =COUNTIF(L121:L143,AS17) -> 0 | AU17: =AT17/(AV4-AT20) -> 0 | AV17: 0
A18: 12 | B18: 1761 | C18: 14 | D18: 1773 | E18: 13 | F18: 1784 | G18: 14 | H18: 1795 | K18: 0 | L18: 1111 | N18: 2122 | O18: 0 | P18: 0 | Q18: 0 | T18: 2122 | U18: =COUNTIF(L7:L29,T18) -> 0 | V18: =U18/(W4-U20) -> 0 | W18: 0 | Y18: 2122 | Z18: =COUNTIF(L30:L52,Y18) -> 0 | AA18: =Z18/(AB4-Z20) -> 0 | AB18: 0 | AD18: 2122 | AE18: =COUNTIF(L53:L74,AD18) -> 0 | AF18: =AE18/(AG4-AE20) -> 0 | AG18: 0 | AI18: 2122 | AJ18: =COUNTIF(L75:L97,AI18) -> 0 | AK18: =AJ18/(AL4-AJ20) -> 0 | AL18: 0 | AN18: 2122 | AO18: =COUNTIF(L98:L120,AN18) -> 0 | AP18: =AO18/(AQ4-AO20) -> 0 | AQ18: 0 | AS18: 2122 | AT18: =COUNTIF(L121:L143,AS18) -> 0 | AU18: =AT18/(AV4-AT20) -> 0 | AV18: 0
A19: 12 | B19: 1902 | C19: 14 | D19: 1920 | E19: 13 | F19: 1930 | G19: 14 | H19: 1939 | K19: 0 | L19: 1111 | N19: 2211 | O19: 0 | P19: 0 | Q19: 0 | T19: 2211 | U19: =COUNTIF(L7:L29,T19) -> 0 | V19: =U19/(W4-U20) -> 0 | W19: 0 | Y19: 2211 | Z19: =COUNTIF(L30:L52,Y19) -> 0 | AA19: =Z19/(AB4-Z20) -> 0 | AB19: 0 | AD19: 2211 | AE19: =COUNTIF(L53:L74,AD19) -> 0 | AF19: =AE19/(AG4-AE20) -> 0 | AG19: 0 | AI19: 2211 | AJ19: =COUNTIF(L75:L97,AI19) -> 0 | AK19: =AJ19/(AL4-AJ20) -> 0 | AL19: 0 | AN19: 2211 | AO19: =COUNTIF(L98:L120,AN19) -> 0 | AP19: =AO19/(AQ4-AO20) -> 0 | AQ19: 0 | AS19: 2211 | AT19: =COUNTIF(L121:L143,AS19) -> 0 | AU19: =AT19/(AV4-AT20) -> 0 | AV19: 0
A20: 12 | B20: 2041 | C20: 14 | D20: 2050 | E20: 13 | F20: 2060 | G20: 14 | H20: 2072 | K20: 0 | L20: 1111 | N20: 2212 | O20: 0 | P20: 0 | Q20: 0 | T20: 2212 | U20: =COUNTIF(L7:L29,T20) -> 0 | Y20: 2212 | Z20: =COUNTIF(L30:L52,Y20) -> 0 | AD20: 2212 | AE20: =COUNTIF(L53:L74,AD20) -> 0 | AI20: 2212 | AJ20: =COUNTIF(L75:L97,AI20) -> 0 | AN20: 2212 | AO20: =COUNTIF(L98:L120,AN20) -> 0 | AS20: 2212 | AT20: =COUNTIF(L121:L143,AS20) -> 0
A21: 12 | B21: 2192 | C21: 14 | D21: 2214 | E21: 13 | F21: 2228 | G21: 14 | H21: 2248 | K21: 0 | L21: 1111 | N21: 2221 | O21: 0 | P21: 0 | Q21: 0 | T21: 2221 | U21: =COUNTIF(L7:L29,T21) -> 0 | V21: =U21/(W4-U20) -> 0 | W21: =IF(V21=0,0,(V21*((LOG(V21))/LOG(2)))) -> 0 | Y21: 2221 | Z21: =COUNTIF(L30:L52,Y21) -> 0 | AA21: =Z21/(AB4-Z20) -> 0 | AB21: =IF(AA21=0,0,(AA21*((LOG(AA21))/LOG(2)))) -> 0 | AD21: 2221 | AE21: =COUNTIF(L53:L74,AD21) -> 0 | AF21: =AE21/(AG4-AE20) -> 0 | AG21: =IF(AF21=0,0,(AF21*((LOG(AF21))/LOG(2)))) -> 0 | AI21: 2221 | AJ21: =COUNTIF(L75:L97,AI21) -> 0 | AK21: =AJ21/(AL4-AJ20) -> 0 | AL21: =IF(AK21=0,0,(AK21*((LOG(AK21))/LOG(2)))) -> 0 | AN21: 2221 | AO21: =COUNTIF(L98:L120,AN21) -> 0 | AP21: =AO21/(AQ4-AO20) -> 0 | AQ21: =IF(AP21=0,0,(AP21*((LOG(AP21))/LOG(2)))) -> 0 | AS21: 2221 | AT21: =COUNTIF(L121:L143,AS21) -> 0 | AU21: =AT21/(AV4-AT20) -> 0 | AV21: =IF(AU21=0,0,(AU21*((LOG(AU21))/LOG(2)))) -> 0
A22: 12 | B22: 2347 | C22: 14 | D22: 2355 | E22: 13 | F22: 2369 | G22: 14 | H22: 2386 | K22: 0 | L22: 1111 | N22: 2222 | O22: 0 | P22: 0 | Q22: 0 | T22: 2222 | U22: =COUNTIF(L7:L29,T22) -> 0 | V22: =U22/(W4-U20) -> 0 | W22: =IF(V22=0,0,(V22*((LOG(V22))/LOG(2)))) -> 0 | Y22: 2222 | Z22: =COUNTIF(L30:L52,Y22) -> 0 | AA22: =Z22/(AB4-Z20) -> 0 | AB22: =IF(AA22=0,0,(AA22*((LOG(AA22))/LOG(2)))) -> 0 | AD22: 2222 | AE22: =COUNTIF(L53:L74,AD22) -> 0 | AF22: =AE22/(AG4-AE20) -> 0 | AG22: =IF(AF22=0,0,(AF22*((LOG(AF22))/LOG(2)))) -> 0 | AI22: 2222 | AJ22: =COUNTIF(L75:L97,AI22) -> 0 | AK22: =AJ22/(AL4-AJ20) -> 0 | AL22: =IF(AK22=0,0,(AK22*((LOG(AK22))/LOG(2)))) -> 0 | AN22: 2222 | AO22: =COUNTIF(L98:L120,AN22) -> 0 | AP22: =AO22/(AQ4-AO20) -> 0 | AQ22: =IF(AP22=0,0,(AP22*((LOG(AP22))/LOG(2)))) -> 0 | AS22: 2222 | AT22: =COUNTIF(L121:L143,AS22) -> 0 | AU22: =AT22/(AV4-AT20) -> 0 | AV22: =IF(AU22=0,0,(AU22*((LOG(AU22))/LOG(2)))) -> 0
A23: 12 | B23: 2498 | C23: 14 | D23: 2506 | E23: 13 | F23: 2517 | G23: 14 | H23: 2528 | K23: 0 | L23: 1111 | P23: =SUM(P7:P22) -> 1 | Q23: =-SUM(Q7:Q22) -> 1.828538099 | V23: =SUM(V7:V22) -> 1 | W23: =-SUM(W7:W22) -> 1.014404445 | AA23: =SUM(AA7:AA22) -> 1 | AB23: =-SUM(AB7:AB22) -> 1.925796479 | AF23: =SUM(AF7:AF22) -> 1 | AG23: =-SUM(AG7:AG22) -> 1.561767711 | AK23: =SUM(AK7:AK22) -> 1 | AL23: =-SUM(AL7:AL22) -> 1.951333284 | AP23: =SUM(AP7:AP22) -> 1 | AQ23: =-SUM(AQ7:AQ22) -> 1.711777849 | AU23: =SUM(AU7:AU22) -> 1 | AV23: =-SUM(AV7:AV22) -> 0
A24: 12 | B24: 2632 | C24: 14 | D24: 2641 | E24: 13 | F24: 2664 | G24: 14 | H24: 2675 | K24: 0 | L24: 1111 | P24: U= | Q24: =Q23/(LOG(Q4)/LOG(2)) -> 0.2576119801 | V24: U1= | W24: =W23/(LOG(W4)/LOG(2)) -> 0.2242490442 | AA24: U2= | AB24: =AB23/(LOG(AB4)/LOG(2)) -> 0.4257256777 | AF24: U3= | AG24: =AG23/(LOG(AG4)/LOG(2)) -> 0.3502167641 | AK24: U4= | AL24: =AL23/(LOG(AL4)/LOG(2)) -> 0.4313709645 | AP24: U5= | AQ24: =AQ23/(LOG(AQ4)/LOG(2)) -> 0.3784137071 | AU24: U6= | AV24: =AV23/(LOG(AV4)/LOG(2)) -> 0
A25: 12 | B25: 2788 | C25: 14 | D25: 2802 | E25: 13 | F25: 2821 | G25: 14 | H25: 2832 | K25: 0 | L25: 1111
A26: 12 | B26: 2964 | C26: 14 | D26: 2991 | E26: 13 | F26: 3012 | G26: 14 | H26: 3023 | K26: 0 | L26: 1111
A27: 12 | B27: 3164 | C27: 14 | D27: 3171 | E27: 13 | F27: 3180 | G27: 14 | H27: 3199 | K27: 0 | L27: 1111 | N27: Total Target Seq
A28: 12 | B28: 3354 | C28: 14 | D28: 3363 | E28: 13 | F28: 3374 | G28: 14 | H28: 3382 | K28: 0 | L28: 1111 | N28: =COUNTIF(L7:L143,G3) -> 0 | P28: 23 | Q28: 23 | R28: 22 | S28: 23 | T28: 23 | U28: 23
A29: 12 | B29: 3502 | C29: 14 | D29: 3514 | E29: 13 | F29: 3548 | G29: 14 | H29: 3557 | K29: 0 | L29: 1111 | P29: % of reinforcement given in 6 equal intervals based on number of trials
A30: 12 | B30: 3681 | C30: 14 | D30: 3689 | E30: 13 | F30: 3699 | G30: 14 | H30: 3710 | K30: 0 | L30: 1111 | P30: %_1 | Q30: %_2 | R30: %_3 | S30: %_4 | T30: %_5 | U30: %_6
A31: 12 | B31: 3885 | C31: 14 | D31: 3894 | E31: 13 | F31: 3908 | G31: 14 | H31: 3924 | K31: 0 | L31: 1111 | O31: target sequence | P31: =$G$3 -> 2212 | Q31: 2212 | R31: 2212 | S31: 2212 | T31: 2212 | U31: 2212
A32: 12 | B32: 4167 | C32: 14 | D32: 4187 | E32: 24 | F32: 4203 | G32: 23 | H32: 4222 | K32: 0 | L32: 1122 | O32: total reinforcement | P32: =U20 -> 0 | Q32: =Z20 -> 0 | R32: =AE20 -> 0 | S32: =AJ20 -> 0 | T32: =AO20 -> 0 | U32: =AT20 -> 0
A33: 12 | B33: 4357 | C33: 14 | D33: 4368 | E33: 24 | F33: 4388 | G33: 23 | H33: 4396 | K33: 0 | L33: 1122 | O33: % target
A34: 12 | B34: 4507 | C34: 14 | D34: 4538 | E34: 13 | F34: 4551 | G34: 23 | H34: 4573 | K34: 0 | L34: 1112 | O34: CCRF
A35: 12 | B35: 4693 | C35: 14 | D35: 4707 | E35: 13 | F35: 4721 | G35: 14 | H35: 4738 | K35: 0 | L35: 1111 | O35: % CCRf
A36: 12 | B36: 4844 | C36: 14 | D36: 4872 | E36: 13 | F36: 4887 | G36: 14 | H36: 4896 | K36: 0 | L36: 1111 | O36: average response rate | P36: =H29/P28 -> 154.6521739 | Q36: =(H52-H29)/Q28 -> 184.2173913 | R36: =(H74-H52)/R28 -> 169.6363636 | S36: =(H97-H74)/S28 -> 183.7391304 | T36: =(H120-H97)/T28 -> 166.5217391 | U36: =(H143-H120)/U28 -> 189.4347826
A37: 12 | B37: 4999 | C37: 14 | D37: 5015 | E37: 13 | F37: 5024 | G37: 23 | H37: 5046 | K37: 0 | L37: 1112
A38: 12 | B38: 5157 | C38: 14 | D38: 5174 | E38: 13 | F38: 5190 | G38: 23 | H38: 5202 | K38: 0 | L38: 1112
A39: 12 | B39: 5303 | C39: 14 | D39: 5313 | E39: 13 | F39: 5326 | G39: 14 | H39: 5342 | K39: 0 | L39: 1111
A40: 12 | B40: 5484 | C40: 14 | D40: 5503 | E40: 13 | F40: 5524 | G40: 23 | H40: 5550 | K40: 0 | L40: 1112
A41: 12 | B41: 5674 | C41: 14 | D41: 5696 | E41: 24 | F41: 5708 | G41: 23 | H41: 5715 | K41: 0 | L41: 1122
A42: 12 | B42: 5832 | C42: 14 | D42: 5850 | E42: 13 | F42: 5866 | G42: 23 | H42: 5885 | K42: 0 | L42: 1112
A43: 12 | B43: 6048 | C43: 14 | D43: 6093 | E43: 24 | F43: 6110 | G43: 23 | H43: 6117 | K43: 0 | L43: 1122
A44: 12 | B44: 6244 | C44: 14 | D44: 6276 | E44: 24 | F44: 6296 | G44: 23 | H44: 6306 | K44: 0 | L44: 1122
A45: 12 | B45: 6434 | C45: 14 | D45: 6446 | E45: 24 | F45: 6465 | G45: 23 | H45: 6479 | K45: 0 | L45: 1122
A46: 12 | B46: 6610 | C46: 14 | D46: 6635 | E46: 24 | F46: 6655 | G46: 23 | H46: 6662 | K46: 0 | L46: 1122
A47: 12 | B47: 6807 | C47: 14 | D47: 6841 | E47: 24 | F47: 6863 | G47: 23 | H47: 6873 | K47: 0 | L47: 1122
A48: 12 | B48: 6989 | C48: 23 | D48: 7059 | E48: 24 | F48: 7069 | G48: 23 | H48: 7077 | K48: 0 | L48: 1222
A49: 12 | B49: 7221 | C49: 23 | D49: 7256 | E49: 24 | F49: 7264 | G49: 23 | H49: 7271 | K49: 0 | L49: 1222
A50: 12 | B50: 7415 | C50: 23 | D50: 7426 | E50: 24 | F50: 7433 | G50: 23 | H50: 7440 | K50: 0 | L50: 1222
A51: 12 | B51: 7567 | C51: 23 | D51: 7593 | E51: 24 | F51: 7603 | G51: 23 | H51: 7611 | K51: 0 | L51: 1222
A52: 12 | B52: 7726 | C52: 14 | D52: 7747 | E52: 24 | F52: 7785 | G52: 23 | H52: 7794 | K52: 0 | L52: 1122
A53: 12 | B53: 7911 | C53: 14 | D53: 7945 | E53: 24 | F53: 7966 | G53: 23 | H53: 7974 | K53: 0 | L53: 1122
A54: 12 | B54: 8160 | C54: 14 | D54: 8176 | E54: 24 | F54: 8189 | G54: 23 | H54: 8197 | K54: 0 | L54: 1122
A55: 12 | B55: 8311 | C55: 14 | D55: 8323 | E55: 13 | F55: 8330 | G55: 23 | H55: 8341 | K55: 0 | L55: 1112
A56: 12 | B56: 8438 | C56: 14 | D56: 8456 | E56: 13 | F56: 8472 | G56: 23 | H56: 8491 | K56: 0 | L56: 1112
A57: 12 | B57: 8593 | C57: 14 | D57: 8616 | E57: 24 | F57: 8632 | G57: 23 | H57: 8639 | K57: 0 | L57: 1122
A58: 12 | B58: 8798 | C58: 14 | D58: 8815 | E58: 13 | F58: 8832 | G58: 23 | H58: 8850 | K58: 0 | L58: 1112
A59: 12 | B59: 8959 | C59: 14 | D59: 8977 | E59: 13 | F59: 8993 | G59: 23 | H59: 9011 | K59: 0 | L59: 1112
A60: 12 | B60: 9158 | C60: 14 | D60: 9177 | E60: 13 | F60: 9196 | G60: 23 | H60: 9209 | K60: 0 | L60: 1112
A61: 12 | B61: 9316 | C61: 14 | D61: 9346 | E61: 24 | F61: 9360 | G61: 23 | H61: 9368 | K61: 0 | L61: 1122
A62: 12 | B62: 9459 | C62: 14 | D62: 9473 | E62: 13 | F62: 9484 | G62: 23 | H62: 9499 | K62: 0 | L62: 1112
A63: 12 | B63: 9609 | C63: 14 | D63: 9616 | E63: 13 | F63: 9628 | G63: 14 | H63: 9643 | K63: 0 | L63: 1111
A64: 12 | B64: 9767 | C64: 23 | D64: 9786 | E64: 24 | F64: 9793 | G64: 23 | H64: 9801 | K64: 0 | L64: 1222
A65: 12 | B65: 9924 | C65: 14 | D65: 9936 | E65: 24 | F65: 9961 | G65: 23 | H65: 9970 | K65: 0 | L65: 1122
A66: 12 | B66: 10093 | C66: 14 | D66: 10127 | E66: 24 | F66: 10147 | G66: 23 | H66: 10155 | K66: 0 | L66: 1122
A67: 12 | B67: 10281 | C67: 14 | D67: 10326 | E67: 24 | F67: 10346 | G67: 23 | H67: 10355 | K67: 0 | L67: 1122
A68: 12 | B68: 10494 | C68: 14 | D68: 10551 | E68: 24 | F68: 10567 | G68: 23 | H68: 10580 | K68: 0 | L68: 1122
A69: 12 | B69: 10689 | C69: 14 | D69: 10717 | E69: 24 | F69: 10736 | G69: 23 | H69: 10744 | K69: 0 | L69: 1122
A70: 12 | B70: 10871 | C70: 14 | D70: 10880 | E70: 13 | F70: 10887 | G70: 14 | H70: 10899 | K70: 0 | L70: 1111
A71: 12 | B71: 11001 | C71: 14 | D71: 11021 | E71: 13 | F71: 11032 | G71: 23 | H71: 11071 | K71: 0 | L71: 1112
A72: 12 | B72: 11177 | C72: 14 | D72: 11197 | E72: 13 | F72: 11214 | G72: 23 | H72: 11227 | K72: 0 | L72: 1112
A73: 12 | B73: 11336 | C73: 14 | D73: 11349 | E73: 13 | F73: 11364 | G73: 23 | H73: 11383 | K73: 0 | L73: 1112
A74: 12 | B74: 11499 | C74: 14 | D74: 11509 | E74: 24 | F74: 11518 | G74: 23 | H74: 11526 | K74: 0 | L74: 1122
A75: 12 | B75: 11647 | C75: 14 | D75: 11690 | E75: 24 | F75: 11729 | G75: 23 | H75: 11740 | K75: 0 | L75: 1122
A76: 12 | B76: 11841 | C76: 14 | D76: 11865 | E76: 13 | F76: 11876 | G76: 23 | H76: 11888 | K76: 0 | L76: 1112
A77: 12 | B77: 12030 | C77: 14 | D77: 12048 | E77: 24 | F77: 12080 | G77: 23 | H77: 12088 | K77: 0 | L77: 1122
A78: 12 | B78: 12231 | C78: 14 | D78: 12256 | E78: 24 | F78: 12267 | G78: 23 | H78: 12276 | K78: 0 | L78: 1122
A79: 12 | B79: 12394 | C79: 14 | D79: 12425 | E79: 13 | F79: 12444 | G79: 14 | H79: 12462 | K79: 0 | L79: 1111
A80: 12 | B80: 12560 | C80: 14 | D80: 12580 | E80: 13 | F80: 12591 | G80: 14 | H80: 12602 | K80: 0 | L80: 1111
A81: 12 | B81: 12763 | C81: 14 | D81: 12773 | E81: 24 | F81: 12794 | G81: 23 | H81: 12805 | K81: 0 | L81: 1122
A82: 12 | B82: 12929 | C82: 14 | D82: 12948 | E82: 13 | F82: 12968 | G82: 23 | H82: 12984 | K82: 0 | L82: 1112
A83: 12 | B83: 13121 | C83: 14 | D83: 13134 | E83: 13 | F83: 13141 | G83: 14 | H83: 13153 | K83: 0 | L83: 1111
A84: 12 | B84: 13260 | C84: 14 | D84: 13277 | E84: 13 | F84: 13291 | G84: 23 | H84: 13307 | K84: 0 | L84: 1112
A85: 21 | B85: 13428 | C85: 12 | D85: 13451 | E85: 13 | F85: 13486 | G85: 23 | H85: 13499 | K85: 0 | L85: 2112
A86: 12 | B86: 13653 | C86: 14 | D86: 13673 | E86: 24 | F86: 13682 | G86: 23 | H86: 13691 | K86: 0 | L86: 1122
A87: 12 | B87: 13793 | C87: 14 | D87: 13823 | E87: 13 | F87: 13837 | G87: 23 | H87: 13853 | K87: 0 | L87: 1112
A88: 12 | B88: 13970 | C88: 14 | D88: 14016 | E88: 24 | F88: 14035 | G88: 23 | H88: 14045 | K88: 0 | L88: 1122
A89: 12 | B89: 14184 | C89: 14 | D89: 14216 | E89: 13 | F89: 14233 | G89: 14 | H89: 14252 | K89: 0 | L89: 1111
A90: 12 | B90: 14393 | C90: 23 | D90: 14406 | E90: 24 | F90: 14414 | G90: 23 | H90: 14424 | K90: 0 | L90: 1222
A91: 12 | B91: 14584 | C91: 14 | D91: 14599 | E91: 13 | F91: 14613 | G91: 14 | H91: 14625 | K91: 0 | L91: 1111
A92: 12 | B92: 14869 | C92: 14 | D92: 14879 | E92: 13 | F92: 14888 | G92: 23 | H92: 14906 | K92: 0 | L92: 1112
A93: 12 | B93: 15057 | C93: 14 | D93: 15116 | E93: 24 | F93: 15128 | G93: 23 | H93: 15134 | K93: 0 | L93: 1122
A94: 12 | B94: 15233 | C94: 14 | D94: 15248 | E94: 13 | F94: 15259 | G94: 14 | H94: 15285 | K94: 0 | L94: 1111
A95: 12 | B95: 15403 | C95: 14 | D95: 15414 | E95: 13 | F95: 15439 | G95: 23 | H95: 15450 | K95: 0 | L95: 1112
A96: 12 | B96: 15568 | C96: 14 | D96: 15579 | E96: 24 | F96: 15589 | G96: 23 | H96: 15596 | K96: 0 | L96: 1122
A97: 12 | B97: 15710 | C97: 14 | D97: 15727 | E97: 13 | F97: 15737 | G97: 14 | H97: 15752 | K97: 0 | L97: 1111
A98: 12 | B98: 15847 | C98: 14 | D98: 15867 | E98: 13 | F98: 15877 | G98: 14 | H98: 15892 | K98: 0 | L98: 1111
A99: 12 | B99: 16012 | C99: 14 | D99: 16029 | E99: 13 | F99: 16040 | G99: 14 | H99: 16051 | K99: 0 | L99: 1111
A100: 12 | B100: 16157 | C100: 14 | D100: 16181 | E100: 13 | F100: 16199 | G100: 14 | H100: 16210 | K100: 0 | L100: 1111
A101: 12 | B101: 16347 | C101: 14 | D101: 16358 | E101: 13 | F101: 16369 | G101: 14 | H101: 16383 | K101: 0 | L101: 1111
A102: 12 | B102: 16487 | C102: 14 | D102: 16501 | E102: 13 | F102: 16544 | G102: 14 | H102: 16582 | K102: 0 | L102: 1111
A103: 12 | B103: 16688 | C103: 14 | D103: 16709 | E103: 13 | F103: 16721 | G103: 23 | H103: 16737 | K103: 0 | L103: 1112
A104: 12 | B104: 16848 | C104: 14 | D104: 16858 | E104: 13 | F104: 16869 | G104: 14 | H104: 16889 | K104: 0 | L104: 1111
A105: 12 | B105: 16987 | C105: 14 | D105: 17000 | E105: 13 | F105: 17052 | G105: 14 | H105: 17070 | K105: 0 | L105: 1111
A106: 12 | B106: 17182 | C106: 14 | D106: 17198 | E106: 13 | F106: 17208 | G106: 14 | H106: 17219 | K106: 0 | L106: 1111
A107: 12 | B107: 17376 | C107: 23 | D107: 17388 | E107: 24 | F107: 17397 | G107: 23 | H107: 17404 | K107: 0 | L107: 1222
A108: 12 | B108: 17536 | C108: 14 | D108: 17582 | E108: 24 | F108: 17591 | G108: 23 | H108: 17599 | K108: 0 | L108: 1122
A109: 12 | B109: 17704 | C109: 14 | D109: 17734 | E109: 24 | F109: 17745 | G109: 23 | H109: 17753 | K109: 0 | L109: 1122
A110: 12 | B110: 17856 | C110: 14 | D110: 17897 | E110: 24 | F110: 17908 | G110: 23 | H110: 17915 | K110: 0 | L110: 1122
A111: 12 | B111: 18036 | C111: 14 | D111: 18054 | E111: 24 | F111: 18073 | G111: 23 | H111: 18080 | K111: 0 | L111: 1122
A112: 21 | B112: 18180 | C112: 12 | D112: 18199 | E112: 13 | F112: 18210 | G112: 23 | H112: 18221 | K112: 0 | L112: 2112
A113: 12 | B113: 18323 | C113: 14 | D113: 18337 | E113: 13 | F113: 18366 | G113: 23 | H113: 18400 | K113: 0 | L113: 1112
A114: 12 | B114: 18515 | C114: 14 | D114: 18544 | E114: 24 | F114: 18554 | G114: 23 | H114: 18559 | K114: 0 | L114: 1122
A115: 12 | B115: 18683 | C115: 14 | D115: 18694 | E115: 24 | F115: 18705 | G115: 23 | H115: 18713 | K115: 0 | L115: 1122
A116: 12 | B116: 18817 | C116: 14 | D116: 18828 | E116: 13 | F116: 18841 | G116: 14 | H116: 18861 | K116: 0 | L116: 1111
A117: 12 | B117: 18967 | C117: 14 | D117: 18980 | E117: 13 | F117: 19000 | G117: 14 | H117: 19014 | K117: 0 | L117: 1111
A118: 12 | B118: 19157 | C118: 14 | D118: 19188 | E118: 13 | F118: 19214 | G118: 14 | H118: 19234 | K118: 0 | L118: 1111
A119: 12 | B119: 19358 | C119: 14 | D119: 19379 | E119: 13 | F119: 19396 | G119: 14 | H119: 19410 | K119: 0 | L119: 1111
A120: 12 | B120: 19536 | C120: 14 | D120: 19554 | E120: 24 | F120: 19575 | G120: 23 | H120: 19582 | K120: 0 | L120: 1122
A121: 12 | B121: 19749 | C121: 14 | D121: 19765 | E121: 13 | F121: 19776 | G121: 14 | H121: 19787 | K121: 0 | L121: 1111
A122: 12 | B122: 19898 | C122: 14 | D122: 19909 | E122: 13 | F122: 19923 | G122: 14 | H122: 19934 | K122: 0 | L122: 1111
A123: 12 | B123: 20041 | C123: 14 | D123: 20052 | E123: 13 | F123: 20079 | G123: 14 | H123: 20091 | K123: 0 | L123: 1111
A124: 12 | B124: 20192 | C124: 14 | D124: 20203 | E124: 13 | F124: 20221 | G124: 14 | H124: 20232 | K124: 0 | L124: 1111
A125: 12 | B125: 20335 | C125: 14 | D125: 20359 | E125: 13 | F125: 20369 | G125: 14 | H125: 20383 | K125: 0 | L125: 1111
A126: 12 | B126: 20500 | C126: 14 | D126: 20531 | E126: 13 | F126: 20546 | G126: 14 | H126: 20558 | K126: 0 | L126: 1111
A127: 12 | B127: 20713 | C127: 14 | D127: 20788 | E127: 13 | F127: 20810 | G127: 14 | H127: 20850 | K127: 0 | L127: 1111
A128: 12 | B128: 21051 | C128: 14 | D128: 21065 | E128: 13 | F128: 21086 | G128: 14 | H128: 21094 | K128: 0 | L128: 1111
A129: 12 | B129: 21194 | C129: 14 | D129: 21202 | E129: 13 | F129: 21217 | G129: 14 | H129: 21235 | K129: 0 | L129: 1111
A130: 12 | B130: 21377 | C130: 14 | D130: 21405 | E130: 13 | F130: 21420 | G130: 14 | H130: 21437 | K130: 0 | L130: 1111
A131: 12 | B131: 21558 | C131: 14 | D131: 21569 | E131: 13 | F131: 21583 | G131: 14 | H131: 21622 | K131: 0 | L131: 1111
A132: 12 | B132: 21734 | C132: 14 | D132: 21756 | E132: 13 | F132: 21768 | G132: 14 | H132: 21786 | K132: 0 | L132: 1111
A133: 12 | B133: 21939 | C133: 14 | D133: 21959 | E133: 13 | F133: 21970 | G133: 14 | H133: 21989 | K133: 0 | L133: 1111
A134: 12 | B134: 22100 | C134: 14 | D134: 22117 | E134: 13 | F134: 22134 | G134: 14 | H134: 22149 | K134: 0 | L134: 1111
A135: 12 | B135: 22258 | C135: 14 | D135: 22269 | E135: 13 | F135: 22284 | G135: 14 | H135: 22300 | K135: 0 | L135: 1111
A136: 12 | B136: 22406 | C136: 14 | D136: 22424 | E136: 13 | F136: 22438 | G136: 14 | H136: 22449 | K136: 0 | L136: 1111
A137: 12 | B137: 22557 | C137: 14 | D137: 22573 | E137: 13 | F137: 22587 | G137: 14 | H137: 22611 | K137: 0 | L137: 1111
A138: 12 | B138: 22709 | C138: 14 | D138: 22730 | E138: 13 | F138: 22745 | G138: 14 | H138: 22770 | K138: 0 | L138: 1111
A139: 12 | B139: 22912 | C139: 14 | D139: 22953 | E139: 13 | F139: 22980 | G139: 14 | H139: 22993 | K139: 0 | L139: 1111
A140: 12 | B140: 23121 | C140: 14 | D140: 23133 | E140: 13 | F140: 23143 | G140: 14 | H140: 23157 | K140: 0 | L140: 1111
A141: 12 | B141: 23463 | C141: 14 | D141: 23476 | E141: 13 | F141: 23488 | G141: 14 | H141: 23503 | K141: 0 | L141: 1111
A142: 12 | B142: 23729 | C142: 14 | D142: 23746 | E142: 13 | F142: 23768 | G142: 14 | H142: 23786 | K142: 0 | L142: 1111
A143: 12 | B143: 23894 | C143: 14 | D143: 23916 | E143: 13 | F143: 23932 | G143: 14 | H143: 23939 | L143: 1111

Sheet !M807940.010
A1: Report for:!M807940.010
A2: Date: | B2: <date>
A3: Hen: | B3: <hen> | F3: Correct Sequence | G3: =Start!J2 -> 2212 | P3: Total Sequences in Data | Q3: =4994-COUNTBLANK(L7:L5000) -> 159 | V3: Total Sequences in Block Data | W3: =COUNTA(L7:L33) -> 27 | AA3: Total Sequences in Block Data | AB3: =COUNTA(L34:L59) -> 26 | AF3: Total Sequences in Block Data | AG3: =COUNTA(L60:L86) -> 27 | AK3: Total Sequences in Block Data | AL3: =COUNTA(L87:L112) -> 26 | AP3: Total Sequences in Block Data | AQ3: =COUNTA(L113:L139) -> 27 | AU3: Total Sequences in Block Data | AV3: =COUNTA(L140:L165) -> 26
P4: Total Sequences in Summary | Q4: =SUM(O7:O22) -> 158 | V4: Total Sequences in Block Summary | W4: =SUM(U7:U22) -> 27 | AA4: Total Sequences in Block Summary | AB4: =SUM(Z7:Z22) -> 26 | AF4: Total Sequences in Block Summary | AG4: =SUM(AE7:AE22) -> 27 | AK4: Total Sequences in Block Summary | AL4: =SUM(AJ7:AJ22) -> 26 | AP4: Total Sequences in Block Summary | AQ4: =SUM(AO7:AO22) -> 27 | AU4: Total Sequences in Block Summary | AV4: =SUM(AT7:AT22) -> 25
T5: Block 1 | Y5: Block 2 | AD5: Block 3 | AI5: Block 4 | AN5: Block 5 | AS5: Block 6
A6: Sequence Component 1 | B6: Time 1 | C6: Sequence Component 2 | D6: Time 2 | E6: Sequence Component 3 | F6: Time 3 | G6: Sequence Component 4 | H6: Time 4 | I6: Sequence Component 5 | J6: Time 5 | K6: Correct? 0=No 1=Yes | L6: Sequence | N6: Frequency | P6: Relative Frequency | Q6: Variability | T6: Frequency | V6: Relative Frequency | W6: Variability | Y6: Frequency | AA6: Relative Frequency | AB6: Variability | AD6: Frequency | AF6: Relative Frequency | AG6: Variability | AI6: Frequency | AK6: Relative Frequency | AL6: Variability | AN6: Frequency | AP6: Relative Frequency | AQ6: Variability | AS6: Frequency | AU6: Relative Frequency | AV6: Variability
